Workbook

Sheet Summary
A1: Summary
A2: =Name_Project -> King Island Valuation
C4: Valuation
E6: Weighting
C7: DCF Valuation | D7: AUD M | E7: 1 | F7: =Valuation!I39*E7 -> 187.7131023
C8: Comparables Valuation | D8: AUD M | E8: =E9-E7 -> 0 | F8: =Valuation!I40*E8 -> 0
C9: Combined Valuation | D9: AUD M | E9: 1 | F9: =SUM(F7:F8) -> 187.7131023
C11: Operational Metric
C13: Operating Expentidure (OPEX)/mtu | D13: AUD M | F13: ='Cashflow Waterfall'!H54 -> 155.0041141
C14: All-In-Sustaining Costs (ASIC)/mtu | D14: AUD M | F14: ='Cashflow Waterfall'!H62 -> 163.7919995
C15: All-in-Costs (AIC)/mtu | D15: AUD M | F15: ='Cashflow Waterfall'!H69 -> 187.0593118
C17: EBITDA/mtu | D17: AUD M | F17: =AFS!I64 -> 197.9125526
C18: EBIT/mtu | D18: AUD M | F18: =AFS!I68 -> 170.7673548
C19: NPAT/mtu | D19: AUD M | F19: =AFS!I78 -> 121.0925495

Sheet Inputs
A1: Assumptions
A2: =Name_Project -> King Island Valuation | E2: =Master_check -> 0
C4: Timing
C5: Start date
C6: Key project stages | E6: Model start | F6: Development | G6: Delay | H6: Production | I6: Restoration
C7: Start | D7: Date | F7: =E9+1 -> 2019-01-01 | G7: =F9+1 -> 2020-01-01 | H7: =G9+1 -> 2020-01-01 | I7: =H9+1 -> 2028-01-01
C8: Duration | D8: Qrtrs / Months | F8: 4 | G8: 0 | H8: =8*4 -> 32 | I8: 0
C9: End | D9: Date | E9: 2018-12-31 | F9: =EOMONTH(F7,F8*Months_Qtr-1) -> 2019-12-31 | G9: =EOMONTH(G7,G8*Months_Qtr-1) -> 2019-12-31 | H9: =EOMONTH(H7,H8*Months_Qtr-1) -> 2027-12-31 | I9: =EOMONTH(I7,I8*Months_Qtr-1) -> 2027-12-31
C12: Development
C13: Cost profile
C14: Construction expenditure | E14: Applied | F14: Total | G14: 1 | H14: 2 | I14: 3 | J14: 4 | K14: 5 | L14: 6 | M14: Check
B15: 1 | C15: Plant & Equipment | D15: AUD M | E15: 30 | F15: =SUM(G15:L15) -> 1 | G15: 0.25 | H15: 0.25 | I15: 0.25 | J15: 0.25 | M15: =(SUM(G15:L15)-1)*SUM(G15:L15) -> 0
B16: 1 | C16: Site Infrastructure | D16: AUD M | E16: 30 | F16: =SUM(G16:L16) -> 1 | G16: 0.25 | H16: 0.25 | I16: 0.25 | J16: 0.25 | M16: =(SUM(G16:L16)-1)*SUM(G16:L16) -> 0
C17: Total | D17: AUD M | E17: =SUM(E15:E16) -> 60
C19: Contingency
C20: Contingency factor | D20: % | E20: =Scenarios!E12 -> 0
C22: Closure/restoration
C23: Restoration expenses | D23: AUD M | E23: 0 | F23: No restoration provisions as per last annual report. Will begin restoration fund once production begins
C24: Restoration reserve timing | D24: Quarters | E24: 0
C26: Volume
C27: Resources
E28: WO3, JORC resources | I28: Ore - JORC Reserve
C29: Ore class | E29: Indicated/Mtonnes | F29: Grade | G29: tonnes | I29: Avg grade | J29: mt | K29: tonnes
C30: High grade ore | D30: Various | E30: 11.25 | F30: 0.009 | G30: =E30*Million -> 11250000 | I30: 0.0073 | J30: 3.14 | K30: =J30*1000000 -> 3140000 | L30: 0.2% Cut-off Grade
C32: Mining
C33: High Grade | E33: 1 | F33: =IF(E33<=$H$8,E33+1,"") -> 2 | G33: =IF(F33<=$H$8,F33+1,"") -> 3 | H33: 4 | I33: 5 | J33: 6 | K33: 7 | L33: 8 | M33: 9 | N33: 10 | O33: 11 | P33: 12 | Q33: 13 | R33: 14 | S33: 15 | T33: 16 | U33: 17 | V33: 18 | W33: 19 | X33: 20 | Y33: 21 | Z33: 22 | AA33: 23 | AB33: 24 | AC33: 25 | AD33: 26 | AE33: 27 | AF33: 28 | AG33: 29 | AH33: 30 | AI33: 31 | AJ33: 32
C34: Ore mined | D34: Tonnes | E34: 100000 | F34: 100000 | G34: 100000 | H34: 100000 | I34: 100000 | J34: 100000 | K34: 100000 | L34: 100000 | M34: 100000 | N34: 100000 | O34: 100000 | P34: 100000 | Q34: 100000 | R34: 100000 | S34: 100000 | T34: 100000 | U34: 100000 | V34: 100000 | W34: 100000 | X34: 100000 | Y34: 100000 | Z34: 100000 | AA34: 100000 | AB34: 100000 | AC34: 100000 | AD34: 100000 | AE34: 100000 | AF34: 100000 | AG34: 100000 | AH34: 100000 | AI34: 100000 | AJ34: 100000
C35: Grade | D35: % | E35: =$I$30 -> 0.0073 | F35: =$I$30 -> 0.0073 | G35: 0.0073 | H35: 0.0073 | I35: 0.0073 | J35: 0.0073 | K35: 0.0073 | L35: 0.0073 | M35: 0.0073 | N35: 0.0073 | O35: 0.0073 | P35: 0.0073 | Q35: 0.0073 | R35: 0.0073 | S35: 0.0073 | T35: 0.0073 | U35: 0.0073 | V35: 0.0073 | W35: 0.0073 | X35: 0.0073 | Y35: 0.0073 | Z35: 0.0073 | AA35: 0.0073 | AB35: 0.0073 | AC35: 0.0073 | AD35: 0.0073 | AE35: 0.0073 | AF35: 0.0073 | AG35: 0.0073 | AH35: 0.0073 | AI35: 0.0073 | AJ35: 0.0073
C37: Overburden | E37: Ratio of overburden to ore extracted
C38: Strip ratio | D38: x | E38: 9.7 | F38: 9.7 | G38: 9.7 | H38: 9.7 | I38: 9.7 | J38: 9.7 | K38: 9.7 | L38: 9.7 | M38: 9.7 | N38: 9.7 | O38: 9.7 | P38: 9.7 | Q38: 9.7 | R38: 9.7 | S38: 9.7 | T38: 9.7 | U38: 9.7 | V38: 9.7 | W38: 9.7 | X38: 9.7 | Y38: 9.7 | Z38: 9.7 | AA38: 9.7 | AB38: 9.7 | AC38: 9.7 | AD38: 9.7 | AE38: 9.7 | AF38: 9.7 | AG38: 9.7 | AH38: 9.7 | AI38: 9.7 | AJ38: 9.7
C40: Milling
C41: Processing facility | E41: 1 | F41: 2 | G41: 3 | H41: 4 | I41: 5 | J41: 6
C42: Ramp up | D42: % | E42: 1 | F42: 1 | G42: 1 | H42: 1 | I42: 1 | J42: 1
C43: Capacity | D43: Tonnes/pQ | E43: 100000
C45: Technological process | E45: Input | F45: Sensitivity | G45: Applied
C46: Metallurgical Recovery | D46: % | E46: 0.675 | F46: =Scenarios!E13 -> 0 | G46: =E46+Scenarios!$E$13 -> 0.675
C47: Concentrate Grade | E47: 0.6
C49: Operations
C50: Spot pricing
C51: Case selection
C52: Selected | D52: Applied Case | E52: =Scenarios!E10 -> Base Case
C54: Price Case
C55: This section outlines pricing cases for scenario analysis | F55: =(YEAR(F7)) -> 2019 | G55: =F55+1 -> 2020 | H55: 2021 | I55: 2022 | J55: 2023 | K55: 2024 | L55: 2025
B56: =IF($E$52=C56,1,0) -> 1 | C56: Base Case | D56: USD/mtu | F56: 330 | G56: 330 | H56: 330 | I56: 330 | J56: 330 | K56: 330 | L56: 330
B57: =IF($E$52=C57,1,0) -> 0 | C57: Blue Sky | D57: USD/mtu | F57: =F56*(1+$E$59) -> 363 | G57: =G56*(1+$E$59) -> 363 | H57: 363 | I57: 363 | J57: 363 | K57: 363 | L57: 363
B58: =IF($E$52=C58,1,0) -> 0 | C58: Grey Sky | D58: USD/mtu | E58: Sensitivity | F58: =F56*(1-$E$59) -> 297 | G58: =G56*(1-$E$59) -> 297 | H58: 297 | I58: 297 | J58: 297 | K58: 297 | L58: =L56*(1-$E$59) -> 297
C59: Applied case | D59: USD/mtu | E59: 0.1 | F59: =F56*(1+Scenarios!$E$15) -> 330 | G59: =G56*(1+Scenarios!$E$15) -> 330 | H59: =H56*(1+Scenarios!$E$15) -> 330 | I59: =I56*(1+Scenarios!$E$15) -> 330 | J59: =J56*(1+Scenarios!$E$15) -> 330 | K59: =K56*(1+Scenarios!$E$15) -> 330 | L59: =L56*(1+Scenarios!$E$15) -> 330
C62: Operating Costs
C63: Fixed Costs (Real)
C64: Fixed cost | D64: AUD M p.a | F64: 5
C65: Spare | D65: AUD M p.a | F65: 0.5
C67: Variable Costs (Real) | F67: Applied Case | G67: Base Case | H67: Blue Sky | I67: Grey Sky
C68: Drill & blast (ore) | D68: AUD/mtu | F68: =G68*(1+Scenarios!$E$12) -> 50 | G68: 50 | H68: =G68*(1-$E$71) -> 45 | I68: =G68*(1+$E$71) -> 55
C69: Processing | D69: AUD/mtu | F69: =G69*(1+Scenarios!$E$12) -> 74.99 | G69: 74.99 | H69: =G69*(1-$E$71) -> 67.491 | I69: =G69*(1.1) -> 82.489
C70: Transport | D70: AUD/mtu | E70: Sensitivity | F70: =G70*(1+Scenarios!$E$12) -> 4.23 | G70: 4.23 | H70: 3.807 | I70: 4.653
C71: G&A | D71: AUD/mtu | E71: 0.1 | F71: =G71*(1+Scenarios!$E$12) -> 4.91 | G71: 4.91 | H71: 4.419 | I71: 5.401
C73: Royalties
C74: HNM
C75: Royalty | D75: % of spot revenue | F75: 0.02 | G75: Acquisition for 100% ownership of Dolphin
C76: Royalty Cap | D76: AUD M | F76: 3.9
C78: Third Party Royalties - Result from Mine Purchase
C79: Royalty | D79: % of spot revenue | F79: 0.015 | G79: Payable once mining operations begin
C80: One tiime-lump sum payment | D80: AUD M | F80: =250000/Million -> 0.25 | G80: Payable on a once-off payment when mining operations begin
C82: Mineral Resources Tasmania
C83: Royalty | D83: % of spot revenue | F83: 0.0535 | G83: Royalties payable to Tasmanian Government
C85: Working capital
C86: Days turnover
C87: Debtors | D87: Days | F87: 0
C88: Creditors | D88: Days | F88: 0
C90: Delay costs
C91: Quartely holding (delay) cost | D91: AUD M | F91: 0.3
C93: Maintenance capex
C94: Maintenance capex, p.a | D94: AUD M | F94: 10
C95: Periodicity | D95: Years | F95: =$H$8 -> 32
C97: Corporate tax
C98: Tax rate | D98: % | F98: 0.3
C99: Revenue Tax Losses | D99: AUD M | F99: =11938484/Million -> 11.938484
C100: Capital Tax Losses | D100: AUD M | F100: =1431355/Million -> 1.431355
C101: Total unrecognised deffered tax assets | F101: =SUM(F99:F100) -> 13.369839
C103: Depreciation
C104: Opening PPE | D104: AUD M | F104: 0
C105: Straight line useful life for financing expenses | D105: Years | F105: 8
C106: Implied depreciation rate (quarter) | D106: % | F106: =1/(F105*Qtrs_Yr) -> 0.03125
C108: Cash Balance | D108: AUD M | F108: 0
C110: Shares Outstanding | D110: Shares/M | F110: 260
C112: Funding
C113: Equity
C114: Initial equity | D114: AUD M | F114: 10
C116: Debt | F116: King Island has no debt as of 16/11/2018
C117: Sizing ratios
C118: Reserve tail cut off | D118: % | F118: 0
C119: Target PLCR | D119: x | F119: 0
C121: Sizing mechanics
C122: NPV of CFADS over project life | D122: AUD M | F122: 0
C123: Target PLCR | D123: x | F123: 0
C124: Debt limit | D124: AUD M | F124: 0
C125: Target debt | D125: AUD M | F125: 0
C126: Delta | D126: Check | F126: 0
C128: Refinancing assumptions | F128: Date refi | G128: Margin | H128: Fee | I128: Include?
C129: 1 | D129: Various | F129: 2021-03-31 | I129: 0
C130: 2 | D130: Various | F130: 2022-06-30 | I130: 0
C132: Capital structure | F132: Amount | G132: Share
C133: Initial equity | D133: AUD M | F133: =F114 -> 10 | G133: =F133/$F$136 -> 
C134: Additional equity | D134: AUD M | F134: =F136-F133-F135 -> -10 | G134: =F134/$F$136 -> 
C135: Debt | D135: AUD M | F135: 0 | G135: =F135/$F$136 -> 
C136: Total funds | D136: AUD M | G136: =F136/$F$136 -> 
C138: Debt
C139: Senior Debt
C140: Pricing | D140: King Island has no debt as of 16/11/2018
C141: Initial
E142: Cons | F142: 1 | G142: 2 | H142: 3 | I142: 4
C143: Margin | D143: % p.a. | E143: 0 | F143: 0 | G143: 0 | H143: 0 | I143: 0
C144: Upfront fee | D144: % facility | E144: 0 | F144: % drawdown
C145: Commitment fee | D145: % p.a. | E145: 0 | F145: % undrawn balance
C147: Repayment
C148: Methods
C149: Annuity | D149: Text
C150: Sculpted | D150: Text | E150: Target DSCR | F150: 0
C152: Selected method
C153: Method | D153: Selection | E153: Sculpted
C155: Valuation
C156: Distribution policy
C157: Dividend payout ratio | D157: % | E157: 0
C159: Terminal value (illustrative)
C160: Terminal value methods
C161: Application of exit multiple | D161: Text
C162: Assumption of perpetual growth in terminal period | D162: x
C164: Selected
C165: Methodology | D165: Select | E165: Gordon growth
C166: Terminal cashflow basis | D166: Date
C168: Multiples
C169: Terminal EV/EBITDA multiple | D169: x
C171: Gordon growth
C172: Normalisation adjustments in terminal year | D172: AUD M
C173: Terminal growth rate | D173: %
C175: CAPM buildup
C176: Conventions and parameters
C177: Australian ERP | D177: % | E177: 0.06
C178: Normalised long-term risk free rate | D178: % | E178: 0.02
C179: WACC rounding parameter | D179: % | E179: 0.0025
C180: Beta rounding parameter | D180: #Num | E180: 0.05
C182: Calculations | E182: Low | F182: Mid | G182: High
C183: Unlevered beta | D183: #Num | E183: 0.75 | F183: =AVERAGE(G183,E183) -> 0.8 | G183: 0.85
C184: Marginal tax rate | D184: % | E184: =$F$98 -> 0.3 | F184: =$F$98 -> 0.3 | G184: =$F$98 -> 0.3
C185: Target capital structure:
C186: Debt | D186: % | E186: 0 | F186: =AVERAGE(E186,G186) -> 0 | G186: 0
C187: Equity | D187: % | E187: =1-E186 -> 1 | F187: =1-F186 -> 1 | G187: =1-G186 -> 1
C188: Gearing (D/E) | D188: % | E188: =E186/E187 -> 0 | F188: =F186/F187 -> 0 | G188: =G186/G187 -> 0
C189: Levered Beta | D189: #Num | E189: =E183*(1+(E188*(1-E184))) -> 0.75 | F189: =F183*(1+(F188*(1-F184))) -> 0.8 | G189: =G183*(1+(G188*(1-G184))) -> 0.85
C191: Normalised risk free rate | D191: % | E191: 0.02 | F191: 0.02 | G191: 0.02
C192: Margin | D192: % | E192: 0.015 | F192: 0.0175 | G192: 0.02
C193: Pre-tax cost of debt | D193: % | E193: =SUM(E191:E192) -> 0.035 | F193: =SUM(F191:F192) -> 0.0375 | G193: =SUM(G191:G192) -> 0.04
C194: Post-tax cost of debt | D194: % | E194: =E193*(1-E184) -> 0.0245 | F194: =F193*(1-F184) -> 0.02625 | G194: =G193*(1-G184) -> 0.028
C196: Risk free rate | D196: % | E196: 0.02 | F196: 0.02 | G196: 0.02
C197: Market risk premium | D197: % | E197: =$E$177 -> 0.06 | F197: =$E$177 -> 0.06 | G197: =$E$177 -> 0.06
C198: Specific risk premium | D198: % | E198: 0.03 | F198: 0.03 | G198: 0.03
C199: Cost of equity | D199: % | E199: =E196+(E189*E197)+E198 -> 0.095 | F199: =F196+(F189*F197)+F198 -> 0.098 | G199: =G196+(G189*G197)+G198 -> 0.101
C201: WACC | D201: % | E201: =MROUND(E194*E186+E199*E187,$E179) -> 0.095 | F201: =MROUND(F194*F186+F199*F187,$E179) -> 0.0975 | G201: =MROUND(G194*G186+G199*G187,$E179) -> 0.1
C202: Adopted cost of equity | D202: % | E202: =MROUND(E199,$E$179) -> 0.095 | F202: =MROUND(F199,$E$179) -> 0.0975 | G202: =MROUND(G199,$E$179) -> 0.1
C205: Economy
C206: Forex
E207: =YEAR($F$7) -> 2019 | F207: =E207+1 -> 2020 | G207: =F207+1 -> 2021 | H207: =G207+1 -> 2022 | I207: =H207+1 -> 2023 | J207: =I207+1 -> 2024
C208: AUD/USD | D208: Rate | E208: 0.72 | F208: 0.72 | G208: 0.72 | H208: 0.72 | I208: 0.72 | J208: 0.72
C209: Applied Case | D209: =E52 -> Base Case | E209: =E208*(1+Scenarios!$E$14) -> 0.72 | F209: =F208*(1+Scenarios!$E$14) -> 0.72 | G209: =G208*(1+Scenarios!$E$14) -> 0.72 | H209: =H208*(1+Scenarios!$E$14) -> 0.72 | I209: =I208*(1+Scenarios!$E$14) -> 0.72 | J209: =J208*(1+Scenarios!$E$14) -> 0.72
C211: Inflation
E212: =E207 -> 2019 | F212: =E212+1 -> 2020 | G212: =F212+1 -> 2021 | H212: =G212+1 -> 2022 | I212: =H212+1 -> 2023 | J212: =I212+1 -> 2024
C213: Australian CPI | D213: % p.a | E213: 0.025 | F213: 0.025 | G213: 0.025 | H213: 0.025 | I213: 0.025 | J213: 0.025
C215: Base rate
E216: =E207 -> 2019 | F216: =E216+1 -> 2020 | G216: =F216+1 -> 2021 | H216: =G216+1 -> 2022 | I216: =H216+1 -> 2023 | J216: =I216+1 -> 2024
C217: BBSW | D217: % p.a | E217: 0.027 | F217: 0.028 | G217: 0.029 | H217: 0.03 | I217: 0.031 | J217: 0.031

Sheet Timing
A1: Timing
A2: =Name_Project -> King Island Valuation | E2: =Maste_check -> 0
C4: Period Start | J4: =I5+1 -> 2019-01-01 | K4: =J5+1 -> 2019-04-01 | L4: 2019-07-01 | M4: 2019-10-01 | N4: 2020-01-01 | O4: 2020-04-01 | P4: 2020-07-01 | Q4: 2020-10-01 | R4: 2021-01-01 | S4: 2021-04-01 | T4: 2021-07-01 | U4: 2021-10-01 | V4: 2022-01-01 | W4: 2022-04-01 | X4: 2022-07-01 | Y4: 2022-10-01 | Z4: 2023-01-01 | AA4: 2023-04-01 | AB4: 2023-07-01 | AC4: 2023-10-01 | AD4: 2024-01-01 | AE4: 2024-04-01 | AF4: 2024-07-01 | AG4: 2024-10-01 | AH4: 2025-01-01 | AI4: 2025-04-01 | AJ4: 2025-07-01 | AK4: 2025-10-01 | AL4: 2026-01-01 | AM4: 2026-04-01 | AN4: 2026-07-01 | AO4: 2026-10-01 | AP4: 2027-01-01 | AQ4: 2027-04-01 | AR4: 2027-07-01 | AS4: 2027-10-01 | AT4: 2028-01-01 | AU4: 2028-04-01 | AV4: 2028-07-01 | AW4: 2028-10-01 | AX4: 2029-01-01 | AY4: 2029-04-01 | AZ4: 2029-07-01 | BA4: 2029-10-01 | BB4: 2030-01-01 | BC4: 2030-04-01 | BD4: 2030-07-01 | BE4: 2030-10-01 | BF4: 2031-01-01 | BG4: 2031-04-01 | BH4: 2031-07-01 | BI4: 2031-10-01 | BJ4: 2032-01-01 | BK4: 2032-04-01 | BL4: 2032-07-01 | BM4: 2032-10-01
C5: Period End | I5: =Inputs!E9 -> 2018-12-31 | J5: =EOMONTH(J4,Months_Qtr-1) -> 2019-03-31 | K5: 2019-06-30 | L5: 2019-09-30 | M5: 2019-12-31 | N5: 2020-03-31 | O5: 2020-06-30 | P5: 2020-09-30 | Q5: 2020-12-31 | R5: 2021-03-31 | S5: 2021-06-30 | T5: 2021-09-30 | U5: 2021-12-31 | V5: 2022-03-31 | W5: 2022-06-30 | X5: 2022-09-30 | Y5: 2022-12-31 | Z5: 2023-03-31 | AA5: 2023-06-30 | AB5: 2023-09-30 | AC5: 2023-12-31 | AD5: 2024-03-31 | AE5: 2024-06-30 | AF5: 2024-09-30 | AG5: 2024-12-31 | AH5: 2025-03-31 | AI5: 2025-06-30 | AJ5: 2025-09-30 | AK5: 2025-12-31 | AL5: 2026-03-31 | AM5: 2026-06-30 | AN5: 2026-09-30 | AO5: 2026-12-31 | AP5: =EOMONTH(AP4,Months_Qtr-1) -> 2027-03-31 | AQ5: 2027-06-30 | AR5: 2027-09-30 | AS5: 2027-12-31 | AT5: 2028-03-31 | AU5: 2028-06-30 | AV5: 2028-09-30 | AW5: 2028-12-31 | AX5: 2029-03-31 | AY5: 2029-06-30 | AZ5: 2029-09-30 | BA5: 2029-12-31 | BB5: 2030-03-31 | BC5: 2030-06-30 | BD5: 2030-09-30 | BE5: 2030-12-31 | BF5: 2031-03-31 | BG5: 2031-06-30 | BH5: 2031-09-30 | BI5: 2031-12-31 | BJ5: 2032-03-31 | BK5: 2032-06-30 | BL5: 2032-09-30 | BM5: 2032-12-31
C6: Development | D6: =Inputs!F7 -> 2019-01-01 | E6: =Inputs!F9 -> 2019-12-31 | J6: =IF(AND(J$4>=$D6,J$5<=$E6),1,0) -> 1 | K6: =IF(AND(K$4>=$D6,K$5<=$E6),1,0) -> 1 | L6: 1 | M6: 1 | N6: 0 | O6: 0 | P6: 0 | Q6: 0 | R6: 0 | S6: 0 | T6: 0 | U6: 0 | V6: 0 | W6: 0 | X6: 0 | Y6: 0 | Z6: 0 | AA6: 0 | AB6: 0 | AC6: 0 | AD6: 0 | AE6: 0 | AF6: 0 | AG6: 0 | AH6: 0 | AI6: 0 | AJ6: 0 | AK6: 0 | AL6: 0 | AM6: 0 | AN6: 0 | AO6: 0 | AP6: 0 | AQ6: 0 | AR6: 0 | AS6: 0 | AT6: 0 | AU6: 0 | AV6: 0 | AW6: 0 | AX6: 0 | AY6: 0 | AZ6: 0 | BA6: 0 | BB6: 0 | BC6: 0 | BD6: 0 | BE6: 0 | BF6: 0 | BG6: 0 | BH6: 0 | BI6: 0 | BJ6: 0 | BK6: 0 | BL6: 0 | BM6: 0
C7: Production | D7: =Inputs!H7 -> 2020-01-01 | E7: =Inputs!H9 -> 2027-12-31 | J7: =IF(AND(J$4>=$D7,J$5<=$E7),1,0) -> 0 | K7: 0 | L7: 0 | M7: 0 | N7: 1 | O7: 1 | P7: 1 | Q7: 1 | R7: 1 | S7: 1 | T7: 1 | U7: 1 | V7: 1 | W7: 1 | X7: 1 | Y7: 1 | Z7: 1 | AA7: 1 | AB7: 1 | AC7: 1 | AD7: 1 | AE7: 1 | AF7: 1 | AG7: 1 | AH7: 1 | AI7: 1 | AJ7: 1 | AK7: 1 | AL7: 1 | AM7: 1 | AN7: 1 | AO7: 1 | AP7: 1 | AQ7: 1 | AR7: 1 | AS7: 1 | AT7: 0 | AU7: 0 | AV7: 0 | AW7: 0 | AX7: 0 | AY7: 0 | AZ7: 0 | BA7: 0 | BB7: 0 | BC7: 0 | BD7: 0 | BE7: 0 | BF7: 0 | BG7: 0 | BH7: 0 | BI7: 0 | BJ7: 0 | BK7: 0 | BL7: 0 | BM7: 0
C8: Restoration | D8: =Inputs!I7 -> 2028-01-01 | E8: =Inputs!I9 -> 2027-12-31 | J8: 0 | K8: 0 | L8: 0 | M8: 0 | N8: 0 | O8: =IF(AND(O$4>=$D8,O$5<=$E8),1,0) -> 0 | P8: 0 | Q8: 0 | R8: 0 | S8: 0 | T8: 0 | U8: 0 | V8: 0 | W8: 0 | X8: 0 | Y8: 0 | Z8: 0 | AA8: 0 | AB8: 0 | AC8: 0 | AD8: 0 | AE8: 0 | AF8: 0 | AG8: 0 | AH8: 0 | AI8: 0 | AJ8: 0 | AK8: 0 | AL8: 0 | AM8: 0 | AN8: 0 | AO8: 0 | AP8: 0 | AQ8: 0 | AR8: 0 | AS8: 0 | AT8: 0 | AU8: 0 | AV8: 0 | AW8: 0 | AX8: 0 | AY8: 0 | AZ8: 0 | BA8: 0 | BB8: 0 | BC8: 0 | BD8: 0 | BE8: 0 | BF8: 0 | BG8: 0 | BH8: 0 | BI8: 0 | BJ8: 0 | BK8: 0 | BL8: 0 | BM8: 0
C10: Counters
C12: Development Quarter | D12: Num# | J12: =SUM($J6:J6)*J6 -> 1 | K12: =SUM($J6:K6)*K6 -> 2 | L12: =SUM($J6:L6)*L6 -> 3 | M12: =SUM($J6:M6)*M6 -> 4 | N12: =SUM($J6:N6)*N6 -> 0 | O12: =SUM($J6:O6)*O6 -> 0 | P12: =SUM($J6:P6)*P6 -> 0 | Q12: =SUM($J6:Q6)*Q6 -> 0 | R12: =SUM($J6:R6)*R6 -> 0 | S12: =SUM($J6:S6)*S6 -> 0 | T12: =SUM($J6:T6)*T6 -> 0 | U12: =SUM($J6:U6)*U6 -> 0 | V12: =SUM($J6:V6)*V6 -> 0 | W12: =SUM($J6:W6)*W6 -> 0 | X12: =SUM($J6:X6)*X6 -> 0 | Y12: =SUM($J6:Y6)*Y6 -> 0 | Z12: =SUM($J6:Z6)*Z6 -> 0 | AA12: =SUM($J6:AA6)*AA6 -> 0 | AB12: =SUM($J6:AB6)*AB6 -> 0 | AC12: =SUM($J6:AC6)*AC6 -> 0 | AD12: =SUM($J6:AD6)*AD6 -> 0 | AE12: =SUM($J6:AE6)*AE6 -> 0 | AF12: =SUM($J6:AF6)*AF6 -> 0 | AG12: =SUM($J6:AG6)*AG6 -> 0 | AH12: =SUM($J6:AH6)*AH6 -> 0 | AI12: =SUM($J6:AI6)*AI6 -> 0 | AJ12: =SUM($J6:AJ6)*AJ6 -> 0 | AK12: =SUM($J6:AK6)*AK6 -> 0 | AL12: =SUM($J6:AL6)*AL6 -> 0 | AM12: =SUM($J6:AM6)*AM6 -> 0 | AN12: =SUM($J6:AN6)*AN6 -> 0 | AO12: =SUM($J6:AO6)*AO6 -> 0 | AP12: =SUM($J6:AP6)*AP6 -> 0 | AQ12: =SUM($J6:AQ6)*AQ6 -> 0 | AR12: =SUM($J6:AR6)*AR6 -> 0 | AS12: =SUM($J6:AS6)*AS6 -> 0 | AT12: =SUM($J6:AT6)*AT6 -> 0 | AU12: =SUM($J6:AU6)*AU6 -> 0 | AV12: =SUM($J6:AV6)*AV6 -> 0 | AW12: =SUM($J6:AW6)*AW6 -> 0 | AX12: =SUM($J6:AX6)*AX6 -> 0 | AY12: =SUM($J6:AY6)*AY6 -> 0 | AZ12: =SUM($J6:AZ6)*AZ6 -> 0 | BA12: =SUM($J6:BA6)*BA6 -> 0 | BB12: =SUM($J6:BB6)*BB6 -> 0 | BC12: =SUM($J6:BC6)*BC6 -> 0 | BD12: =SUM($J6:BD6)*BD6 -> 0 | BE12: =SUM($J6:BE6)*BE6 -> 0 | BF12: =SUM($J6:BF6)*BF6 -> 0 | BG12: =SUM($J6:BG6)*BG6 -> 0 | BH12: =SUM($J6:BH6)*BH6 -> 0 | BI12: =SUM($J6:BI6)*BI6 -> 0 | BJ12: =SUM($J6:BJ6)*BJ6 -> 0 | BK12: =SUM($J6:BK6)*BK6 -> 0 | BL12: =SUM($J6:BL6)*BL6 -> 0 | BM12: =SUM($J6:BM6)*BM6 -> 0
C13: Production Quarter | D13: Num# | J13: =SUM($J7:J7)*J7 -> 0 | K13: =SUM($J7:K7)*K7 -> 0 | L13: =SUM($J7:L7)*L7 -> 0 | M13: =SUM($J7:M7)*M7 -> 0 | N13: =SUM($J7:N7)*N7 -> 1 | O13: =SUM($J7:O7)*O7 -> 2 | P13: =SUM($J7:P7)*P7 -> 3 | Q13: =SUM($J7:Q7)*Q7 -> 4 | R13: =SUM($J7:R7)*R7 -> 5 | S13: =SUM($J7:S7)*S7 -> 6 | T13: =SUM($J7:T7)*T7 -> 7 | U13: =SUM($J7:U7)*U7 -> 8 | V13: =SUM($J7:V7)*V7 -> 9 | W13: =SUM($J7:W7)*W7 -> 10 | X13: =SUM($J7:X7)*X7 -> 11 | Y13: =SUM($J7:Y7)*Y7 -> 12 | Z13: =SUM($J7:Z7)*Z7 -> 13 | AA13: =SUM($J7:AA7)*AA7 -> 14 | AB13: =SUM($J7:AB7)*AB7 -> 15 | AC13: =SUM($J7:AC7)*AC7 -> 16 | AD13: =SUM($J7:AD7)*AD7 -> 17 | AE13: =SUM($J7:AE7)*AE7 -> 18 | AF13: =SUM($J7:AF7)*AF7 -> 19 | AG13: =SUM($J7:AG7)*AG7 -> 20 | AH13: =SUM($J7:AH7)*AH7 -> 21 | AI13: =SUM($J7:AI7)*AI7 -> 22 | AJ13: =SUM($J7:AJ7)*AJ7 -> 23 | AK13: =SUM($J7:AK7)*AK7 -> 24 | AL13: =SUM($J7:AL7)*AL7 -> 25 | AM13: =SUM($J7:AM7)*AM7 -> 26 | AN13: =SUM($J7:AN7)*AN7 -> 27 | AO13: =SUM($J7:AO7)*AO7 -> 28 | AP13: =SUM($J7:AP7)*AP7 -> 29 | AQ13: =SUM($J7:AQ7)*AQ7 -> 30 | AR13: =SUM($J7:AR7)*AR7 -> 31 | AS13: =SUM($J7:AS7)*AS7 -> 32 | AT13: =SUM($J7:AT7)*AT7 -> 0 | AU13: =SUM($J7:AU7)*AU7 -> 0 | AV13: =SUM($J7:AV7)*AV7 -> 0 | AW13: =SUM($J7:AW7)*AW7 -> 0 | AX13: =SUM($J7:AX7)*AX7 -> 0 | AY13: =SUM($J7:AY7)*AY7 -> 0 | AZ13: =SUM($J7:AZ7)*AZ7 -> 0 | BA13: =SUM($J7:BA7)*BA7 -> 0 | BB13: =SUM($J7:BB7)*BB7 -> 0 | BC13: =SUM($J7:BC7)*BC7 -> 0 | BD13: =SUM($J7:BD7)*BD7 -> 0 | BE13: =SUM($J7:BE7)*BE7 -> 0 | BF13: =SUM($J7:BF7)*BF7 -> 0 | BG13: =SUM($J7:BG7)*BG7 -> 0 | BH13: =SUM($J7:BH7)*BH7 -> 0 | BI13: =SUM($J7:BI7)*BI7 -> 0 | BJ13: =SUM($J7:BJ7)*BJ7 -> 0 | BK13: =SUM($J7:BK7)*BK7 -> 0 | BL13: =SUM($J7:BL7)*BL7 -> 0 | BM13: =SUM($J7:BM7)*BM7 -> 0
C14: Production Year | D14: Num# | J14: =ROUNDUP(J13/Qtrs_Yr,0) -> 0 | K14: 0 | L14: 0 | M14: 0 | N14: 1 | O14: 1 | P14: 1 | Q14: 1 | R14: 2 | S14: 2 | T14: 2 | U14: 2 | V14: 3 | W14: 3 | X14: 3 | Y14: 3 | Z14: 4 | AA14: 4 | AB14: 4 | AC14: 4 | AD14: 5 | AE14: 5 | AF14: 5 | AG14: 5 | AH14: 6 | AI14: 6 | AJ14: 6 | AK14: 6 | AL14: 7 | AM14: 7 | AN14: 7 | AO14: 7 | AP14: =ROUNDUP(AP13/Qtrs_Yr,0) -> 8 | AQ14: 8 | AR14: 8 | AS14: 8 | AT14: 0 | AU14: 0 | AV14: 0 | AW14: 0 | AX14: 0 | AY14: 0 | AZ14: 0 | BA14: 0 | BB14: 0 | BC14: 0 | BD14: 0 | BE14: 0 | BF14: 0 | BG14: 0 | BH14: 0 | BI14: 0 | BJ14: 0 | BK14: 0 | BL14: 0 | BM14: 0
C15: Calendar Year | D15: Num# | J15: =YEAR(J5) -> 2019 | K15: =YEAR(K5) -> 2019 | L15: 2019 | M15: 2019 | N15: 2020 | O15: 2020 | P15: 2020 | Q15: 2020 | R15: 2021 | S15: 2021 | T15: 2021 | U15: 2021 | V15: 2022 | W15: 2022 | X15: 2022 | Y15: 2022 | Z15: 2023 | AA15: 2023 | AB15: 2023 | AC15: 2023 | AD15: 2024 | AE15: 2024 | AF15: 2024 | AG15: 2024 | AH15: 2025 | AI15: 2025 | AJ15: 2025 | AK15: 2025 | AL15: 2026 | AM15: 2026 | AN15: 2026 | AO15: 2026 | AP15: 2027 | AQ15: 2027 | AR15: 2027 | AS15: 2027 | AT15: 2028 | AU15: 2028 | AV15: 2028 | AW15: 2028 | AX15: 2029 | AY15: 2029 | AZ15: 2029 | BA15: 2029 | BB15: 2030 | BC15: 2030 | BD15: 2030 | BE15: 2030 | BF15: 2031 | BG15: 2031 | BH15: 2031 | BI15: 2031 | BJ15: 2032 | BK15: 2032 | BL15: 2032 | BM15: 2032
C16: Days in period | D16: Num# | J16: =J5-J4+1 -> 90 | K16: =K5-K4+1 -> 91 | L16: 92 | M16: 92 | N16: 91 | O16: 91 | P16: 92 | Q16: 92 | R16: 90 | S16: 91 | T16: 92 | U16: 92 | V16: 90 | W16: 91 | X16: 92 | Y16: 92 | Z16: 90 | AA16: 91 | AB16: 92 | AC16: 92 | AD16: 91 | AE16: 91 | AF16: 92 | AG16: 92 | AH16: 90 | AI16: 91 | AJ16: 92 | AK16: 92 | AL16: 90 | AM16: 91 | AN16: 92 | AO16: 92 | AP16: 90 | AQ16: 91 | AR16: 92 | AS16: 92 | AT16: 91 | AU16: 91 | AV16: 92 | AW16: 92 | AX16: 90 | AY16: 91 | AZ16: 92 | BA16: 92 | BB16: 90 | BC16: 91 | BD16: 92 | BE16: 92 | BF16: 90 | BG16: 91 | BH16: 92 | BI16: 92 | BJ16: 91 | BK16: 91 | BL16: 92 | BM16: 92
C17: Period number | D17: Num# | J17: =COUNT($J5:J5) -> 1 | K17: =COUNT($J5:K5) -> 2 | L17: =COUNT($J5:L5) -> 3 | M17: =COUNT($J5:M5) -> 4 | N17: =COUNT($J5:N5) -> 5 | O17: =COUNT($J5:O5) -> 6 | P17: =COUNT($J5:P5) -> 7 | Q17: =COUNT($J5:Q5) -> 8 | R17: =COUNT($J5:R5) -> 9 | S17: =COUNT($J5:S5) -> 10 | T17: =COUNT($J5:T5) -> 11 | U17: =COUNT($J5:U5) -> 12 | V17: =COUNT($J5:V5) -> 13 | W17: =COUNT($J5:W5) -> 14 | X17: =COUNT($J5:X5) -> 15 | Y17: =COUNT($J5:Y5) -> 16 | Z17: =COUNT($J5:Z5) -> 17 | AA17: =COUNT($J5:AA5) -> 18 | AB17: =COUNT($J5:AB5) -> 19 | AC17: =COUNT($J5:AC5) -> 20 | AD17: =COUNT($J5:AD5) -> 21 | AE17: =COUNT($J5:AE5) -> 22 | AF17: =COUNT($J5:AF5) -> 23 | AG17: =COUNT($J5:AG5) -> 24 | AH17: =COUNT($J5:AH5) -> 25 | AI17: =COUNT($J5:AI5) -> 26 | AJ17: =COUNT($J5:AJ5) -> 27 | AK17: =COUNT($J5:AK5) -> 28 | AL17: =COUNT($J5:AL5) -> 29 | AM17: =COUNT($J5:AM5) -> 30 | AN17: =COUNT($J5:AN5) -> 31 | AO17: =COUNT($J5:AO5) -> 32 | AP17: =COUNT($J5:AP5) -> 33 | AQ17: =COUNT($J5:AQ5) -> 34 | AR17: =COUNT($J5:AR5) -> 35 | AS17: =COUNT($J5:AS5) -> 36 | AT17: =COUNT($J5:AT5) -> 37 | AU17: =COUNT($J5:AU5) -> 38 | AV17: =COUNT($J5:AV5) -> 39 | AW17: =COUNT($J5:AW5) -> 40 | AX17: =COUNT($J5:AX5) -> 41 | AY17: =COUNT($J5:AY5) -> 42 | AZ17: =COUNT($J5:AZ5) -> 43 | BA17: =COUNT($J5:BA5) -> 44 | BB17: =COUNT($J5:BB5) -> 45 | BC17: =COUNT($J5:BC5) -> 46 | BD17: =COUNT($J5:BD5) -> 47 | BE17: =COUNT($J5:BE5) -> 48 | BF17: =COUNT($J5:BF5) -> 49 | BG17: =COUNT($J5:BG5) -> 50 | BH17: =COUNT($J5:BH5) -> 51 | BI17: =COUNT($J5:BI5) -> 52 | BJ17: =COUNT($J5:BJ5) -> 53 | BK17: =COUNT($J5:BK5) -> 54 | BL17: =COUNT($J5:BL5) -> 55 | BM17: =COUNT($J5:BM5) -> 56
C19: Inflation
C21: Inflation Rate | D21: % p.a | J21: =LOOKUP(J15,Inputs!$E$212:$J$212,Inputs!$E$213:$J$213) -> 0.025 | K21: =LOOKUP(K15,Inputs!$E$212:$J$212,Inputs!$E$213:$J$213) -> 0.025 | L21: =LOOKUP(L15,Inputs!$E$212:$J$212,Inputs!$E$213:$J$213) -> 0.025 | M21: =LOOKUP(M15,Inputs!$E$212:$J$212,Inputs!$E$213:$J$213) -> 0.025 | N21: =LOOKUP(N15,Inputs!$E$212:$J$212,Inputs!$E$213:$J$213) -> 0.025 | O21: =LOOKUP(O15,Inputs!$E$212:$J$212,Inputs!$E$213:$J$213) -> 0.025 | P21: =LOOKUP(P15,Inputs!$E$212:$J$212,Inputs!$E$213:$J$213) -> 0.025 | Q21: =LOOKUP(Q15,Inputs!$E$212:$J$212,Inputs!$E$213:$J$213) -> 0.025 | R21: =LOOKUP(R15,Inputs!$E$212:$J$212,Inputs!$E$213:$J$213) -> 0.025 | S21: =LOOKUP(S15,Inputs!$E$212:$J$212,Inputs!$E$213:$J$213) -> 0.025 | T21: =LOOKUP(T15,Inputs!$E$212:$J$212,Inputs!$E$213:$J$213) -> 0.025 | U21: =LOOKUP(U15,Inputs!$E$212:$J$212,Inputs!$E$213:$J$213) -> 0.025 | V21: =LOOKUP(V15,Inputs!$E$212:$J$212,Inputs!$E$213:$J$213) -> 0.025 | W21: =LOOKUP(W15,Inputs!$E$212:$J$212,Inputs!$E$213:$J$213) -> 0.025 | X21: =LOOKUP(X15,Inputs!$E$212:$J$212,Inputs!$E$213:$J$213) -> 0.025 | Y21: =LOOKUP(Y15,Inputs!$E$212:$J$212,Inputs!$E$213:$J$213) -> 0.025 | Z21: =LOOKUP(Z15,Inputs!$E$212:$J$212,Inputs!$E$213:$J$213) -> 0.025 | AA21: =LOOKUP(AA15,Inputs!$E$212:$J$212,Inputs!$E$213:$J$213) -> 0.025 | AB21: =LOOKUP(AB15,Inputs!$E$212:$J$212,Inputs!$E$213:$J$213) -> 0.025 | AC21: =LOOKUP(AC15,Inputs!$E$212:$J$212,Inputs!$E$213:$J$213) -> 0.025 | AD21: =LOOKUP(AD15,Inputs!$E$212:$J$212,Inputs!$E$213:$J$213) -> 0.025 | AE21: =LOOKUP(AE15,Inputs!$E$212:$J$212,Inputs!$E$213:$J$213) -> 0.025 | AF21: =LOOKUP(AF15,Inputs!$E$212:$J$212,Inputs!$E$213:$J$213) -> 0.025 | AG21: =LOOKUP(AG15,Inputs!$E$212:$J$212,Inputs!$E$213:$J$213) -> 0.025 | AH21: =LOOKUP(AH15,Inputs!$E$212:$J$212,Inputs!$E$213:$J$213) -> 0.025 | AI21: =LOOKUP(AI15,Inputs!$E$212:$J$212,Inputs!$E$213:$J$213) -> 0.025 | AJ21: =LOOKUP(AJ15,Inputs!$E$212:$J$212,Inputs!$E$213:$J$213) -> 0.025 | AK21: =LOOKUP(AK15,Inputs!$E$212:$J$212,Inputs!$E$213:$J$213) -> 0.025 | AL21: =LOOKUP(AL15,Inputs!$E$212:$J$212,Inputs!$E$213:$J$213) -> 0.025 | AM21: =LOOKUP(AM15,Inputs!$E$212:$J$212,Inputs!$E$213:$J$213) -> 0.025 | AN21: =LOOKUP(AN15,Inputs!$E$212:$J$212,Inputs!$E$213:$J$213) -> 0.025 | AO21: =LOOKUP(AO15,Inputs!$E$212:$J$212,Inputs!$E$213:$J$213) -> 0.025 | AP21: =LOOKUP(AP15,Inputs!$E$212:$J$212,Inputs!$E$213:$J$213) -> 0.025 | AQ21: =LOOKUP(AQ15,Inputs!$E$212:$J$212,Inputs!$E$213:$J$213) -> 0.025 | AR21: =LOOKUP(AR15,Inputs!$E$212:$J$212,Inputs!$E$213:$J$213) -> 0.025 | AS21: =LOOKUP(AS15,Inputs!$E$212:$J$212,Inputs!$E$213:$J$213) -> 0.025 | AT21: =LOOKUP(AT15,Inputs!$E$212:$J$212,Inputs!$E$213:$J$213) -> 0.025 | AU21: =LOOKUP(AU15,Inputs!$E$212:$J$212,Inputs!$E$213:$J$213) -> 0.025 | AV21: =LOOKUP(AV15,Inputs!$E$212:$J$212,Inputs!$E$213:$J$213) -> 0.025 | AW21: =LOOKUP(AW15,Inputs!$E$212:$J$212,Inputs!$E$213:$J$213) -> 0.025 | AX21: =LOOKUP(AX15,Inputs!$E$212:$J$212,Inputs!$E$213:$J$213) -> 0.025 | AY21: =LOOKUP(AY15,Inputs!$E$212:$J$212,Inputs!$E$213:$J$213) -> 0.025 | AZ21: =LOOKUP(AZ15,Inputs!$E$212:$J$212,Inputs!$E$213:$J$213) -> 0.025 | BA21: =LOOKUP(BA15,Inputs!$E$212:$J$212,Inputs!$E$213:$J$213) -> 0.025 | BB21: =LOOKUP(BB15,Inputs!$E$212:$J$212,Inputs!$E$213:$J$213) -> 0.025 | BC21: =LOOKUP(BC15,Inputs!$E$212:$J$212,Inputs!$E$213:$J$213) -> 0.025 | BD21: =LOOKUP(BD15,Inputs!$E$212:$J$212,Inputs!$E$213:$J$213) -> 0.025 | BE21: =LOOKUP(BE15,Inputs!$E$212:$J$212,Inputs!$E$213:$J$213) -> 0.025 | BF21: =LOOKUP(BF15,Inputs!$E$212:$J$212,Inputs!$E$213:$J$213) -> 0.025 | BG21: =LOOKUP(BG15,Inputs!$E$212:$J$212,Inputs!$E$213:$J$213) -> 0.025 | BH21: =LOOKUP(BH15,Inputs!$E$212:$J$212,Inputs!$E$213:$J$213) -> 0.025 | BI21: =LOOKUP(BI15,Inputs!$E$212:$J$212,Inputs!$E$213:$J$213) -> 0.025 | BJ21: =LOOKUP(BJ15,Inputs!$E$212:$J$212,Inputs!$E$213:$J$213) -> 0.025 | BK21: =LOOKUP(BK15,Inputs!$E$212:$J$212,Inputs!$E$213:$J$213) -> 0.025 | BL21: =LOOKUP(BL15,Inputs!$E$212:$J$212,Inputs!$E$213:$J$213) -> 0.025 | BM21: =LOOKUP(BM15,Inputs!$E$212:$J$212,Inputs!$E$213:$J$213) -> 0.025
C22: Inflation Rate | D22: % p.q | J22: =(1+J21)^(1/Qtrs_Yr)-1 -> 0.006192246326 | K22: 0.006192246326 | L22: 0.006192246326 | M22: 0.006192246326 | N22: 0.006192246326 | O22: 0.006192246326 | P22: 0.006192246326 | Q22: 0.006192246326 | R22: 0.006192246326 | S22: 0.006192246326 | T22: 0.006192246326 | U22: 0.006192246326 | V22: 0.006192246326 | W22: 0.006192246326 | X22: 0.006192246326 | Y22: 0.006192246326 | Z22: 0.006192246326 | AA22: 0.006192246326 | AB22: 0.006192246326 | AC22: 0.006192246326 | AD22: 0.006192246326 | AE22: 0.006192246326 | AF22: 0.006192246326 | AG22: 0.006192246326 | AH22: 0.006192246326 | AI22: 0.006192246326 | AJ22: 0.006192246326 | AK22: 0.006192246326 | AL22: 0.006192246326 | AM22: 0.006192246326 | AN22: 0.006192246326 | AO22: 0.006192246326 | AP22: =(1+AP21)^(1/Qtrs_Yr)-1 -> 0.006192246326 | AQ22: 0.006192246326 | AR22: 0.006192246326 | AS22: 0.006192246326 | AT22: 0.006192246326 | AU22: 0.006192246326 | AV22: 0.006192246326 | AW22: 0.006192246326 | AX22: 0.006192246326 | AY22: 0.006192246326 | AZ22: 0.006192246326 | BA22: 0.006192246326 | BB22: 0.006192246326 | BC22: 0.006192246326 | BD22: 0.006192246326 | BE22: 0.006192246326 | BF22: 0.006192246326 | BG22: 0.006192246326 | BH22: 0.006192246326 | BI22: 0.006192246326 | BJ22: 0.006192246326 | BK22: 0.006192246326 | BL22: 0.006192246326 | BM22: 0.006192246326
C23: Indexation | D23: Index | I23: 1 | J23: =I23*(1+J22) -> 1.006192246 | K23: =J23*(1+K22) -> 1.012422837 | L23: 1.018692008 | M23: 1.025 | N23: 1.031347052 | O23: 1.037733407 | P23: 1.044159308 | Q23: 1.050625 | R23: 1.057130729 | S23: 1.063676743 | T23: 1.070263291 | U23: 1.076890625 | V23: 1.083558997 | W23: 1.090268661 | X23: 1.097019873 | Y23: 1.103812891 | Z23: 1.110647972 | AA23: 1.117525378 | AB23: 1.12444537 | AC23: 1.131408213 | AD23: 1.138414171 | AE23: 1.145463512 | AF23: 1.152556504 | AG23: 1.159693418 | AH23: 1.166874526 | AI23: 1.1741001 | AJ23: 1.181370417 | AK23: 1.188685754 | AL23: 1.196046389 | AM23: 1.203452603 | AN23: 1.210904677 | AO23: 1.218402898 | AP23: 1.225947548 | AQ23: 1.233538918 | AR23: 1.241177294 | AS23: 1.24886297 | AT23: 1.256596237 | AU23: 1.264377391 | AV23: 1.272206727 | AW23: 1.280084544 | AX23: 1.288011143 | AY23: 1.295986825 | AZ23: 1.304011895 | BA23: 1.312086658 | BB23: 1.320211422 | BC23: 1.328386496 | BD23: 1.336612192 | BE23: 1.344888824 | BF23: 1.353216707 | BG23: 1.361596158 | BH23: 1.370027497 | BI23: 1.378511045 | BJ23: 1.387047125 | BK23: 1.395636062 | BL23: 1.404278185 | BM23: 1.412973821
C25: Interest rates
C26: Cost of debt
C27: Base rate | D27: % p.a | J27: =LOOKUP(J15,Inputs!$E$216:$J$216,Inputs!$E$217:$J$217) -> 0.027 | K27: =LOOKUP(K15,Inputs!$E$216:$J$216,Inputs!$E$217:$J$217) -> 0.027 | L27: =LOOKUP(L15,Inputs!$E$216:$J$216,Inputs!$E$217:$J$217) -> 0.027 | M27: =LOOKUP(M15,Inputs!$E$216:$J$216,Inputs!$E$217:$J$217) -> 0.027 | N27: =LOOKUP(N15,Inputs!$E$216:$J$216,Inputs!$E$217:$J$217) -> 0.028 | O27: =LOOKUP(O15,Inputs!$E$216:$J$216,Inputs!$E$217:$J$217) -> 0.028 | P27: =LOOKUP(P15,Inputs!$E$216:$J$216,Inputs!$E$217:$J$217) -> 0.028 | Q27: =LOOKUP(Q15,Inputs!$E$216:$J$216,Inputs!$E$217:$J$217) -> 0.028 | R27: =LOOKUP(R15,Inputs!$E$216:$J$216,Inputs!$E$217:$J$217) -> 0.029 | S27: =LOOKUP(S15,Inputs!$E$216:$J$216,Inputs!$E$217:$J$217) -> 0.029 | T27: =LOOKUP(T15,Inputs!$E$216:$J$216,Inputs!$E$217:$J$217) -> 0.029 | U27: =LOOKUP(U15,Inputs!$E$216:$J$216,Inputs!$E$217:$J$217) -> 0.029 | V27: =LOOKUP(V15,Inputs!$E$216:$J$216,Inputs!$E$217:$J$217) -> 0.03 | W27: =LOOKUP(W15,Inputs!$E$216:$J$216,Inputs!$E$217:$J$217) -> 0.03 | X27: =LOOKUP(X15,Inputs!$E$216:$J$216,Inputs!$E$217:$J$217) -> 0.03 | Y27: =LOOKUP(Y15,Inputs!$E$216:$J$216,Inputs!$E$217:$J$217) -> 0.03 | Z27: =LOOKUP(Z15,Inputs!$E$216:$J$216,Inputs!$E$217:$J$217) -> 0.031 | AA27: =LOOKUP(AA15,Inputs!$E$216:$J$216,Inputs!$E$217:$J$217) -> 0.031 | AB27: =LOOKUP(AB15,Inputs!$E$216:$J$216,Inputs!$E$217:$J$217) -> 0.031 | AC27: =LOOKUP(AC15,Inputs!$E$216:$J$216,Inputs!$E$217:$J$217) -> 0.031 | AD27: =LOOKUP(AD15,Inputs!$E$216:$J$216,Inputs!$E$217:$J$217) -> 0.031 | AE27: =LOOKUP(AE15,Inputs!$E$216:$J$216,Inputs!$E$217:$J$217) -> 0.031 | AF27: =LOOKUP(AF15,Inputs!$E$216:$J$216,Inputs!$E$217:$J$217) -> 0.031 | AG27: =LOOKUP(AG15,Inputs!$E$216:$J$216,Inputs!$E$217:$J$217) -> 0.031 | AH27: =LOOKUP(AH15,Inputs!$E$216:$J$216,Inputs!$E$217:$J$217) -> 0.031 | AI27: =LOOKUP(AI15,Inputs!$E$216:$J$216,Inputs!$E$217:$J$217) -> 0.031 | AJ27: =LOOKUP(AJ15,Inputs!$E$216:$J$216,Inputs!$E$217:$J$217) -> 0.031 | AK27: =LOOKUP(AK15,Inputs!$E$216:$J$216,Inputs!$E$217:$J$217) -> 0.031 | AL27: =LOOKUP(AL15,Inputs!$E$216:$J$216,Inputs!$E$217:$J$217) -> 0.031 | AM27: =LOOKUP(AM15,Inputs!$E$216:$J$216,Inputs!$E$217:$J$217) -> 0.031 | AN27: =LOOKUP(AN15,Inputs!$E$216:$J$216,Inputs!$E$217:$J$217) -> 0.031 | AO27: =LOOKUP(AO15,Inputs!$E$216:$J$216,Inputs!$E$217:$J$217) -> 0.031 | AP27: =LOOKUP(AP15,Inputs!$E$216:$J$216,Inputs!$E$217:$J$217) -> 0.031 | AQ27: =LOOKUP(AQ15,Inputs!$E$216:$J$216,Inputs!$E$217:$J$217) -> 0.031 | AR27: =LOOKUP(AR15,Inputs!$E$216:$J$216,Inputs!$E$217:$J$217) -> 0.031 | AS27: =LOOKUP(AS15,Inputs!$E$216:$J$216,Inputs!$E$217:$J$217) -> 0.031 | AT27: =LOOKUP(AT15,Inputs!$E$216:$J$216,Inputs!$E$217:$J$217) -> 0.031 | AU27: =LOOKUP(AU15,Inputs!$E$216:$J$216,Inputs!$E$217:$J$217) -> 0.031 | AV27: =LOOKUP(AV15,Inputs!$E$216:$J$216,Inputs!$E$217:$J$217) -> 0.031 | AW27: =LOOKUP(AW15,Inputs!$E$216:$J$216,Inputs!$E$217:$J$217) -> 0.031 | AX27: =LOOKUP(AX15,Inputs!$E$216:$J$216,Inputs!$E$217:$J$217) -> 0.031 | AY27: =LOOKUP(AY15,Inputs!$E$216:$J$216,Inputs!$E$217:$J$217) -> 0.031 | AZ27: =LOOKUP(AZ15,Inputs!$E$216:$J$216,Inputs!$E$217:$J$217) -> 0.031 | BA27: =LOOKUP(BA15,Inputs!$E$216:$J$216,Inputs!$E$217:$J$217) -> 0.031 | BB27: =LOOKUP(BB15,Inputs!$E$216:$J$216,Inputs!$E$217:$J$217) -> 0.031 | BC27: =LOOKUP(BC15,Inputs!$E$216:$J$216,Inputs!$E$217:$J$217) -> 0.031 | BD27: =LOOKUP(BD15,Inputs!$E$216:$J$216,Inputs!$E$217:$J$217) -> 0.031 | BE27: =LOOKUP(BE15,Inputs!$E$216:$J$216,Inputs!$E$217:$J$217) -> 0.031 | BF27: =LOOKUP(BF15,Inputs!$E$216:$J$216,Inputs!$E$217:$J$217) -> 0.031 | BG27: =LOOKUP(BG15,Inputs!$E$216:$J$216,Inputs!$E$217:$J$217) -> 0.031 | BH27: =LOOKUP(BH15,Inputs!$E$216:$J$216,Inputs!$E$217:$J$217) -> 0.031 | BI27: =LOOKUP(BI15,Inputs!$E$216:$J$216,Inputs!$E$217:$J$217) -> 0.031 | BJ27: =LOOKUP(BJ15,Inputs!$E$216:$J$216,Inputs!$E$217:$J$217) -> 0.031 | BK27: =LOOKUP(BK15,Inputs!$E$216:$J$216,Inputs!$E$217:$J$217) -> 0.031 | BL27: =LOOKUP(BL15,Inputs!$E$216:$J$216,Inputs!$E$217:$J$217) -> 0.031 | BM27: =LOOKUP(BM15,Inputs!$E$216:$J$216,Inputs!$E$217:$J$217) -> 0.031
C28: Base rate | D28: % p.p. | J28: =J27*J16/Days_Year -> 0.006657534247 | K28: 0.006731506849 | L28: 0.006805479452 | M28: 0.006805479452 | N28: 0.006980821918 | O28: 0.006980821918 | P28: 0.007057534247 | Q28: 0.007057534247 | R28: 0.007150684932 | S28: 0.007230136986 | T28: 0.007309589041 | U28: 0.007309589041 | V28: 0.007397260274 | W28: 0.007479452055 | X28: 0.007561643836 | Y28: 0.007561643836 | Z28: 0.007643835616 | AA28: 0.007728767123 | AB28: 0.00781369863 | AC28: 0.00781369863 | AD28: 0.007728767123 | AE28: 0.007728767123 | AF28: 0.00781369863 | AG28: 0.00781369863 | AH28: 0.007643835616 | AI28: 0.007728767123 | AJ28: 0.00781369863 | AK28: 0.00781369863 | AL28: 0.007643835616 | AM28: 0.007728767123 | AN28: 0.00781369863 | AO28: 0.00781369863 | AP28: =AP27*AP16/Days_Year -> 0.007643835616 | AQ28: 0.007728767123 | AR28: 0.00781369863 | AS28: 0.00781369863 | AT28: 0.007728767123 | AU28: 0.007728767123 | AV28: 0.00781369863 | AW28: 0.00781369863 | AX28: 0.007643835616 | AY28: 0.007728767123 | AZ28: 0.00781369863 | BA28: 0.00781369863 | BB28: 0.007643835616 | BC28: 0.007728767123 | BD28: 0.00781369863 | BE28: 0.00781369863 | BF28: 0.007643835616 | BG28: 0.007728767123 | BH28: 0.00781369863 | BI28: 0.00781369863 | BJ28: 0.007728767123 | BK28: 0.007728767123 | BL28: 0.00781369863 | BM28: 0.00781369863
C29: Margin (operations) | D29: % p.a | J29: =IF(J14=0,0,LOOKUP(J14,Inputs!$F$142:$I$142,Inputs!$F$143:$I$143)) -> 0 | K29: =IF(K14=0,0,LOOKUP(K14,Inputs!$F$142:$I$142,Inputs!$F$143:$I$143)) -> 0 | L29: =IF(L14=0,0,LOOKUP(L14,Inputs!$F$142:$I$142,Inputs!$F$143:$I$143)) -> 0 | M29: =IF(M14=0,0,LOOKUP(M14,Inputs!$F$142:$I$142,Inputs!$F$143:$I$143)) -> 0 | N29: =IF(N14=0,0,LOOKUP(N14,Inputs!$F$142:$I$142,Inputs!$F$143:$I$143)) -> 0 | O29: =IF(O14=0,0,LOOKUP(O14,Inputs!$F$142:$I$142,Inputs!$F$143:$I$143)) -> 0 | P29: =IF(P14=0,0,LOOKUP(P14,Inputs!$F$142:$I$142,Inputs!$F$143:$I$143)) -> 0 | Q29: =IF(Q14=0,0,LOOKUP(Q14,Inputs!$F$142:$I$142,Inputs!$F$143:$I$143)) -> 0 | R29: =IF(R14=0,0,LOOKUP(R14,Inputs!$F$142:$I$142,Inputs!$F$143:$I$143)) -> 0 | S29: =IF(S14=0,0,LOOKUP(S14,Inputs!$F$142:$I$142,Inputs!$F$143:$I$143)) -> 0 | T29: =IF(T14=0,0,LOOKUP(T14,Inputs!$F$142:$I$142,Inputs!$F$143:$I$143)) -> 0 | U29: =IF(U14=0,0,LOOKUP(U14,Inputs!$F$142:$I$142,Inputs!$F$143:$I$143)) -> 0 | V29: =IF(V14=0,0,LOOKUP(V14,Inputs!$F$142:$I$142,Inputs!$F$143:$I$143)) -> 0 | W29: =IF(W14=0,0,LOOKUP(W14,Inputs!$F$142:$I$142,Inputs!$F$143:$I$143)) -> 0 | X29: =IF(X14=0,0,LOOKUP(X14,Inputs!$F$142:$I$142,Inputs!$F$143:$I$143)) -> 0 | Y29: =IF(Y14=0,0,LOOKUP(Y14,Inputs!$F$142:$I$142,Inputs!$F$143:$I$143)) -> 0 | Z29: =IF(Z14=0,0,LOOKUP(Z14,Inputs!$F$142:$I$142,Inputs!$F$143:$I$143)) -> 0 | AA29: =IF(AA14=0,0,LOOKUP(AA14,Inputs!$F$142:$I$142,Inputs!$F$143:$I$143)) -> 0 | AB29: =IF(AB14=0,0,LOOKUP(AB14,Inputs!$F$142:$I$142,Inputs!$F$143:$I$143)) -> 0 | AC29: =IF(AC14=0,0,LOOKUP(AC14,Inputs!$F$142:$I$142,Inputs!$F$143:$I$143)) -> 0 | AD29: =IF(AD14=0,0,LOOKUP(AD14,Inputs!$F$142:$I$142,Inputs!$F$143:$I$143)) -> 0 | AE29: =IF(AE14=0,0,LOOKUP(AE14,Inputs!$F$142:$I$142,Inputs!$F$143:$I$143)) -> 0 | AF29: =IF(AF14=0,0,LOOKUP(AF14,Inputs!$F$142:$I$142,Inputs!$F$143:$I$143)) -> 0 | AG29: =IF(AG14=0,0,LOOKUP(AG14,Inputs!$F$142:$I$142,Inputs!$F$143:$I$143)) -> 0 | AH29: =IF(AH14=0,0,LOOKUP(AH14,Inputs!$F$142:$I$142,Inputs!$F$143:$I$143)) -> 0 | AI29: =IF(AI14=0,0,LOOKUP(AI14,Inputs!$F$142:$I$142,Inputs!$F$143:$I$143)) -> 0 | AJ29: =IF(AJ14=0,0,LOOKUP(AJ14,Inputs!$F$142:$I$142,Inputs!$F$143:$I$143)) -> 0 | AK29: =IF(AK14=0,0,LOOKUP(AK14,Inputs!$F$142:$I$142,Inputs!$F$143:$I$143)) -> 0 | AL29: =IF(AL14=0,0,LOOKUP(AL14,Inputs!$F$142:$I$142,Inputs!$F$143:$I$143)) -> 0 | AM29: =IF(AM14=0,0,LOOKUP(AM14,Inputs!$F$142:$I$142,Inputs!$F$143:$I$143)) -> 0 | AN29: =IF(AN14=0,0,LOOKUP(AN14,Inputs!$F$142:$I$142,Inputs!$F$143:$I$143)) -> 0 | AO29: =IF(AO14=0,0,LOOKUP(AO14,Inputs!$F$142:$I$142,Inputs!$F$143:$I$143)) -> 0 | AP29: =IF(AP14=0,0,LOOKUP(AP14,Inputs!$F$142:$I$142,Inputs!$F$143:$I$143)) -> 0 | AQ29: =IF(AQ14=0,0,LOOKUP(AQ14,Inputs!$F$142:$I$142,Inputs!$F$143:$I$143)) -> 0 | AR29: =IF(AR14=0,0,LOOKUP(AR14,Inputs!$F$142:$I$142,Inputs!$F$143:$I$143)) -> 0 | AS29: =IF(AS14=0,0,LOOKUP(AS14,Inputs!$F$142:$I$142,Inputs!$F$143:$I$143)) -> 0 | AT29: =IF(AT14=0,0,LOOKUP(AT14,Inputs!$F$142:$I$142,Inputs!$F$143:$I$143)) -> 0 | AU29: =IF(AU14=0,0,LOOKUP(AU14,Inputs!$F$142:$I$142,Inputs!$F$143:$I$143)) -> 0 | AV29: =IF(AV14=0,0,LOOKUP(AV14,Inputs!$F$142:$I$142,Inputs!$F$143:$I$143)) -> 0 | AW29: =IF(AW14=0,0,LOOKUP(AW14,Inputs!$F$142:$I$142,Inputs!$F$143:$I$143)) -> 0 | AX29: =IF(AX14=0,0,LOOKUP(AX14,Inputs!$F$142:$I$142,Inputs!$F$143:$I$143)) -> 0 | AY29: =IF(AY14=0,0,LOOKUP(AY14,Inputs!$F$142:$I$142,Inputs!$F$143:$I$143)) -> 0 | AZ29: =IF(AZ14=0,0,LOOKUP(AZ14,Inputs!$F$142:$I$142,Inputs!$F$143:$I$143)) -> 0 | BA29: =IF(BA14=0,0,LOOKUP(BA14,Inputs!$F$142:$I$142,Inputs!$F$143:$I$143)) -> 0 | BB29: =IF(BB14=0,0,LOOKUP(BB14,Inputs!$F$142:$I$142,Inputs!$F$143:$I$143)) -> 0 | BC29: =IF(BC14=0,0,LOOKUP(BC14,Inputs!$F$142:$I$142,Inputs!$F$143:$I$143)) -> 0 | BD29: =IF(BD14=0,0,LOOKUP(BD14,Inputs!$F$142:$I$142,Inputs!$F$143:$I$143)) -> 0 | BE29: =IF(BE14=0,0,LOOKUP(BE14,Inputs!$F$142:$I$142,Inputs!$F$143:$I$143)) -> 0 | BF29: =IF(BF14=0,0,LOOKUP(BF14,Inputs!$F$142:$I$142,Inputs!$F$143:$I$143)) -> 0 | BG29: =IF(BG14=0,0,LOOKUP(BG14,Inputs!$F$142:$I$142,Inputs!$F$143:$I$143)) -> 0 | BH29: =IF(BH14=0,0,LOOKUP(BH14,Inputs!$F$142:$I$142,Inputs!$F$143:$I$143)) -> 0 | BI29: =IF(BI14=0,0,LOOKUP(BI14,Inputs!$F$142:$I$142,Inputs!$F$143:$I$143)) -> 0 | BJ29: =IF(BJ14=0,0,LOOKUP(BJ14,Inputs!$F$142:$I$142,Inputs!$F$143:$I$143)) -> 0 | BK29: =IF(BK14=0,0,LOOKUP(BK14,Inputs!$F$142:$I$142,Inputs!$F$143:$I$143)) -> 0 | BL29: =IF(BL14=0,0,LOOKUP(BL14,Inputs!$F$142:$I$142,Inputs!$F$143:$I$143)) -> 0 | BM29: =IF(BM14=0,0,LOOKUP(BM14,Inputs!$F$142:$I$142,Inputs!$F$143:$I$143)) -> 0
C30: Margin (operations) | D30: % p.p. | J30: =J29*J16/Days_Year -> 0 | K30: 0 | L30: 0 | M30: 0 | N30: 0 | O30: 0 | P30: 0 | Q30: 0 | R30: 0 | S30: 0 | T30: 0 | U30: 0 | V30: 0 | W30: 0 | X30: 0 | Y30: 0 | Z30: 0 | AA30: 0 | AB30: 0 | AC30: 0 | AD30: 0 | AE30: 0 | AF30: 0 | AG30: 0 | AH30: 0 | AI30: 0 | AJ30: 0 | AK30: 0 | AL30: 0 | AM30: 0 | AN30: 0 | AO30: 0 | AP30: =AP29*AP16/Days_Year -> 0 | AQ30: 0 | AR30: 0 | AS30: 0 | AT30: 0 | AU30: 0 | AV30: 0 | AW30: 0 | AX30: 0 | AY30: 0 | AZ30: 0 | BA30: 0 | BB30: 0 | BC30: 0 | BD30: 0 | BE30: 0 | BF30: 0 | BG30: 0 | BH30: 0 | BI30: 0 | BJ30: 0 | BK30: 0 | BL30: 0 | BM30: 0
C32: Decommissioning provistion
C33: Pre-tax discount rate | D33: % p.a. | E33: =Inputs!#REF! ->  | J33: =$E33 ->  | K33: =$E33 -> 
C34: Pre-tax discount rate | D34: % p.q. | J34: =J33*J16/Days_Year ->  | AP34: =AP33*AP16/Days_Year -> 
C36: Other
C38: Forex | J38: =LOOKUP(J15,Inputs!$E$207:$J$207,Inputs!$E$208:$J$208) -> 0.72 | K38: =LOOKUP(K15,Inputs!$E$207:$J$207,Inputs!$E$208:$J$208) -> 0.72 | L38: =LOOKUP(L15,Inputs!$E$207:$J$207,Inputs!$E$208:$J$208) -> 0.72 | M38: =LOOKUP(M15,Inputs!$E$207:$J$207,Inputs!$E$208:$J$208) -> 0.72 | N38: =LOOKUP(N15,Inputs!$E$207:$J$207,Inputs!$E$208:$J$208) -> 0.72 | O38: =LOOKUP(O15,Inputs!$E$207:$J$207,Inputs!$E$208:$J$208) -> 0.72 | P38: =LOOKUP(P15,Inputs!$E$207:$J$207,Inputs!$E$208:$J$208) -> 0.72 | Q38: =LOOKUP(Q15,Inputs!$E$207:$J$207,Inputs!$E$208:$J$208) -> 0.72 | R38: =LOOKUP(R15,Inputs!$E$207:$J$207,Inputs!$E$208:$J$208) -> 0.72 | S38: =LOOKUP(S15,Inputs!$E$207:$J$207,Inputs!$E$208:$J$208) -> 0.72 | T38: =LOOKUP(T15,Inputs!$E$207:$J$207,Inputs!$E$208:$J$208) -> 0.72 | U38: =LOOKUP(U15,Inputs!$E$207:$J$207,Inputs!$E$208:$J$208) -> 0.72 | V38: =LOOKUP(V15,Inputs!$E$207:$J$207,Inputs!$E$208:$J$208) -> 0.72 | W38: =LOOKUP(W15,Inputs!$E$207:$J$207,Inputs!$E$208:$J$208) -> 0.72 | X38: =LOOKUP(X15,Inputs!$E$207:$J$207,Inputs!$E$208:$J$208) -> 0.72 | Y38: =LOOKUP(Y15,Inputs!$E$207:$J$207,Inputs!$E$208:$J$208) -> 0.72 | Z38: =LOOKUP(Z15,Inputs!$E$207:$J$207,Inputs!$E$208:$J$208) -> 0.72 | AA38: =LOOKUP(AA15,Inputs!$E$207:$J$207,Inputs!$E$208:$J$208) -> 0.72 | AB38: =LOOKUP(AB15,Inputs!$E$207:$J$207,Inputs!$E$208:$J$208) -> 0.72 | AC38: =LOOKUP(AC15,Inputs!$E$207:$J$207,Inputs!$E$208:$J$208) -> 0.72 | AD38: =LOOKUP(AD15,Inputs!$E$207:$J$207,Inputs!$E$208:$J$208) -> 0.72 | AE38: =LOOKUP(AE15,Inputs!$E$207:$J$207,Inputs!$E$208:$J$208) -> 0.72 | AF38: =LOOKUP(AF15,Inputs!$E$207:$J$207,Inputs!$E$208:$J$208) -> 0.72 | AG38: =LOOKUP(AG15,Inputs!$E$207:$J$207,Inputs!$E$208:$J$208) -> 0.72 | AH38: =LOOKUP(AH15,Inputs!$E$207:$J$207,Inputs!$E$208:$J$208) -> 0.72 | AI38: =LOOKUP(AI15,Inputs!$E$207:$J$207,Inputs!$E$208:$J$208) -> 0.72 | AJ38: =LOOKUP(AJ15,Inputs!$E$207:$J$207,Inputs!$E$208:$J$208) -> 0.72 | AK38: =LOOKUP(AK15,Inputs!$E$207:$J$207,Inputs!$E$208:$J$208) -> 0.72 | AL38: =LOOKUP(AL15,Inputs!$E$207:$J$207,Inputs!$E$208:$J$208) -> 0.72 | AM38: =LOOKUP(AM15,Inputs!$E$207:$J$207,Inputs!$E$208:$J$208) -> 0.72 | AN38: =LOOKUP(AN15,Inputs!$E$207:$J$207,Inputs!$E$208:$J$208) -> 0.72 | AO38: =LOOKUP(AO15,Inputs!$E$207:$J$207,Inputs!$E$208:$J$208) -> 0.72 | AP38: =LOOKUP(AP15,Inputs!$E$207:$J$207,Inputs!$E$208:$J$208) -> 0.72 | AQ38: =LOOKUP(AQ15,Inputs!$E$207:$J$207,Inputs!$E$208:$J$208) -> 0.72 | AR38: =LOOKUP(AR15,Inputs!$E$207:$J$207,Inputs!$E$208:$J$208) -> 0.72 | AS38: =LOOKUP(AS15,Inputs!$E$207:$J$207,Inputs!$E$208:$J$208) -> 0.72 | AT38: =LOOKUP(AT15,Inputs!$E$207:$J$207,Inputs!$E$208:$J$208) -> 0.72 | AU38: =LOOKUP(AU15,Inputs!$E$207:$J$207,Inputs!$E$208:$J$208) -> 0.72 | AV38: =LOOKUP(AV15,Inputs!$E$207:$J$207,Inputs!$E$208:$J$208) -> 0.72 | AW38: =LOOKUP(AW15,Inputs!$E$207:$J$207,Inputs!$E$208:$J$208) -> 0.72 | AX38: =LOOKUP(AX15,Inputs!$E$207:$J$207,Inputs!$E$208:$J$208) -> 0.72 | AY38: =LOOKUP(AY15,Inputs!$E$207:$J$207,Inputs!$E$208:$J$208) -> 0.72 | AZ38: =LOOKUP(AZ15,Inputs!$E$207:$J$207,Inputs!$E$208:$J$208) -> 0.72 | BA38: =LOOKUP(BA15,Inputs!$E$207:$J$207,Inputs!$E$208:$J$208) -> 0.72 | BB38: =LOOKUP(BB15,Inputs!$E$207:$J$207,Inputs!$E$208:$J$208) -> 0.72 | BC38: =LOOKUP(BC15,Inputs!$E$207:$J$207,Inputs!$E$208:$J$208) -> 0.72 | BD38: =LOOKUP(BD15,Inputs!$E$207:$J$207,Inputs!$E$208:$J$208) -> 0.72 | BE38: =LOOKUP(BE15,Inputs!$E$207:$J$207,Inputs!$E$208:$J$208) -> 0.72 | BF38: =LOOKUP(BF15,Inputs!$E$207:$J$207,Inputs!$E$208:$J$208) -> 0.72 | BG38: =LOOKUP(BG15,Inputs!$E$207:$J$207,Inputs!$E$208:$J$208) -> 0.72 | BH38: =LOOKUP(BH15,Inputs!$E$207:$J$207,Inputs!$E$208:$J$208) -> 0.72 | BI38: =LOOKUP(BI15,Inputs!$E$207:$J$207,Inputs!$E$208:$J$208) -> 0.72 | BJ38: =LOOKUP(BJ15,Inputs!$E$207:$J$207,Inputs!$E$208:$J$208) -> 0.72 | BK38: =LOOKUP(BK15,Inputs!$E$207:$J$207,Inputs!$E$208:$J$208) -> 0.72 | BL38: =LOOKUP(BL15,Inputs!$E$207:$J$207,Inputs!$E$208:$J$208) -> 0.72 | BM38: =LOOKUP(BM15,Inputs!$E$207:$J$207,Inputs!$E$208:$J$208) -> 0.72

Sheet CapEx
A1: Development
A2: =Name_Project -> King Island Valuation | E2: =Master_check -> 0
C4: Period Start | J4: =Timing!J4 -> 2019-01-01 | K4: =Timing!K4 -> 2019-04-01 | L4: =Timing!L4 -> 2019-07-01 | M4: =Timing!M4 -> 2019-10-01 | N4: =Timing!N4 -> 2020-01-01 | O4: =Timing!O4 -> 2020-04-01 | P4: =Timing!P4 -> 2020-07-01 | Q4: =Timing!Q4 -> 2020-10-01 | R4: =Timing!R4 -> 2021-01-01 | S4: =Timing!S4 -> 2021-04-01 | T4: =Timing!T4 -> 2021-07-01 | U4: =Timing!U4 -> 2021-10-01 | V4: =Timing!V4 -> 2022-01-01 | W4: =Timing!W4 -> 2022-04-01 | X4: =Timing!X4 -> 2022-07-01 | Y4: =Timing!Y4 -> 2022-10-01 | Z4: =Timing!Z4 -> 2023-01-01 | AA4: =Timing!AA4 -> 2023-04-01 | AB4: =Timing!AB4 -> 2023-07-01 | AC4: =Timing!AC4 -> 2023-10-01 | AD4: =Timing!AD4 -> 2024-01-01 | AE4: =Timing!AE4 -> 2024-04-01 | AF4: =Timing!AF4 -> 2024-07-01 | AG4: =Timing!AG4 -> 2024-10-01 | AH4: =Timing!AH4 -> 2025-01-01 | AI4: =Timing!AI4 -> 2025-04-01 | AJ4: =Timing!AJ4 -> 2025-07-01 | AK4: =Timing!AK4 -> 2025-10-01 | AL4: =Timing!AL4 -> 2026-01-01 | AM4: =Timing!AM4 -> 2026-04-01 | AN4: =Timing!AN4 -> 2026-07-01 | AO4: =Timing!AO4 -> 2026-10-01 | AP4: =Timing!AP4 -> 2027-01-01 | AQ4: =Timing!AQ4 -> 2027-04-01 | AR4: =Timing!AR4 -> 2027-07-01 | AS4: =Timing!AS4 -> 2027-10-01 | AT4: =Timing!AT4 -> 2028-01-01 | AU4: =Timing!AU4 -> 2028-04-01 | AV4: =Timing!AV4 -> 2028-07-01 | AW4: =Timing!AW4 -> 2028-10-01 | AX4: =Timing!AX4 -> 2029-01-01 | AY4: =Timing!AY4 -> 2029-04-01 | AZ4: =Timing!AZ4 -> 2029-07-01 | BA4: =Timing!BA4 -> 2029-10-01 | BB4: =Timing!BB4 -> 2030-01-01 | BC4: =Timing!BC4 -> 2030-04-01 | BD4: =Timing!BD4 -> 2030-07-01 | BE4: =Timing!BE4 -> 2030-10-01 | BF4: =Timing!BF4 -> 2031-01-01 | BG4: =Timing!BG4 -> 2031-04-01 | BH4: =Timing!BH4 -> 2031-07-01 | BI4: =Timing!BI4 -> 2031-10-01 | BJ4: =Timing!BJ4 -> 2032-01-01 | BK4: =Timing!BK4 -> 2032-04-01 | BL4: =Timing!BL4 -> 2032-07-01 | BM4: =Timing!BM4 -> 2032-10-01
C5: Period End | I5: =Timing!I5 -> 2018-12-31 | J5: =Timing!J5 -> 2019-03-31 | K5: =Timing!K5 -> 2019-06-30 | L5: =Timing!L5 -> 2019-09-30 | M5: =Timing!M5 -> 2019-12-31 | N5: =Timing!N5 -> 2020-03-31 | O5: =Timing!O5 -> 2020-06-30 | P5: =Timing!P5 -> 2020-09-30 | Q5: =Timing!Q5 -> 2020-12-31 | R5: =Timing!R5 -> 2021-03-31 | S5: =Timing!S5 -> 2021-06-30 | T5: =Timing!T5 -> 2021-09-30 | U5: =Timing!U5 -> 2021-12-31 | V5: =Timing!V5 -> 2022-03-31 | W5: =Timing!W5 -> 2022-06-30 | X5: =Timing!X5 -> 2022-09-30 | Y5: =Timing!Y5 -> 2022-12-31 | Z5: =Timing!Z5 -> 2023-03-31 | AA5: =Timing!AA5 -> 2023-06-30 | AB5: =Timing!AB5 -> 2023-09-30 | AC5: =Timing!AC5 -> 2023-12-31 | AD5: =Timing!AD5 -> 2024-03-31 | AE5: =Timing!AE5 -> 2024-06-30 | AF5: =Timing!AF5 -> 2024-09-30 | AG5: =Timing!AG5 -> 2024-12-31 | AH5: =Timing!AH5 -> 2025-03-31 | AI5: =Timing!AI5 -> 2025-06-30 | AJ5: =Timing!AJ5 -> 2025-09-30 | AK5: =Timing!AK5 -> 2025-12-31 | AL5: =Timing!AL5 -> 2026-03-31 | AM5: =Timing!AM5 -> 2026-06-30 | AN5: =Timing!AN5 -> 2026-09-30 | AO5: =Timing!AO5 -> 2026-12-31 | AP5: =Timing!AP5 -> 2027-03-31 | AQ5: =Timing!AQ5 -> 2027-06-30 | AR5: =Timing!AR5 -> 2027-09-30 | AS5: =Timing!AS5 -> 2027-12-31 | AT5: =Timing!AT5 -> 2028-03-31 | AU5: =Timing!AU5 -> 2028-06-30 | AV5: =Timing!AV5 -> 2028-09-30 | AW5: =Timing!AW5 -> 2028-12-31 | AX5: =Timing!AX5 -> 2029-03-31 | AY5: =Timing!AY5 -> 2029-06-30 | AZ5: =Timing!AZ5 -> 2029-09-30 | BA5: =Timing!BA5 -> 2029-12-31 | BB5: =Timing!BB5 -> 2030-03-31 | BC5: =Timing!BC5 -> 2030-06-30 | BD5: =Timing!BD5 -> 2030-09-30 | BE5: =Timing!BE5 -> 2030-12-31 | BF5: =Timing!BF5 -> 2031-03-31 | BG5: =Timing!BG5 -> 2031-06-30 | BH5: =Timing!BH5 -> 2031-09-30 | BI5: =Timing!BI5 -> 2031-12-31 | BJ5: =Timing!BJ5 -> 2032-03-31 | BK5: =Timing!BK5 -> 2032-06-30 | BL5: =Timing!BL5 -> 2032-09-30 | BM5: =Timing!BM5 -> 2032-12-31
C6: Development | D6: =Timing!D6 -> 2019-01-01 | E6: =Timing!E6 -> 2019-12-31 | J6: =Timing!J6 -> 1 | K6: =Timing!K6 -> 1 | L6: =Timing!L6 -> 1 | M6: =Timing!M6 -> 1 | N6: =Timing!N6 -> 0 | O6: =Timing!O6 -> 0 | P6: =Timing!P6 -> 0 | Q6: =Timing!Q6 -> 0 | R6: =Timing!R6 -> 0 | S6: =Timing!S6 -> 0 | T6: =Timing!T6 -> 0 | U6: =Timing!U6 -> 0 | V6: =Timing!V6 -> 0 | W6: =Timing!W6 -> 0 | X6: =Timing!X6 -> 0 | Y6: =Timing!Y6 -> 0 | Z6: =Timing!Z6 -> 0 | AA6: =Timing!AA6 -> 0 | AB6: =Timing!AB6 -> 0 | AC6: =Timing!AC6 -> 0 | AD6: =Timing!AD6 -> 0 | AE6: =Timing!AE6 -> 0 | AF6: =Timing!AF6 -> 0 | AG6: =Timing!AG6 -> 0 | AH6: =Timing!AH6 -> 0 | AI6: =Timing!AI6 -> 0 | AJ6: =Timing!AJ6 -> 0 | AK6: =Timing!AK6 -> 0 | AL6: =Timing!AL6 -> 0 | AM6: =Timing!AM6 -> 0 | AN6: =Timing!AN6 -> 0 | AO6: =Timing!AO6 -> 0 | AP6: =Timing!AP6 -> 0 | AQ6: =Timing!AQ6 -> 0 | AR6: =Timing!AR6 -> 0 | AS6: =Timing!AS6 -> 0 | AT6: =Timing!AT6 -> 0 | AU6: =Timing!AU6 -> 0 | AV6: =Timing!AV6 -> 0 | AW6: =Timing!AW6 -> 0 | AX6: =Timing!AX6 -> 0 | AY6: =Timing!AY6 -> 0 | AZ6: =Timing!AZ6 -> 0 | BA6: =Timing!BA6 -> 0 | BB6: =Timing!BB6 -> 0 | BC6: =Timing!BC6 -> 0 | BD6: =Timing!BD6 -> 0 | BE6: =Timing!BE6 -> 0 | BF6: =Timing!BF6 -> 0 | BG6: =Timing!BG6 -> 0 | BH6: =Timing!BH6 -> 0 | BI6: =Timing!BI6 -> 0 | BJ6: =Timing!BJ6 -> 0 | BK6: =Timing!BK6 -> 0 | BL6: =Timing!BL6 -> 0 | BM6: =Timing!BM6 -> 0
C7: Production | D7: =Timing!D7 -> 2020-01-01 | E7: =Timing!E7 -> 2027-12-31 | J7: =Timing!J7 -> 0 | K7: =Timing!K7 -> 0 | L7: =Timing!L7 -> 0 | M7: =Timing!M7 -> 0 | N7: =Timing!N7 -> 1 | O7: =Timing!O7 -> 1 | P7: =Timing!P7 -> 1 | Q7: =Timing!Q7 -> 1 | R7: =Timing!R7 -> 1 | S7: =Timing!S7 -> 1 | T7: =Timing!T7 -> 1 | U7: =Timing!U7 -> 1 | V7: =Timing!V7 -> 1 | W7: =Timing!W7 -> 1 | X7: =Timing!X7 -> 1 | Y7: =Timing!Y7 -> 1 | Z7: =Timing!Z7 -> 1 | AA7: =Timing!AA7 -> 1 | AB7: =Timing!AB7 -> 1 | AC7: =Timing!AC7 -> 1 | AD7: =Timing!AD7 -> 1 | AE7: =Timing!AE7 -> 1 | AF7: =Timing!AF7 -> 1 | AG7: =Timing!AG7 -> 1 | AH7: =Timing!AH7 -> 1 | AI7: =Timing!AI7 -> 1 | AJ7: =Timing!AJ7 -> 1 | AK7: =Timing!AK7 -> 1 | AL7: =Timing!AL7 -> 1 | AM7: =Timing!AM7 -> 1 | AN7: =Timing!AN7 -> 1 | AO7: =Timing!AO7 -> 1 | AP7: =Timing!AP7 -> 1 | AQ7: =Timing!AQ7 -> 1 | AR7: =Timing!AR7 -> 1 | AS7: =Timing!AS7 -> 1 | AT7: =Timing!AT7 -> 0 | AU7: =Timing!AU7 -> 0 | AV7: =Timing!AV7 -> 0 | AW7: =Timing!AW7 -> 0 | AX7: =Timing!AX7 -> 0 | AY7: =Timing!AY7 -> 0 | AZ7: =Timing!AZ7 -> 0 | BA7: =Timing!BA7 -> 0 | BB7: =Timing!BB7 -> 0 | BC7: =Timing!BC7 -> 0 | BD7: =Timing!BD7 -> 0 | BE7: =Timing!BE7 -> 0 | BF7: =Timing!BF7 -> 0 | BG7: =Timing!BG7 -> 0 | BH7: =Timing!BH7 -> 0 | BI7: =Timing!BI7 -> 0 | BJ7: =Timing!BJ7 -> 0 | BK7: =Timing!BK7 -> 0 | BL7: =Timing!BL7 -> 0 | BM7: =Timing!BM7 -> 0
C8: Restoration | D8: =Timing!D8 -> 2028-01-01 | E8: =Timing!E8 -> 2027-12-31 | J8: =Timing!J8 -> 0 | K8: =Timing!K8 -> 0 | L8: =Timing!L8 -> 0 | M8: =Timing!M8 -> 0 | N8: =Timing!N8 -> 0 | O8: =Timing!O8 -> 0 | P8: =Timing!P8 -> 0 | Q8: =Timing!Q8 -> 0 | R8: =Timing!R8 -> 0 | S8: =Timing!S8 -> 0 | T8: =Timing!T8 -> 0 | U8: =Timing!U8 -> 0 | V8: =Timing!V8 -> 0 | W8: =Timing!W8 -> 0 | X8: =Timing!X8 -> 0 | Y8: =Timing!Y8 -> 0 | Z8: =Timing!Z8 -> 0 | AA8: =Timing!AA8 -> 0 | AB8: =Timing!AB8 -> 0 | AC8: =Timing!AC8 -> 0 | AD8: =Timing!AD8 -> 0 | AE8: =Timing!AE8 -> 0 | AF8: =Timing!AF8 -> 0 | AG8: =Timing!AG8 -> 0 | AH8: =Timing!AH8 -> 0 | AI8: =Timing!AI8 -> 0 | AJ8: =Timing!AJ8 -> 0 | AK8: =Timing!AK8 -> 0 | AL8: =Timing!AL8 -> 0 | AM8: =Timing!AM8 -> 0 | AN8: =Timing!AN8 -> 0 | AO8: =Timing!AO8 -> 0 | AP8: =Timing!AP8 -> 0 | AQ8: =Timing!AQ8 -> 0 | AR8: =Timing!AR8 -> 0 | AS8: =Timing!AS8 -> 0 | AT8: =Timing!AT8 -> 0 | AU8: =Timing!AU8 -> 0 | AV8: =Timing!AV8 -> 0 | AW8: =Timing!AW8 -> 0 | AX8: =Timing!AX8 -> 0 | AY8: =Timing!AY8 -> 0 | AZ8: =Timing!AZ8 -> 0 | BA8: =Timing!BA8 -> 0 | BB8: =Timing!BB8 -> 0 | BC8: =Timing!BC8 -> 0 | BD8: =Timing!BD8 -> 0 | BE8: =Timing!BE8 -> 0 | BF8: =Timing!BF8 -> 0 | BG8: =Timing!BG8 -> 0 | BH8: =Timing!BH8 -> 0 | BI8: =Timing!BI8 -> 0 | BJ8: =Timing!BJ8 -> 0 | BK8: =Timing!BK8 -> 0 | BL8: =Timing!BL8 -> 0 | BM8: =Timing!BM8 -> 0
C10: Timing counters
C12: Development Quarter | D12: Num# | J12: =Timing!J12 -> 1 | K12: =Timing!K12 -> 2 | L12: =Timing!L12 -> 3 | M12: =Timing!M12 -> 4 | N12: =Timing!N12 -> 0 | O12: =Timing!O12 -> 0 | P12: =Timing!P12 -> 0 | Q12: =Timing!Q12 -> 0 | R12: =Timing!R12 -> 0 | S12: =Timing!S12 -> 0 | T12: =Timing!T12 -> 0 | U12: =Timing!U12 -> 0 | V12: =Timing!V12 -> 0 | W12: =Timing!W12 -> 0 | X12: =Timing!X12 -> 0 | Y12: =Timing!Y12 -> 0 | Z12: =Timing!Z12 -> 0 | AA12: =Timing!AA12 -> 0 | AB12: =Timing!AB12 -> 0 | AC12: =Timing!AC12 -> 0 | AD12: =Timing!AD12 -> 0 | AE12: =Timing!AE12 -> 0 | AF12: =Timing!AF12 -> 0 | AG12: =Timing!AG12 -> 0 | AH12: =Timing!AH12 -> 0 | AI12: =Timing!AI12 -> 0 | AJ12: =Timing!AJ12 -> 0 | AK12: =Timing!AK12 -> 0 | AL12: =Timing!AL12 -> 0 | AM12: =Timing!AM12 -> 0 | AN12: =Timing!AN12 -> 0 | AO12: =Timing!AO12 -> 0 | AP12: =Timing!AP12 -> 0 | AQ12: =Timing!AQ12 -> 0 | AR12: =Timing!AR12 -> 0 | AS12: =Timing!AS12 -> 0 | AT12: =Timing!AT12 -> 0 | AU12: =Timing!AU12 -> 0 | AV12: =Timing!AV12 -> 0 | AW12: =Timing!AW12 -> 0 | AX12: =Timing!AX12 -> 0 | AY12: =Timing!AY12 -> 0 | AZ12: =Timing!AZ12 -> 0 | BA12: =Timing!BA12 -> 0 | BB12: =Timing!BB12 -> 0 | BC12: =Timing!BC12 -> 0 | BD12: =Timing!BD12 -> 0 | BE12: =Timing!BE12 -> 0 | BF12: =Timing!BF12 -> 0 | BG12: =Timing!BG12 -> 0 | BH12: =Timing!BH12 -> 0 | BI12: =Timing!BI12 -> 0 | BJ12: =Timing!BJ12 -> 0 | BK12: =Timing!BK12 -> 0 | BL12: =Timing!BL12 -> 0 | BM12: =Timing!BM12 -> 0
C13: Year | D13: Num# | J13: =Timing!J15 -> 2019 | K13: =Timing!K15 -> 2019 | L13: =Timing!L15 -> 2019 | M13: =Timing!M15 -> 2019 | N13: =Timing!N15 -> 2020 | O13: =Timing!O15 -> 2020 | P13: =Timing!P15 -> 2020 | Q13: =Timing!Q15 -> 2020 | R13: =Timing!R15 -> 2021 | S13: =Timing!S15 -> 2021 | T13: =Timing!T15 -> 2021 | U13: =Timing!U15 -> 2021 | V13: =Timing!V15 -> 2022 | W13: =Timing!W15 -> 2022 | X13: =Timing!X15 -> 2022 | Y13: =Timing!Y15 -> 2022 | Z13: =Timing!Z15 -> 2023 | AA13: =Timing!AA15 -> 2023 | AB13: =Timing!AB15 -> 2023 | AC13: =Timing!AC15 -> 2023 | AD13: =Timing!AD15 -> 2024 | AE13: =Timing!AE15 -> 2024 | AF13: =Timing!AF15 -> 2024 | AG13: =Timing!AG15 -> 2024 | AH13: =Timing!AH15 -> 2025 | AI13: =Timing!AI15 -> 2025 | AJ13: =Timing!AJ15 -> 2025 | AK13: =Timing!AK15 -> 2025 | AL13: =Timing!AL15 -> 2026 | AM13: =Timing!AM15 -> 2026 | AN13: =Timing!AN15 -> 2026 | AO13: =Timing!AO15 -> 2026 | AP13: =Timing!AP15 -> 2027 | AQ13: =Timing!AQ15 -> 2027 | AR13: =Timing!AR15 -> 2027 | AS13: =Timing!AS15 -> 2027 | AT13: =Timing!AT15 -> 2028 | AU13: =Timing!AU15 -> 2028 | AV13: =Timing!AV15 -> 2028 | AW13: =Timing!AW15 -> 2028 | AX13: =Timing!AX15 -> 2029 | AY13: =Timing!AY15 -> 2029 | AZ13: =Timing!AZ15 -> 2029 | BA13: =Timing!BA15 -> 2029 | BB13: =Timing!BB15 -> 2030 | BC13: =Timing!BC15 -> 2030 | BD13: =Timing!BD15 -> 2030 | BE13: =Timing!BE15 -> 2030 | BF13: =Timing!BF15 -> 2031 | BG13: =Timing!BG15 -> 2031 | BH13: =Timing!BH15 -> 2031 | BI13: =Timing!BI15 -> 2031 | BJ13: =Timing!BJ15 -> 2032 | BK13: =Timing!BK15 -> 2032 | BL13: =Timing!BL15 -> 2032 | BM13: =Timing!BM15 -> 2032
C14: Days in period | D14: Num# | J14: =Timing!J16 -> 90 | K14: =Timing!K16 -> 91 | L14: =Timing!L16 -> 92 | M14: =Timing!M16 -> 92 | N14: =Timing!N16 -> 91 | O14: =Timing!O16 -> 91 | P14: =Timing!P16 -> 92 | Q14: =Timing!Q16 -> 92 | R14: =Timing!R16 -> 90 | S14: =Timing!S16 -> 91 | T14: =Timing!T16 -> 92 | U14: =Timing!U16 -> 92 | V14: =Timing!V16 -> 90 | W14: =Timing!W16 -> 91 | X14: =Timing!X16 -> 92 | Y14: =Timing!Y16 -> 92 | Z14: =Timing!Z16 -> 90 | AA14: =Timing!AA16 -> 91 | AB14: =Timing!AB16 -> 92 | AC14: =Timing!AC16 -> 92 | AD14: =Timing!AD16 -> 91 | AE14: =Timing!AE16 -> 91 | AF14: =Timing!AF16 -> 92 | AG14: =Timing!AG16 -> 92 | AH14: =Timing!AH16 -> 90 | AI14: =Timing!AI16 -> 91 | AJ14: =Timing!AJ16 -> 92 | AK14: =Timing!AK16 -> 92 | AL14: =Timing!AL16 -> 90 | AM14: =Timing!AM16 -> 91 | AN14: =Timing!AN16 -> 92 | AO14: =Timing!AO16 -> 92 | AP14: =Timing!AP16 -> 90 | AQ14: =Timing!AQ16 -> 91 | AR14: =Timing!AR16 -> 92 | AS14: =Timing!AS16 -> 92 | AT14: =Timing!AT16 -> 91 | AU14: =Timing!AU16 -> 91 | AV14: =Timing!AV16 -> 92 | AW14: =Timing!AW16 -> 92 | AX14: =Timing!AX16 -> 90 | AY14: =Timing!AY16 -> 91 | AZ14: =Timing!AZ16 -> 92 | BA14: =Timing!BA16 -> 92 | BB14: =Timing!BB16 -> 90 | BC14: =Timing!BC16 -> 91 | BD14: =Timing!BD16 -> 92 | BE14: =Timing!BE16 -> 92 | BF14: =Timing!BF16 -> 90 | BG14: =Timing!BG16 -> 91 | BH14: =Timing!BH16 -> 92 | BI14: =Timing!BI16 -> 92 | BJ14: =Timing!BJ16 -> 91 | BK14: =Timing!BK16 -> 91 | BL14: =Timing!BL16 -> 92 | BM14: =Timing!BM16 -> 92
C16: Capex forecast profile
C17: Capex S-curve
C18: =Inputs!$C$15 -> Plant & Equipment | D18: % | I18: =SUM(J18:BM18) -> 1 | J18: =IF(J$12=0,0,LOOKUP(J$12,Inputs!$G$14:$L$14,Inputs!$G15:$L15)) -> 0.25 | K18: =IF(K$12=0,0,LOOKUP(K$12,Inputs!$G$14:$L$14,Inputs!$G15:$L15)) -> 0.25 | L18: =IF(L$12=0,0,LOOKUP(L$12,Inputs!$G$14:$L$14,Inputs!$G15:$L15)) -> 0.25 | M18: =IF(M$12=0,0,LOOKUP(M$12,Inputs!$G$14:$L$14,Inputs!$G15:$L15)) -> 0.25 | N18: =IF(N$12=0,0,LOOKUP(N$12,Inputs!$G$14:$L$14,Inputs!$G15:$L15)) -> 0 | O18: =IF(O$12=0,0,LOOKUP(O$12,Inputs!$G$14:$L$14,Inputs!$G15:$L15)) -> 0 | P18: =IF(P$12=0,0,LOOKUP(P$12,Inputs!$G$14:$L$14,Inputs!$G15:$L15)) -> 0 | Q18: =IF(Q$12=0,0,LOOKUP(Q$12,Inputs!$G$14:$L$14,Inputs!$G15:$L15)) -> 0 | R18: =IF(R$12=0,0,LOOKUP(R$12,Inputs!$G$14:$L$14,Inputs!$G15:$L15)) -> 0 | S18: =IF(S$12=0,0,LOOKUP(S$12,Inputs!$G$14:$L$14,Inputs!$G15:$L15)) -> 0 | T18: =IF(T$12=0,0,LOOKUP(T$12,Inputs!$G$14:$L$14,Inputs!$G15:$L15)) -> 0 | U18: =IF(U$12=0,0,LOOKUP(U$12,Inputs!$G$14:$L$14,Inputs!$G15:$L15)) -> 0 | V18: =IF(V$12=0,0,LOOKUP(V$12,Inputs!$G$14:$L$14,Inputs!$G15:$L15)) -> 0 | W18: =IF(W$12=0,0,LOOKUP(W$12,Inputs!$G$14:$L$14,Inputs!$G15:$L15)) -> 0 | X18: =IF(X$12=0,0,LOOKUP(X$12,Inputs!$G$14:$L$14,Inputs!$G15:$L15)) -> 0 | Y18: =IF(Y$12=0,0,LOOKUP(Y$12,Inputs!$G$14:$L$14,Inputs!$G15:$L15)) -> 0 | Z18: =IF(Z$12=0,0,LOOKUP(Z$12,Inputs!$G$14:$L$14,Inputs!$G15:$L15)) -> 0 | AA18: =IF(AA$12=0,0,LOOKUP(AA$12,Inputs!$G$14:$L$14,Inputs!$G15:$L15)) -> 0 | AB18: =IF(AB$12=0,0,LOOKUP(AB$12,Inputs!$G$14:$L$14,Inputs!$G15:$L15)) -> 0 | AC18: =IF(AC$12=0,0,LOOKUP(AC$12,Inputs!$G$14:$L$14,Inputs!$G15:$L15)) -> 0 | AD18: =IF(AD$12=0,0,LOOKUP(AD$12,Inputs!$G$14:$L$14,Inputs!$G15:$L15)) -> 0 | AE18: =IF(AE$12=0,0,LOOKUP(AE$12,Inputs!$G$14:$L$14,Inputs!$G15:$L15)) -> 0 | AF18: =IF(AF$12=0,0,LOOKUP(AF$12,Inputs!$G$14:$L$14,Inputs!$G15:$L15)) -> 0 | AG18: =IF(AG$12=0,0,LOOKUP(AG$12,Inputs!$G$14:$L$14,Inputs!$G15:$L15)) -> 0 | AH18: =IF(AH$12=0,0,LOOKUP(AH$12,Inputs!$G$14:$L$14,Inputs!$G15:$L15)) -> 0 | AI18: =IF(AI$12=0,0,LOOKUP(AI$12,Inputs!$G$14:$L$14,Inputs!$G15:$L15)) -> 0 | AJ18: =IF(AJ$12=0,0,LOOKUP(AJ$12,Inputs!$G$14:$L$14,Inputs!$G15:$L15)) -> 0 | AK18: =IF(AK$12=0,0,LOOKUP(AK$12,Inputs!$G$14:$L$14,Inputs!$G15:$L15)) -> 0 | AL18: =IF(AL$12=0,0,LOOKUP(AL$12,Inputs!$G$14:$L$14,Inputs!$G15:$L15)) -> 0 | AM18: =IF(AM$12=0,0,LOOKUP(AM$12,Inputs!$G$14:$L$14,Inputs!$G15:$L15)) -> 0 | AN18: =IF(AN$12=0,0,LOOKUP(AN$12,Inputs!$G$14:$L$14,Inputs!$G15:$L15)) -> 0 | AO18: =IF(AO$12=0,0,LOOKUP(AO$12,Inputs!$G$14:$L$14,Inputs!$G15:$L15)) -> 0 | AP18: =IF(AP$12=0,0,LOOKUP(AP$12,Inputs!$G$14:$L$14,Inputs!$G15:$L15)) -> 0 | AQ18: =IF(AQ$12=0,0,LOOKUP(AQ$12,Inputs!$G$14:$L$14,Inputs!$G15:$L15)) -> 0 | AR18: =IF(AR$12=0,0,LOOKUP(AR$12,Inputs!$G$14:$L$14,Inputs!$G15:$L15)) -> 0 | AS18: =IF(AS$12=0,0,LOOKUP(AS$12,Inputs!$G$14:$L$14,Inputs!$G15:$L15)) -> 0 | AT18: =IF(AT$12=0,0,LOOKUP(AT$12,Inputs!$G$14:$L$14,Inputs!$G15:$L15)) -> 0 | AU18: =IF(AU$12=0,0,LOOKUP(AU$12,Inputs!$G$14:$L$14,Inputs!$G15:$L15)) -> 0 | AV18: =IF(AV$12=0,0,LOOKUP(AV$12,Inputs!$G$14:$L$14,Inputs!$G15:$L15)) -> 0 | AW18: =IF(AW$12=0,0,LOOKUP(AW$12,Inputs!$G$14:$L$14,Inputs!$G15:$L15)) -> 0 | AX18: =IF(AX$12=0,0,LOOKUP(AX$12,Inputs!$G$14:$L$14,Inputs!$G15:$L15)) -> 0 | AY18: =IF(AY$12=0,0,LOOKUP(AY$12,Inputs!$G$14:$L$14,Inputs!$G15:$L15)) -> 0 | AZ18: =IF(AZ$12=0,0,LOOKUP(AZ$12,Inputs!$G$14:$L$14,Inputs!$G15:$L15)) -> 0 | BA18: =IF(BA$12=0,0,LOOKUP(BA$12,Inputs!$G$14:$L$14,Inputs!$G15:$L15)) -> 0 | BB18: =IF(BB$12=0,0,LOOKUP(BB$12,Inputs!$G$14:$L$14,Inputs!$G15:$L15)) -> 0 | BC18: =IF(BC$12=0,0,LOOKUP(BC$12,Inputs!$G$14:$L$14,Inputs!$G15:$L15)) -> 0 | BD18: =IF(BD$12=0,0,LOOKUP(BD$12,Inputs!$G$14:$L$14,Inputs!$G15:$L15)) -> 0 | BE18: =IF(BE$12=0,0,LOOKUP(BE$12,Inputs!$G$14:$L$14,Inputs!$G15:$L15)) -> 0 | BF18: =IF(BF$12=0,0,LOOKUP(BF$12,Inputs!$G$14:$L$14,Inputs!$G15:$L15)) -> 0 | BG18: =IF(BG$12=0,0,LOOKUP(BG$12,Inputs!$G$14:$L$14,Inputs!$G15:$L15)) -> 0 | BH18: =IF(BH$12=0,0,LOOKUP(BH$12,Inputs!$G$14:$L$14,Inputs!$G15:$L15)) -> 0 | BI18: =IF(BI$12=0,0,LOOKUP(BI$12,Inputs!$G$14:$L$14,Inputs!$G15:$L15)) -> 0 | BJ18: =IF(BJ$12=0,0,LOOKUP(BJ$12,Inputs!$G$14:$L$14,Inputs!$G15:$L15)) -> 0 | BK18: =IF(BK$12=0,0,LOOKUP(BK$12,Inputs!$G$14:$L$14,Inputs!$G15:$L15)) -> 0 | BL18: =IF(BL$12=0,0,LOOKUP(BL$12,Inputs!$G$14:$L$14,Inputs!$G15:$L15)) -> 0 | BM18: =IF(BM$12=0,0,LOOKUP(BM$12,Inputs!$G$14:$L$14,Inputs!$G15:$L15)) -> 0
C19: =Inputs!$C$16 -> Site Infrastructure | D19: % | I19: =SUM(J19:BM19) -> 1 | J19: =IF(J$12=0,0,LOOKUP(J$12,Inputs!$G$14:$L$14,Inputs!$G16:$L16)) -> 0.25 | K19: =IF(K$12=0,0,LOOKUP(K$12,Inputs!$G$14:$L$14,Inputs!$G16:$L16)) -> 0.25 | L19: =IF(L$12=0,0,LOOKUP(L$12,Inputs!$G$14:$L$14,Inputs!$G16:$L16)) -> 0.25 | M19: =IF(M$12=0,0,LOOKUP(M$12,Inputs!$G$14:$L$14,Inputs!$G16:$L16)) -> 0.25 | N19: =IF(N$12=0,0,LOOKUP(N$12,Inputs!$G$14:$L$14,Inputs!$G16:$L16)) -> 0 | O19: =IF(O$12=0,0,LOOKUP(O$12,Inputs!$G$14:$L$14,Inputs!$G16:$L16)) -> 0 | P19: =IF(P$12=0,0,LOOKUP(P$12,Inputs!$G$14:$L$14,Inputs!$G16:$L16)) -> 0 | Q19: =IF(Q$12=0,0,LOOKUP(Q$12,Inputs!$G$14:$L$14,Inputs!$G16:$L16)) -> 0 | R19: =IF(R$12=0,0,LOOKUP(R$12,Inputs!$G$14:$L$14,Inputs!$G16:$L16)) -> 0 | S19: =IF(S$12=0,0,LOOKUP(S$12,Inputs!$G$14:$L$14,Inputs!$G16:$L16)) -> 0 | T19: =IF(T$12=0,0,LOOKUP(T$12,Inputs!$G$14:$L$14,Inputs!$G16:$L16)) -> 0 | U19: =IF(U$12=0,0,LOOKUP(U$12,Inputs!$G$14:$L$14,Inputs!$G16:$L16)) -> 0 | V19: =IF(V$12=0,0,LOOKUP(V$12,Inputs!$G$14:$L$14,Inputs!$G16:$L16)) -> 0 | W19: =IF(W$12=0,0,LOOKUP(W$12,Inputs!$G$14:$L$14,Inputs!$G16:$L16)) -> 0 | X19: =IF(X$12=0,0,LOOKUP(X$12,Inputs!$G$14:$L$14,Inputs!$G16:$L16)) -> 0 | Y19: =IF(Y$12=0,0,LOOKUP(Y$12,Inputs!$G$14:$L$14,Inputs!$G16:$L16)) -> 0 | Z19: =IF(Z$12=0,0,LOOKUP(Z$12,Inputs!$G$14:$L$14,Inputs!$G16:$L16)) -> 0 | AA19: =IF(AA$12=0,0,LOOKUP(AA$12,Inputs!$G$14:$L$14,Inputs!$G16:$L16)) -> 0 | AB19: =IF(AB$12=0,0,LOOKUP(AB$12,Inputs!$G$14:$L$14,Inputs!$G16:$L16)) -> 0 | AC19: =IF(AC$12=0,0,LOOKUP(AC$12,Inputs!$G$14:$L$14,Inputs!$G16:$L16)) -> 0 | AD19: =IF(AD$12=0,0,LOOKUP(AD$12,Inputs!$G$14:$L$14,Inputs!$G16:$L16)) -> 0 | AE19: =IF(AE$12=0,0,LOOKUP(AE$12,Inputs!$G$14:$L$14,Inputs!$G16:$L16)) -> 0 | AF19: =IF(AF$12=0,0,LOOKUP(AF$12,Inputs!$G$14:$L$14,Inputs!$G16:$L16)) -> 0 | AG19: =IF(AG$12=0,0,LOOKUP(AG$12,Inputs!$G$14:$L$14,Inputs!$G16:$L16)) -> 0 | AH19: =IF(AH$12=0,0,LOOKUP(AH$12,Inputs!$G$14:$L$14,Inputs!$G16:$L16)) -> 0 | AI19: =IF(AI$12=0,0,LOOKUP(AI$12,Inputs!$G$14:$L$14,Inputs!$G16:$L16)) -> 0 | AJ19: =IF(AJ$12=0,0,LOOKUP(AJ$12,Inputs!$G$14:$L$14,Inputs!$G16:$L16)) -> 0 | AK19: =IF(AK$12=0,0,LOOKUP(AK$12,Inputs!$G$14:$L$14,Inputs!$G16:$L16)) -> 0 | AL19: =IF(AL$12=0,0,LOOKUP(AL$12,Inputs!$G$14:$L$14,Inputs!$G16:$L16)) -> 0 | AM19: =IF(AM$12=0,0,LOOKUP(AM$12,Inputs!$G$14:$L$14,Inputs!$G16:$L16)) -> 0 | AN19: =IF(AN$12=0,0,LOOKUP(AN$12,Inputs!$G$14:$L$14,Inputs!$G16:$L16)) -> 0 | AO19: =IF(AO$12=0,0,LOOKUP(AO$12,Inputs!$G$14:$L$14,Inputs!$G16:$L16)) -> 0 | AP19: =IF(AP$12=0,0,LOOKUP(AP$12,Inputs!$G$14:$L$14,Inputs!$G16:$L16)) -> 0 | AQ19: =IF(AQ$12=0,0,LOOKUP(AQ$12,Inputs!$G$14:$L$14,Inputs!$G16:$L16)) -> 0 | AR19: =IF(AR$12=0,0,LOOKUP(AR$12,Inputs!$G$14:$L$14,Inputs!$G16:$L16)) -> 0 | AS19: =IF(AS$12=0,0,LOOKUP(AS$12,Inputs!$G$14:$L$14,Inputs!$G16:$L16)) -> 0 | AT19: =IF(AT$12=0,0,LOOKUP(AT$12,Inputs!$G$14:$L$14,Inputs!$G16:$L16)) -> 0 | AU19: =IF(AU$12=0,0,LOOKUP(AU$12,Inputs!$G$14:$L$14,Inputs!$G16:$L16)) -> 0 | AV19: =IF(AV$12=0,0,LOOKUP(AV$12,Inputs!$G$14:$L$14,Inputs!$G16:$L16)) -> 0 | AW19: =IF(AW$12=0,0,LOOKUP(AW$12,Inputs!$G$14:$L$14,Inputs!$G16:$L16)) -> 0 | AX19: =IF(AX$12=0,0,LOOKUP(AX$12,Inputs!$G$14:$L$14,Inputs!$G16:$L16)) -> 0 | AY19: =IF(AY$12=0,0,LOOKUP(AY$12,Inputs!$G$14:$L$14,Inputs!$G16:$L16)) -> 0 | AZ19: =IF(AZ$12=0,0,LOOKUP(AZ$12,Inputs!$G$14:$L$14,Inputs!$G16:$L16)) -> 0 | BA19: =IF(BA$12=0,0,LOOKUP(BA$12,Inputs!$G$14:$L$14,Inputs!$G16:$L16)) -> 0 | BB19: =IF(BB$12=0,0,LOOKUP(BB$12,Inputs!$G$14:$L$14,Inputs!$G16:$L16)) -> 0 | BC19: =IF(BC$12=0,0,LOOKUP(BC$12,Inputs!$G$14:$L$14,Inputs!$G16:$L16)) -> 0 | BD19: =IF(BD$12=0,0,LOOKUP(BD$12,Inputs!$G$14:$L$14,Inputs!$G16:$L16)) -> 0 | BE19: =IF(BE$12=0,0,LOOKUP(BE$12,Inputs!$G$14:$L$14,Inputs!$G16:$L16)) -> 0 | BF19: =IF(BF$12=0,0,LOOKUP(BF$12,Inputs!$G$14:$L$14,Inputs!$G16:$L16)) -> 0 | BG19: =IF(BG$12=0,0,LOOKUP(BG$12,Inputs!$G$14:$L$14,Inputs!$G16:$L16)) -> 0 | BH19: =IF(BH$12=0,0,LOOKUP(BH$12,Inputs!$G$14:$L$14,Inputs!$G16:$L16)) -> 0 | BI19: =IF(BI$12=0,0,LOOKUP(BI$12,Inputs!$G$14:$L$14,Inputs!$G16:$L16)) -> 0 | BJ19: =IF(BJ$12=0,0,LOOKUP(BJ$12,Inputs!$G$14:$L$14,Inputs!$G16:$L16)) -> 0 | BK19: =IF(BK$12=0,0,LOOKUP(BK$12,Inputs!$G$14:$L$14,Inputs!$G16:$L16)) -> 0 | BL19: =IF(BL$12=0,0,LOOKUP(BL$12,Inputs!$G$14:$L$14,Inputs!$G16:$L16)) -> 0 | BM19: =IF(BM$12=0,0,LOOKUP(BM$12,Inputs!$G$14:$L$14,Inputs!$G16:$L16)) -> 0
C21: Costs
C22: =C18 -> Plant & Equipment | D22: AUD M | E22: =Inputs!E15 -> 30 | I22: =SUM(J22:BM22) -> 30 | J22: =$E22*J18 -> 7.5 | K22: 7.5 | L22: 7.5 | M22: 7.5 | N22: 0 | O22: 0 | P22: 0 | Q22: 0 | R22: 0 | S22: 0 | T22: 0 | U22: 0 | V22: 0 | W22: 0 | X22: 0 | Y22: 0 | Z22: 0 | AA22: 0 | AB22: 0 | AC22: 0 | AD22: 0 | AE22: 0 | AF22: 0 | AG22: 0 | AH22: 0 | AI22: 0 | AJ22: 0 | AK22: 0 | AL22: 0 | AM22: 0 | AN22: 0 | AO22: 0 | AP22: =$E22*AP18 -> 0 | AQ22: 0 | AR22: 0 | AS22: 0 | AT22: 0 | AU22: 0 | AV22: 0 | AW22: 0 | AX22: 0 | AY22: 0 | AZ22: 0 | BA22: 0 | BB22: 0 | BC22: 0 | BD22: 0 | BE22: 0 | BF22: 0 | BG22: 0 | BH22: 0 | BI22: 0 | BJ22: 0 | BK22: 0 | BL22: 0 | BM22: 0
C23: =C19 -> Site Infrastructure | D23: AUD M | E23: =Inputs!E16 -> 30 | I23: =SUM(J23:BM23) -> 30 | J23: =$E23*J19 -> 7.5 | K23: 7.5 | L23: 7.5 | M23: 7.5 | N23: 0 | O23: 0 | P23: 0 | Q23: 0 | R23: 0 | S23: 0 | T23: 0 | U23: 0 | V23: 0 | W23: 0 | X23: 0 | Y23: 0 | Z23: 0 | AA23: 0 | AB23: 0 | AC23: 0 | AD23: 0 | AE23: 0 | AF23: 0 | AG23: 0 | AH23: 0 | AI23: 0 | AJ23: 0 | AK23: 0 | AL23: 0 | AM23: 0 | AN23: 0 | AO23: 0 | AP23: =$E23*AP19 -> 0 | AQ23: 0 | AR23: 0 | AS23: 0 | AT23: 0 | AU23: 0 | AV23: 0 | AW23: 0 | AX23: 0 | AY23: 0 | AZ23: 0 | BA23: 0 | BB23: 0 | BC23: 0 | BD23: 0 | BE23: 0 | BF23: 0 | BG23: 0 | BH23: 0 | BI23: 0 | BJ23: 0 | BK23: 0 | BL23: 0 | BM23: 0
C24: Total | D24: AUD M | I24: =SUM(J24:BM24) -> 60 | J24: =SUM(J22:J23) -> 15 | K24: 15 | L24: 15 | M24: 15 | N24: 0 | O24: 0 | P24: 0 | Q24: 0 | R24: 0 | S24: 0 | T24: 0 | U24: 0 | V24: 0 | W24: 0 | X24: 0 | Y24: 0 | Z24: 0 | AA24: 0 | AB24: 0 | AC24: 0 | AD24: 0 | AE24: 0 | AF24: 0 | AG24: 0 | AH24: 0 | AI24: 0 | AJ24: 0 | AK24: 0 | AL24: 0 | AM24: 0 | AN24: 0 | AO24: 0 | AP24: =SUM(AP22:AP23) -> 0 | AQ24: 0 | AR24: 0 | AS24: 0 | AT24: 0 | AU24: 0 | AV24: 0 | AW24: 0 | AX24: 0 | AY24: 0 | AZ24: 0 | BA24: 0 | BB24: 0 | BC24: 0 | BD24: 0 | BE24: 0 | BF24: 0 | BG24: 0 | BH24: 0 | BI24: 0 | BJ24: 0 | BK24: 0 | BL24: 0 | BM24: 0
C26: Contingency
C27: =C22 -> Plant & Equipment | D27: AUD M | E27: =Inputs!E20 -> 0 | I27: =SUM(J27:BM27) -> 0 | J27: =J22*$E$27 -> 0 | K27: 0 | L27: 0 | M27: 0 | N27: 0 | O27: 0 | P27: 0 | Q27: 0 | R27: 0 | S27: 0 | T27: 0 | U27: 0 | V27: 0 | W27: 0 | X27: 0 | Y27: 0 | Z27: 0 | AA27: 0 | AB27: 0 | AC27: 0 | AD27: 0 | AE27: 0 | AF27: 0 | AG27: 0 | AH27: 0 | AI27: 0 | AJ27: 0 | AK27: 0 | AL27: 0 | AM27: 0 | AN27: 0 | AO27: 0 | AP27: =AP22*$E$27 -> 0 | AQ27: 0 | AR27: 0 | AS27: 0 | AT27: 0 | AU27: 0 | AV27: 0 | AW27: 0 | AX27: 0 | AY27: 0 | AZ27: 0 | BA27: 0 | BB27: 0 | BC27: 0 | BD27: 0 | BE27: 0 | BF27: 0 | BG27: 0 | BH27: 0 | BI27: 0 | BJ27: 0 | BK27: 0 | BL27: 0 | BM27: 0
C28: =C23 -> Site Infrastructure | D28: AUD M | I28: =SUM(J28:BM28) -> 0 | J28: =J23*$E$27 -> 0 | K28: 0 | L28: 0 | M28: 0 | N28: 0 | O28: 0 | P28: 0 | Q28: 0 | R28: 0 | S28: 0 | T28: 0 | U28: 0 | V28: 0 | W28: 0 | X28: 0 | Y28: 0 | Z28: 0 | AA28: 0 | AB28: 0 | AC28: 0 | AD28: 0 | AE28: 0 | AF28: 0 | AG28: 0 | AH28: 0 | AI28: 0 | AJ28: 0 | AK28: 0 | AL28: 0 | AM28: 0 | AN28: 0 | AO28: 0 | AP28: =AP23*$E$27 -> 0 | AQ28: 0 | AR28: 0 | AS28: 0 | AT28: 0 | AU28: 0 | AV28: 0 | AW28: 0 | AX28: 0 | AY28: 0 | AZ28: 0 | BA28: 0 | BB28: 0 | BC28: 0 | BD28: 0 | BE28: 0 | BF28: 0 | BG28: 0 | BH28: 0 | BI28: 0 | BJ28: 0 | BK28: 0 | BL28: 0 | BM28: 0
C29: =C24 -> Total | D29: AUD M | I29: =SUM(J29:BM29) -> 0 | J29: =SUM(J27:J28) -> 0 | K29: 0 | L29: 0 | M29: 0 | N29: 0 | O29: 0 | P29: 0 | Q29: 0 | R29: 0 | S29: 0 | T29: 0 | U29: 0 | V29: 0 | W29: 0 | X29: 0 | Y29: 0 | Z29: 0 | AA29: 0 | AB29: 0 | AC29: 0 | AD29: 0 | AE29: 0 | AF29: 0 | AG29: 0 | AH29: 0 | AI29: 0 | AJ29: 0 | AK29: 0 | AL29: 0 | AM29: 0 | AN29: 0 | AO29: 0 | AP29: =SUM(AP27:AP28) -> 0 | AQ29: 0 | AR29: 0 | AS29: 0 | AT29: 0 | AU29: 0 | AV29: 0 | AW29: 0 | AX29: 0 | AY29: 0 | AZ29: 0 | BA29: 0 | BB29: 0 | BC29: 0 | BD29: 0 | BE29: 0 | BF29: 0 | BG29: 0 | BH29: 0 | BI29: 0 | BJ29: 0 | BK29: 0 | BL29: 0 | BM29: 0
C31: Costs incl contingency
B32: =Inputs!B15 -> 1 | C32: =C27 -> Plant & Equipment | D32: AUD M | I32: =SUM(J32:BM32) -> 30 | J32: =J22+J27 -> 7.5 | K32: 7.5 | L32: 7.5 | M32: 7.5 | N32: 0 | O32: 0 | P32: 0 | Q32: 0 | R32: 0 | S32: 0 | T32: 0 | U32: 0 | V32: 0 | W32: 0 | X32: 0 | Y32: 0 | Z32: 0 | AA32: 0 | AB32: 0 | AC32: 0 | AD32: 0 | AE32: 0 | AF32: 0 | AG32: 0 | AH32: 0 | AI32: 0 | AJ32: 0 | AK32: 0 | AL32: 0 | AM32: 0 | AN32: 0 | AO32: 0 | AP32: =AP22+AP27 -> 0 | AQ32: 0 | AR32: 0 | AS32: 0 | AT32: 0 | AU32: 0 | AV32: 0 | AW32: 0 | AX32: 0 | AY32: 0 | AZ32: 0 | BA32: 0 | BB32: 0 | BC32: 0 | BD32: 0 | BE32: 0 | BF32: 0 | BG32: 0 | BH32: 0 | BI32: 0 | BJ32: 0 | BK32: 0 | BL32: 0 | BM32: 0
B33: =Inputs!B16 -> 1 | C33: =C28 -> Site Infrastructure | D33: AUD M | I33: =SUM(J33:BM33) -> 30 | J33: =J23+J28 -> 7.5 | K33: 7.5 | L33: 7.5 | M33: 7.5 | N33: 0 | O33: 0 | P33: 0 | Q33: 0 | R33: 0 | S33: 0 | T33: 0 | U33: 0 | V33: 0 | W33: 0 | X33: 0 | Y33: 0 | Z33: 0 | AA33: 0 | AB33: 0 | AC33: 0 | AD33: 0 | AE33: 0 | AF33: 0 | AG33: 0 | AH33: 0 | AI33: 0 | AJ33: 0 | AK33: 0 | AL33: 0 | AM33: 0 | AN33: 0 | AO33: 0 | AP33: =AP23+AP28 -> 0 | AQ33: 0 | AR33: 0 | AS33: 0 | AT33: 0 | AU33: 0 | AV33: 0 | AW33: 0 | AX33: 0 | AY33: 0 | AZ33: 0 | BA33: 0 | BB33: 0 | BC33: 0 | BD33: 0 | BE33: 0 | BF33: 0 | BG33: 0 | BH33: 0 | BI33: 0 | BJ33: 0 | BK33: 0 | BL33: 0 | BM33: 0
C34: =C29 -> Total | D34: AUD M | I34: =SUM(J34:BM34) -> 60 | J34: =SUM(J32:J33) -> 15 | K34: 15 | L34: 15 | M34: 15 | N34: 0 | O34: 0 | P34: 0 | Q34: 0 | R34: 0 | S34: 0 | T34: 0 | U34: 0 | V34: 0 | W34: 0 | X34: 0 | Y34: 0 | Z34: 0 | AA34: 0 | AB34: 0 | AC34: 0 | AD34: 0 | AE34: 0 | AF34: 0 | AG34: 0 | AH34: 0 | AI34: 0 | AJ34: 0 | AK34: 0 | AL34: 0 | AM34: 0 | AN34: 0 | AO34: 0 | AP34: =SUM(AP32:AP33) -> 0 | AQ34: 0 | AR34: 0 | AS34: 0 | AT34: 0 | AU34: 0 | AV34: 0 | AW34: 0 | AX34: 0 | AY34: 0 | AZ34: 0 | BA34: 0 | BB34: 0 | BC34: 0 | BD34: 0 | BE34: 0 | BF34: 0 | BG34: 0 | BH34: 0 | BI34: 0 | BJ34: 0 | BK34: 0 | BL34: 0 | BM34: 0
C36: Funding
C37: Sources and uses
C38: Uses
C39: Construction/Development costs | D39: AUD M | I39: =SUM(J39:BM39) -> 60 | J39: =J34 -> 15 | K39: 15 | L39: 15 | M39: 15 | N39: 0 | O39: 0 | P39: 0 | Q39: 0 | R39: 0 | S39: 0 | T39: 0 | U39: 0 | V39: 0 | W39: 0 | X39: 0 | Y39: 0 | Z39: 0 | AA39: 0 | AB39: 0 | AC39: 0 | AD39: 0 | AE39: 0 | AF39: 0 | AG39: 0 | AH39: 0 | AI39: 0 | AJ39: 0 | AK39: 0 | AL39: 0 | AM39: 0 | AN39: 0 | AO39: 0 | AP39: =AP34 -> 0 | AQ39: 0 | AR39: 0 | AS39: 0 | AT39: 0 | AU39: 0 | AV39: 0 | AW39: 0 | AX39: 0 | AY39: 0 | AZ39: 0 | BA39: 0 | BB39: 0 | BC39: 0 | BD39: 0 | BE39: 0 | BF39: 0 | BG39: 0 | BH39: 0 | BI39: 0 | BJ39: 0 | BK39: 0 | BL39: 0 | BM39: 0 | BO39: =#REF! ->  | BP39: =#REF! ->  | BQ39: =#REF! ->  | BR39: =#REF! ->  | BS39: =#REF! ->  | BT39: =#REF! ->  | BU39: =#REF! -> 
C40: Working Capital during dev | D40: AUD M | I40: =SUM(J40:BN40) -> 0 | J40: =IF(J7=1,0,-'Cashflow Waterfall'!I77) -> 0 | K40: =IF(K7=1,0,-'Cashflow Waterfall'!J77) -> 0 | L40: =IF(L7=1,0,-'Cashflow Waterfall'!K77) -> 0 | M40: =IF(M7=1,0,-'Cashflow Waterfall'!L77) -> 0 | N40: =IF(N7=1,0,-'Cashflow Waterfall'!M77) -> 0 | O40: =IF(O7=1,0,-'Cashflow Waterfall'!N77) -> 0 | P40: =IF(P7=1,0,-'Cashflow Waterfall'!O77) -> 0 | Q40: =IF(Q7=1,0,-'Cashflow Waterfall'!P77) -> 0 | R40: =IF(R7=1,0,-'Cashflow Waterfall'!Q77) -> 0 | S40: =IF(S7=1,0,-'Cashflow Waterfall'!R77) -> 0 | T40: =IF(T7=1,0,-'Cashflow Waterfall'!S77) -> 0 | U40: =IF(U7=1,0,-'Cashflow Waterfall'!T77) -> 0 | V40: =IF(V7=1,0,-'Cashflow Waterfall'!U77) -> 0 | W40: =IF(W7=1,0,-'Cashflow Waterfall'!V77) -> 0 | X40: =IF(X7=1,0,-'Cashflow Waterfall'!W77) -> 0 | Y40: =IF(Y7=1,0,-'Cashflow Waterfall'!X77) -> 0 | Z40: =IF(Z7=1,0,-'Cashflow Waterfall'!Y77) -> 0 | AA40: =IF(AA7=1,0,-'Cashflow Waterfall'!Z77) -> 0 | AB40: =IF(AB7=1,0,-'Cashflow Waterfall'!AA77) -> 0 | AC40: =IF(AC7=1,0,-'Cashflow Waterfall'!AB77) -> 0 | AD40: =IF(AD7=1,0,-'Cashflow Waterfall'!AC77) -> 0 | AE40: =IF(AE7=1,0,-'Cashflow Waterfall'!AD77) -> 0 | AF40: =IF(AF7=1,0,-'Cashflow Waterfall'!AE77) -> 0 | AG40: =IF(AG7=1,0,-'Cashflow Waterfall'!AF77) -> 0 | AH40: =IF(AH7=1,0,-'Cashflow Waterfall'!AG77) -> 0 | AI40: =IF(AI7=1,0,-'Cashflow Waterfall'!AH77) -> 0 | AJ40: =IF(AJ7=1,0,-'Cashflow Waterfall'!AI77) -> 0 | AK40: =IF(AK7=1,0,-'Cashflow Waterfall'!AJ77) -> 0 | AL40: =IF(AL7=1,0,-'Cashflow Waterfall'!AK77) -> 0 | AM40: =IF(AM7=1,0,-'Cashflow Waterfall'!AL77) -> 0 | AN40: =IF(AN7=1,0,-'Cashflow Waterfall'!AM77) -> 0 | AO40: =IF(AO7=1,0,-'Cashflow Waterfall'!AN77) -> 0 | AP40: =IF(AP7=1,0,-'Cashflow Waterfall'!AO77) -> 0 | AQ40: =IF(AQ7=1,0,-'Cashflow Waterfall'!AP77) -> 0 | AR40: =IF(AR7=1,0,-'Cashflow Waterfall'!AQ77) -> 0 | AS40: =IF(AS7=1,0,-'Cashflow Waterfall'!AR77) -> 0 | AT40: =IF(AT7=1,0,-'Cashflow Waterfall'!AS77) -> 0 | AU40: =IF(AU7=1,0,-'Cashflow Waterfall'!AT77) -> 0 | AV40: =IF(AV7=1,0,-'Cashflow Waterfall'!AU77) -> 0 | AW40: =IF(AW7=1,0,-'Cashflow Waterfall'!AV77) -> 0 | AX40: =IF(AX7=1,0,-'Cashflow Waterfall'!AW77) -> 0 | AY40: =IF(AY7=1,0,-'Cashflow Waterfall'!AX77) -> 0 | AZ40: =IF(AZ7=1,0,-'Cashflow Waterfall'!AY77) -> 0 | BA40: =IF(BA7=1,0,-'Cashflow Waterfall'!AZ77) -> 0 | BB40: =IF(BB7=1,0,-'Cashflow Waterfall'!BA77) -> 0 | BC40: =IF(BC7=1,0,-'Cashflow Waterfall'!BB77) -> 0 | BD40: =IF(BD7=1,0,-'Cashflow Waterfall'!BC77) -> 0 | BE40: =IF(BE7=1,0,-'Cashflow Waterfall'!BD77) -> 0 | BF40: =IF(BF7=1,0,-'Cashflow Waterfall'!BE77) -> 0 | BG40: =IF(BG7=1,0,-'Cashflow Waterfall'!BF77) -> 0 | BH40: =IF(BH7=1,0,-'Cashflow Waterfall'!BG77) -> 0 | BI40: =IF(BI7=1,0,-'Cashflow Waterfall'!BH77) -> 0 | BJ40: =IF(BJ7=1,0,-'Cashflow Waterfall'!BI77) -> 0 | BK40: =IF(BK7=1,0,-'Cashflow Waterfall'!BJ77) -> 0 | BL40: =IF(BL7=1,0,-'Cashflow Waterfall'!BK77) -> 0 | BM40: =IF(BM7=1,0,-'Cashflow Waterfall'!BL77) -> 0 | BN40: =IF(BN7=1,0,-'Cashflow Waterfall'!BM77) -> 0
C41: Total | D41: AUD M | I41: =SUM(J41:BM41) -> 60 | J41: =SUM(J39:J40) -> 15 | K41: =SUM(K39:K40) -> 15 | L41: 15 | M41: 15 | N41: 0 | O41: 0 | P41: 0 | Q41: 0 | R41: 0 | S41: 0 | T41: 0 | U41: 0 | V41: 0 | W41: 0 | X41: 0 | Y41: 0 | Z41: 0 | AA41: 0 | AB41: 0 | AC41: 0 | AD41: 0 | AE41: 0 | AF41: 0 | AG41: 0 | AH41: 0 | AI41: 0 | AJ41: 0 | AK41: 0 | AL41: 0 | AM41: 0 | AN41: 0 | AO41: 0 | AP41: 0 | AQ41: 0 | AR41: 0 | AS41: 0 | AT41: 0 | AU41: 0 | AV41: 0 | AW41: 0 | AX41: 0 | AY41: 0 | AZ41: 0 | BA41: 0 | BB41: 0 | BC41: 0 | BD41: 0 | BE41: 0 | BF41: 0 | BG41: 0 | BH41: 0 | BI41: 0 | BJ41: 0 | BK41: 0 | BL41: 0 | BM41: 0 | BO41: =SUM(BO39:BO39) -> 
C43: Sources
C44: Initial equity | D44: AUD M | I44: =-SUM(J44:BM44) -> 0 | J44: =-MIN(J41,J59) -> 0 | K44: =-MIN(K41,K59) -> 0 | L44: 0 | M44: 0 | N44: 0 | O44: 0 | P44: 0 | Q44: 0 | R44: 0 | S44: 0 | T44: 0 | U44: 0 | V44: 0 | W44: 0 | X44: 0 | Y44: 0 | Z44: 0 | AA44: 0 | AB44: 0 | AC44: 0 | AD44: 0 | AE44: 0 | AF44: 0 | AG44: 0 | AH44: 0 | AI44: 0 | AJ44: 0 | AK44: 0 | AL44: 0 | AM44: 0 | AN44: 0 | AO44: 0 | AP44: 0 | AQ44: 0 | AR44: 0 | AS44: 0 | AT44: 0 | AU44: 0 | AV44: 0 | AW44: 0 | AX44: 0 | AY44: 0 | AZ44: 0 | BA44: 0 | BB44: 0 | BC44: 0 | BD44: 0 | BE44: 0 | BF44: 0 | BG44: 0 | BH44: 0 | BI44: 0 | BJ44: 0 | BK44: 0 | BL44: 0 | BM44: 0 | BO44: =-MIN(BO41,BO59) -> 
C45: Funding required after equity | D45: AUD M | I45: =SUM(J45:BM45) -> 60 | J45: =J41+J44 -> 15 | K45: =K41+K44 -> 15 | L45: 15 | M45: 15 | N45: 0 | O45: 0 | P45: 0 | Q45: 0 | R45: 0 | S45: 0 | T45: 0 | U45: 0 | V45: 0 | W45: 0 | X45: 0 | Y45: 0 | Z45: 0 | AA45: 0 | AB45: 0 | AC45: 0 | AD45: 0 | AE45: 0 | AF45: 0 | AG45: 0 | AH45: 0 | AI45: 0 | AJ45: 0 | AK45: 0 | AL45: 0 | AM45: 0 | AN45: 0 | AO45: 0 | AP45: 0 | AQ45: 0 | AR45: 0 | AS45: 0 | AT45: 0 | AU45: 0 | AV45: 0 | AW45: 0 | AX45: 0 | AY45: 0 | AZ45: 0 | BA45: 0 | BB45: 0 | BC45: 0 | BD45: 0 | BE45: 0 | BF45: 0 | BG45: 0 | BH45: 0 | BI45: 0 | BJ45: 0 | BK45: 0 | BL45: 0 | BM45: 0 | BO45: =BO41+BO44 -> 
C47: Senior debt | D47: AUD M | I47: =SUM(J47:BM47) -> 0 | J47: 0 | K47: 0 | L47: 0 | M47: 0 | N47: 0 | O47: 0 | P47: 0 | Q47: 0 | R47: 0 | S47: 0 | T47: 0 | U47: 0 | V47: 0 | W47: 0 | X47: 0 | Y47: 0 | Z47: 0 | AA47: 0 | AB47: 0 | AC47: 0 | AD47: 0 | AE47: 0 | AF47: 0 | AG47: 0 | AH47: 0 | AI47: 0 | AJ47: 0 | AK47: 0 | AL47: 0 | AM47: 0 | AN47: 0 | AO47: 0 | AP47: 0 | AQ47: 0 | AR47: 0 | AS47: 0 | AT47: 0 | AU47: 0 | AV47: 0 | AW47: 0 | AX47: 0 | AY47: 0 | AZ47: 0 | BA47: 0 | BB47: 0 | BC47: 0 | BD47: 0 | BE47: 0 | BF47: 0 | BG47: 0 | BH47: 0 | BI47: 0 | BJ47: 0 | BK47: 0 | BL47: 0 | BM47: 0 | BO47: =-MIN(BO45,#REF!) ->  | BP47: =-MIN(BP45,#REF!) ->  | BQ47: =-MIN(BQ45,#REF!) ->  | BR47: =-MIN(BR45,#REF!) ->  | BS47: =-MIN(BS45,#REF!) ->  | BT47: =-MIN(BT45,#REF!) ->  | BU47: =-MIN(BU45,#REF!) -> 
C48: Funding required after debt | D48: AUD M | I48: =SUM(J48:BM48) -> 60 | J48: =J45+J47 -> 15 | K48: =K45+K47 -> 15 | L48: 15 | M48: 15 | N48: 0 | O48: 0 | P48: 0 | Q48: 0 | R48: 0 | S48: 0 | T48: 0 | U48: 0 | V48: 0 | W48: 0 | X48: 0 | Y48: 0 | Z48: 0 | AA48: 0 | AB48: 0 | AC48: 0 | AD48: 0 | AE48: 0 | AF48: 0 | AG48: 0 | AH48: 0 | AI48: 0 | AJ48: 0 | AK48: 0 | AL48: 0 | AM48: 0 | AN48: 0 | AO48: 0 | AP48: 0 | AQ48: 0 | AR48: 0 | AS48: 0 | AT48: 0 | AU48: 0 | AV48: 0 | AW48: 0 | AX48: 0 | AY48: 0 | AZ48: 0 | BA48: 0 | BB48: 0 | BC48: 0 | BD48: 0 | BE48: 0 | BF48: 0 | BG48: 0 | BH48: 0 | BI48: 0 | BJ48: 0 | BK48: 0 | BL48: 0 | BM48: 0 | BO48: =BO45+BO47 -> 
C50: Additional equity | D50: AUD M | I50: =SUM(J50:BM50) -> -60 | J50: =-J48 -> -15 | K50: =-K48 -> -15 | L50: =-L48 -> -15 | M50: -15 | N50: 0 | O50: 0 | P50: 0 | Q50: 0 | R50: 0 | S50: 0 | T50: 0 | U50: 0 | V50: 0 | W50: 0 | X50: 0 | Y50: 0 | Z50: 0 | AA50: 0 | AB50: 0 | AC50: 0 | AD50: 0 | AE50: 0 | AF50: 0 | AG50: 0 | AH50: 0 | AI50: 0 | AJ50: 0 | AK50: 0 | AL50: 0 | AM50: 0 | AN50: 0 | AO50: 0 | AP50: 0 | AQ50: 0 | AR50: 0 | AS50: 0 | AT50: 0 | AU50: 0 | AV50: 0 | AW50: 0 | AX50: 0 | AY50: 0 | AZ50: 0 | BA50: 0 | BB50: 0 | BC50: 0 | BD50: 0 | BE50: 0 | BF50: 0 | BG50: 0 | BH50: 0 | BI50: 0 | BJ50: 0 | BK50: 0 | BL50: 0 | BM50: 0 | BO50: =-BO48 -> 
C51: Shortfall | D51: AUD M | I51: =SUM(J51:BM51) -> 0 | J51: =J48+J50 -> 0 | K51: =K48+K50 -> 0 | L51: 0 | M51: 0 | N51: 0 | O51: 0 | P51: 0 | Q51: 0 | R51: 0 | S51: 0 | T51: 0 | U51: 0 | V51: 0 | W51: 0 | X51: 0 | Y51: 0 | Z51: 0 | AA51: 0 | AB51: 0 | AC51: 0 | AD51: 0 | AE51: 0 | AF51: 0 | AG51: 0 | AH51: 0 | AI51: 0 | AJ51: 0 | AK51: 0 | AL51: 0 | AM51: 0 | AN51: 0 | AO51: 0 | AP51: 0 | AQ51: 0 | AR51: 0 | AS51: 0 | AT51: 0 | AU51: 0 | AV51: 0 | AW51: 0 | AX51: =AX48+AX50 -> 0 | AY51: 0 | AZ51: 0 | BA51: 0 | BB51: 0 | BC51: 0 | BD51: 0 | BE51: 0 | BF51: 0 | BG51: 0 | BH51: 0 | BI51: 0 | BJ51: 0 | BK51: 0 | BL51: 0 | BM51: 0 | BO51: =BO48+BO50 -> 
C53: Initial equity
C54: Account
C55: Balance b/f | D55: AUD M | J55: =I57 -> 0 | K55: =J57 -> 0 | L55: 0 | M55: 0 | N55: 0 | O55: 0 | P55: 0 | Q55: 0 | R55: 0 | S55: 0 | T55: 0 | U55: 0 | V55: 0 | W55: 0 | X55: 0 | Y55: 0 | Z55: 0 | AA55: 0 | AB55: 0 | AC55: 0 | AD55: 0 | AE55: 0 | AF55: 0 | AG55: 0 | AH55: 0 | AI55: 0 | AJ55: 0 | AK55: 0 | AL55: 0 | AM55: 0 | AN55: 0 | AO55: 0 | AP55: 0 | AQ55: 0 | AR55: 0 | AS55: 0 | AT55: 0 | AU55: 0 | AV55: 0 | AW55: 0 | AX55: 0 | AY55: 0 | AZ55: 0 | BA55: 0 | BB55: 0 | BC55: 0 | BD55: 0 | BE55: 0 | BF55: 0 | BG55: 0 | BH55: 0 | BI55: 0 | BJ55: 0 | BK55: 0 | BL55: 0 | BM55: 0 | BO55: =BN57 -> 0
C56: Drawdowns | D56: AUD M | I56: =SUM(J56:BM56) -> 0 | J56: =-J44 -> 0 | K56: =-K44 -> 0 | L56: =-L44 -> 0 | M56: 0 | N56: 0 | O56: 0 | P56: 0 | Q56: 0 | R56: 0 | S56: 0 | T56: 0 | U56: 0 | V56: 0 | W56: 0 | X56: 0 | Y56: 0 | Z56: 0 | AA56: 0 | AB56: 0 | AC56: 0 | AD56: 0 | AE56: 0 | AF56: 0 | AG56: 0 | AH56: 0 | AI56: 0 | AJ56: 0 | AK56: 0 | AL56: 0 | AM56: 0 | AN56: 0 | AO56: 0 | AP56: 0 | AQ56: 0 | AR56: 0 | AS56: 0 | AT56: 0 | AU56: 0 | AV56: 0 | AW56: 0 | AX56: 0 | AY56: 0 | AZ56: 0 | BA56: 0 | BB56: 0 | BC56: 0 | BD56: 0 | BE56: 0 | BF56: 0 | BG56: 0 | BH56: 0 | BI56: 0 | BJ56: 0 | BK56: 0 | BL56: 0 | BM56: 0 | BO56: =-BO44 -> 
C57: Balance c/f | D57: AUD M | J57: =SUM(J55,J56) -> 0 | K57: =SUM(K55,K56) -> 0 | L57: 0 | M57: 0 | N57: 0 | O57: 0 | P57: 0 | Q57: 0 | R57: 0 | S57: 0 | T57: 0 | U57: 0 | V57: 0 | W57: 0 | X57: 0 | Y57: 0 | Z57: 0 | AA57: 0 | AB57: 0 | AC57: 0 | AD57: 0 | AE57: 0 | AF57: 0 | AG57: 0 | AH57: 0 | AI57: 0 | AJ57: 0 | AK57: 0 | AL57: 0 | AM57: 0 | AN57: 0 | AO57: 0 | AP57: 0 | AQ57: 0 | AR57: 0 | AS57: 0 | AT57: 0 | AU57: 0 | AV57: 0 | AW57: 0 | AX57: 0 | AY57: 0 | AZ57: 0 | BA57: 0 | BB57: 0 | BC57: 0 | BD57: 0 | BE57: 0 | BF57: 0 | BG57: 0 | BH57: 0 | BI57: 0 | BJ57: 0 | BK57: 0 | BL57: 0 | BM57: 0 | BO57: =SUM(BO55:BO56) -> 
C59: Undrawn amount @ start of period | D59: AUD M | E59: 0 | J59: =($E59-J55)*J6 -> 0 | K59: 0 | L59: 0 | M59: 0 | N59: 0 | O59: 0 | P59: 0 | Q59: 0 | R59: 0 | S59: 0 | T59: 0 | U59: 0 | V59: 0 | W59: 0 | X59: 0 | Y59: 0 | Z59: 0 | AA59: 0 | AB59: 0 | AC59: 0 | AD59: 0 | AE59: 0 | AF59: 0 | AG59: 0 | AH59: 0 | AI59: 0 | AJ59: 0 | AK59: 0 | AL59: 0 | AM59: 0 | AN59: 0 | AO59: 0 | AP59: =($E59-AP55)*AP6 -> 0 | AQ59: 0 | AR59: 0 | AS59: 0 | AT59: 0 | AU59: 0 | AV59: 0 | AW59: 0 | AX59: 0 | AY59: 0 | AZ59: 0 | BA59: 0 | BB59: 0 | BC59: 0 | BD59: 0 | BE59: 0 | BF59: 0 | BG59: 0 | BH59: 0 | BI59: 0 | BJ59: 0 | BK59: 0 | BL59: 0 | BM59: 0 | BO59: =($E$56-BO55)*BO12 -> 0
C61: Senior debt
C62: * King Island currently has no servicable debt
C64: Additional equity
C65: Account
C66: Balance b/f | D66: AUD M | J66: =I68 -> 0 | K66: =J68 -> 15 | L66: 30 | M66: 45 | N66: 60 | O66: 60 | P66: 60 | Q66: 60 | R66: 60 | S66: 60 | T66: 60 | U66: 60 | V66: 60 | W66: 60 | X66: 60 | Y66: 60 | Z66: 60 | AA66: 60 | AB66: 60 | AC66: 60 | AD66: 60 | AE66: 60 | AF66: 60 | AG66: 60 | AH66: 60 | AI66: 60 | AJ66: 60 | AK66: =AJ68 -> 60 | AL66: 60 | AM66: 60 | AN66: 60 | AO66: 60 | AP66: 60 | AQ66: 60 | AR66: 60 | AS66: 60 | AT66: 60 | AU66: 60 | AV66: 60 | AW66: 60 | AX66: 60 | AY66: 60 | AZ66: 60 | BA66: 60 | BB66: 60 | BC66: 60 | BD66: 60 | BE66: 60 | BF66: 60 | BG66: 60 | BH66: 60 | BI66: 60 | BJ66: 60 | BK66: 60 | BL66: 60 | BM66: 60 | BO66: =BN68 -> 0
C67: Drawdowns | D67: AUD M | I67: =SUM(J67:BM67) -> 60 | J67: =-J50 -> 15 | K67: =-K50 -> 15 | L67: 15 | M67: 15 | N67: 0 | O67: 0 | P67: 0 | Q67: 0 | R67: 0 | S67: 0 | T67: 0 | U67: 0 | V67: 0 | W67: 0 | X67: 0 | Y67: 0 | Z67: 0 | AA67: 0 | AB67: 0 | AC67: 0 | AD67: 0 | AE67: 0 | AF67: 0 | AG67: 0 | AH67: 0 | AI67: 0 | AJ67: 0 | AK67: 0 | AL67: 0 | AM67: 0 | AN67: 0 | AO67: 0 | AP67: =-AP50 -> 0 | AQ67: 0 | AR67: 0 | AS67: 0 | AT67: 0 | AU67: 0 | AV67: 0 | AW67: 0 | AX67: 0 | AY67: 0 | AZ67: 0 | BA67: 0 | BB67: 0 | BC67: 0 | BD67: 0 | BE67: 0 | BF67: 0 | BG67: 0 | BH67: 0 | BI67: 0 | BJ67: 0 | BK67: 0 | BL67: 0 | BM67: 0 | BO67: =-#REF! ->  | BP67: =-#REF! ->  | BQ67: =-#REF! ->  | BR67: =-#REF! ->  | BS67: =-#REF! ->  | BT67: =-#REF! ->  | BU67: =-#REF! -> 
C68: Balance c/f | D68: AUD M | J68: =SUM(J66,J67) -> 15 | K68: =SUM(K66,K67) -> 30 | L68: 45 | M68: 60 | N68: 60 | O68: 60 | P68: 60 | Q68: 60 | R68: 60 | S68: 60 | T68: 60 | U68: 60 | V68: 60 | W68: 60 | X68: 60 | Y68: 60 | Z68: 60 | AA68: 60 | AB68: 60 | AC68: 60 | AD68: 60 | AE68: 60 | AF68: 60 | AG68: 60 | AH68: 60 | AI68: 60 | AJ68: 60 | AK68: 60 | AL68: 60 | AM68: 60 | AN68: 60 | AO68: 60 | AP68: 60 | AQ68: 60 | AR68: 60 | AS68: 60 | AT68: 60 | AU68: 60 | AV68: 60 | AW68: 60 | AX68: 60 | AY68: 60 | AZ68: 60 | BA68: 60 | BB68: 60 | BC68: 60 | BD68: 60 | BE68: 60 | BF68: 60 | BG68: 60 | BH68: 60 | BI68: 60 | BJ68: 60 | BK68: 60 | BL68: 60 | BM68: 60 | BO68: =SUM(BO66:BO67) -> 
C70: Asset summary
B71: 1 | C71: Construction costs | D71: AUD M | I71: =SUM(J71:BU71) -> 60 | J71: =SUMIF($B$32:$B$39,$B71,J$32:J$39) -> 15 | K71: 15 | L71: 15 | M71: 15 | N71: 0 | O71: 0 | P71: 0 | Q71: 0 | R71: 0 | S71: 0 | T71: =SUMIF($B$32:$B$39,$B71,T$32:T$39) -> 0 | U71: 0 | V71: 0 | W71: 0 | X71: 0 | Y71: 0 | Z71: 0 | AA71: 0 | AB71: 0 | AC71: 0 | AD71: =SUMIF($B$32:$B$39,$B71,AD$32:AD$39) -> 0 | AE71: 0 | AF71: 0 | AG71: 0 | AH71: 0 | AI71: 0 | AJ71: 0 | AK71: 0 | AL71: 0 | AM71: 0 | AN71: =SUMIF($B$32:$B$39,$B71,AN$32:AN$39) -> 0 | AO71: 0 | AP71: 0 | AQ71: 0 | AR71: 0 | AS71: 0 | AT71: 0 | AU71: 0 | AV71: 0 | AW71: 0 | AX71: =SUMIF($B$32:$B$39,$B71,AX$32:AX$39) -> 0 | AY71: 0 | AZ71: 0 | BA71: 0 | BB71: 0 | BC71: 0 | BD71: 0 | BE71: 0 | BF71: 0 | BG71: 0 | BH71: =SUMIF($B$32:$B$39,$B71,BH$32:BH$39) -> 0 | BI71: 0 | BJ71: 0 | BK71: 0 | BL71: 0 | BM71: 0 | BO71: =SUMIF( $B$29:$B$38, $B71, BO$29:BO$38 ) -> 0 | BP71: 0 | BQ71: 0 | BR71: 0 | BS71: 0 | BT71: 0 | BU71: 0
B72: 2 | C72: Interest during construction | D72: AUD M | I72: =SUM(J72:BU72) -> 0 | J72: 0 | K72: 0 | L72: 0 | M72: 0 | N72: 0 | O72: 0 | P72: 0 | Q72: 0 | R72: 0 | S72: 0 | T72: 0 | U72: 0 | V72: 0 | W72: 0 | X72: 0 | Y72: 0 | Z72: 0 | AA72: 0 | AB72: 0 | AC72: 0 | AD72: 0 | AE72: 0 | AF72: 0 | AG72: 0 | AH72: 0 | AI72: 0 | AJ72: 0 | AK72: 0 | AL72: 0 | AM72: 0 | AN72: 0 | AO72: 0 | AP72: 0 | AQ72: 0 | AR72: 0 | AS72: 0 | AT72: 0 | AU72: 0 | AV72: 0 | AW72: 0 | AX72: 0 | AY72: 0 | AZ72: 0 | BA72: 0 | BB72: 0 | BC72: 0 | BD72: 0 | BE72: 0 | BF72: 0 | BG72: 0 | BH72: 0 | BI72: 0 | BJ72: 0 | BK72: 0 | BL72: 0 | BM72: 0 | BO72: 0 | BP72: 0 | BQ72: 0 | BR72: 0 | BS72: 0 | BT72: 0 | BU72: 0
B73: 3 | C73: Financing fees | D73: AUD M | I73: =SUM(J73:BU73) -> 0 | J73: 0 | K73: 0 | L73: 0 | M73: 0 | N73: 0 | O73: 0 | P73: 0 | Q73: 0 | R73: 0 | S73: 0 | T73: 0 | U73: 0 | V73: 0 | W73: 0 | X73: 0 | Y73: 0 | Z73: 0 | AA73: 0 | AB73: 0 | AC73: 0 | AD73: 0 | AE73: 0 | AF73: 0 | AG73: 0 | AH73: 0 | AI73: 0 | AJ73: 0 | AK73: 0 | AL73: 0 | AM73: 0 | AN73: 0 | AO73: 0 | AP73: 0 | AQ73: 0 | AR73: 0 | AS73: 0 | AT73: 0 | AU73: 0 | AV73: 0 | AW73: 0 | AX73: 0 | AY73: 0 | AZ73: 0 | BA73: 0 | BB73: 0 | BC73: 0 | BD73: 0 | BE73: 0 | BF73: 0 | BG73: 0 | BH73: 0 | BI73: 0 | BJ73: 0 | BK73: 0 | BL73: 0 | BM73: 0 | BO73: 0 | BP73: 0 | BQ73: 0 | BR73: 0 | BS73: 0 | BT73: 0 | BU73: 0
C74: Total | D74: AUD M | I74: =SUM(J74:BU74) -> 60 | J74: =SUM(J71:J73) -> 15 | K74: =SUM(K71:K73) -> 15 | L74: 15 | M74: 15 | N74: 0 | O74: 0 | P74: 0 | Q74: 0 | R74: 0 | S74: 0 | T74: 0 | U74: 0 | V74: 0 | W74: 0 | X74: 0 | Y74: 0 | Z74: 0 | AA74: 0 | AB74: 0 | AC74: 0 | AD74: 0 | AE74: 0 | AF74: 0 | AG74: 0 | AH74: 0 | AI74: 0 | AJ74: 0 | AK74: 0 | AL74: 0 | AM74: 0 | AN74: 0 | AO74: 0 | AP74: 0 | AQ74: 0 | AR74: 0 | AS74: 0 | AT74: 0 | AU74: 0 | AV74: 0 | AW74: 0 | AX74: 0 | AY74: 0 | AZ74: 0 | BA74: 0 | BB74: 0 | BC74: 0 | BD74: 0 | BE74: 0 | BF74: 0 | BG74: 0 | BH74: 0 | BI74: 0 | BJ74: 0 | BK74: 0 | BL74: 0 | BM74: 0 | BO74: =SUM(BO71:BO73) -> 0 | BP74: 0 | BQ74: 0 | BR74: 0 | BS74: 0 | BT74: 0 | BU74: 0

Sheet Mining Schedule
B1: Mining Schedule
D2: =Master_check -> 0
B4: Period Start | I4: =Timing!J4 -> 2019-01-01 | J4: =Timing!K4 -> 2019-04-01 | K4: =Timing!L4 -> 2019-07-01 | L4: =Timing!M4 -> 2019-10-01 | M4: =Timing!N4 -> 2020-01-01 | N4: =Timing!O4 -> 2020-04-01 | O4: =Timing!P4 -> 2020-07-01 | P4: =Timing!Q4 -> 2020-10-01 | Q4: =Timing!R4 -> 2021-01-01 | R4: =Timing!S4 -> 2021-04-01 | S4: =Timing!T4 -> 2021-07-01 | T4: =Timing!U4 -> 2021-10-01 | U4: =Timing!V4 -> 2022-01-01 | V4: =Timing!W4 -> 2022-04-01 | W4: =Timing!X4 -> 2022-07-01 | X4: =Timing!Y4 -> 2022-10-01 | Y4: =Timing!Z4 -> 2023-01-01 | Z4: =Timing!AA4 -> 2023-04-01 | AA4: =Timing!AB4 -> 2023-07-01 | AB4: =Timing!AC4 -> 2023-10-01 | AC4: =Timing!AD4 -> 2024-01-01 | AD4: =Timing!AE4 -> 2024-04-01 | AE4: =Timing!AF4 -> 2024-07-01 | AF4: =Timing!AG4 -> 2024-10-01 | AG4: =Timing!AH4 -> 2025-01-01 | AH4: =Timing!AI4 -> 2025-04-01 | AI4: =Timing!AJ4 -> 2025-07-01 | AJ4: =Timing!AK4 -> 2025-10-01 | AK4: =Timing!AL4 -> 2026-01-01 | AL4: =Timing!AM4 -> 2026-04-01 | AM4: =Timing!AN4 -> 2026-07-01 | AN4: =Timing!AO4 -> 2026-10-01 | AO4: =Timing!AP4 -> 2027-01-01 | AP4: =Timing!AQ4 -> 2027-04-01 | AQ4: =Timing!AR4 -> 2027-07-01 | AR4: =Timing!AS4 -> 2027-10-01 | AS4: =Timing!AT4 -> 2028-01-01 | AT4: =Timing!AU4 -> 2028-04-01 | AU4: =Timing!AV4 -> 2028-07-01 | AV4: =Timing!AW4 -> 2028-10-01 | AW4: =Timing!AX4 -> 2029-01-01 | AX4: =Timing!AY4 -> 2029-04-01 | AY4: =Timing!AZ4 -> 2029-07-01 | AZ4: =Timing!BA4 -> 2029-10-01 | BA4: =Timing!BB4 -> 2030-01-01 | BB4: =Timing!BC4 -> 2030-04-01 | BC4: =Timing!BD4 -> 2030-07-01 | BD4: =Timing!BE4 -> 2030-10-01 | BE4: =Timing!BF4 -> 2031-01-01 | BF4: =Timing!BG4 -> 2031-04-01 | BG4: =Timing!BH4 -> 2031-07-01 | BH4: =Timing!BI4 -> 2031-10-01 | BI4: =Timing!BJ4 -> 2032-01-01 | BJ4: =Timing!BK4 -> 2032-04-01 | BK4: =Timing!BL4 -> 2032-07-01 | BL4: =Timing!BM4 -> 2032-10-01
B5: Period End | H5: =Timing!I5 -> 2018-12-31 | I5: =Timing!J5 -> 2019-03-31 | J5: =Timing!K5 -> 2019-06-30 | K5: =Timing!L5 -> 2019-09-30 | L5: =Timing!M5 -> 2019-12-31 | M5: =Timing!N5 -> 2020-03-31 | N5: =Timing!O5 -> 2020-06-30 | O5: =Timing!P5 -> 2020-09-30 | P5: =Timing!Q5 -> 2020-12-31 | Q5: =Timing!R5 -> 2021-03-31 | R5: =Timing!S5 -> 2021-06-30 | S5: =Timing!T5 -> 2021-09-30 | T5: =Timing!U5 -> 2021-12-31 | U5: =Timing!V5 -> 2022-03-31 | V5: =Timing!W5 -> 2022-06-30 | W5: =Timing!X5 -> 2022-09-30 | X5: =Timing!Y5 -> 2022-12-31 | Y5: =Timing!Z5 -> 2023-03-31 | Z5: =Timing!AA5 -> 2023-06-30 | AA5: =Timing!AB5 -> 2023-09-30 | AB5: =Timing!AC5 -> 2023-12-31 | AC5: =Timing!AD5 -> 2024-03-31 | AD5: =Timing!AE5 -> 2024-06-30 | AE5: =Timing!AF5 -> 2024-09-30 | AF5: =Timing!AG5 -> 2024-12-31 | AG5: =Timing!AH5 -> 2025-03-31 | AH5: =Timing!AI5 -> 2025-06-30 | AI5: =Timing!AJ5 -> 2025-09-30 | AJ5: =Timing!AK5 -> 2025-12-31 | AK5: =Timing!AL5 -> 2026-03-31 | AL5: =Timing!AM5 -> 2026-06-30 | AM5: =Timing!AN5 -> 2026-09-30 | AN5: =Timing!AO5 -> 2026-12-31 | AO5: =Timing!AP5 -> 2027-03-31 | AP5: =Timing!AQ5 -> 2027-06-30 | AQ5: =Timing!AR5 -> 2027-09-30 | AR5: =Timing!AS5 -> 2027-12-31 | AS5: =Timing!AT5 -> 2028-03-31 | AT5: =Timing!AU5 -> 2028-06-30 | AU5: =Timing!AV5 -> 2028-09-30 | AV5: =Timing!AW5 -> 2028-12-31 | AW5: =Timing!AX5 -> 2029-03-31 | AX5: =Timing!AY5 -> 2029-06-30 | AY5: =Timing!AZ5 -> 2029-09-30 | AZ5: =Timing!BA5 -> 2029-12-31 | BA5: =Timing!BB5 -> 2030-03-31 | BB5: =Timing!BC5 -> 2030-06-30 | BC5: =Timing!BD5 -> 2030-09-30 | BD5: =Timing!BE5 -> 2030-12-31 | BE5: =Timing!BF5 -> 2031-03-31 | BF5: =Timing!BG5 -> 2031-06-30 | BG5: =Timing!BH5 -> 2031-09-30 | BH5: =Timing!BI5 -> 2031-12-31 | BI5: =Timing!BJ5 -> 2032-03-31 | BJ5: =Timing!BK5 -> 2032-06-30 | BK5: =Timing!BL5 -> 2032-09-30 | BL5: =Timing!BM5 -> 2032-12-31
B6: Development | C6: =Timing!D6 -> 2019-01-01 | D6: =Timing!E6 -> 2019-12-31 | I6: =Timing!J6 -> 1 | J6: =Timing!K6 -> 1 | K6: =Timing!L6 -> 1 | L6: =Timing!M6 -> 1 | M6: =Timing!N6 -> 0 | N6: =Timing!O6 -> 0 | O6: =Timing!P6 -> 0 | P6: =Timing!Q6 -> 0 | Q6: =Timing!R6 -> 0 | R6: =Timing!S6 -> 0 | S6: =Timing!T6 -> 0 | T6: =Timing!U6 -> 0 | U6: =Timing!V6 -> 0 | V6: =Timing!W6 -> 0 | W6: =Timing!X6 -> 0 | X6: =Timing!Y6 -> 0 | Y6: =Timing!Z6 -> 0 | Z6: =Timing!AA6 -> 0 | AA6: =Timing!AB6 -> 0 | AB6: =Timing!AC6 -> 0 | AC6: =Timing!AD6 -> 0 | AD6: =Timing!AE6 -> 0 | AE6: =Timing!AF6 -> 0 | AF6: =Timing!AG6 -> 0 | AG6: =Timing!AH6 -> 0 | AH6: =Timing!AI6 -> 0 | AI6: =Timing!AJ6 -> 0 | AJ6: =Timing!AK6 -> 0 | AK6: =Timing!AL6 -> 0 | AL6: =Timing!AM6 -> 0 | AM6: =Timing!AN6 -> 0 | AN6: =Timing!AO6 -> 0 | AO6: =Timing!AP6 -> 0 | AP6: =Timing!AQ6 -> 0 | AQ6: =Timing!AR6 -> 0 | AR6: =Timing!AS6 -> 0 | AS6: =Timing!AT6 -> 0 | AT6: =Timing!AU6 -> 0 | AU6: =Timing!AV6 -> 0 | AV6: =Timing!AW6 -> 0 | AW6: =Timing!AX6 -> 0 | AX6: =Timing!AY6 -> 0 | AY6: =Timing!AZ6 -> 0 | AZ6: =Timing!BA6 -> 0 | BA6: =Timing!BB6 -> 0 | BB6: =Timing!BC6 -> 0 | BC6: =Timing!BD6 -> 0 | BD6: =Timing!BE6 -> 0 | BE6: =Timing!BF6 -> 0 | BF6: =Timing!BG6 -> 0 | BG6: =Timing!BH6 -> 0 | BH6: =Timing!BI6 -> 0 | BI6: =Timing!BJ6 -> 0 | BJ6: =Timing!BK6 -> 0 | BK6: =Timing!BL6 -> 0 | BL6: =Timing!BM6 -> 0
B7: Production | C7: =Timing!D7 -> 2020-01-01 | D7: =Timing!E7 -> 2027-12-31 | I7: =Timing!J7 -> 0 | J7: =Timing!K7 -> 0 | K7: =Timing!L7 -> 0 | L7: =Timing!M7 -> 0 | M7: =Timing!N7 -> 1 | N7: =Timing!O7 -> 1 | O7: =Timing!P7 -> 1 | P7: =Timing!Q7 -> 1 | Q7: =Timing!R7 -> 1 | R7: =Timing!S7 -> 1 | S7: =Timing!T7 -> 1 | T7: =Timing!U7 -> 1 | U7: =Timing!V7 -> 1 | V7: =Timing!W7 -> 1 | W7: =Timing!X7 -> 1 | X7: =Timing!Y7 -> 1 | Y7: =Timing!Z7 -> 1 | Z7: =Timing!AA7 -> 1 | AA7: =Timing!AB7 -> 1 | AB7: =Timing!AC7 -> 1 | AC7: =Timing!AD7 -> 1 | AD7: =Timing!AE7 -> 1 | AE7: =Timing!AF7 -> 1 | AF7: =Timing!AG7 -> 1 | AG7: =Timing!AH7 -> 1 | AH7: =Timing!AI7 -> 1 | AI7: =Timing!AJ7 -> 1 | AJ7: =Timing!AK7 -> 1 | AK7: =Timing!AL7 -> 1 | AL7: =Timing!AM7 -> 1 | AM7: =Timing!AN7 -> 1 | AN7: =Timing!AO7 -> 1 | AO7: =Timing!AP7 -> 1 | AP7: =Timing!AQ7 -> 1 | AQ7: =Timing!AR7 -> 1 | AR7: =Timing!AS7 -> 1 | AS7: =Timing!AT7 -> 0 | AT7: =Timing!AU7 -> 0 | AU7: =Timing!AV7 -> 0 | AV7: =Timing!AW7 -> 0 | AW7: =Timing!AX7 -> 0 | AX7: =Timing!AY7 -> 0 | AY7: =Timing!AZ7 -> 0 | AZ7: =Timing!BA7 -> 0 | BA7: =Timing!BB7 -> 0 | BB7: =Timing!BC7 -> 0 | BC7: =Timing!BD7 -> 0 | BD7: =Timing!BE7 -> 0 | BE7: =Timing!BF7 -> 0 | BF7: =Timing!BG7 -> 0 | BG7: =Timing!BH7 -> 0 | BH7: =Timing!BI7 -> 0 | BI7: =Timing!BJ7 -> 0 | BJ7: =Timing!BK7 -> 0 | BK7: =Timing!BL7 -> 0 | BL7: =Timing!BM7 -> 0
B8: Restoration | C8: =Inputs!I7 -> 2028-01-01 | D8: =Inputs!I9 -> 2027-12-31 | I8: =IF(AND(I$4>=$C8,I$5<=$D8),1,0) -> 0 | J8: =IF(AND(J$4>=$C8,J$5<=$D8),1,0) -> 0 | K8: 0 | L8: 0 | M8: 0 | N8: 0 | O8: 0 | P8: 0 | Q8: 0 | R8: 0 | S8: 0 | T8: 0 | U8: 0 | V8: 0 | W8: 0 | X8: 0 | Y8: 0 | Z8: =IF(AND(Z$4>=$C8,Z$5<=$D8),1,0) -> 0 | AA8: 0 | AB8: 0 | AC8: 0 | AD8: 0 | AE8: 0 | AF8: 0 | AG8: 0 | AH8: 0 | AI8: 0 | AJ8: 0 | AK8: 0 | AL8: 0 | AM8: 0 | AN8: 0 | AO8: 0 | AP8: =IF(AND(AP$4>=$C8,AP$5<=$D8),1,0) -> 0 | AQ8: 0 | AR8: 0 | AS8: 0 | AT8: 0 | AU8: 0 | AV8: 0 | AW8: 0 | AX8: 0 | AY8: 0 | AZ8: 0 | BA8: 0 | BB8: 0 | BC8: 0 | BD8: 0 | BE8: 0 | BF8: =IF(AND(BF$4>=$C8,BF$5<=$D8),1,0) -> 0 | BG8: 0 | BH8: 0 | BI8: 0 | BJ8: 0 | BK8: 0 | BL8: 0
B10: Mining Operations
B11: Mining Schedule
B13: Opening Balance | C13: tonnes | I13: =H15 -> 3140000 | J13: =I15 -> 3140000 | K13: =J15 -> 3140000 | L13: 3140000 | M13: 3140000 | N13: 3040000 | O13: 2940000 | P13: 2840000 | Q13: 2740000 | R13: 2640000 | S13: 2540000 | T13: 2440000 | U13: 2340000 | V13: 2240000 | W13: 2140000 | X13: 2040000 | Y13: 1940000 | Z13: 1840000 | AA13: 1740000 | AB13: 1640000 | AC13: 1540000 | AD13: 1440000 | AE13: 1340000 | AF13: 1240000 | AG13: 1140000 | AH13: 1040000 | AI13: 940000 | AJ13: 840000 | AK13: 740000 | AL13: 640000 | AM13: 540000 | AN13: 440000 | AO13: 340000 | AP13: 240000 | AQ13: 140000 | AR13: 40000 | AS13: 0 | AT13: 0 | AU13: 0 | AV13: 0 | AW13: 0 | AX13: 0 | AY13: 0 | AZ13: 0 | BA13: 0 | BB13: 0 | BC13: 0 | BD13: 0 | BE13: 0 | BF13: 0 | BG13: 0 | BH13: 0 | BI13: 0 | BJ13: 0 | BK13: 0 | BL13: 0
B14: Less: Ore Mined | C14: tonnes | H14: =SUM(I14:BL14) -> -3140000 | I14: =-MIN(IF(I7=0,0,LOOKUP(I7,Inputs!$E$33:$AJ$33,Inputs!$E$34:$AJ$34)),'Mining Schedule'!I13) -> 0 | J14: =-MIN(IF(J7=0,0,LOOKUP(J7,Inputs!$E$33:$AJ$33,Inputs!$E$34:$AJ$34)),'Mining Schedule'!J13) -> 0 | K14: =-MIN(IF(K7=0,0,LOOKUP(K7,Inputs!$E$33:$AJ$33,Inputs!$E$34:$AJ$34)),'Mining Schedule'!K13) -> 0 | L14: =-MIN(IF(L7=0,0,LOOKUP(L7,Inputs!$E$33:$AJ$33,Inputs!$E$34:$AJ$34)),'Mining Schedule'!L13) -> 0 | M14: =-MIN(IF(M7=0,0,LOOKUP(M7,Inputs!$E$33:$AJ$33,Inputs!$E$34:$AJ$34)),'Mining Schedule'!M13) -> -100000 | N14: =-MIN(IF(N7=0,0,LOOKUP(N7,Inputs!$E$33:$AJ$33,Inputs!$E$34:$AJ$34)),'Mining Schedule'!N13) -> -100000 | O14: =-MIN(IF(O7=0,0,LOOKUP(O7,Inputs!$E$33:$AJ$33,Inputs!$E$34:$AJ$34)),'Mining Schedule'!O13) -> -100000 | P14: =-MIN(IF(P7=0,0,LOOKUP(P7,Inputs!$E$33:$AJ$33,Inputs!$E$34:$AJ$34)),'Mining Schedule'!P13) -> -100000 | Q14: =-MIN(IF(Q7=0,0,LOOKUP(Q7,Inputs!$E$33:$AJ$33,Inputs!$E$34:$AJ$34)),'Mining Schedule'!Q13) -> -100000 | R14: =-MIN(IF(R7=0,0,LOOKUP(R7,Inputs!$E$33:$AJ$33,Inputs!$E$34:$AJ$34)),'Mining Schedule'!R13) -> -100000 | S14: =-MIN(IF(S7=0,0,LOOKUP(S7,Inputs!$E$33:$AJ$33,Inputs!$E$34:$AJ$34)),'Mining Schedule'!S13) -> -100000 | T14: =-MIN(IF(T7=0,0,LOOKUP(T7,Inputs!$E$33:$AJ$33,Inputs!$E$34:$AJ$34)),'Mining Schedule'!T13) -> -100000 | U14: =-MIN(IF(U7=0,0,LOOKUP(U7,Inputs!$E$33:$AJ$33,Inputs!$E$34:$AJ$34)),'Mining Schedule'!U13) -> -100000 | V14: =-MIN(IF(V7=0,0,LOOKUP(V7,Inputs!$E$33:$AJ$33,Inputs!$E$34:$AJ$34)),'Mining Schedule'!V13) -> -100000 | W14: =-MIN(IF(W7=0,0,LOOKUP(W7,Inputs!$E$33:$AJ$33,Inputs!$E$34:$AJ$34)),'Mining Schedule'!W13) -> -100000 | X14: =-MIN(IF(X7=0,0,LOOKUP(X7,Inputs!$E$33:$AJ$33,Inputs!$E$34:$AJ$34)),'Mining Schedule'!X13) -> -100000 | Y14: =-MIN(IF(Y7=0,0,LOOKUP(Y7,Inputs!$E$33:$AJ$33,Inputs!$E$34:$AJ$34)),'Mining Schedule'!Y13) -> -100000 | Z14: =-MIN(IF(Z7=0,0,LOOKUP(Z7,Inputs!$E$33:$AJ$33,Inputs!$E$34:$AJ$34)),'Mining Schedule'!Z13) -> -100000 | AA14: =-MIN(IF(AA7=0,0,LOOKUP(AA7,Inputs!$E$33:$AJ$33,Inputs!$E$34:$AJ$34)),'Mining Schedule'!AA13) -> -100000 | AB14: =-MIN(IF(AB7=0,0,LOOKUP(AB7,Inputs!$E$33:$AJ$33,Inputs!$E$34:$AJ$34)),'Mining Schedule'!AB13) -> -100000 | AC14: =-MIN(IF(AC7=0,0,LOOKUP(AC7,Inputs!$E$33:$AJ$33,Inputs!$E$34:$AJ$34)),'Mining Schedule'!AC13) -> -100000 | AD14: =-MIN(IF(AD7=0,0,LOOKUP(AD7,Inputs!$E$33:$AJ$33,Inputs!$E$34:$AJ$34)),'Mining Schedule'!AD13) -> -100000 | AE14: =-MIN(IF(AE7=0,0,LOOKUP(AE7,Inputs!$E$33:$AJ$33,Inputs!$E$34:$AJ$34)),'Mining Schedule'!AE13) -> -100000 | AF14: =-MIN(IF(AF7=0,0,LOOKUP(AF7,Inputs!$E$33:$AJ$33,Inputs!$E$34:$AJ$34)),'Mining Schedule'!AF13) -> -100000 | AG14: =-MIN(IF(AG7=0,0,LOOKUP(AG7,Inputs!$E$33:$AJ$33,Inputs!$E$34:$AJ$34)),'Mining Schedule'!AG13) -> -100000 | AH14: =-MIN(IF(AH7=0,0,LOOKUP(AH7,Inputs!$E$33:$AJ$33,Inputs!$E$34:$AJ$34)),'Mining Schedule'!AH13) -> -100000 | AI14: =-MIN(IF(AI7=0,0,LOOKUP(AI7,Inputs!$E$33:$AJ$33,Inputs!$E$34:$AJ$34)),'Mining Schedule'!AI13) -> -100000 | AJ14: =-MIN(IF(AJ7=0,0,LOOKUP(AJ7,Inputs!$E$33:$AJ$33,Inputs!$E$34:$AJ$34)),'Mining Schedule'!AJ13) -> -100000 | AK14: =-MIN(IF(AK7=0,0,LOOKUP(AK7,Inputs!$E$33:$AJ$33,Inputs!$E$34:$AJ$34)),'Mining Schedule'!AK13) -> -100000 | AL14: =-MIN(IF(AL7=0,0,LOOKUP(AL7,Inputs!$E$33:$AJ$33,Inputs!$E$34:$AJ$34)),'Mining Schedule'!AL13) -> -100000 | AM14: =-MIN(IF(AM7=0,0,LOOKUP(AM7,Inputs!$E$33:$AJ$33,Inputs!$E$34:$AJ$34)),'Mining Schedule'!AM13) -> -100000 | AN14: =-MIN(IF(AN7=0,0,LOOKUP(AN7,Inputs!$E$33:$AJ$33,Inputs!$E$34:$AJ$34)),'Mining Schedule'!AN13) -> -100000 | AO14: =-MIN(IF(AO7=0,0,LOOKUP(AO7,Inputs!$E$33:$AJ$33,Inputs!$E$34:$AJ$34)),'Mining Schedule'!AO13) -> -100000 | AP14: =-MIN(IF(AP7=0,0,LOOKUP(AP7,Inputs!$E$33:$AJ$33,Inputs!$E$34:$AJ$34)),'Mining Schedule'!AP13) -> -100000 | AQ14: =-MIN(IF(AQ7=0,0,LOOKUP(AQ7,Inputs!$E$33:$AJ$33,Inputs!$E$34:$AJ$34)),'Mining Schedule'!AQ13) -> -100000 | AR14: =-MIN(IF(AR7=0,0,LOOKUP(AR7,Inputs!$E$33:$AJ$33,Inputs!$E$34:$AJ$34)),'Mining Schedule'!AR13) -> -40000 | AS14: =-MIN(IF(AS7=0,0,LOOKUP(AS7,Inputs!$E$33:$AJ$33,Inputs!$E$34:$AJ$34)),'Mining Schedule'!AS13) -> 0 | AT14: =-MIN(IF(AT7=0,0,LOOKUP(AT7,Inputs!$E$33:$AJ$33,Inputs!$E$34:$AJ$34)),'Mining Schedule'!AT13) -> 0 | AU14: =-MIN(IF(AU7=0,0,LOOKUP(AU7,Inputs!$E$33:$AJ$33,Inputs!$E$34:$AJ$34)),'Mining Schedule'!AU13) -> 0 | AV14: =-MIN(IF(AV7=0,0,LOOKUP(AV7,Inputs!$E$33:$AJ$33,Inputs!$E$34:$AJ$34)),'Mining Schedule'!AV13) -> 0 | AW14: =-MIN(IF(AW7=0,0,LOOKUP(AW7,Inputs!$E$33:$AJ$33,Inputs!$E$34:$AJ$34)),'Mining Schedule'!AW13) -> 0 | AX14: =-MIN(IF(AX7=0,0,LOOKUP(AX7,Inputs!$E$33:$AJ$33,Inputs!$E$34:$AJ$34)),'Mining Schedule'!AX13) -> 0 | AY14: =-MIN(IF(AY7=0,0,LOOKUP(AY7,Inputs!$E$33:$AJ$33,Inputs!$E$34:$AJ$34)),'Mining Schedule'!AY13) -> 0 | AZ14: =-MIN(IF(AZ7=0,0,LOOKUP(AZ7,Inputs!$E$33:$AJ$33,Inputs!$E$34:$AJ$34)),'Mining Schedule'!AZ13) -> 0 | BA14: =-MIN(IF(BA7=0,0,LOOKUP(BA7,Inputs!$E$33:$AJ$33,Inputs!$E$34:$AJ$34)),'Mining Schedule'!BA13) -> 0 | BB14: =-MIN(IF(BB7=0,0,LOOKUP(BB7,Inputs!$E$33:$AJ$33,Inputs!$E$34:$AJ$34)),'Mining Schedule'!BB13) -> 0 | BC14: =-MIN(IF(BC7=0,0,LOOKUP(BC7,Inputs!$E$33:$AJ$33,Inputs!$E$34:$AJ$34)),'Mining Schedule'!BC13) -> 0 | BD14: =-MIN(IF(BD7=0,0,LOOKUP(BD7,Inputs!$E$33:$AJ$33,Inputs!$E$34:$AJ$34)),'Mining Schedule'!BD13) -> 0 | BE14: =-MIN(IF(BE7=0,0,LOOKUP(BE7,Inputs!$E$33:$AJ$33,Inputs!$E$34:$AJ$34)),'Mining Schedule'!BE13) -> 0 | BF14: =-MIN(IF(BF7=0,0,LOOKUP(BF7,Inputs!$E$33:$AJ$33,Inputs!$E$34:$AJ$34)),'Mining Schedule'!BF13) -> 0 | BG14: =-MIN(IF(BG7=0,0,LOOKUP(BG7,Inputs!$E$33:$AJ$33,Inputs!$E$34:$AJ$34)),'Mining Schedule'!BG13) -> 0 | BH14: =-MIN(IF(BH7=0,0,LOOKUP(BH7,Inputs!$E$33:$AJ$33,Inputs!$E$34:$AJ$34)),'Mining Schedule'!BH13) -> 0 | BI14: =-MIN(IF(BI7=0,0,LOOKUP(BI7,Inputs!$E$33:$AJ$33,Inputs!$E$34:$AJ$34)),'Mining Schedule'!BI13) -> 0 | BJ14: =-MIN(IF(BJ7=0,0,LOOKUP(BJ7,Inputs!$E$33:$AJ$33,Inputs!$E$34:$AJ$34)),'Mining Schedule'!BJ13) -> 0 | BK14: =-MIN(IF(BK7=0,0,LOOKUP(BK7,Inputs!$E$33:$AJ$33,Inputs!$E$34:$AJ$34)),'Mining Schedule'!BK13) -> 0 | BL14: =-MIN(IF(BL7=0,0,LOOKUP(BL7,Inputs!$E$33:$AJ$33,Inputs!$E$34:$AJ$34)),'Mining Schedule'!BL13) -> 0
B15: Closing Ore Balance | C15: tonnes | H15: =Inputs!$K$30 -> 3140000 | I15: =SUM(I13:I14) -> 3140000 | J15: =SUM(J13:J14) -> 3140000 | K15: 3140000 | L15: 3140000 | M15: 3040000 | N15: 2940000 | O15: 2840000 | P15: 2740000 | Q15: 2640000 | R15: 2540000 | S15: 2440000 | T15: 2340000 | U15: 2240000 | V15: 2140000 | W15: 2040000 | X15: 1940000 | Y15: 1840000 | Z15: 1740000 | AA15: 1640000 | AB15: 1540000 | AC15: 1440000 | AD15: 1340000 | AE15: 1240000 | AF15: 1140000 | AG15: 1040000 | AH15: 940000 | AI15: 840000 | AJ15: 740000 | AK15: 640000 | AL15: 540000 | AM15: 440000 | AN15: 340000 | AO15: 240000 | AP15: 140000 | AQ15: 40000 | AR15: 0 | AS15: 0 | AT15: 0 | AU15: 0 | AV15: 0 | AW15: 0 | AX15: 0 | AY15: 0 | AZ15: 0 | BA15: 0 | BB15: 0 | BC15: 0 | BD15: 0 | BE15: 0 | BF15: 0 | BG15: 0 | BH15: 0 | BI15: 0 | BJ15: 0 | BK15: 0 | BL15: 0
B17: Strip Ratio | C17: x | I17: =IF(OR(I14=0,I7=0),0,LOOKUP(I7,Inputs!$E$33:$AJ$33,Inputs!$E$38:$AJ$38)) -> 0 | J17: =IF(OR(J14=0,J7=0),0,LOOKUP(J7,Inputs!$E$33:$AJ$33,Inputs!$E$38:$AJ$38)) -> 0 | K17: =IF(OR(K14=0,K7=0),0,LOOKUP(K7,Inputs!$E$33:$AJ$33,Inputs!$E$38:$AJ$38)) -> 0 | L17: =IF(OR(L14=0,L7=0),0,LOOKUP(L7,Inputs!$E$33:$AJ$33,Inputs!$E$38:$AJ$38)) -> 0 | M17: =IF(OR(M14=0,M7=0),0,LOOKUP(M7,Inputs!$E$33:$AJ$33,Inputs!$E$38:$AJ$38)) -> 9.7 | N17: =IF(OR(N14=0,N7=0),0,LOOKUP(N7,Inputs!$E$33:$AJ$33,Inputs!$E$38:$AJ$38)) -> 9.7 | O17: =IF(OR(O14=0,O7=0),0,LOOKUP(O7,Inputs!$E$33:$AJ$33,Inputs!$E$38:$AJ$38)) -> 9.7 | P17: =IF(OR(P14=0,P7=0),0,LOOKUP(P7,Inputs!$E$33:$AJ$33,Inputs!$E$38:$AJ$38)) -> 9.7 | Q17: =IF(OR(Q14=0,Q7=0),0,LOOKUP(Q7,Inputs!$E$33:$AJ$33,Inputs!$E$38:$AJ$38)) -> 9.7 | R17: =IF(OR(R14=0,R7=0),0,LOOKUP(R7,Inputs!$E$33:$AJ$33,Inputs!$E$38:$AJ$38)) -> 9.7 | S17: =IF(OR(S14=0,S7=0),0,LOOKUP(S7,Inputs!$E$33:$AJ$33,Inputs!$E$38:$AJ$38)) -> 9.7 | T17: =IF(OR(T14=0,T7=0),0,LOOKUP(T7,Inputs!$E$33:$AJ$33,Inputs!$E$38:$AJ$38)) -> 9.7 | U17: =IF(OR(U14=0,U7=0),0,LOOKUP(U7,Inputs!$E$33:$AJ$33,Inputs!$E$38:$AJ$38)) -> 9.7 | V17: =IF(OR(V14=0,V7=0),0,LOOKUP(V7,Inputs!$E$33:$AJ$33,Inputs!$E$38:$AJ$38)) -> 9.7 | W17: =IF(OR(W14=0,W7=0),0,LOOKUP(W7,Inputs!$E$33:$AJ$33,Inputs!$E$38:$AJ$38)) -> 9.7 | X17: =IF(OR(X14=0,X7=0),0,LOOKUP(X7,Inputs!$E$33:$AJ$33,Inputs!$E$38:$AJ$38)) -> 9.7 | Y17: =IF(OR(Y14=0,Y7=0),0,LOOKUP(Y7,Inputs!$E$33:$AJ$33,Inputs!$E$38:$AJ$38)) -> 9.7 | Z17: =IF(OR(Z14=0,Z7=0),0,LOOKUP(Z7,Inputs!$E$33:$AJ$33,Inputs!$E$38:$AJ$38)) -> 9.7 | AA17: =IF(OR(AA14=0,AA7=0),0,LOOKUP(AA7,Inputs!$E$33:$AJ$33,Inputs!$E$38:$AJ$38)) -> 9.7 | AB17: =IF(OR(AB14=0,AB7=0),0,LOOKUP(AB7,Inputs!$E$33:$AJ$33,Inputs!$E$38:$AJ$38)) -> 9.7 | AC17: =IF(OR(AC14=0,AC7=0),0,LOOKUP(AC7,Inputs!$E$33:$AJ$33,Inputs!$E$38:$AJ$38)) -> 9.7 | AD17: =IF(OR(AD14=0,AD7=0),0,LOOKUP(AD7,Inputs!$E$33:$AJ$33,Inputs!$E$38:$AJ$38)) -> 9.7 | AE17: =IF(OR(AE14=0,AE7=0),0,LOOKUP(AE7,Inputs!$E$33:$AJ$33,Inputs!$E$38:$AJ$38)) -> 9.7 | AF17: =IF(OR(AF14=0,AF7=0),0,LOOKUP(AF7,Inputs!$E$33:$AJ$33,Inputs!$E$38:$AJ$38)) -> 9.7 | AG17: =IF(OR(AG14=0,AG7=0),0,LOOKUP(AG7,Inputs!$E$33:$AJ$33,Inputs!$E$38:$AJ$38)) -> 9.7 | AH17: =IF(OR(AH14=0,AH7=0),0,LOOKUP(AH7,Inputs!$E$33:$AJ$33,Inputs!$E$38:$AJ$38)) -> 9.7 | AI17: =IF(OR(AI14=0,AI7=0),0,LOOKUP(AI7,Inputs!$E$33:$AJ$33,Inputs!$E$38:$AJ$38)) -> 9.7 | AJ17: =IF(OR(AJ14=0,AJ7=0),0,LOOKUP(AJ7,Inputs!$E$33:$AJ$33,Inputs!$E$38:$AJ$38)) -> 9.7 | AK17: =IF(OR(AK14=0,AK7=0),0,LOOKUP(AK7,Inputs!$E$33:$AJ$33,Inputs!$E$38:$AJ$38)) -> 9.7 | AL17: =IF(OR(AL14=0,AL7=0),0,LOOKUP(AL7,Inputs!$E$33:$AJ$33,Inputs!$E$38:$AJ$38)) -> 9.7 | AM17: =IF(OR(AM14=0,AM7=0),0,LOOKUP(AM7,Inputs!$E$33:$AJ$33,Inputs!$E$38:$AJ$38)) -> 9.7 | AN17: =IF(OR(AN14=0,AN7=0),0,LOOKUP(AN7,Inputs!$E$33:$AJ$33,Inputs!$E$38:$AJ$38)) -> 9.7 | AO17: =IF(OR(AO14=0,AO7=0),0,LOOKUP(AO7,Inputs!$E$33:$AJ$33,Inputs!$E$38:$AJ$38)) -> 9.7 | AP17: =IF(OR(AP14=0,AP7=0),0,LOOKUP(AP7,Inputs!$E$33:$AJ$33,Inputs!$E$38:$AJ$38)) -> 9.7 | AQ17: =IF(OR(AQ14=0,AQ7=0),0,LOOKUP(AQ7,Inputs!$E$33:$AJ$33,Inputs!$E$38:$AJ$38)) -> 9.7 | AR17: =IF(OR(AR14=0,AR7=0),0,LOOKUP(AR7,Inputs!$E$33:$AJ$33,Inputs!$E$38:$AJ$38)) -> 9.7 | AS17: =IF(OR(AS14=0,AS7=0),0,LOOKUP(AS7,Inputs!$E$33:$AJ$33,Inputs!$E$38:$AJ$38)) -> 0 | AT17: =IF(OR(AT14=0,AT7=0),0,LOOKUP(AT7,Inputs!$E$33:$AJ$33,Inputs!$E$38:$AJ$38)) -> 0 | AU17: =IF(OR(AU14=0,AU7=0),0,LOOKUP(AU7,Inputs!$E$33:$AJ$33,Inputs!$E$38:$AJ$38)) -> 0 | AV17: =IF(OR(AV14=0,AV7=0),0,LOOKUP(AV7,Inputs!$E$33:$AJ$33,Inputs!$E$38:$AJ$38)) -> 0 | AW17: =IF(OR(AW14=0,AW7=0),0,LOOKUP(AW7,Inputs!$E$33:$AJ$33,Inputs!$E$38:$AJ$38)) -> 0 | AX17: =IF(OR(AX14=0,AX7=0),0,LOOKUP(AX7,Inputs!$E$33:$AJ$33,Inputs!$E$38:$AJ$38)) -> 0 | AY17: =IF(OR(AY14=0,AY7=0),0,LOOKUP(AY7,Inputs!$E$33:$AJ$33,Inputs!$E$38:$AJ$38)) -> 0 | AZ17: =IF(OR(AZ14=0,AZ7=0),0,LOOKUP(AZ7,Inputs!$E$33:$AJ$33,Inputs!$E$38:$AJ$38)) -> 0 | BA17: =IF(OR(BA14=0,BA7=0),0,LOOKUP(BA7,Inputs!$E$33:$AJ$33,Inputs!$E$38:$AJ$38)) -> 0 | BB17: =IF(OR(BB14=0,BB7=0),0,LOOKUP(BB7,Inputs!$E$33:$AJ$33,Inputs!$E$38:$AJ$38)) -> 0 | BC17: =IF(OR(BC14=0,BC7=0),0,LOOKUP(BC7,Inputs!$E$33:$AJ$33,Inputs!$E$38:$AJ$38)) -> 0 | BD17: =IF(OR(BD14=0,BD7=0),0,LOOKUP(BD7,Inputs!$E$33:$AJ$33,Inputs!$E$38:$AJ$38)) -> 0 | BE17: =IF(OR(BE14=0,BE7=0),0,LOOKUP(BE7,Inputs!$E$33:$AJ$33,Inputs!$E$38:$AJ$38)) -> 0 | BF17: =IF(OR(BF14=0,BF7=0),0,LOOKUP(BF7,Inputs!$E$33:$AJ$33,Inputs!$E$38:$AJ$38)) -> 0 | BG17: =IF(OR(BG14=0,BG7=0),0,LOOKUP(BG7,Inputs!$E$33:$AJ$33,Inputs!$E$38:$AJ$38)) -> 0 | BH17: =IF(OR(BH14=0,BH7=0),0,LOOKUP(BH7,Inputs!$E$33:$AJ$33,Inputs!$E$38:$AJ$38)) -> 0 | BI17: =IF(OR(BI14=0,BI7=0),0,LOOKUP(BI7,Inputs!$E$33:$AJ$33,Inputs!$E$38:$AJ$38)) -> 0 | BJ17: =IF(OR(BJ14=0,BJ7=0),0,LOOKUP(BJ7,Inputs!$E$33:$AJ$33,Inputs!$E$38:$AJ$38)) -> 0 | BK17: =IF(OR(BK14=0,BK7=0),0,LOOKUP(BK7,Inputs!$E$33:$AJ$33,Inputs!$E$38:$AJ$38)) -> 0 | BL17: =IF(OR(BL14=0,BL7=0),0,LOOKUP(BL7,Inputs!$E$33:$AJ$33,Inputs!$E$38:$AJ$38)) -> 0
B18: Waste Mined | C18: tonnes | H18: =SUM(I18:BL18) -> 30458000 | I18: =I17*-I14 -> 0 | J18: =J17*-J14 -> 0 | K18: 0 | L18: 0 | M18: 970000 | N18: 970000 | O18: 970000 | P18: 970000 | Q18: 970000 | R18: 970000 | S18: 970000 | T18: 970000 | U18: 970000 | V18: 970000 | W18: 970000 | X18: 970000 | Y18: 970000 | Z18: 970000 | AA18: 970000 | AB18: 970000 | AC18: 970000 | AD18: 970000 | AE18: 970000 | AF18: 970000 | AG18: 970000 | AH18: 970000 | AI18: 970000 | AJ18: 970000 | AK18: 970000 | AL18: 970000 | AM18: 970000 | AN18: 970000 | AO18: =AO17*-AO14 -> 970000 | AP18: 970000 | AQ18: 970000 | AR18: 388000 | AS18: 0 | AT18: 0 | AU18: 0 | AV18: 0 | AW18: 0 | AX18: 0 | AY18: 0 | AZ18: 0 | BA18: 0 | BB18: 0 | BC18: 0 | BD18: 0 | BE18: 0 | BF18: 0 | BG18: 0 | BH18: 0 | BI18: 0 | BJ18: 0 | BK18: 0 | BL18: 0
B19: Total Earth Moved | C19: tonnes | H19: =SUM(I19:BL19) -> 33598000 | I19: =-I14+I18 -> 0 | J19: =-J14+J18 -> 0 | K19: 0 | L19: 0 | M19: =-M14+M18 -> 1070000 | N19: 1070000 | O19: 1070000 | P19: 1070000 | Q19: 1070000 | R19: 1070000 | S19: 1070000 | T19: 1070000 | U19: 1070000 | V19: 1070000 | W19: 1070000 | X19: 1070000 | Y19: 1070000 | Z19: 1070000 | AA19: 1070000 | AB19: 1070000 | AC19: 1070000 | AD19: 1070000 | AE19: 1070000 | AF19: 1070000 | AG19: 1070000 | AH19: 1070000 | AI19: 1070000 | AJ19: 1070000 | AK19: 1070000 | AL19: 1070000 | AM19: 1070000 | AN19: 1070000 | AO19: 1070000 | AP19: 1070000 | AQ19: 1070000 | AR19: 428000 | AS19: 0 | AT19: 0 | AU19: 0 | AV19: 0 | AW19: 0 | AX19: 0 | AY19: 0 | AZ19: 0 | BA19: 0 | BB19: 0 | BC19: 0 | BD19: 0 | BE19: 0 | BF19: 0 | BG19: 0 | BH19: 0 | BI19: 0 | BJ19: 0 | BK19: 0 | BL19: 0
B21: Ore mined | C21: tonnes | H21: =SUM(I21:BL21) -> 3140000 | I21: =-I14 -> 0 | J21: =-J14 -> 0 | K21: 0 | L21: 0 | M21: 100000 | N21: 100000 | O21: 100000 | P21: 100000 | Q21: 100000 | R21: 100000 | S21: 100000 | T21: 100000 | U21: 100000 | V21: 100000 | W21: 100000 | X21: 100000 | Y21: 100000 | Z21: 100000 | AA21: 100000 | AB21: 100000 | AC21: 100000 | AD21: 100000 | AE21: 100000 | AF21: 100000 | AG21: 100000 | AH21: 100000 | AI21: 100000 | AJ21: 100000 | AK21: 100000 | AL21: 100000 | AM21: 100000 | AN21: 100000 | AO21: 100000 | AP21: 100000 | AQ21: 100000 | AR21: 40000 | AS21: 0 | AT21: 0 | AU21: 0 | AV21: 0 | AW21: 0 | AX21: =-AX14 -> 0 | AY21: 0 | AZ21: 0 | BA21: 0 | BB21: 0 | BC21: 0 | BD21: 0 | BE21: 0 | BF21: 0 | BG21: 0 | BH21: 0 | BI21: 0 | BJ21: 0 | BK21: 0 | BL21: 0
B22: Tungsten Grade | C22: % | I22: =IF(OR(I14=0,I7=0),0,LOOKUP(I7,Inputs!$E$33:$AJ$33,Inputs!$E$35:$AJ$35)) -> 0 | J22: =IF(OR(J14=0,J7=0),0,LOOKUP(J7,Inputs!$E$33:$AJ$33,Inputs!$E$35:$AJ$35)) -> 0 | K22: =IF(OR(K14=0,K7=0),0,LOOKUP(K7,Inputs!$E$33:$AJ$33,Inputs!$E$35:$AJ$35)) -> 0 | L22: =IF(OR(L14=0,L7=0),0,LOOKUP(L7,Inputs!$E$33:$AJ$33,Inputs!$E$35:$AJ$35)) -> 0 | M22: =IF(OR(M14=0,M7=0),0,LOOKUP(M7,Inputs!$E$33:$AJ$33,Inputs!$E$35:$AJ$35)) -> 0.0073 | N22: =IF(OR(N14=0,N7=0),0,LOOKUP(N7,Inputs!$E$33:$AJ$33,Inputs!$E$35:$AJ$35)) -> 0.0073 | O22: =IF(OR(O14=0,O7=0),0,LOOKUP(O7,Inputs!$E$33:$AJ$33,Inputs!$E$35:$AJ$35)) -> 0.0073 | P22: =IF(OR(P14=0,P7=0),0,LOOKUP(P7,Inputs!$E$33:$AJ$33,Inputs!$E$35:$AJ$35)) -> 0.0073 | Q22: =IF(OR(Q14=0,Q7=0),0,LOOKUP(Q7,Inputs!$E$33:$AJ$33,Inputs!$E$35:$AJ$35)) -> 0.0073 | R22: =IF(OR(R14=0,R7=0),0,LOOKUP(R7,Inputs!$E$33:$AJ$33,Inputs!$E$35:$AJ$35)) -> 0.0073 | S22: =IF(OR(S14=0,S7=0),0,LOOKUP(S7,Inputs!$E$33:$AJ$33,Inputs!$E$35:$AJ$35)) -> 0.0073 | T22: =IF(OR(T14=0,T7=0),0,LOOKUP(T7,Inputs!$E$33:$AJ$33,Inputs!$E$35:$AJ$35)) -> 0.0073 | U22: =IF(OR(U14=0,U7=0),0,LOOKUP(U7,Inputs!$E$33:$AJ$33,Inputs!$E$35:$AJ$35)) -> 0.0073 | V22: =IF(OR(V14=0,V7=0),0,LOOKUP(V7,Inputs!$E$33:$AJ$33,Inputs!$E$35:$AJ$35)) -> 0.0073 | W22: =IF(OR(W14=0,W7=0),0,LOOKUP(W7,Inputs!$E$33:$AJ$33,Inputs!$E$35:$AJ$35)) -> 0.0073 | X22: =IF(OR(X14=0,X7=0),0,LOOKUP(X7,Inputs!$E$33:$AJ$33,Inputs!$E$35:$AJ$35)) -> 0.0073 | Y22: =IF(OR(Y14=0,Y7=0),0,LOOKUP(Y7,Inputs!$E$33:$AJ$33,Inputs!$E$35:$AJ$35)) -> 0.0073 | Z22: =IF(OR(Z14=0,Z7=0),0,LOOKUP(Z7,Inputs!$E$33:$AJ$33,Inputs!$E$35:$AJ$35)) -> 0.0073 | AA22: =IF(OR(AA14=0,AA7=0),0,LOOKUP(AA7,Inputs!$E$33:$AJ$33,Inputs!$E$35:$AJ$35)) -> 0.0073 | AB22: =IF(OR(AB14=0,AB7=0),0,LOOKUP(AB7,Inputs!$E$33:$AJ$33,Inputs!$E$35:$AJ$35)) -> 0.0073 | AC22: =IF(OR(AC14=0,AC7=0),0,LOOKUP(AC7,Inputs!$E$33:$AJ$33,Inputs!$E$35:$AJ$35)) -> 0.0073 | AD22: =IF(OR(AD14=0,AD7=0),0,LOOKUP(AD7,Inputs!$E$33:$AJ$33,Inputs!$E$35:$AJ$35)) -> 0.0073 | AE22: =IF(OR(AE14=0,AE7=0),0,LOOKUP(AE7,Inputs!$E$33:$AJ$33,Inputs!$E$35:$AJ$35)) -> 0.0073 | AF22: =IF(OR(AF14=0,AF7=0),0,LOOKUP(AF7,Inputs!$E$33:$AJ$33,Inputs!$E$35:$AJ$35)) -> 0.0073 | AG22: =IF(OR(AG14=0,AG7=0),0,LOOKUP(AG7,Inputs!$E$33:$AJ$33,Inputs!$E$35:$AJ$35)) -> 0.0073 | AH22: =IF(OR(AH14=0,AH7=0),0,LOOKUP(AH7,Inputs!$E$33:$AJ$33,Inputs!$E$35:$AJ$35)) -> 0.0073 | AI22: =IF(OR(AI14=0,AI7=0),0,LOOKUP(AI7,Inputs!$E$33:$AJ$33,Inputs!$E$35:$AJ$35)) -> 0.0073 | AJ22: =IF(OR(AJ14=0,AJ7=0),0,LOOKUP(AJ7,Inputs!$E$33:$AJ$33,Inputs!$E$35:$AJ$35)) -> 0.0073 | AK22: =IF(OR(AK14=0,AK7=0),0,LOOKUP(AK7,Inputs!$E$33:$AJ$33,Inputs!$E$35:$AJ$35)) -> 0.0073 | AL22: =IF(OR(AL14=0,AL7=0),0,LOOKUP(AL7,Inputs!$E$33:$AJ$33,Inputs!$E$35:$AJ$35)) -> 0.0073 | AM22: =IF(OR(AM14=0,AM7=0),0,LOOKUP(AM7,Inputs!$E$33:$AJ$33,Inputs!$E$35:$AJ$35)) -> 0.0073 | AN22: =IF(OR(AN14=0,AN7=0),0,LOOKUP(AN7,Inputs!$E$33:$AJ$33,Inputs!$E$35:$AJ$35)) -> 0.0073 | AO22: =IF(OR(AO14=0,AO7=0),0,LOOKUP(AO7,Inputs!$E$33:$AJ$33,Inputs!$E$35:$AJ$35)) -> 0.0073 | AP22: =IF(OR(AP14=0,AP7=0),0,LOOKUP(AP7,Inputs!$E$33:$AJ$33,Inputs!$E$35:$AJ$35)) -> 0.0073 | AQ22: =IF(OR(AQ14=0,AQ7=0),0,LOOKUP(AQ7,Inputs!$E$33:$AJ$33,Inputs!$E$35:$AJ$35)) -> 0.0073 | AR22: =IF(OR(AR14=0,AR7=0),0,LOOKUP(AR7,Inputs!$E$33:$AJ$33,Inputs!$E$35:$AJ$35)) -> 0.0073 | AS22: =IF(OR(AS14=0,AS7=0),0,LOOKUP(AS7,Inputs!$E$33:$AJ$33,Inputs!$E$35:$AJ$35)) -> 0 | AT22: =IF(OR(AT14=0,AT7=0),0,LOOKUP(AT7,Inputs!$E$33:$AJ$33,Inputs!$E$35:$AJ$35)) -> 0 | AU22: =IF(OR(AU14=0,AU7=0),0,LOOKUP(AU7,Inputs!$E$33:$AJ$33,Inputs!$E$35:$AJ$35)) -> 0 | AV22: =IF(OR(AV14=0,AV7=0),0,LOOKUP(AV7,Inputs!$E$33:$AJ$33,Inputs!$E$35:$AJ$35)) -> 0 | AW22: =IF(OR(AW14=0,AW7=0),0,LOOKUP(AW7,Inputs!$E$33:$AJ$33,Inputs!$E$35:$AJ$35)) -> 0 | AX22: =IF(OR(AX14=0,AX7=0),0,LOOKUP(AX7,Inputs!$E$33:$AJ$33,Inputs!$E$35:$AJ$35)) -> 0 | AY22: =IF(OR(AY14=0,AY7=0),0,LOOKUP(AY7,Inputs!$E$33:$AJ$33,Inputs!$E$35:$AJ$35)) -> 0 | AZ22: =IF(OR(AZ14=0,AZ7=0),0,LOOKUP(AZ7,Inputs!$E$33:$AJ$33,Inputs!$E$35:$AJ$35)) -> 0 | BA22: =IF(OR(BA14=0,BA7=0),0,LOOKUP(BA7,Inputs!$E$33:$AJ$33,Inputs!$E$35:$AJ$35)) -> 0 | BB22: =IF(OR(BB14=0,BB7=0),0,LOOKUP(BB7,Inputs!$E$33:$AJ$33,Inputs!$E$35:$AJ$35)) -> 0 | BC22: =IF(OR(BC14=0,BC7=0),0,LOOKUP(BC7,Inputs!$E$33:$AJ$33,Inputs!$E$35:$AJ$35)) -> 0 | BD22: =IF(OR(BD14=0,BD7=0),0,LOOKUP(BD7,Inputs!$E$33:$AJ$33,Inputs!$E$35:$AJ$35)) -> 0 | BE22: =IF(OR(BE14=0,BE7=0),0,LOOKUP(BE7,Inputs!$E$33:$AJ$33,Inputs!$E$35:$AJ$35)) -> 0 | BF22: =IF(OR(BF14=0,BF7=0),0,LOOKUP(BF7,Inputs!$E$33:$AJ$33,Inputs!$E$35:$AJ$35)) -> 0 | BG22: =IF(OR(BG14=0,BG7=0),0,LOOKUP(BG7,Inputs!$E$33:$AJ$33,Inputs!$E$35:$AJ$35)) -> 0 | BH22: =IF(OR(BH14=0,BH7=0),0,LOOKUP(BH7,Inputs!$E$33:$AJ$33,Inputs!$E$35:$AJ$35)) -> 0 | BI22: =IF(OR(BI14=0,BI7=0),0,LOOKUP(BI7,Inputs!$E$33:$AJ$33,Inputs!$E$35:$AJ$35)) -> 0 | BJ22: =IF(OR(BJ14=0,BJ7=0),0,LOOKUP(BJ7,Inputs!$E$33:$AJ$33,Inputs!$E$35:$AJ$35)) -> 0 | BK22: =IF(OR(BK14=0,BK7=0),0,LOOKUP(BK7,Inputs!$E$33:$AJ$33,Inputs!$E$35:$AJ$35)) -> 0 | BL22: =IF(OR(BL14=0,BL7=0),0,LOOKUP(BL7,Inputs!$E$33:$AJ$33,Inputs!$E$35:$AJ$35)) -> 0
B23: Contained Tungsten | C23: tonnes | H23: =SUM(I23:BL23) -> 22922 | I23: =I21*I22 -> 0 | J23: =J21*J22 -> 0 | K23: 0 | L23: 0 | M23: 730 | N23: 730 | O23: 730 | P23: 730 | Q23: 730 | R23: 730 | S23: 730 | T23: 730 | U23: 730 | V23: 730 | W23: 730 | X23: 730 | Y23: 730 | Z23: 730 | AA23: 730 | AB23: 730 | AC23: 730 | AD23: 730 | AE23: 730 | AF23: 730 | AG23: 730 | AH23: 730 | AI23: 730 | AJ23: 730 | AK23: 730 | AL23: 730 | AM23: 730 | AN23: 730 | AO23: 730 | AP23: 730 | AQ23: 730 | AR23: 292 | AS23: 0 | AT23: 0 | AU23: 0 | AV23: 0 | AW23: 0 | AX23: 0 | AY23: 0 | AZ23: 0 | BA23: 0 | BB23: 0 | BC23: 0 | BD23: 0 | BE23: 0 | BF23: 0 | BG23: 0 | BH23: 0 | BI23: 0 | BJ23: 0 | BK23: 0 | BL23: 0
B25: Milling Schedule
B27: Milling Schedule | C27: tonnes | H27: =SUM(I27:BL27) -> 22922 | I27: =I23 -> 0 | J27: =J23 -> 0 | K27: 0 | L27: 0 | M27: 730 | N27: 730 | O27: 730 | P27: 730 | Q27: 730 | R27: 730 | S27: 730 | T27: 730 | U27: 730 | V27: 730 | W27: 730 | X27: 730 | Y27: 730 | Z27: 730 | AA27: 730 | AB27: 730 | AC27: 730 | AD27: 730 | AE27: 730 | AF27: 730 | AG27: 730 | AH27: 730 | AI27: 730 | AJ27: 730 | AK27: 730 | AL27: 730 | AM27: 730 | AN27: 730 | AO27: 730 | AP27: 730 | AQ27: 730 | AR27: 292 | AS27: 0 | AT27: 0 | AU27: 0 | AV27: 0 | AW27: 0 | AX27: 0 | AY27: 0 | AZ27: 0 | BA27: 0 | BB27: 0 | BC27: 0 | BD27: 0 | BE27: 0 | BF27: 0 | BG27: 0 | BH27: 0 | BI27: 0 | BJ27: 0 | BK27: 0 | BL27: 0
B28: Recoveries | C28: % | I28: =IF(I27=0,0,Inputs!$G$46) -> 0 | J28: =IF(J27=0,0,Inputs!$G$46) -> 0 | K28: =IF(K27=0,0,Inputs!$G$46) -> 0 | L28: =IF(L27=0,0,Inputs!$G$46) -> 0 | M28: =IF(M27=0,0,Inputs!$G$46) -> 0.675 | N28: =IF(N27=0,0,Inputs!$G$46) -> 0.675 | O28: =IF(O27=0,0,Inputs!$G$46) -> 0.675 | P28: =IF(P27=0,0,Inputs!$G$46) -> 0.675 | Q28: =IF(Q27=0,0,Inputs!$G$46) -> 0.675 | R28: =IF(R27=0,0,Inputs!$G$46) -> 0.675 | S28: =IF(S27=0,0,Inputs!$G$46) -> 0.675 | T28: =IF(T27=0,0,Inputs!$G$46) -> 0.675 | U28: =IF(U27=0,0,Inputs!$G$46) -> 0.675 | V28: =IF(V27=0,0,Inputs!$G$46) -> 0.675 | W28: =IF(W27=0,0,Inputs!$G$46) -> 0.675 | X28: =IF(X27=0,0,Inputs!$G$46) -> 0.675 | Y28: =IF(Y27=0,0,Inputs!$G$46) -> 0.675 | Z28: =IF(Z27=0,0,Inputs!$G$46) -> 0.675 | AA28: =IF(AA27=0,0,Inputs!$G$46) -> 0.675 | AB28: =IF(AB27=0,0,Inputs!$G$46) -> 0.675 | AC28: =IF(AC27=0,0,Inputs!$G$46) -> 0.675 | AD28: =IF(AD27=0,0,Inputs!$G$46) -> 0.675 | AE28: =IF(AE27=0,0,Inputs!$G$46) -> 0.675 | AF28: =IF(AF27=0,0,Inputs!$G$46) -> 0.675 | AG28: =IF(AG27=0,0,Inputs!$G$46) -> 0.675 | AH28: =IF(AH27=0,0,Inputs!$G$46) -> 0.675 | AI28: =IF(AI27=0,0,Inputs!$G$46) -> 0.675 | AJ28: =IF(AJ27=0,0,Inputs!$G$46) -> 0.675 | AK28: =IF(AK27=0,0,Inputs!$G$46) -> 0.675 | AL28: =IF(AL27=0,0,Inputs!$G$46) -> 0.675 | AM28: =IF(AM27=0,0,Inputs!$G$46) -> 0.675 | AN28: =IF(AN27=0,0,Inputs!$G$46) -> 0.675 | AO28: =IF(AO27=0,0,Inputs!$G$46) -> 0.675 | AP28: =IF(AP27=0,0,Inputs!$G$46) -> 0.675 | AQ28: =IF(AQ27=0,0,Inputs!$G$46) -> 0.675 | AR28: =IF(AR27=0,0,Inputs!$G$46) -> 0.675 | AS28: =IF(AS27=0,0,Inputs!$G$46) -> 0 | AT28: =IF(AT27=0,0,Inputs!$G$46) -> 0 | AU28: =IF(AU27=0,0,Inputs!$G$46) -> 0 | AV28: =IF(AV27=0,0,Inputs!$G$46) -> 0 | AW28: =IF(AW27=0,0,Inputs!$G$46) -> 0 | AX28: =IF(AX27=0,0,Inputs!$G$46) -> 0 | AY28: =IF(AY27=0,0,Inputs!$G$46) -> 0 | AZ28: =IF(AZ27=0,0,Inputs!$G$46) -> 0 | BA28: =IF(BA27=0,0,Inputs!$G$46) -> 0 | BB28: =IF(BB27=0,0,Inputs!$G$46) -> 0 | BC28: =IF(BC27=0,0,Inputs!$G$46) -> 0 | BD28: =IF(BD27=0,0,Inputs!$G$46) -> 0 | BE28: =IF(BE27=0,0,Inputs!$G$46) -> 0 | BF28: =IF(BF27=0,0,Inputs!$G$46) -> 0 | BG28: =IF(BG27=0,0,Inputs!$G$46) -> 0 | BH28: =IF(BH27=0,0,Inputs!$G$46) -> 0 | BI28: =IF(BI27=0,0,Inputs!$G$46) -> 0 | BJ28: =IF(BJ27=0,0,Inputs!$G$46) -> 0 | BK28: =IF(BK27=0,0,Inputs!$G$46) -> 0 | BL28: =IF(BL27=0,0,Inputs!$G$46) -> 0
B29: Production | C29: tonnes | H29: =SUM(I29:BL29) -> 15472.35 | I29: =I27*I28 -> 0 | J29: =J27*J28 -> 0 | K29: 0 | L29: 0 | M29: 492.75 | N29: 492.75 | O29: 492.75 | P29: 492.75 | Q29: 492.75 | R29: 492.75 | S29: 492.75 | T29: 492.75 | U29: 492.75 | V29: 492.75 | W29: 492.75 | X29: 492.75 | Y29: 492.75 | Z29: 492.75 | AA29: 492.75 | AB29: 492.75 | AC29: 492.75 | AD29: 492.75 | AE29: 492.75 | AF29: 492.75 | AG29: 492.75 | AH29: 492.75 | AI29: 492.75 | AJ29: 492.75 | AK29: 492.75 | AL29: 492.75 | AM29: 492.75 | AN29: 492.75 | AO29: 492.75 | AP29: 492.75 | AQ29: 492.75 | AR29: 197.1 | AS29: 0 | AT29: 0 | AU29: 0 | AV29: 0 | AW29: 0 | AX29: 0 | AY29: 0 | AZ29: 0 | BA29: 0 | BB29: 0 | BC29: 0 | BD29: 0 | BE29: 0 | BF29: 0 | BG29: 0 | BH29: 0 | BI29: 0 | BJ29: 0 | BK29: 0 | BL29: 0
B30: Cocentrate Grade | C30: % | I30: =IF(I29=0,0,Inputs!$E$47) -> 0 | J30: =IF(J29=0,0,Inputs!$E$47) -> 0 | K30: =IF(K29=0,0,Inputs!$E$47) -> 0 | L30: =IF(L29=0,0,Inputs!$E$47) -> 0 | M30: =IF(M29=0,0,Inputs!$E$47) -> 0.6 | N30: =IF(N29=0,0,Inputs!$E$47) -> 0.6 | O30: =IF(O29=0,0,Inputs!$E$47) -> 0.6 | P30: =IF(P29=0,0,Inputs!$E$47) -> 0.6 | Q30: =IF(Q29=0,0,Inputs!$E$47) -> 0.6 | R30: =IF(R29=0,0,Inputs!$E$47) -> 0.6 | S30: =IF(S29=0,0,Inputs!$E$47) -> 0.6 | T30: =IF(T29=0,0,Inputs!$E$47) -> 0.6 | U30: =IF(U29=0,0,Inputs!$E$47) -> 0.6 | V30: =IF(V29=0,0,Inputs!$E$47) -> 0.6 | W30: =IF(W29=0,0,Inputs!$E$47) -> 0.6 | X30: =IF(X29=0,0,Inputs!$E$47) -> 0.6 | Y30: =IF(Y29=0,0,Inputs!$E$47) -> 0.6 | Z30: =IF(Z29=0,0,Inputs!$E$47) -> 0.6 | AA30: =IF(AA29=0,0,Inputs!$E$47) -> 0.6 | AB30: =IF(AB29=0,0,Inputs!$E$47) -> 0.6 | AC30: =IF(AC29=0,0,Inputs!$E$47) -> 0.6 | AD30: =IF(AD29=0,0,Inputs!$E$47) -> 0.6 | AE30: =IF(AE29=0,0,Inputs!$E$47) -> 0.6 | AF30: =IF(AF29=0,0,Inputs!$E$47) -> 0.6 | AG30: =IF(AG29=0,0,Inputs!$E$47) -> 0.6 | AH30: =IF(AH29=0,0,Inputs!$E$47) -> 0.6 | AI30: =IF(AI29=0,0,Inputs!$E$47) -> 0.6 | AJ30: =IF(AJ29=0,0,Inputs!$E$47) -> 0.6 | AK30: =IF(AK29=0,0,Inputs!$E$47) -> 0.6 | AL30: =IF(AL29=0,0,Inputs!$E$47) -> 0.6 | AM30: =IF(AM29=0,0,Inputs!$E$47) -> 0.6 | AN30: =IF(AN29=0,0,Inputs!$E$47) -> 0.6 | AO30: =IF(AO29=0,0,Inputs!$E$47) -> 0.6 | AP30: =IF(AP29=0,0,Inputs!$E$47) -> 0.6 | AQ30: =IF(AQ29=0,0,Inputs!$E$47) -> 0.6 | AR30: =IF(AR29=0,0,Inputs!$E$47) -> 0.6 | AS30: =IF(AS29=0,0,Inputs!$E$47) -> 0 | AT30: =IF(AT29=0,0,Inputs!$E$47) -> 0 | AU30: =IF(AU29=0,0,Inputs!$E$47) -> 0 | AV30: =IF(AV29=0,0,Inputs!$E$47) -> 0 | AW30: =IF(AW29=0,0,Inputs!$E$47) -> 0 | AX30: =IF(AX29=0,0,Inputs!$E$47) -> 0 | AY30: =IF(AY29=0,0,Inputs!$E$47) -> 0 | AZ30: =IF(AZ29=0,0,Inputs!$E$47) -> 0 | BA30: =IF(BA29=0,0,Inputs!$E$47) -> 0 | BB30: =IF(BB29=0,0,Inputs!$E$47) -> 0 | BC30: =IF(BC29=0,0,Inputs!$E$47) -> 0 | BD30: =IF(BD29=0,0,Inputs!$E$47) -> 0 | BE30: =IF(BE29=0,0,Inputs!$E$47) -> 0 | BF30: =IF(BF29=0,0,Inputs!$E$47) -> 0 | BG30: =IF(BG29=0,0,Inputs!$E$47) -> 0 | BH30: =IF(BH29=0,0,Inputs!$E$47) -> 0 | BI30: =IF(BI29=0,0,Inputs!$E$47) -> 0 | BJ30: =IF(BJ29=0,0,Inputs!$E$47) -> 0 | BK30: =IF(BK29=0,0,Inputs!$E$47) -> 0 | BL30: =IF(BL29=0,0,Inputs!$E$47) -> 0
B31: Tungsten Concentrate Production | C31: tonnes | H31: =SUM(I31:BL31) -> 25787.25 | I31: =IF(I29=0,0,I29/I30) -> 0 | J31: =IF(J29=0,0,J29/J30) -> 0 | K31: 0 | L31: 0 | M31: 821.25 | N31: 821.25 | O31: 821.25 | P31: 821.25 | Q31: 821.25 | R31: 821.25 | S31: 821.25 | T31: 821.25 | U31: 821.25 | V31: 821.25 | W31: 821.25 | X31: 821.25 | Y31: 821.25 | Z31: 821.25 | AA31: 821.25 | AB31: 821.25 | AC31: 821.25 | AD31: 821.25 | AE31: 821.25 | AF31: 821.25 | AG31: 821.25 | AH31: 821.25 | AI31: 821.25 | AJ31: 821.25 | AK31: 821.25 | AL31: 821.25 | AM31: 821.25 | AN31: 821.25 | AO31: 821.25 | AP31: 821.25 | AQ31: 821.25 | AR31: 328.5 | AS31: 0 | AT31: 0 | AU31: 0 | AV31: 0 | AW31: 0 | AX31: 0 | AY31: 0 | AZ31: 0 | BA31: 0 | BB31: 0 | BC31: 0 | BD31: 0 | BE31: 0 | BF31: 0 | BG31: 0 | BH31: 0 | BI31: 0 | BJ31: 0 | BK31: 0 | BL31: 0
B33: Conversion - Tonnes to Metric Tonne Unit
B35: Ore mined | C35: mtu | H35: =SUM(I35:BL35) -> 314000000 | I35: =I21*100 -> 0 | J35: =J21*100 -> 0 | K35: 0 | L35: 0 | M35: 10000000 | N35: 10000000 | O35: 10000000 | P35: 10000000 | Q35: 10000000 | R35: 10000000 | S35: 10000000 | T35: 10000000 | U35: 10000000 | V35: 10000000 | W35: 10000000 | X35: 10000000 | Y35: 10000000 | Z35: 10000000 | AA35: 10000000 | AB35: 10000000 | AC35: 10000000 | AD35: 10000000 | AE35: 10000000 | AF35: 10000000 | AG35: 10000000 | AH35: 10000000 | AI35: 10000000 | AJ35: 10000000 | AK35: 10000000 | AL35: 10000000 | AM35: 10000000 | AN35: 10000000 | AO35: 10000000 | AP35: 10000000 | AQ35: 10000000 | AR35: 4000000 | AS35: 0 | AT35: 0 | AU35: 0 | AV35: 0 | AW35: 0 | AX35: 0 | AY35: 0 | AZ35: 0 | BA35: 0 | BB35: 0 | BC35: 0 | BD35: 0 | BE35: 0 | BF35: 0 | BG35: 0 | BH35: 0 | BI35: 0 | BJ35: 0 | BK35: 0 | BL35: 0
B36: Contained Tungsten | C36: mtu | H36: =SUM(I36:BL36) -> 2292200 | I36: =I23*100 -> 0 | J36: =J23*100 -> 0 | K36: 0 | L36: 0 | M36: 73000 | N36: 73000 | O36: 73000 | P36: 73000 | Q36: 73000 | R36: 73000 | S36: 73000 | T36: 73000 | U36: 73000 | V36: 73000 | W36: 73000 | X36: 73000 | Y36: 73000 | Z36: 73000 | AA36: 73000 | AB36: 73000 | AC36: 73000 | AD36: 73000 | AE36: 73000 | AF36: 73000 | AG36: 73000 | AH36: 73000 | AI36: 73000 | AJ36: 73000 | AK36: 73000 | AL36: 73000 | AM36: 73000 | AN36: 73000 | AO36: 73000 | AP36: 73000 | AQ36: 73000 | AR36: 29200 | AS36: 0 | AT36: 0 | AU36: 0 | AV36: 0 | AW36: 0 | AX36: 0 | AY36: 0 | AZ36: 0 | BA36: 0 | BB36: 0 | BC36: 0 | BD36: 0 | BE36: 0 | BF36: 0 | BG36: 0 | BH36: 0 | BI36: 0 | BJ36: 0 | BK36: 0 | BL36: 0
B37: Tungsten Production | C37: mtu | H37: =SUM(I37:BL37) -> 2578725 | I37: =I31*100 -> 0 | J37: =J31*100 -> 0 | K37: 0 | L37: 0 | M37: 82125 | N37: 82125 | O37: 82125 | P37: 82125 | Q37: 82125 | R37: 82125 | S37: 82125 | T37: 82125 | U37: 82125 | V37: 82125 | W37: 82125 | X37: 82125 | Y37: 82125 | Z37: 82125 | AA37: 82125 | AB37: 82125 | AC37: 82125 | AD37: 82125 | AE37: 82125 | AF37: 82125 | AG37: 82125 | AH37: 82125 | AI37: 82125 | AJ37: 82125 | AK37: 82125 | AL37: 82125 | AM37: 82125 | AN37: 82125 | AO37: 82125 | AP37: 82125 | AQ37: 82125 | AR37: 32850 | AS37: 0 | AT37: 0 | AU37: 0 | AV37: 0 | AW37: 0 | AX37: 0 | AY37: 0 | AZ37: 0 | BA37: 0 | BB37: 0 | BC37: 0 | BD37: 0 | BE37: 0 | BF37: 0 | BG37: 0 | BH37: 0 | BI37: 0 | BJ37: 0 | BK37: 0 | BL37: 0
B38: Tungsten Concentrate Production | C38: mtu | H38: =SUM(I38:BL38) -> 2578725 | I38: =I31*100 -> 0 | J38: =J31*100 -> 0 | K38: 0 | L38: 0 | M38: 82125 | N38: 82125 | O38: 82125 | P38: 82125 | Q38: 82125 | R38: 82125 | S38: 82125 | T38: 82125 | U38: 82125 | V38: 82125 | W38: 82125 | X38: 82125 | Y38: 82125 | Z38: 82125 | AA38: 82125 | AB38: 82125 | AC38: 82125 | AD38: 82125 | AE38: 82125 | AF38: 82125 | AG38: 82125 | AH38: 82125 | AI38: 82125 | AJ38: 82125 | AK38: 82125 | AL38: 82125 | AM38: 82125 | AN38: 82125 | AO38: 82125 | AP38: 82125 | AQ38: 82125 | AR38: 32850 | AS38: 0 | AT38: 0 | AU38: 0 | AV38: 0 | AW38: 0 | AX38: 0 | AY38: 0 | AZ38: 0 | BA38: 0 | BB38: 0 | BC38: 0 | BD38: 0 | BE38: 0 | BF38: 0 | BG38: 0 | BH38: 0 | BI38: 0 | BJ38: 0 | BK38: 0 | BL38: 0

Sheet T&A
A1: Tax and accounting
A2: =Name_Project -> King Island Valuation | E2: =Master_check -> 0
C4: Period Start | J4: =Timing!J4 -> 2019-01-01 | K4: =Timing!K4 -> 2019-04-01 | L4: =Timing!L4 -> 2019-07-01 | M4: =Timing!M4 -> 2019-10-01 | N4: =Timing!N4 -> 2020-01-01 | O4: =Timing!O4 -> 2020-04-01 | P4: =Timing!P4 -> 2020-07-01 | Q4: =Timing!Q4 -> 2020-10-01 | R4: =Timing!R4 -> 2021-01-01 | S4: =Timing!S4 -> 2021-04-01 | T4: =Timing!T4 -> 2021-07-01 | U4: =Timing!U4 -> 2021-10-01 | V4: =Timing!V4 -> 2022-01-01 | W4: =Timing!W4 -> 2022-04-01 | X4: =Timing!X4 -> 2022-07-01 | Y4: =Timing!Y4 -> 2022-10-01 | Z4: =Timing!Z4 -> 2023-01-01 | AA4: =Timing!AA4 -> 2023-04-01 | AB4: =Timing!AB4 -> 2023-07-01 | AC4: =Timing!AC4 -> 2023-10-01 | AD4: =Timing!AD4 -> 2024-01-01 | AE4: =Timing!AE4 -> 2024-04-01 | AF4: =Timing!AF4 -> 2024-07-01 | AG4: =Timing!AG4 -> 2024-10-01 | AH4: =Timing!AH4 -> 2025-01-01 | AI4: =Timing!AI4 -> 2025-04-01 | AJ4: =Timing!AJ4 -> 2025-07-01 | AK4: =Timing!AK4 -> 2025-10-01 | AL4: =Timing!AL4 -> 2026-01-01 | AM4: =Timing!AM4 -> 2026-04-01 | AN4: =Timing!AN4 -> 2026-07-01 | AO4: =Timing!AO4 -> 2026-10-01 | AP4: =Timing!AP4 -> 2027-01-01 | AQ4: =Timing!AQ4 -> 2027-04-01 | AR4: =Timing!AR4 -> 2027-07-01 | AS4: =Timing!AS4 -> 2027-10-01 | AT4: =Timing!AT4 -> 2028-01-01 | AU4: =Timing!AU4 -> 2028-04-01 | AV4: =Timing!AV4 -> 2028-07-01 | AW4: =Timing!AW4 -> 2028-10-01 | AX4: =Timing!AX4 -> 2029-01-01 | AY4: =Timing!AY4 -> 2029-04-01 | AZ4: =Timing!AZ4 -> 2029-07-01 | BA4: =Timing!BA4 -> 2029-10-01 | BB4: =Timing!BB4 -> 2030-01-01 | BC4: =Timing!BC4 -> 2030-04-01 | BD4: =Timing!BD4 -> 2030-07-01 | BE4: =Timing!BE4 -> 2030-10-01 | BF4: =Timing!BF4 -> 2031-01-01 | BG4: =Timing!BG4 -> 2031-04-01 | BH4: =Timing!BH4 -> 2031-07-01 | BI4: =Timing!BI4 -> 2031-10-01 | BJ4: =Timing!BJ4 -> 2032-01-01 | BK4: =Timing!BK4 -> 2032-04-01 | BL4: =Timing!BL4 -> 2032-07-01 | BM4: =Timing!BM4 -> 2032-10-01
C5: Period End | I5: =Timing!I5 -> 2018-12-31 | J5: =Timing!J5 -> 2019-03-31 | K5: =Timing!K5 -> 2019-06-30 | L5: =Timing!L5 -> 2019-09-30 | M5: =Timing!M5 -> 2019-12-31 | N5: =Timing!N5 -> 2020-03-31 | O5: =Timing!O5 -> 2020-06-30 | P5: =Timing!P5 -> 2020-09-30 | Q5: =Timing!Q5 -> 2020-12-31 | R5: =Timing!R5 -> 2021-03-31 | S5: =Timing!S5 -> 2021-06-30 | T5: =Timing!T5 -> 2021-09-30 | U5: =Timing!U5 -> 2021-12-31 | V5: =Timing!V5 -> 2022-03-31 | W5: =Timing!W5 -> 2022-06-30 | X5: =Timing!X5 -> 2022-09-30 | Y5: =Timing!Y5 -> 2022-12-31 | Z5: =Timing!Z5 -> 2023-03-31 | AA5: =Timing!AA5 -> 2023-06-30 | AB5: =Timing!AB5 -> 2023-09-30 | AC5: =Timing!AC5 -> 2023-12-31 | AD5: =Timing!AD5 -> 2024-03-31 | AE5: =Timing!AE5 -> 2024-06-30 | AF5: =Timing!AF5 -> 2024-09-30 | AG5: =Timing!AG5 -> 2024-12-31 | AH5: =Timing!AH5 -> 2025-03-31 | AI5: =Timing!AI5 -> 2025-06-30 | AJ5: =Timing!AJ5 -> 2025-09-30 | AK5: =Timing!AK5 -> 2025-12-31 | AL5: =Timing!AL5 -> 2026-03-31 | AM5: =Timing!AM5 -> 2026-06-30 | AN5: =Timing!AN5 -> 2026-09-30 | AO5: =Timing!AO5 -> 2026-12-31 | AP5: =Timing!AP5 -> 2027-03-31 | AQ5: =Timing!AQ5 -> 2027-06-30 | AR5: =Timing!AR5 -> 2027-09-30 | AS5: =Timing!AS5 -> 2027-12-31 | AT5: =Timing!AT5 -> 2028-03-31 | AU5: =Timing!AU5 -> 2028-06-30 | AV5: =Timing!AV5 -> 2028-09-30 | AW5: =Timing!AW5 -> 2028-12-31 | AX5: =Timing!AX5 -> 2029-03-31 | AY5: =Timing!AY5 -> 2029-06-30 | AZ5: =Timing!AZ5 -> 2029-09-30 | BA5: =Timing!BA5 -> 2029-12-31 | BB5: =Timing!BB5 -> 2030-03-31 | BC5: =Timing!BC5 -> 2030-06-30 | BD5: =Timing!BD5 -> 2030-09-30 | BE5: =Timing!BE5 -> 2030-12-31 | BF5: =Timing!BF5 -> 2031-03-31 | BG5: =Timing!BG5 -> 2031-06-30 | BH5: =Timing!BH5 -> 2031-09-30 | BI5: =Timing!BI5 -> 2031-12-31 | BJ5: =Timing!BJ5 -> 2032-03-31 | BK5: =Timing!BK5 -> 2032-06-30 | BL5: =Timing!BL5 -> 2032-09-30 | BM5: =Timing!BM5 -> 2032-12-31
C6: Development | D6: =Timing!D6 -> 2019-01-01 | E6: =Timing!E6 -> 2019-12-31 | J6: =Timing!J6 -> 1 | K6: =Timing!K6 -> 1 | L6: =Timing!L6 -> 1 | M6: =Timing!M6 -> 1 | N6: =Timing!N6 -> 0 | O6: =Timing!O6 -> 0 | P6: =Timing!P6 -> 0 | Q6: =Timing!Q6 -> 0 | R6: =Timing!R6 -> 0 | S6: =Timing!S6 -> 0 | T6: =Timing!T6 -> 0 | U6: =Timing!U6 -> 0 | V6: =Timing!V6 -> 0 | W6: =Timing!W6 -> 0 | X6: =Timing!X6 -> 0 | Y6: =Timing!Y6 -> 0 | Z6: =Timing!Z6 -> 0 | AA6: =Timing!AA6 -> 0 | AB6: =Timing!AB6 -> 0 | AC6: =Timing!AC6 -> 0 | AD6: =Timing!AD6 -> 0 | AE6: =Timing!AE6 -> 0 | AF6: =Timing!AF6 -> 0 | AG6: =Timing!AG6 -> 0 | AH6: =Timing!AH6 -> 0 | AI6: =Timing!AI6 -> 0 | AJ6: =Timing!AJ6 -> 0 | AK6: =Timing!AK6 -> 0 | AL6: =Timing!AL6 -> 0 | AM6: =Timing!AM6 -> 0 | AN6: =Timing!AN6 -> 0 | AO6: =Timing!AO6 -> 0 | AP6: =Timing!AP6 -> 0 | AQ6: =Timing!AQ6 -> 0 | AR6: =Timing!AR6 -> 0 | AS6: =Timing!AS6 -> 0 | AT6: =Timing!AT6 -> 0 | AU6: =Timing!AU6 -> 0 | AV6: =Timing!AV6 -> 0 | AW6: =Timing!AW6 -> 0 | AX6: =Timing!AX6 -> 0 | AY6: =Timing!AY6 -> 0 | AZ6: =Timing!AZ6 -> 0 | BA6: =Timing!BA6 -> 0 | BB6: =Timing!BB6 -> 0 | BC6: =Timing!BC6 -> 0 | BD6: =Timing!BD6 -> 0 | BE6: =Timing!BE6 -> 0 | BF6: =Timing!BF6 -> 0 | BG6: =Timing!BG6 -> 0 | BH6: =Timing!BH6 -> 0 | BI6: =Timing!BI6 -> 0 | BJ6: =Timing!BJ6 -> 0 | BK6: =Timing!BK6 -> 0 | BL6: =Timing!BL6 -> 0 | BM6: =Timing!BM6 -> 0
C7: Production | D7: =Timing!D7 -> 2020-01-01 | E7: =Timing!E7 -> 2027-12-31 | J7: =Timing!J7 -> 0 | K7: =Timing!K7 -> 0 | L7: =Timing!L7 -> 0 | M7: =Timing!M7 -> 0 | N7: =Timing!N7 -> 1 | O7: =Timing!O7 -> 1 | P7: =Timing!P7 -> 1 | Q7: =Timing!Q7 -> 1 | R7: =Timing!R7 -> 1 | S7: =Timing!S7 -> 1 | T7: =Timing!T7 -> 1 | U7: =Timing!U7 -> 1 | V7: =Timing!V7 -> 1 | W7: =Timing!W7 -> 1 | X7: =Timing!X7 -> 1 | Y7: =Timing!Y7 -> 1 | Z7: =Timing!Z7 -> 1 | AA7: =Timing!AA7 -> 1 | AB7: =Timing!AB7 -> 1 | AC7: =Timing!AC7 -> 1 | AD7: =Timing!AD7 -> 1 | AE7: =Timing!AE7 -> 1 | AF7: =Timing!AF7 -> 1 | AG7: =Timing!AG7 -> 1 | AH7: =Timing!AH7 -> 1 | AI7: =Timing!AI7 -> 1 | AJ7: =Timing!AJ7 -> 1 | AK7: =Timing!AK7 -> 1 | AL7: =Timing!AL7 -> 1 | AM7: =Timing!AM7 -> 1 | AN7: =Timing!AN7 -> 1 | AO7: =Timing!AO7 -> 1 | AP7: =Timing!AP7 -> 1 | AQ7: =Timing!AQ7 -> 1 | AR7: =Timing!AR7 -> 1 | AS7: =Timing!AS7 -> 1 | AT7: =Timing!AT7 -> 0 | AU7: =Timing!AU7 -> 0 | AV7: =Timing!AV7 -> 0 | AW7: =Timing!AW7 -> 0 | AX7: =Timing!AX7 -> 0 | AY7: =Timing!AY7 -> 0 | AZ7: =Timing!AZ7 -> 0 | BA7: =Timing!BA7 -> 0 | BB7: =Timing!BB7 -> 0 | BC7: =Timing!BC7 -> 0 | BD7: =Timing!BD7 -> 0 | BE7: =Timing!BE7 -> 0 | BF7: =Timing!BF7 -> 0 | BG7: =Timing!BG7 -> 0 | BH7: =Timing!BH7 -> 0 | BI7: =Timing!BI7 -> 0 | BJ7: =Timing!BJ7 -> 0 | BK7: =Timing!BK7 -> 0 | BL7: =Timing!BL7 -> 0 | BM7: =Timing!BM7 -> 0
C8: Restoration | D8: =Timing!D8 -> 2028-01-01 | E8: =Timing!E8 -> 2027-12-31 | J8: =Timing!J8 -> 0 | K8: =Timing!K8 -> 0 | L8: =Timing!L8 -> 0 | M8: =Timing!M8 -> 0 | N8: =Timing!N8 -> 0 | O8: =Timing!O8 -> 0 | P8: =Timing!P8 -> 0 | Q8: =Timing!Q8 -> 0 | R8: =Timing!R8 -> 0 | S8: =Timing!S8 -> 0 | T8: =Timing!T8 -> 0 | U8: =Timing!U8 -> 0 | V8: =Timing!V8 -> 0 | W8: =Timing!W8 -> 0 | X8: =Timing!X8 -> 0 | Y8: =Timing!Y8 -> 0 | Z8: =Timing!Z8 -> 0 | AA8: =Timing!AA8 -> 0 | AB8: =Timing!AB8 -> 0 | AC8: =Timing!AC8 -> 0 | AD8: =Timing!AD8 -> 0 | AE8: =Timing!AE8 -> 0 | AF8: =Timing!AF8 -> 0 | AG8: =Timing!AG8 -> 0 | AH8: =Timing!AH8 -> 0 | AI8: =Timing!AI8 -> 0 | AJ8: =Timing!AJ8 -> 0 | AK8: =Timing!AK8 -> 0 | AL8: =Timing!AL8 -> 0 | AM8: =Timing!AM8 -> 0 | AN8: =Timing!AN8 -> 0 | AO8: =Timing!AO8 -> 0 | AP8: =Timing!AP8 -> 0 | AQ8: =Timing!AQ8 -> 0 | AR8: =Timing!AR8 -> 0 | AS8: =Timing!AS8 -> 0 | AT8: =Timing!AT8 -> 0 | AU8: =Timing!AU8 -> 0 | AV8: =Timing!AV8 -> 0 | AW8: =Timing!AW8 -> 0 | AX8: =Timing!AX8 -> 0 | AY8: =Timing!AY8 -> 0 | AZ8: =Timing!AZ8 -> 0 | BA8: =Timing!BA8 -> 0 | BB8: =Timing!BB8 -> 0 | BC8: =Timing!BC8 -> 0 | BD8: =Timing!BD8 -> 0 | BE8: =Timing!BE8 -> 0 | BF8: =Timing!BF8 -> 0 | BG8: =Timing!BG8 -> 0 | BH8: =Timing!BH8 -> 0 | BI8: =Timing!BI8 -> 0 | BJ8: =Timing!BJ8 -> 0 | BK8: =Timing!BK8 -> 0 | BL8: =Timing!BL8 -> 0 | BM8: =Timing!BM8 -> 0
C10: Timing counters
C12: Production quarter | D12: Num# | J12: =Timing!J13 -> 0 | K12: =Timing!K13 -> 0 | L12: =Timing!L13 -> 0 | M12: =Timing!M13 -> 0 | N12: =Timing!N13 -> 1 | O12: =Timing!O13 -> 2 | P12: =Timing!P13 -> 3 | Q12: =Timing!Q13 -> 4 | R12: =Timing!R13 -> 5 | S12: =Timing!S13 -> 6 | T12: =Timing!T13 -> 7 | U12: =Timing!U13 -> 8 | V12: =Timing!V13 -> 9 | W12: =Timing!W13 -> 10 | X12: =Timing!X13 -> 11 | Y12: =Timing!Y13 -> 12 | Z12: =Timing!Z13 -> 13 | AA12: =Timing!AA13 -> 14 | AB12: =Timing!AB13 -> 15 | AC12: =Timing!AC13 -> 16 | AD12: =Timing!AD13 -> 17 | AE12: =Timing!AE13 -> 18 | AF12: =Timing!AF13 -> 19 | AG12: =Timing!AG13 -> 20 | AH12: =Timing!AH13 -> 21 | AI12: =Timing!AI13 -> 22 | AJ12: =Timing!AJ13 -> 23 | AK12: =Timing!AK13 -> 24 | AL12: =Timing!AL13 -> 25 | AM12: =Timing!AM13 -> 26 | AN12: =Timing!AN13 -> 27 | AO12: =Timing!AO13 -> 28 | AP12: =Timing!AP13 -> 29 | AQ12: =Timing!AQ13 -> 30 | AR12: =Timing!AR13 -> 31 | AS12: =Timing!AS13 -> 32 | AT12: =Timing!AT13 -> 0 | AU12: =Timing!AU13 -> 0 | AV12: =Timing!AV13 -> 0 | AW12: =Timing!AW13 -> 0 | AX12: =Timing!AX13 -> 0 | AY12: =Timing!AY13 -> 0 | AZ12: =Timing!AZ13 -> 0 | BA12: =Timing!BA13 -> 0 | BB12: =Timing!BB13 -> 0 | BC12: =Timing!BC13 -> 0 | BD12: =Timing!BD13 -> 0 | BE12: =Timing!BE13 -> 0 | BF12: =Timing!BF13 -> 0 | BG12: =Timing!BG13 -> 0 | BH12: =Timing!BH13 -> 0 | BI12: =Timing!BI13 -> 0 | BJ12: =Timing!BJ13 -> 0 | BK12: =Timing!BK13 -> 0 | BL12: =Timing!BL13 -> 0 | BM12: =Timing!BM13 -> 0
C13: Forecast quarter | D13: Num# | J13: =Timing!J17 -> 1 | K13: =Timing!K17 -> 2 | L13: =Timing!L17 -> 3 | M13: =Timing!M17 -> 4 | N13: =Timing!N17 -> 5 | O13: =Timing!O17 -> 6 | P13: =Timing!P17 -> 7 | Q13: =Timing!Q17 -> 8 | R13: =Timing!R17 -> 9 | S13: =Timing!S17 -> 10 | T13: =Timing!T17 -> 11 | U13: =Timing!U17 -> 12 | V13: =Timing!V17 -> 13 | W13: =Timing!W17 -> 14 | X13: =Timing!X17 -> 15 | Y13: =Timing!Y17 -> 16 | Z13: =Timing!Z17 -> 17 | AA13: =Timing!AA17 -> 18 | AB13: =Timing!AB17 -> 19 | AC13: =Timing!AC17 -> 20 | AD13: =Timing!AD17 -> 21 | AE13: =Timing!AE17 -> 22 | AF13: =Timing!AF17 -> 23 | AG13: =Timing!AG17 -> 24 | AH13: =Timing!AH17 -> 25 | AI13: =Timing!AI17 -> 26 | AJ13: =Timing!AJ17 -> 27 | AK13: =Timing!AK17 -> 28 | AL13: =Timing!AL17 -> 29 | AM13: =Timing!AM17 -> 30 | AN13: =Timing!AN17 -> 31 | AO13: =Timing!AO17 -> 32 | AP13: =Timing!AP17 -> 33 | AQ13: =Timing!AQ17 -> 34 | AR13: =Timing!AR17 -> 35 | AS13: =Timing!AS17 -> 36 | AT13: =Timing!AT17 -> 37 | AU13: =Timing!AU17 -> 38 | AV13: =Timing!AV17 -> 39 | AW13: =Timing!AW17 -> 40 | AX13: =Timing!AX17 -> 41 | AY13: =Timing!AY17 -> 42 | AZ13: =Timing!AZ17 -> 43 | BA13: =Timing!BA17 -> 44 | BB13: =Timing!BB17 -> 45 | BC13: =Timing!BC17 -> 46 | BD13: =Timing!BD17 -> 47 | BE13: =Timing!BE17 -> 48 | BF13: =Timing!BF17 -> 49 | BG13: =Timing!BG17 -> 50 | BH13: =Timing!BH17 -> 51 | BI13: =Timing!BI17 -> 52 | BJ13: =Timing!BJ17 -> 53 | BK13: =Timing!BK17 -> 54 | BL13: =Timing!BL17 -> 55 | BM13: =Timing!BM17 -> 56
C14: Last contruction period | D14: Num# | J14: =IF(K12=1,1,0) -> 0 | K14: =IF(L12=1,1,0) -> 0 | L14: 0 | M14: =IF(N12=1,1,0) -> 1 | N14: 0 | O14: 0 | P14: 0 | Q14: 0 | R14: 0 | S14: 0 | T14: 0 | U14: 0 | V14: 0 | W14: 0 | X14: 0 | Y14: 0 | Z14: 0 | AA14: 0 | AB14: 0 | AC14: 0 | AD14: 0 | AE14: 0 | AF14: 0 | AG14: 0 | AH14: 0 | AI14: 0 | AJ14: 0 | AK14: 0 | AL14: 0 | AM14: 0 | AN14: 0 | AO14: 0 | AP14: 0 | AQ14: 0 | AR14: 0 | AS14: 0 | AT14: 0 | AU14: 0 | AV14: 0 | AW14: 0 | AX14: 0 | AY14: 0 | AZ14: 0 | BA14: 0 | BB14: 0 | BC14: 0 | BD14: 0 | BE14: 0 | BF14: 0 | BG14: 0 | BH14: 0 | BI14: 0 | BJ14: 0 | BK14: 0 | BL14: 0 | BM14: 0
C16: PPE & Depreciation
C17: Summary of costs
C18: Development capex | D18: AUD M | I18: =SUM(J18:BM18) -> 60 | J18: =CapEx!J71 -> 15 | K18: =CapEx!K71 -> 15 | L18: =CapEx!L71 -> 15 | M18: =CapEx!M71 -> 15 | N18: =CapEx!N71 -> 0 | O18: =CapEx!O71 -> 0 | P18: =CapEx!P71 -> 0 | Q18: =CapEx!Q71 -> 0 | R18: =CapEx!R71 -> 0 | S18: =CapEx!S71 -> 0 | T18: =CapEx!T71 -> 0 | U18: =CapEx!U71 -> 0 | V18: =CapEx!V71 -> 0 | W18: =CapEx!W71 -> 0 | X18: =CapEx!X71 -> 0 | Y18: =CapEx!Y71 -> 0 | Z18: =CapEx!Z71 -> 0 | AA18: =CapEx!AA71 -> 0 | AB18: =CapEx!AB71 -> 0 | AC18: =CapEx!AC71 -> 0 | AD18: =CapEx!AD71 -> 0 | AE18: =CapEx!AE71 -> 0 | AF18: =CapEx!AF71 -> 0 | AG18: =CapEx!AG71 -> 0 | AH18: =CapEx!AH71 -> 0 | AI18: =CapEx!AI71 -> 0 | AJ18: =CapEx!AJ71 -> 0 | AK18: =CapEx!AK71 -> 0 | AL18: =CapEx!AL71 -> 0 | AM18: =CapEx!AM71 -> 0 | AN18: =CapEx!AN71 -> 0 | AO18: =CapEx!AO71 -> 0 | AP18: =CapEx!AP71 -> 0 | AQ18: =CapEx!AQ71 -> 0 | AR18: =CapEx!AR71 -> 0 | AS18: =CapEx!AS71 -> 0 | AT18: =CapEx!AT71 -> 0 | AU18: =CapEx!AU71 -> 0 | AV18: =CapEx!AV71 -> 0 | AW18: =CapEx!AW71 -> 0 | AX18: =CapEx!AX71 -> 0 | AY18: =CapEx!AY71 -> 0 | AZ18: =CapEx!AZ71 -> 0 | BA18: =CapEx!BA71 -> 0 | BB18: =CapEx!BB71 -> 0 | BC18: =CapEx!BC71 -> 0 | BD18: =CapEx!BD71 -> 0 | BE18: =CapEx!BE71 -> 0 | BF18: =CapEx!BF71 -> 0 | BG18: =CapEx!BG71 -> 0 | BH18: =CapEx!BH71 -> 0 | BI18: =CapEx!BI71 -> 0 | BJ18: =CapEx!BJ71 -> 0 | BK18: =CapEx!BK71 -> 0 | BL18: =CapEx!BL71 -> 0 | BM18: =CapEx!BM71 -> 0
C19: Decommissioning provision | D19: AUD M | I19: =SUM(J19:BM19) -> 0 | J19: 0 | K19: 0 | L19: 0 | M19: 0 | N19: 0 | O19: 0 | P19: 0 | Q19: 0 | R19: 0 | S19: 0 | T19: 0 | U19: 0 | V19: 0 | W19: 0 | X19: 0 | Y19: 0 | Z19: 0 | AA19: 0 | AB19: 0 | AC19: 0 | AD19: 0 | AE19: 0 | AF19: 0 | AG19: 0 | AH19: 0 | AI19: 0 | AJ19: 0 | AK19: 0 | AL19: 0 | AM19: 0 | AN19: 0 | AO19: 0 | AP19: 0 | AQ19: 0 | AR19: 0 | AS19: 0 | AT19: 0 | AU19: 0 | AV19: 0 | AW19: 0 | AX19: 0 | AY19: 0 | AZ19: 0 | BA19: 0 | BB19: 0 | BC19: 0 | BD19: 0 | BE19: 0 | BF19: 0 | BG19: 0 | BH19: 0 | BI19: 0 | BJ19: 0 | BK19: 0 | BL19: 0 | BM19: 0
C20: Operational capex | D20: AUD M | I20: =SUM(J20:BM20) -> 10 | J20: =-'Cashflow Waterfall'!I45 -> 0 | K20: =-'Cashflow Waterfall'!J45 -> 0 | L20: =-'Cashflow Waterfall'!K45 -> 0 | M20: =-'Cashflow Waterfall'!L45 -> 0 | N20: =-'Cashflow Waterfall'!M45 -> 0.3125 | O20: =-'Cashflow Waterfall'!N45 -> 0.3125 | P20: =-'Cashflow Waterfall'!O45 -> 0.3125 | Q20: =-'Cashflow Waterfall'!P45 -> 0.3125 | R20: =-'Cashflow Waterfall'!Q45 -> 0.3125 | S20: =-'Cashflow Waterfall'!R45 -> 0.3125 | T20: =-'Cashflow Waterfall'!S45 -> 0.3125 | U20: =-'Cashflow Waterfall'!T45 -> 0.3125 | V20: =-'Cashflow Waterfall'!U45 -> 0.3125 | W20: =-'Cashflow Waterfall'!V45 -> 0.3125 | X20: =-'Cashflow Waterfall'!W45 -> 0.3125 | Y20: =-'Cashflow Waterfall'!X45 -> 0.3125 | Z20: =-'Cashflow Waterfall'!Y45 -> 0.3125 | AA20: =-'Cashflow Waterfall'!Z45 -> 0.3125 | AB20: =-'Cashflow Waterfall'!AA45 -> 0.3125 | AC20: =-'Cashflow Waterfall'!AB45 -> 0.3125 | AD20: =-'Cashflow Waterfall'!AC45 -> 0.3125 | AE20: =-'Cashflow Waterfall'!AD45 -> 0.3125 | AF20: =-'Cashflow Waterfall'!AE45 -> 0.3125 | AG20: =-'Cashflow Waterfall'!AF45 -> 0.3125 | AH20: =-'Cashflow Waterfall'!AG45 -> 0.3125 | AI20: =-'Cashflow Waterfall'!AH45 -> 0.3125 | AJ20: =-'Cashflow Waterfall'!AI45 -> 0.3125 | AK20: =-'Cashflow Waterfall'!AJ45 -> 0.3125 | AL20: =-'Cashflow Waterfall'!AK45 -> 0.3125 | AM20: =-'Cashflow Waterfall'!AL45 -> 0.3125 | AN20: =-'Cashflow Waterfall'!AM45 -> 0.3125 | AO20: =-'Cashflow Waterfall'!AN45 -> 0.3125 | AP20: =-'Cashflow Waterfall'!AO45 -> 0.3125 | AQ20: =-'Cashflow Waterfall'!AP45 -> 0.3125 | AR20: =-'Cashflow Waterfall'!AQ45 -> 0.3125 | AS20: =-'Cashflow Waterfall'!AR45 -> 0.3125 | AT20: =-'Cashflow Waterfall'!AS45 -> 0 | AU20: =-'Cashflow Waterfall'!AT45 -> 0 | AV20: =-'Cashflow Waterfall'!AU45 -> 0 | AW20: =-'Cashflow Waterfall'!AV45 -> 0 | AX20: =-'Cashflow Waterfall'!AW45 -> 0 | AY20: =-'Cashflow Waterfall'!AX45 -> 0 | AZ20: =-'Cashflow Waterfall'!AY45 -> 0 | BA20: =-'Cashflow Waterfall'!AZ45 -> 0 | BB20: =-'Cashflow Waterfall'!BA45 -> 0 | BC20: =-'Cashflow Waterfall'!BB45 -> 0 | BD20: =-'Cashflow Waterfall'!BC45 -> 0 | BE20: =-'Cashflow Waterfall'!BD45 -> 0 | BF20: =-'Cashflow Waterfall'!BE45 -> 0 | BG20: =-'Cashflow Waterfall'!BF45 -> 0 | BH20: =-'Cashflow Waterfall'!BG45 -> 0 | BI20: =-'Cashflow Waterfall'!BH45 -> 0 | BJ20: =-'Cashflow Waterfall'!BI45 -> 0 | BK20: =-'Cashflow Waterfall'!BJ45 -> 0 | BL20: =-'Cashflow Waterfall'!BK45 -> 0 | BM20: =-'Cashflow Waterfall'!BL45 -> 0
C21: Total capitalised expenses | D21: AUD M | I21: =SUM(J21:BM21) -> 70 | J21: =SUM(J18:J20) -> 15 | K21: 15 | L21: 15 | M21: 15 | N21: =SUM(N18:N20) -> 0.3125 | O21: 0.3125 | P21: 0.3125 | Q21: 0.3125 | R21: 0.3125 | S21: 0.3125 | T21: 0.3125 | U21: 0.3125 | V21: 0.3125 | W21: 0.3125 | X21: 0.3125 | Y21: 0.3125 | Z21: 0.3125 | AA21: 0.3125 | AB21: 0.3125 | AC21: 0.3125 | AD21: 0.3125 | AE21: 0.3125 | AF21: 0.3125 | AG21: 0.3125 | AH21: 0.3125 | AI21: 0.3125 | AJ21: 0.3125 | AK21: 0.3125 | AL21: 0.3125 | AM21: 0.3125 | AN21: 0.3125 | AO21: 0.3125 | AP21: =SUM(AP18:AP20) -> 0.3125 | AQ21: 0.3125 | AR21: 0.3125 | AS21: 0.3125 | AT21: 0 | AU21: 0 | AV21: 0 | AW21: 0 | AX21: 0 | AY21: 0 | AZ21: 0 | BA21: 0 | BB21: 0 | BC21: 0 | BD21: 0 | BE21: 0 | BF21: 0 | BG21: 0 | BH21: 0 | BI21: 0 | BJ21: 0 | BK21: 0 | BL21: 0 | BM21: 0
C23: Account
C24: Balance b/f | D24: AUD M | J24: =I28 -> 0 | K24: =J28 -> 15 | L24: =K28 -> 30 | M24: 45 | N24: 60 | O24: 58.39171975 | P24: 56.77315989 | Q24: 55.14397077 | R24: 53.50377814 | S24: 51.8521804 | T24: 50.18874553 | U24: 48.51300752 | V24: 46.82446213 | W24: 45.12256204 | X24: 43.40671106 | Y24: 41.67625727 | Z24: 39.93048485 | AA24: 38.16860419 | AB24: 36.38973983 | AC24: 34.5929157 | AD24: 32.7770367 | AE24: 30.94086548 | AF24: 29.08299288 | AG24: 27.20179938 | AH24: 25.29540427 | AI24: 23.36159688 | AJ24: 21.39774141 | AK24: 19.40064126 | AL24: 17.36633873 | AM24: 15.28980647 | AN24: 13.16444608 | AO24: 10.98121533 | AP24: 8.726961843 | AQ24: 6.380796595 | AR24: 3.904423014 | AS24: 1.204835147 | AT24: 0 | AU24: 0 | AV24: 0 | AW24: 0 | AX24: 0 | AY24: 0 | AZ24: 0 | BA24: 0 | BB24: 0 | BC24: 0 | BD24: 0 | BE24: 0 | BF24: 0 | BG24: 0 | BH24: 0 | BI24: 0 | BJ24: 0 | BK24: 0 | BL24: 0 | BM24: 0
C25: Add: Development expenditure | D25: AUD M | I25: =SUM(J25:BM25) -> 60 | J25: =J18+J19 -> 15 | K25: =K18+K19 -> 15 | L25: 15 | M25: 15 | N25: 0 | O25: 0 | P25: 0 | Q25: 0 | R25: 0 | S25: 0 | T25: 0 | U25: 0 | V25: 0 | W25: 0 | X25: 0 | Y25: 0 | Z25: 0 | AA25: 0 | AB25: 0 | AC25: 0 | AD25: 0 | AE25: 0 | AF25: 0 | AG25: 0 | AH25: 0 | AI25: 0 | AJ25: 0 | AK25: 0 | AL25: 0 | AM25: 0 | AN25: 0 | AO25: 0 | AP25: 0 | AQ25: 0 | AR25: 0 | AS25: 0 | AT25: 0 | AU25: 0 | AV25: 0 | AW25: 0 | AX25: 0 | AY25: 0 | AZ25: 0 | BA25: 0 | BB25: 0 | BC25: 0 | BD25: 0 | BE25: 0 | BF25: 0 | BG25: 0 | BH25: 0 | BI25: 0 | BJ25: 0 | BK25: 0 | BL25: 0 | BM25: 0
C26: Add: Operational capex | D26: AUD M | I26: =SUM(J26:BM26) -> 10 | J26: =J20 -> 0 | K26: =K20 -> 0 | L26: 0 | M26: 0 | N26: 0.3125 | O26: 0.3125 | P26: 0.3125 | Q26: 0.3125 | R26: 0.3125 | S26: 0.3125 | T26: 0.3125 | U26: 0.3125 | V26: 0.3125 | W26: 0.3125 | X26: 0.3125 | Y26: 0.3125 | Z26: 0.3125 | AA26: 0.3125 | AB26: 0.3125 | AC26: 0.3125 | AD26: 0.3125 | AE26: 0.3125 | AF26: 0.3125 | AG26: 0.3125 | AH26: 0.3125 | AI26: 0.3125 | AJ26: 0.3125 | AK26: 0.3125 | AL26: 0.3125 | AM26: 0.3125 | AN26: 0.3125 | AO26: 0.3125 | AP26: 0.3125 | AQ26: 0.3125 | AR26: 0.3125 | AS26: 0.3125 | AT26: 0 | AU26: 0 | AV26: 0 | AW26: 0 | AX26: 0 | AY26: 0 | AZ26: 0 | BA26: 0 | BB26: 0 | BC26: 0 | BD26: 0 | BE26: 0 | BF26: 0 | BG26: 0 | BH26: 0 | BI26: 0 | BJ26: 0 | BK26: 0 | BL26: 0 | BM26: 0
C27: Less: Depreciation | D27: AUD M | I27: =SUM(J27:BM27) -> -70 | K27: =-K7*SUM(K24:K26)*K34 -> 0 | L27: 0 | M27: 0 | N27: =-N7*SUM(N24:N26)*N34 -> -1.920780255 | O27: =-O7*SUM(O24:O26)*O34 -> -1.93105986 | P27: -1.941689112 | Q27: -1.952692633 | R27: -1.964097742 | S27: -1.975934864 | T27: -1.988238013 | U27: -2.00104539 | V27: -2.014400091 | W27: -2.028350984 | X27: -2.042953788 | Y27: -2.058272415 | Z27: -2.074380663 | AA27: -2.091364358 | AB27: -2.109324128 | AC27: -2.128379006 | AD27: -2.148671214 | AE27: -2.170372603 | AF27: -2.193693499 | AG27: -2.218895111 | AH27: -2.246307392 | AI27: -2.276355469 | AJ27: -2.30960015 | AK27: -2.346802531 | AL27: -2.389032261 | AM27: -2.437860386 | AN27: -2.495730756 | AO27: -2.566753483 | AP27: -2.658665248 | AQ27: =-AQ7*SUM(AQ24:AQ26)*AQ34 -> -2.788873581 | AR27: -3.012087867 | AS27: -1.517335147 | AT27: 0 | AU27: 0 | AV27: 0 | AW27: 0 | AX27: 0 | AY27: 0 | AZ27: 0 | BA27: 0 | BB27: 0 | BC27: 0 | BD27: 0 | BE27: 0 | BF27: 0 | BG27: 0 | BH27: 0 | BI27: 0 | BJ27: 0 | BK27: 0 | BL27: 0 | BM27: 0
C28: Balance c/f | D28: AUD M | I28: =Inputs!$F$104 -> 0 | J28: =SUM(J24:J27) -> 15 | K28: =SUM(K24:K27) -> 30 | L28: 45 | M28: 60 | N28: 58.39171975 | O28: 56.77315989 | P28: 55.14397077 | Q28: 53.50377814 | R28: 51.8521804 | S28: 50.18874553 | T28: 48.51300752 | U28: 46.82446213 | V28: 45.12256204 | W28: 43.40671106 | X28: 41.67625727 | Y28: 39.93048485 | Z28: 38.16860419 | AA28: 36.38973983 | AB28: 34.5929157 | AC28: 32.7770367 | AD28: 30.94086548 | AE28: 29.08299288 | AF28: 27.20179938 | AG28: 25.29540427 | AH28: 23.36159688 | AI28: 21.39774141 | AJ28: 19.40064126 | AK28: 17.36633873 | AL28: 15.28980647 | AM28: 13.16444608 | AN28: 10.98121533 | AO28: 8.726961843 | AP28: 6.380796595 | AQ28: 3.904423014 | AR28: 1.204835147 | AS28: 0 | AT28: 0 | AU28: 0 | AV28: 0 | AW28: 0 | AX28: 0 | AY28: 0 | AZ28: 0 | BA28: 0 | BB28: 0 | BC28: 0 | BD28: 0 | BE28: 0 | BF28: 0 | BG28: 0 | BH28: 0 | BI28: 0 | BJ28: 0 | BK28: 0 | BL28: 0 | BM28: 0
C30: Life of Mine Method
C31: Depreciation calculation
C32: Ore milled | D32: Tonnes | E32: =SUM(J32:BM32) -> 22922 | J32: ='Mining Schedule'!I27 -> 0 | K32: ='Mining Schedule'!J27 -> 0 | L32: ='Mining Schedule'!K27 -> 0 | M32: ='Mining Schedule'!L27 -> 0 | N32: ='Mining Schedule'!M27 -> 730 | O32: ='Mining Schedule'!N27 -> 730 | P32: ='Mining Schedule'!O27 -> 730 | Q32: ='Mining Schedule'!P27 -> 730 | R32: ='Mining Schedule'!Q27 -> 730 | S32: ='Mining Schedule'!R27 -> 730 | T32: ='Mining Schedule'!S27 -> 730 | U32: ='Mining Schedule'!T27 -> 730 | V32: ='Mining Schedule'!U27 -> 730 | W32: ='Mining Schedule'!V27 -> 730 | X32: ='Mining Schedule'!W27 -> 730 | Y32: ='Mining Schedule'!X27 -> 730 | Z32: ='Mining Schedule'!Y27 -> 730 | AA32: ='Mining Schedule'!Z27 -> 730 | AB32: ='Mining Schedule'!AA27 -> 730 | AC32: ='Mining Schedule'!AB27 -> 730 | AD32: ='Mining Schedule'!AC27 -> 730 | AE32: ='Mining Schedule'!AD27 -> 730 | AF32: ='Mining Schedule'!AE27 -> 730 | AG32: ='Mining Schedule'!AF27 -> 730 | AH32: ='Mining Schedule'!AG27 -> 730 | AI32: ='Mining Schedule'!AH27 -> 730 | AJ32: ='Mining Schedule'!AI27 -> 730 | AK32: ='Mining Schedule'!AJ27 -> 730 | AL32: ='Mining Schedule'!AK27 -> 730 | AM32: ='Mining Schedule'!AL27 -> 730 | AN32: ='Mining Schedule'!AM27 -> 730 | AO32: ='Mining Schedule'!AN27 -> 730 | AP32: ='Mining Schedule'!AO27 -> 730 | AQ32: ='Mining Schedule'!AP27 -> 730 | AR32: ='Mining Schedule'!AQ27 -> 730 | AS32: ='Mining Schedule'!AR27 -> 292 | AT32: ='Mining Schedule'!AS27 -> 0 | AU32: ='Mining Schedule'!AT27 -> 0 | AV32: ='Mining Schedule'!AU27 -> 0 | AW32: ='Mining Schedule'!AV27 -> 0 | AX32: ='Mining Schedule'!AW27 -> 0 | AY32: ='Mining Schedule'!AX27 -> 0 | AZ32: ='Mining Schedule'!AY27 -> 0 | BA32: ='Mining Schedule'!AZ27 -> 0 | BB32: ='Mining Schedule'!BA27 -> 0 | BC32: ='Mining Schedule'!BB27 -> 0 | BD32: ='Mining Schedule'!BC27 -> 0 | BE32: ='Mining Schedule'!BD27 -> 0 | BF32: ='Mining Schedule'!BE27 -> 0 | BG32: ='Mining Schedule'!BF27 -> 0 | BH32: ='Mining Schedule'!BG27 -> 0 | BI32: ='Mining Schedule'!BH27 -> 0 | BJ32: ='Mining Schedule'!BI27 -> 0 | BK32: ='Mining Schedule'!BJ27 -> 0 | BL32: ='Mining Schedule'!BK27 -> 0 | BM32: ='Mining Schedule'!BL27 -> 0
C33: Remaining ore | D33: kt | J33: =SUM(J32:$BM32) -> 22922 | K33: =SUM(K32:$BM32) -> 22922 | L33: =SUM(L32:$BM32) -> 22922 | M33: =SUM(M32:$BM32) -> 22922 | N33: =SUM(N32:$BM32) -> 22922 | O33: =SUM(O32:$BM32) -> 22192 | P33: =SUM(P32:$BM32) -> 21462 | Q33: =SUM(Q32:$BM32) -> 20732 | R33: =SUM(R32:$BM32) -> 20002 | S33: =SUM(S32:$BM32) -> 19272 | T33: =SUM(T32:$BM32) -> 18542 | U33: =SUM(U32:$BM32) -> 17812 | V33: =SUM(V32:$BM32) -> 17082 | W33: =SUM(W32:$BM32) -> 16352 | X33: =SUM(X32:$BM32) -> 15622 | Y33: =SUM(Y32:$BM32) -> 14892 | Z33: =SUM(Z32:$BM32) -> 14162 | AA33: =SUM(AA32:$BM32) -> 13432 | AB33: =SUM(AB32:$BM32) -> 12702 | AC33: =SUM(AC32:$BM32) -> 11972 | AD33: =SUM(AD32:$BM32) -> 11242 | AE33: =SUM(AE32:$BM32) -> 10512 | AF33: =SUM(AF32:$BM32) -> 9782 | AG33: =SUM(AG32:$BM32) -> 9052 | AH33: =SUM(AH32:$BM32) -> 8322 | AI33: =SUM(AI32:$BM32) -> 7592 | AJ33: =SUM(AJ32:$BM32) -> 6862 | AK33: =SUM(AK32:$BM32) -> 6132 | AL33: =SUM(AL32:$BM32) -> 5402 | AM33: =SUM(AM32:$BM32) -> 4672 | AN33: =SUM(AN32:$BM32) -> 3942 | AO33: =SUM(AO32:$BM32) -> 3212 | AP33: =SUM(AP32:$BM32) -> 2482 | AQ33: =SUM(AQ32:$BM32) -> 1752 | AR33: =SUM(AR32:$BM32) -> 1022 | AS33: =SUM(AS32:$BM32) -> 292 | AT33: =SUM(AT32:$BM32) -> 0 | AU33: =SUM(AU32:$BM32) -> 0 | AV33: =SUM(AV32:$BM32) -> 0 | AW33: =SUM(AW32:$BM32) -> 0 | AX33: =SUM(AX32:$BM32) -> 0 | AY33: =SUM(AY32:$BM32) -> 0 | AZ33: =SUM(AZ32:$BM32) -> 0 | BA33: =SUM(BA32:$BM32) -> 0 | BB33: =SUM(BB32:$BM32) -> 0 | BC33: =SUM(BC32:$BM32) -> 0 | BD33: =SUM(BD32:$BM32) -> 0 | BE33: =SUM(BE32:$BM32) -> 0 | BF33: =SUM(BF32:$BM32) -> 0 | BG33: =SUM(BG32:$BM32) -> 0 | BH33: =SUM(BH32:$BM32) -> 0 | BI33: =SUM(BI32:$BM32) -> 0 | BJ33: =SUM(BJ32:$BM32) -> 0 | BK33: =SUM(BK32:$BM32) -> 0 | BL33: =SUM(BL32:$BM32) -> 0 | BM33: =SUM(BM32:$BM32) -> 0
C34: Depreciation rate | D34: % | J34: =IF(J33=0,0,J32/J33) -> 0 | K34: =IF(K33=0,0,K32/K33) -> 0 | L34: 0 | M34: 0 | N34: =IF(N33=0,0,N32/N33) -> 0.03184713376 | O34: 0.03289473684 | P34: 0.03401360544 | Q34: 0.03521126761 | R34: 0.03649635036 | S34: 0.03787878788 | T34: 0.03937007874 | U34: 0.04098360656 | V34: 0.04273504274 | W34: 0.04464285714 | X34: 0.04672897196 | Y34: 0.04901960784 | Z34: 0.05154639175 | AA34: 0.05434782609 | AB34: 0.05747126437 | AC34: 0.06097560976 | AD34: 0.06493506494 | AE34: 0.06944444444 | AF34: 0.07462686567 | AG34: 0.08064516129 | AH34: 0.08771929825 | AI34: 0.09615384615 | AJ34: 0.1063829787 | AK34: 0.119047619 | AL34: 0.1351351351 | AM34: 0.15625 | AN34: 0.1851851852 | AO34: 0.2272727273 | AP34: 0.2941176471 | AQ34: 0.4166666667 | AR34: 0.7142857143 | AS34: 1 | AT34: 0 | AU34: 0 | AV34: 0 | AW34: 0 | AX34: 0 | AY34: 0 | AZ34: 0 | BA34: 0 | BB34: 0 | BC34: 0 | BD34: 0 | BE34: 0 | BF34: 0 | BG34: 0 | BH34: 0 | BI34: 0 | BJ34: 0 | BK34: 0 | BL34: 0 | BM34: 0
C36: Straight line method - Growth Capex
C37: Depreciation calculation
C38: Periods included | D38: Qtrs | E38: =Inputs!F105*Qtrs_Yr -> 32 | J38: =IF(OR(J7=0,J4>$E$7),0,MIN(J12,$E$38)) -> 0 | K38: 0 | L38: 0 | M38: 0 | N38: 1 | O38: 2 | P38: 3 | Q38: 4 | R38: 5 | S38: 6 | T38: 7 | U38: 8 | V38: 9 | W38: 10 | X38: 11 | Y38: 12 | Z38: 13 | AA38: 14 | AB38: 15 | AC38: 16 | AD38: 17 | AE38: 18 | AF38: 19 | AG38: 20 | AH38: 21 | AI38: 22 | AJ38: 23 | AK38: 24 | AL38: 25 | AM38: 26 | AN38: 27 | AO38: 28 | AP38: =IF(OR(AP7=0,AP4>$E$7),0,MIN(AP12,$E$38)) -> 29 | AQ38: 30 | AR38: 31 | AS38: 32 | AT38: 0 | AU38: 0 | AV38: 0 | AW38: 0 | AX38: 0 | AY38: 0 | AZ38: 0 | BA38: 0 | BB38: 0 | BC38: 0 | BD38: 0 | BE38: 0 | BF38: 0 | BG38: 0 | BH38: 0 | BI38: 0 | BJ38: 0 | BK38: 0 | BL38: 0 | BM38: 0
C39: Depreciation Rate | D39: AUD M | E39: =Inputs!$F$106 -> 0.03125 | I39: =SUM(J39:BM39) -> 1 | J39: =IF(J38=0,0,$E$39) -> 0 | K39: =IF(K38=0,0,$E$39) -> 0 | L39: 0 | M39: 0 | N39: 0.03125 | O39: 0.03125 | P39: 0.03125 | Q39: 0.03125 | R39: 0.03125 | S39: 0.03125 | T39: 0.03125 | U39: 0.03125 | V39: 0.03125 | W39: 0.03125 | X39: 0.03125 | Y39: 0.03125 | Z39: 0.03125 | AA39: 0.03125 | AB39: 0.03125 | AC39: 0.03125 | AD39: 0.03125 | AE39: 0.03125 | AF39: 0.03125 | AG39: 0.03125 | AH39: 0.03125 | AI39: 0.03125 | AJ39: 0.03125 | AK39: 0.03125 | AL39: 0.03125 | AM39: 0.03125 | AN39: 0.03125 | AO39: 0.03125 | AP39: 0.03125 | AQ39: 0.03125 | AR39: 0.03125 | AS39: 0.03125 | AT39: 0 | AU39: 0 | AV39: 0 | AW39: 0 | AX39: 0 | AY39: 0 | AZ39: 0 | BA39: 0 | BB39: 0 | BC39: 0 | BD39: 0 | BE39: 0 | BF39: 0 | BG39: 0 | BH39: 0 | BI39: 0 | BJ39: 0 | BK39: 0 | BL39: 0 | BM39: 0
C42: Geared Tax
C43: Tax calculation
C44: EBT | D44: AUD M | I44: =SUM(J44:BM44) -> 440.3620471 | J44: =IFS!J73 -> 0 | K44: =IFS!K73 -> 0 | L44: =IFS!L73 -> 0 | M44: =IFS!M73 -> 0 | N44: =IFS!N73 -> 13.6352881 | O44: =IFS!O73 -> 13.8750085 | P44: =IFS!P73 -> 13.86437925 | Q44: =IFS!Q73 -> 13.85337573 | R44: =IFS!R73 -> 13.84197062 | S44: =IFS!S73 -> 13.8301335 | T44: =IFS!T73 -> 13.97548972 | U44: =IFS!U73 -> 14.38468859 | V44: =IFS!V73 -> 14.37133389 | W44: =IFS!W73 -> 14.357383 | X44: =IFS!X73 -> 14.3427802 | Y44: =IFS!Y73 -> 14.32746157 | Z44: =IFS!Z73 -> 14.31135332 | AA44: =IFS!AA73 -> 14.29436963 | AB44: =IFS!AB73 -> 14.27640986 | AC44: =IFS!AC73 -> 14.25735498 | AD44: =IFS!AD73 -> 14.23706277 | AE44: =IFS!AE73 -> 14.21536138 | AF44: =IFS!AF73 -> 14.19204049 | AG44: =IFS!AG73 -> 14.16683887 | AH44: =IFS!AH73 -> 14.13942659 | AI44: =IFS!AI73 -> 14.10937852 | AJ44: =IFS!AJ73 -> 14.07613383 | AK44: =IFS!AK73 -> 14.03893145 | AL44: =IFS!AL73 -> 13.99670172 | AM44: =IFS!AM73 -> 13.9478736 | AN44: =IFS!AN73 -> 13.89000323 | AO44: =IFS!AO73 -> 13.8189805 | AP44: =IFS!AP73 -> 13.72706874 | AQ44: =IFS!AQ73 -> 13.5968604 | AR44: =IFS!AR73 -> 13.37364612 | AS44: =IFS!AS73 -> 5.036958447 | AT44: =IFS!AT73 -> 0 | AU44: =IFS!AU73 -> 0 | AV44: =IFS!AV73 -> 0 | AW44: =IFS!AW73 -> 0 | AX44: =IFS!AX73 -> 0 | AY44: =IFS!AY73 -> 0 | AZ44: =IFS!AZ73 -> 0 | BA44: =IFS!BA73 -> 0 | BB44: =IFS!BB73 -> 0 | BC44: =IFS!BC73 -> 0 | BD44: =IFS!BD73 -> 0 | BE44: =IFS!BE73 -> 0 | BF44: =IFS!BF73 -> 0 | BG44: =IFS!BG73 -> 0 | BH44: =IFS!BH73 -> 0 | BI44: =IFS!BI73 -> 0 | BJ44: =IFS!BJ73 -> 0 | BK44: =IFS!BK73 -> 0 | BL44: =IFS!BL73 -> 0 | BM44: =IFS!BM73 -> 0
C45: Add back accounting depreciation | D45: AUD M | E45: Use when there are differences between forecast tax and accounting depreciation
C46: Less tax depreciation | D46: AUD M
C47: Less: tax losses utilised | D47: AUD M | I47: =SUM(J47:BM47) -> -11.938484 | J47: =J54 -> 0 | K47: =K54 -> 0 | L47: 0 | M47: 0 | N47: =N54 -> -11.938484 | O47: 0 | P47: 0 | Q47: 0 | R47: 0 | S47: 0 | T47: 0 | U47: 0 | V47: 0 | W47: 0 | X47: 0 | Y47: 0 | Z47: 0 | AA47: 0 | AB47: 0 | AC47: 0 | AD47: 0 | AE47: 0 | AF47: 0 | AG47: 0 | AH47: 0 | AI47: 0 | AJ47: 0 | AK47: 0 | AL47: 0 | AM47: 0 | AN47: 0 | AO47: 0 | AP47: 0 | AQ47: 0 | AR47: 0 | AS47: 0 | AT47: 0 | AU47: 0 | AV47: 0 | AW47: 0 | AX47: 0 | AY47: 0 | AZ47: 0 | BA47: 0 | BB47: 0 | BC47: 0 | BD47: 0 | BE47: 0 | BF47: 0 | BG47: 0 | BH47: 0 | BI47: 0 | BJ47: 0 | BK47: 0 | BL47: 0 | BM47: 0
C48: Taxable income | D48: AUD M | J48: =SUM(J44:J47) -> 0 | K48: =SUM(K44:K47) -> 0 | L48: 0 | M48: 0 | N48: =SUM(N44:N47) -> 1.696804105 | O48: 13.8750085 | P48: 13.86437925 | Q48: 13.85337573 | R48: 13.84197062 | S48: 13.8301335 | T48: 13.97548972 | U48: 14.38468859 | V48: 14.37133389 | W48: 14.357383 | X48: 14.3427802 | Y48: 14.32746157 | Z48: 14.31135332 | AA48: 14.29436963 | AB48: 14.27640986 | AC48: 14.25735498 | AD48: 14.23706277 | AE48: 14.21536138 | AF48: 14.19204049 | AG48: 14.16683887 | AH48: 14.13942659 | AI48: 14.10937852 | AJ48: 14.07613383 | AK48: 14.03893145 | AL48: 13.99670172 | AM48: 13.9478736 | AN48: 13.89000323 | AO48: 13.8189805 | AP48: 13.72706874 | AQ48: 13.5968604 | AR48: 13.37364612 | AS48: 5.036958447 | AT48: 0 | AU48: 0 | AV48: 0 | AW48: 0 | AX48: 0 | AY48: 0 | AZ48: 0 | BA48: 0 | BB48: 0 | BC48: 0 | BD48: 0 | BE48: 0 | BF48: 0 | BG48: 0 | BH48: 0 | BI48: 0 | BJ48: 0 | BK48: 0 | BL48: 0 | BM48: 0
C49: Tax payable | D49: AUD M | E49: =TaxRate -> 0.3 | J49: =J48*$E49 -> 0 | K49: =K48*$E49 -> 0 | L49: 0 | M49: 0 | N49: 0.5090412314 | O49: 4.16250255 | P49: 4.159313774 | Q49: 4.156012718 | R49: 4.152591185 | S49: 4.149040049 | T49: 4.192646916 | U49: 4.315406578 | V49: 4.311400168 | W49: 4.3072149 | X49: 4.302834059 | Y49: 4.298238471 | Z49: 4.293405997 | AA49: 4.288310888 | AB49: 4.282922957 | AC49: 4.277206493 | AD49: 4.271118831 | AE49: 4.264608414 | AF49: 4.257612146 | AG49: 4.250051662 | AH49: 4.241827978 | AI49: 4.232813555 | AJ49: 4.22284015 | AK49: 4.211679436 | AL49: 4.199010517 | AM49: 4.18436208 | AN49: 4.167000969 | AO49: 4.14569415 | AP49: 4.118120621 | AQ49: 4.079058121 | AR49: 4.012093835 | AS49: 1.511087534 | AT49: 0 | AU49: 0 | AV49: 0 | AW49: 0 | AX49: 0 | AY49: 0 | AZ49: 0 | BA49: 0 | BB49: 0 | BC49: 0 | BD49: 0 | BE49: 0 | BF49: 0 | BG49: 0 | BH49: 0 | BI49: 0 | BJ49: 0 | BK49: 0 | BL49: 0 | BM49: 0
C51: Tax losses account
C52: Balance b/f | D52: AUD M | J52: =I55 -> 11.938484 | K52: =J55 -> 11.938484 | L52: 11.938484 | M52: 11.938484 | N52: 11.938484 | O52: 0 | P52: 0 | Q52: 0 | R52: 0 | S52: 0 | T52: 0 | U52: 0 | V52: 0 | W52: 0 | X52: 0 | Y52: 0 | Z52: 0 | AA52: 0 | AB52: 0 | AC52: 0 | AD52: 0 | AE52: 0 | AF52: 0 | AG52: 0 | AH52: 0 | AI52: 0 | AJ52: 0 | AK52: 0 | AL52: 0 | AM52: 0 | AN52: 0 | AO52: 0 | AP52: 0 | AQ52: 0 | AR52: 0 | AS52: 0 | AT52: 0 | AU52: 0 | AV52: 0 | AW52: 0 | AX52: 0 | AY52: 0 | AZ52: 0 | BA52: 0 | BB52: 0 | BC52: 0 | BD52: 0 | BE52: 0 | BF52: 0 | BG52: 0 | BH52: 0 | BI52: 0 | BJ52: 0 | BK52: 0 | BL52: 0 | BM52: 0
C53: Tax losses generated in period | D53: AUD M | I53: =SUM(J53:BM53) -> 0 | J53: =MAX(-J44,0) -> 0 | K53: =MAX(-K44,0) -> 0 | L53: 0 | M53: 0 | N53: 0 | O53: 0 | P53: 0 | Q53: 0 | R53: 0 | S53: 0 | T53: 0 | U53: 0 | V53: 0 | W53: 0 | X53: 0 | Y53: 0 | Z53: 0 | AA53: 0 | AB53: 0 | AC53: 0 | AD53: 0 | AE53: 0 | AF53: 0 | AG53: 0 | AH53: 0 | AI53: 0 | AJ53: 0 | AK53: 0 | AL53: 0 | AM53: 0 | AN53: 0 | AO53: 0 | AP53: 0 | AQ53: 0 | AR53: 0 | AS53: 0 | AT53: 0 | AU53: 0 | AV53: 0 | AW53: 0 | AX53: 0 | AY53: 0 | AZ53: 0 | BA53: 0 | BB53: 0 | BC53: 0 | BD53: 0 | BE53: 0 | BF53: 0 | BG53: 0 | BH53: 0 | BI53: 0 | BJ53: 0 | BK53: 0 | BL53: 0 | BM53: 0
C54: Tax losses utilised in period | D54: AUD M | I54: =SUM(J54:BM54) -> -11.938484 | J54: =-MIN(J44,SUM(J52:J53)) -> 0 | K54: =-MIN(K44,SUM(K52:K53)) -> 0 | L54: 0 | M54: 0 | N54: -11.938484 | O54: 0 | P54: 0 | Q54: 0 | R54: 0 | S54: 0 | T54: 0 | U54: 0 | V54: 0 | W54: 0 | X54: 0 | Y54: 0 | Z54: 0 | AA54: 0 | AB54: 0 | AC54: 0 | AD54: 0 | AE54: 0 | AF54: 0 | AG54: 0 | AH54: 0 | AI54: 0 | AJ54: 0 | AK54: 0 | AL54: 0 | AM54: 0 | AN54: 0 | AO54: 0 | AP54: 0 | AQ54: 0 | AR54: 0 | AS54: 0 | AT54: 0 | AU54: 0 | AV54: 0 | AW54: 0 | AX54: 0 | AY54: 0 | AZ54: 0 | BA54: 0 | BB54: 0 | BC54: 0 | BD54: 0 | BE54: 0 | BF54: 0 | BG54: 0 | BH54: 0 | BI54: 0 | BJ54: 0 | BK54: 0 | BL54: 0 | BM54: 0
C55: Balance c/f | D55: AUD M | I55: =Inputs!F99 -> 11.938484 | J55: =SUM(J52:J54) -> 11.938484 | K55: =SUM(K52:K54) -> 11.938484 | L55: 11.938484 | M55: 11.938484 | N55: 0 | O55: 0 | P55: 0 | Q55: 0 | R55: 0 | S55: 0 | T55: 0 | U55: 0 | V55: 0 | W55: 0 | X55: 0 | Y55: 0 | Z55: 0 | AA55: 0 | AB55: 0 | AC55: 0 | AD55: 0 | AE55: 0 | AF55: 0 | AG55: 0 | AH55: 0 | AI55: 0 | AJ55: 0 | AK55: 0 | AL55: 0 | AM55: 0 | AN55: 0 | AO55: 0 | AP55: 0 | AQ55: 0 | AR55: 0 | AS55: 0 | AT55: 0 | AU55: 0 | AV55: 0 | AW55: 0 | AX55: 0 | AY55: 0 | AZ55: 0 | BA55: 0 | BB55: 0 | BC55: 0 | BD55: 0 | BE55: 0 | BF55: 0 | BG55: 0 | BH55: 0 | BI55: 0 | BJ55: 0 | BK55: 0 | BL55: 0 | BM55: 0
C57: Un-Geared Tax
C58: Tax calculation
C59: EBIT | D59: AUD M | I59: =SUM(J59:BM59) -> 440.3620471 | J59: =IFS!J69 -> 0 | K59: =IFS!K69 -> 0 | L59: =IFS!L69 -> 0 | M59: =IFS!M69 -> 0 | N59: =IFS!N69 -> 13.6352881 | O59: =IFS!O69 -> 13.8750085 | P59: =IFS!P69 -> 13.86437925 | Q59: =IFS!Q69 -> 13.85337573 | R59: =IFS!R69 -> 13.84197062 | S59: =IFS!S69 -> 13.8301335 | T59: =IFS!T69 -> 13.97548972 | U59: =IFS!U69 -> 14.38468859 | V59: =IFS!V69 -> 14.37133389 | W59: =IFS!W69 -> 14.357383 | X59: =IFS!X69 -> 14.3427802 | Y59: =IFS!Y69 -> 14.32746157 | Z59: =IFS!Z69 -> 14.31135332 | AA59: =IFS!AA69 -> 14.29436963 | AB59: =IFS!AB69 -> 14.27640986 | AC59: =IFS!AC69 -> 14.25735498 | AD59: =IFS!AD69 -> 14.23706277 | AE59: =IFS!AE69 -> 14.21536138 | AF59: =IFS!AF69 -> 14.19204049 | AG59: =IFS!AG69 -> 14.16683887 | AH59: =IFS!AH69 -> 14.13942659 | AI59: =IFS!AI69 -> 14.10937852 | AJ59: =IFS!AJ69 -> 14.07613383 | AK59: =IFS!AK69 -> 14.03893145 | AL59: =IFS!AL69 -> 13.99670172 | AM59: =IFS!AM69 -> 13.9478736 | AN59: =IFS!AN69 -> 13.89000323 | AO59: =IFS!AO69 -> 13.8189805 | AP59: =IFS!AP69 -> 13.72706874 | AQ59: =IFS!AQ69 -> 13.5968604 | AR59: =IFS!AR69 -> 13.37364612 | AS59: =IFS!AS69 -> 5.036958447 | AT59: =IFS!AT69 -> 0 | AU59: =IFS!AU69 -> 0 | AV59: =IFS!AV69 -> 0 | AW59: =IFS!AW69 -> 0 | AX59: =IFS!AX69 -> 0 | AY59: =IFS!AY69 -> 0 | AZ59: =IFS!AZ69 -> 0 | BA59: =IFS!BA69 -> 0 | BB59: =IFS!BB69 -> 0 | BC59: =IFS!BC69 -> 0 | BD59: =IFS!BD69 -> 0 | BE59: =IFS!BE69 -> 0 | BF59: =IFS!BF69 -> 0 | BG59: =IFS!BG69 -> 0 | BH59: =IFS!BH69 -> 0 | BI59: =IFS!BI69 -> 0 | BJ59: =IFS!BJ69 -> 0 | BK59: =IFS!BK69 -> 0 | BL59: =IFS!BL69 -> 0 | BM59: =IFS!BM69 -> 0
C60: Less: tax losses utilised | D60: AUD M | I60: =SUM(J60:BM60) -> -13.369839 | J60: =J67 -> 0 | K60: =K67 -> 0 | L60: 0 | M60: 0 | N60: =N67 -> -13.369839 | O60: 0 | P60: 0 | Q60: 0 | R60: 0 | S60: 0 | T60: 0 | U60: 0 | V60: 0 | W60: 0 | X60: 0 | Y60: 0 | Z60: 0 | AA60: 0 | AB60: 0 | AC60: 0 | AD60: 0 | AE60: 0 | AF60: 0 | AG60: 0 | AH60: 0 | AI60: 0 | AJ60: 0 | AK60: 0 | AL60: 0 | AM60: 0 | AN60: 0 | AO60: 0 | AP60: 0 | AQ60: 0 | AR60: 0 | AS60: 0 | AT60: 0 | AU60: 0 | AV60: 0 | AW60: 0 | AX60: 0 | AY60: 0 | AZ60: 0 | BA60: 0 | BB60: 0 | BC60: 0 | BD60: 0 | BE60: 0 | BF60: 0 | BG60: 0 | BH60: 0 | BI60: 0 | BJ60: 0 | BK60: 0 | BL60: 0 | BM60: 0
C61: Taxable income | D61: AUD M | I61: =SUM(J61:BM61) -> 426.9922081 | J61: =SUM(J59:J60) -> 0 | K61: =SUM(K59:K60) -> 0 | L61: 0 | M61: 0 | N61: 0.2654491046 | O61: 13.8750085 | P61: 13.86437925 | Q61: 13.85337573 | R61: 13.84197062 | S61: 13.8301335 | T61: 13.97548972 | U61: 14.38468859 | V61: 14.37133389 | W61: 14.357383 | X61: 14.3427802 | Y61: 14.32746157 | Z61: 14.31135332 | AA61: 14.29436963 | AB61: 14.27640986 | AC61: 14.25735498 | AD61: 14.23706277 | AE61: 14.21536138 | AF61: 14.19204049 | AG61: 14.16683887 | AH61: 14.13942659 | AI61: 14.10937852 | AJ61: 14.07613383 | AK61: 14.03893145 | AL61: 13.99670172 | AM61: 13.9478736 | AN61: 13.89000323 | AO61: 13.8189805 | AP61: 13.72706874 | AQ61: 13.5968604 | AR61: 13.37364612 | AS61: 5.036958447 | AT61: 0 | AU61: 0 | AV61: 0 | AW61: 0 | AX61: 0 | AY61: 0 | AZ61: 0 | BA61: 0 | BB61: 0 | BC61: 0 | BD61: 0 | BE61: 0 | BF61: 0 | BG61: 0 | BH61: 0 | BI61: 0 | BJ61: 0 | BK61: 0 | BL61: 0 | BM61: 0
C62: Tax payable | D62: AUD M | E62: =TaxRate -> 0.3 | I62: =SUM(J62:BM62) -> 128.0976624 | J62: =J61*$E62 -> 0 | K62: =K61*$E62 -> 0 | L62: 0 | M62: 0 | N62: 0.07963473138 | O62: 4.16250255 | P62: =P61*$E62 -> 4.159313774 | Q62: 4.156012718 | R62: 4.152591185 | S62: 4.149040049 | T62: 4.192646916 | U62: 4.315406578 | V62: 4.311400168 | W62: 4.3072149 | X62: 4.302834059 | Y62: 4.298238471 | Z62: 4.293405997 | AA62: 4.288310888 | AB62: 4.282922957 | AC62: 4.277206493 | AD62: 4.271118831 | AE62: 4.264608414 | AF62: 4.257612146 | AG62: 4.250051662 | AH62: 4.241827978 | AI62: 4.232813555 | AJ62: 4.22284015 | AK62: 4.211679436 | AL62: 4.199010517 | AM62: 4.18436208 | AN62: 4.167000969 | AO62: 4.14569415 | AP62: 4.118120621 | AQ62: 4.079058121 | AR62: 4.012093835 | AS62: 1.511087534 | AT62: 0 | AU62: 0 | AV62: 0 | AW62: 0 | AX62: 0 | AY62: 0 | AZ62: 0 | BA62: 0 | BB62: 0 | BC62: 0 | BD62: 0 | BE62: 0 | BF62: 0 | BG62: 0 | BH62: 0 | BI62: 0 | BJ62: 0 | BK62: 0 | BL62: 0 | BM62: 0
C64: Tax losses account
C65: Balance b/f | D65: AUD M | J65: =I68 -> 13.369839 | K65: =J68 -> 13.369839 | L65: 13.369839 | M65: 13.369839 | N65: 13.369839 | O65: 0 | P65: 0 | Q65: 0 | R65: 0 | S65: 0 | T65: 0 | U65: 0 | V65: 0 | W65: 0 | X65: 0 | Y65: 0 | Z65: 0 | AA65: 0 | AB65: 0 | AC65: 0 | AD65: 0 | AE65: 0 | AF65: 0 | AG65: 0 | AH65: 0 | AI65: 0 | AJ65: 0 | AK65: 0 | AL65: 0 | AM65: 0 | AN65: 0 | AO65: 0 | AP65: =AO68 -> 0 | AQ65: 0 | AR65: 0 | AS65: 0 | AT65: 0 | AU65: 0 | AV65: 0 | AW65: 0 | AX65: 0 | AY65: 0 | AZ65: 0 | BA65: 0 | BB65: 0 | BC65: 0 | BD65: 0 | BE65: 0 | BF65: 0 | BG65: 0 | BH65: 0 | BI65: 0 | BJ65: 0 | BK65: 0 | BL65: 0 | BM65: 0
C66: Tax losses incurred in period | D66: AUD M | I66: =SUM(J66:BM66) -> 0 | J66: =MAX(-J59,0) -> 0 | K66: =MAX(-K59,0) -> 0 | L66: 0 | M66: 0 | N66: 0 | O66: 0 | P66: 0 | Q66: 0 | R66: 0 | S66: 0 | T66: 0 | U66: 0 | V66: 0 | W66: 0 | X66: 0 | Y66: 0 | Z66: 0 | AA66: 0 | AB66: 0 | AC66: 0 | AD66: 0 | AE66: 0 | AF66: 0 | AG66: 0 | AH66: 0 | AI66: 0 | AJ66: 0 | AK66: 0 | AL66: 0 | AM66: 0 | AN66: 0 | AO66: 0 | AP66: 0 | AQ66: 0 | AR66: 0 | AS66: 0 | AT66: 0 | AU66: 0 | AV66: 0 | AW66: 0 | AX66: 0 | AY66: 0 | AZ66: 0 | BA66: 0 | BB66: 0 | BC66: 0 | BD66: 0 | BE66: 0 | BF66: 0 | BG66: 0 | BH66: 0 | BI66: 0 | BJ66: 0 | BK66: 0 | BL66: 0 | BM66: 0
C67: Tax losses utilised in period | D67: AUD M | I67: =SUM(J67:BM67) -> -13.369839 | J67: =-MIN(J59,SUM(J65:J66)) -> 0 | K67: =-MIN(K59,SUM(K65:K66)) -> 0 | L67: 0 | M67: 0 | N67: =-MIN(N59,SUM(N65:N66)) -> -13.369839 | O67: 0 | P67: 0 | Q67: 0 | R67: 0 | S67: 0 | T67: 0 | U67: 0 | V67: 0 | W67: 0 | X67: 0 | Y67: 0 | Z67: 0 | AA67: 0 | AB67: 0 | AC67: 0 | AD67: 0 | AE67: 0 | AF67: 0 | AG67: 0 | AH67: 0 | AI67: 0 | AJ67: 0 | AK67: 0 | AL67: 0 | AM67: 0 | AN67: 0 | AO67: 0 | AP67: 0 | AQ67: 0 | AR67: 0 | AS67: 0 | AT67: 0 | AU67: 0 | AV67: 0 | AW67: 0 | AX67: 0 | AY67: 0 | AZ67: 0 | BA67: 0 | BB67: 0 | BC67: 0 | BD67: 0 | BE67: 0 | BF67: 0 | BG67: 0 | BH67: 0 | BI67: 0 | BJ67: 0 | BK67: 0 | BL67: 0 | BM67: 0
C68: Balance c/f | D68: AUD M | I68: =Inputs!$F$101 -> 13.369839 | J68: =SUM(J65:J67) -> 13.369839 | K68: =SUM(K65:K67) -> 13.369839 | L68: 13.369839 | M68: 13.369839 | N68: 0 | O68: 0 | P68: 0 | Q68: 0 | R68: 0 | S68: 0 | T68: 0 | U68: 0 | V68: 0 | W68: 0 | X68: 0 | Y68: 0 | Z68: 0 | AA68: 0 | AB68: 0 | AC68: 0 | AD68: 0 | AE68: 0 | AF68: 0 | AG68: 0 | AH68: 0 | AI68: 0 | AJ68: 0 | AK68: 0 | AL68: 0 | AM68: 0 | AN68: 0 | AO68: 0 | AP68: 0 | AQ68: 0 | AR68: 0 | AS68: 0 | AT68: 0 | AU68: 0 | AV68: 0 | AW68: 0 | AX68: 0 | AY68: 0 | AZ68: 0 | BA68: 0 | BB68: 0 | BC68: 0 | BD68: 0 | BE68: 0 | BF68: 0 | BG68: 0 | BH68: 0 | BI68: 0 | BJ68: 0 | BK68: 0 | BL68: 0 | BM68: 0
C70: Often can simplify just with EBIT x tax rate

Sheet Cashflow Waterfall
B1: Cashflow Waterfall
D2: =Master_check -> 0
B4: Period Start | I4: =Timing!J4 -> 2019-01-01 | J4: =Timing!K4 -> 2019-04-01 | K4: =Timing!L4 -> 2019-07-01 | L4: =Timing!M4 -> 2019-10-01 | M4: =Timing!N4 -> 2020-01-01 | N4: =Timing!O4 -> 2020-04-01 | O4: =Timing!P4 -> 2020-07-01 | P4: =Timing!Q4 -> 2020-10-01 | Q4: =Timing!R4 -> 2021-01-01 | R4: =Timing!S4 -> 2021-04-01 | S4: =Timing!T4 -> 2021-07-01 | T4: =Timing!U4 -> 2021-10-01 | U4: =Timing!V4 -> 2022-01-01 | V4: =Timing!W4 -> 2022-04-01 | W4: =Timing!X4 -> 2022-07-01 | X4: =Timing!Y4 -> 2022-10-01 | Y4: =Timing!Z4 -> 2023-01-01 | Z4: =Timing!AA4 -> 2023-04-01 | AA4: =Timing!AB4 -> 2023-07-01 | AB4: =Timing!AC4 -> 2023-10-01 | AC4: =Timing!AD4 -> 2024-01-01 | AD4: =Timing!AE4 -> 2024-04-01 | AE4: =Timing!AF4 -> 2024-07-01 | AF4: =Timing!AG4 -> 2024-10-01 | AG4: =Timing!AH4 -> 2025-01-01 | AH4: =Timing!AI4 -> 2025-04-01 | AI4: =Timing!AJ4 -> 2025-07-01 | AJ4: =Timing!AK4 -> 2025-10-01 | AK4: =Timing!AL4 -> 2026-01-01 | AL4: =Timing!AM4 -> 2026-04-01 | AM4: =Timing!AN4 -> 2026-07-01 | AN4: =Timing!AO4 -> 2026-10-01 | AO4: =Timing!AP4 -> 2027-01-01 | AP4: =Timing!AQ4 -> 2027-04-01 | AQ4: =Timing!AR4 -> 2027-07-01 | AR4: =Timing!AS4 -> 2027-10-01 | AS4: =Timing!AT4 -> 2028-01-01 | AT4: =Timing!AU4 -> 2028-04-01 | AU4: =Timing!AV4 -> 2028-07-01 | AV4: =Timing!AW4 -> 2028-10-01 | AW4: =Timing!AX4 -> 2029-01-01 | AX4: =Timing!AY4 -> 2029-04-01 | AY4: =Timing!AZ4 -> 2029-07-01 | AZ4: =Timing!BA4 -> 2029-10-01 | BA4: =Timing!BB4 -> 2030-01-01 | BB4: =Timing!BC4 -> 2030-04-01 | BC4: =Timing!BD4 -> 2030-07-01 | BD4: =Timing!BE4 -> 2030-10-01 | BE4: =Timing!BF4 -> 2031-01-01 | BF4: =Timing!BG4 -> 2031-04-01 | BG4: =Timing!BH4 -> 2031-07-01 | BH4: =Timing!BI4 -> 2031-10-01 | BI4: =Timing!BJ4 -> 2032-01-01 | BJ4: =Timing!BK4 -> 2032-04-01 | BK4: =Timing!BL4 -> 2032-07-01 | BL4: =Timing!BM4 -> 2032-10-01
B5: Period End | H5: =Timing!I5 -> 2018-12-31 | I5: =Timing!J5 -> 2019-03-31 | J5: =Timing!K5 -> 2019-06-30 | K5: =Timing!L5 -> 2019-09-30 | L5: =Timing!M5 -> 2019-12-31 | M5: =Timing!N5 -> 2020-03-31 | N5: =Timing!O5 -> 2020-06-30 | O5: =Timing!P5 -> 2020-09-30 | P5: =Timing!Q5 -> 2020-12-31 | Q5: =Timing!R5 -> 2021-03-31 | R5: =Timing!S5 -> 2021-06-30 | S5: =Timing!T5 -> 2021-09-30 | T5: =Timing!U5 -> 2021-12-31 | U5: =Timing!V5 -> 2022-03-31 | V5: =Timing!W5 -> 2022-06-30 | W5: =Timing!X5 -> 2022-09-30 | X5: =Timing!Y5 -> 2022-12-31 | Y5: =Timing!Z5 -> 2023-03-31 | Z5: =Timing!AA5 -> 2023-06-30 | AA5: =Timing!AB5 -> 2023-09-30 | AB5: =Timing!AC5 -> 2023-12-31 | AC5: =Timing!AD5 -> 2024-03-31 | AD5: =Timing!AE5 -> 2024-06-30 | AE5: =Timing!AF5 -> 2024-09-30 | AF5: =Timing!AG5 -> 2024-12-31 | AG5: =Timing!AH5 -> 2025-03-31 | AH5: =Timing!AI5 -> 2025-06-30 | AI5: =Timing!AJ5 -> 2025-09-30 | AJ5: =Timing!AK5 -> 2025-12-31 | AK5: =Timing!AL5 -> 2026-03-31 | AL5: =Timing!AM5 -> 2026-06-30 | AM5: =Timing!AN5 -> 2026-09-30 | AN5: =Timing!AO5 -> 2026-12-31 | AO5: =Timing!AP5 -> 2027-03-31 | AP5: =Timing!AQ5 -> 2027-06-30 | AQ5: =Timing!AR5 -> 2027-09-30 | AR5: =Timing!AS5 -> 2027-12-31 | AS5: =Timing!AT5 -> 2028-03-31 | AT5: =Timing!AU5 -> 2028-06-30 | AU5: =Timing!AV5 -> 2028-09-30 | AV5: =Timing!AW5 -> 2028-12-31 | AW5: =Timing!AX5 -> 2029-03-31 | AX5: =Timing!AY5 -> 2029-06-30 | AY5: =Timing!AZ5 -> 2029-09-30 | AZ5: =Timing!BA5 -> 2029-12-31 | BA5: =Timing!BB5 -> 2030-03-31 | BB5: =Timing!BC5 -> 2030-06-30 | BC5: =Timing!BD5 -> 2030-09-30 | BD5: =Timing!BE5 -> 2030-12-31 | BE5: =Timing!BF5 -> 2031-03-31 | BF5: =Timing!BG5 -> 2031-06-30 | BG5: =Timing!BH5 -> 2031-09-30 | BH5: =Timing!BI5 -> 2031-12-31 | BI5: =Timing!BJ5 -> 2032-03-31 | BJ5: =Timing!BK5 -> 2032-06-30 | BK5: =Timing!BL5 -> 2032-09-30 | BL5: =Timing!BM5 -> 2032-12-31
B6: Development | C6: =Timing!D6 -> 2019-01-01 | D6: =Timing!E6 -> 2019-12-31 | I6: =Timing!J6 -> 1 | J6: =Timing!K6 -> 1 | K6: =Timing!L6 -> 1 | L6: =Timing!M6 -> 1 | M6: =Timing!N6 -> 0 | N6: =Timing!O6 -> 0 | O6: =Timing!P6 -> 0 | P6: =Timing!Q6 -> 0 | Q6: =Timing!R6 -> 0 | R6: =Timing!S6 -> 0 | S6: =Timing!T6 -> 0 | T6: =Timing!U6 -> 0 | U6: =Timing!V6 -> 0 | V6: =Timing!W6 -> 0 | W6: =Timing!X6 -> 0 | X6: =Timing!Y6 -> 0 | Y6: =Timing!Z6 -> 0 | Z6: =Timing!AA6 -> 0 | AA6: =Timing!AB6 -> 0 | AB6: =Timing!AC6 -> 0 | AC6: =Timing!AD6 -> 0 | AD6: =Timing!AE6 -> 0 | AE6: =Timing!AF6 -> 0 | AF6: =Timing!AG6 -> 0 | AG6: =Timing!AH6 -> 0 | AH6: =Timing!AI6 -> 0 | AI6: =Timing!AJ6 -> 0 | AJ6: =Timing!AK6 -> 0 | AK6: =Timing!AL6 -> 0 | AL6: =Timing!AM6 -> 0 | AM6: =Timing!AN6 -> 0 | AN6: =Timing!AO6 -> 0 | AO6: =Timing!AP6 -> 0 | AP6: =Timing!AQ6 -> 0 | AQ6: =Timing!AR6 -> 0 | AR6: =Timing!AS6 -> 0 | AS6: =Timing!AT6 -> 0 | AT6: =Timing!AU6 -> 0 | AU6: =Timing!AV6 -> 0 | AV6: =Timing!AW6 -> 0 | AW6: =Timing!AX6 -> 0 | AX6: =Timing!AY6 -> 0 | AY6: =Timing!AZ6 -> 0 | AZ6: =Timing!BA6 -> 0 | BA6: =Timing!BB6 -> 0 | BB6: =Timing!BC6 -> 0 | BC6: =Timing!BD6 -> 0 | BD6: =Timing!BE6 -> 0 | BE6: =Timing!BF6 -> 0 | BF6: =Timing!BG6 -> 0 | BG6: =Timing!BH6 -> 0 | BH6: =Timing!BI6 -> 0 | BI6: =Timing!BJ6 -> 0 | BJ6: =Timing!BK6 -> 0 | BK6: =Timing!BL6 -> 0 | BL6: =Timing!BM6 -> 0
B7: Production | C7: =Timing!D7 -> 2020-01-01 | D7: =Timing!E7 -> 2027-12-31 | I7: =Timing!J7 -> 0 | J7: =Timing!K7 -> 0 | K7: =Timing!L7 -> 0 | L7: =Timing!M7 -> 0 | M7: =Timing!N7 -> 1 | N7: =Timing!O7 -> 1 | O7: =Timing!P7 -> 1 | P7: =Timing!Q7 -> 1 | Q7: =Timing!R7 -> 1 | R7: =Timing!S7 -> 1 | S7: =Timing!T7 -> 1 | T7: =Timing!U7 -> 1 | U7: =Timing!V7 -> 1 | V7: =Timing!W7 -> 1 | W7: =Timing!X7 -> 1 | X7: =Timing!Y7 -> 1 | Y7: =Timing!Z7 -> 1 | Z7: =Timing!AA7 -> 1 | AA7: =Timing!AB7 -> 1 | AB7: =Timing!AC7 -> 1 | AC7: =Timing!AD7 -> 1 | AD7: =Timing!AE7 -> 1 | AE7: =Timing!AF7 -> 1 | AF7: =Timing!AG7 -> 1 | AG7: =Timing!AH7 -> 1 | AH7: =Timing!AI7 -> 1 | AI7: =Timing!AJ7 -> 1 | AJ7: =Timing!AK7 -> 1 | AK7: =Timing!AL7 -> 1 | AL7: =Timing!AM7 -> 1 | AM7: =Timing!AN7 -> 1 | AN7: =Timing!AO7 -> 1 | AO7: =Timing!AP7 -> 1 | AP7: =Timing!AQ7 -> 1 | AQ7: =Timing!AR7 -> 1 | AR7: =Timing!AS7 -> 1 | AS7: =Timing!AT7 -> 0 | AT7: =Timing!AU7 -> 0 | AU7: =Timing!AV7 -> 0 | AV7: =Timing!AW7 -> 0 | AW7: =Timing!AX7 -> 0 | AX7: =Timing!AY7 -> 0 | AY7: =Timing!AZ7 -> 0 | AZ7: =Timing!BA7 -> 0 | BA7: =Timing!BB7 -> 0 | BB7: =Timing!BC7 -> 0 | BC7: =Timing!BD7 -> 0 | BD7: =Timing!BE7 -> 0 | BE7: =Timing!BF7 -> 0 | BF7: =Timing!BG7 -> 0 | BG7: =Timing!BH7 -> 0 | BH7: =Timing!BI7 -> 0 | BI7: =Timing!BJ7 -> 0 | BJ7: =Timing!BK7 -> 0 | BK7: =Timing!BL7 -> 0 | BL7: =Timing!BM7 -> 0
B8: Restoration | C8: =Inputs!I7 -> 2028-01-01 | D8: =Inputs!I9 -> 2027-12-31 | I8: =IF(AND(I$4>=$C8,I$5<=$D8),1,0) -> 0 | J8: =IF(AND(J$4>=$C8,J$5<=$D8),1,0) -> 0 | K8: 0 | L8: 0 | M8: 0 | N8: 0 | O8: 0 | P8: 0 | Q8: 0 | R8: 0 | S8: 0 | T8: 0 | U8: 0 | V8: 0 | W8: 0 | X8: 0 | Y8: 0 | Z8: 0 | AA8: 0 | AB8: 0 | AC8: 0 | AD8: 0 | AE8: 0 | AF8: 0 | AG8: 0 | AH8: 0 | AI8: 0 | AJ8: 0 | AK8: 0 | AL8: 0 | AM8: 0 | AN8: 0 | AO8: 0 | AP8: 0 | AQ8: 0 | AR8: 0 | AS8: 0 | AT8: 0 | AU8: 0 | AV8: 0 | AW8: 0 | AX8: 0 | AY8: 0 | AZ8: 0 | BA8: 0 | BB8: 0 | BC8: 0 | BD8: 0 | BE8: 0 | BF8: 0 | BG8: 0 | BH8: 0 | BI8: 0 | BJ8: 0 | BK8: 0 | BL8: 0
B10: Revenue
B11: Spot pricing | C11: Maybe add Royalty Revenue
B12: Tungston Price (USD) | C12: USD/mtu | I12: =IF(I7=0,0,LOOKUP(YEAR('Cashflow Waterfall'!I4),Inputs!$F$55:$L$55,Inputs!$F$59:$L$59)) -> 0 | J12: =IF(J7=0,0,LOOKUP(YEAR('Cashflow Waterfall'!J4),Inputs!$F$55:$L$55,Inputs!$F$59:$L$59)) -> 0 | K12: =IF(K7=0,0,LOOKUP(YEAR('Cashflow Waterfall'!K4),Inputs!$F$55:$L$55,Inputs!$F$59:$L$59)) -> 0 | L12: =IF(L7=0,0,LOOKUP(YEAR('Cashflow Waterfall'!L4),Inputs!$F$55:$L$55,Inputs!$F$59:$L$59)) -> 0 | M12: =IF(M7=0,0,LOOKUP(YEAR('Cashflow Waterfall'!M4),Inputs!$F$55:$L$55,Inputs!$F$59:$L$59)) -> 330 | N12: =IF(N7=0,0,LOOKUP(YEAR('Cashflow Waterfall'!N4),Inputs!$F$55:$L$55,Inputs!$F$59:$L$59)) -> 330 | O12: =IF(O7=0,0,LOOKUP(YEAR('Cashflow Waterfall'!O4),Inputs!$F$55:$L$55,Inputs!$F$59:$L$59)) -> 330 | P12: =IF(P7=0,0,LOOKUP(YEAR('Cashflow Waterfall'!P4),Inputs!$F$55:$L$55,Inputs!$F$59:$L$59)) -> 330 | Q12: =IF(Q7=0,0,LOOKUP(YEAR('Cashflow Waterfall'!Q4),Inputs!$F$55:$L$55,Inputs!$F$59:$L$59)) -> 330 | R12: =IF(R7=0,0,LOOKUP(YEAR('Cashflow Waterfall'!R4),Inputs!$F$55:$L$55,Inputs!$F$59:$L$59)) -> 330 | S12: =IF(S7=0,0,LOOKUP(YEAR('Cashflow Waterfall'!S4),Inputs!$F$55:$L$55,Inputs!$F$59:$L$59)) -> 330 | T12: =IF(T7=0,0,LOOKUP(YEAR('Cashflow Waterfall'!T4),Inputs!$F$55:$L$55,Inputs!$F$59:$L$59)) -> 330 | U12: =IF(U7=0,0,LOOKUP(YEAR('Cashflow Waterfall'!U4),Inputs!$F$55:$L$55,Inputs!$F$59:$L$59)) -> 330 | V12: =IF(V7=0,0,LOOKUP(YEAR('Cashflow Waterfall'!V4),Inputs!$F$55:$L$55,Inputs!$F$59:$L$59)) -> 330 | W12: =IF(W7=0,0,LOOKUP(YEAR('Cashflow Waterfall'!W4),Inputs!$F$55:$L$55,Inputs!$F$59:$L$59)) -> 330 | X12: =IF(X7=0,0,LOOKUP(YEAR('Cashflow Waterfall'!X4),Inputs!$F$55:$L$55,Inputs!$F$59:$L$59)) -> 330 | Y12: =IF(Y7=0,0,LOOKUP(YEAR('Cashflow Waterfall'!Y4),Inputs!$F$55:$L$55,Inputs!$F$59:$L$59)) -> 330 | Z12: =IF(Z7=0,0,LOOKUP(YEAR('Cashflow Waterfall'!Z4),Inputs!$F$55:$L$55,Inputs!$F$59:$L$59)) -> 330 | AA12: =IF(AA7=0,0,LOOKUP(YEAR('Cashflow Waterfall'!AA4),Inputs!$F$55:$L$55,Inputs!$F$59:$L$59)) -> 330 | AB12: =IF(AB7=0,0,LOOKUP(YEAR('Cashflow Waterfall'!AB4),Inputs!$F$55:$L$55,Inputs!$F$59:$L$59)) -> 330 | AC12: =IF(AC7=0,0,LOOKUP(YEAR('Cashflow Waterfall'!AC4),Inputs!$F$55:$L$55,Inputs!$F$59:$L$59)) -> 330 | AD12: =IF(AD7=0,0,LOOKUP(YEAR('Cashflow Waterfall'!AD4),Inputs!$F$55:$L$55,Inputs!$F$59:$L$59)) -> 330 | AE12: =IF(AE7=0,0,LOOKUP(YEAR('Cashflow Waterfall'!AE4),Inputs!$F$55:$L$55,Inputs!$F$59:$L$59)) -> 330 | AF12: =IF(AF7=0,0,LOOKUP(YEAR('Cashflow Waterfall'!AF4),Inputs!$F$55:$L$55,Inputs!$F$59:$L$59)) -> 330 | AG12: =IF(AG7=0,0,LOOKUP(YEAR('Cashflow Waterfall'!AG4),Inputs!$F$55:$L$55,Inputs!$F$59:$L$59)) -> 330 | AH12: =IF(AH7=0,0,LOOKUP(YEAR('Cashflow Waterfall'!AH4),Inputs!$F$55:$L$55,Inputs!$F$59:$L$59)) -> 330 | AI12: =IF(AI7=0,0,LOOKUP(YEAR('Cashflow Waterfall'!AI4),Inputs!$F$55:$L$55,Inputs!$F$59:$L$59)) -> 330 | AJ12: =IF(AJ7=0,0,LOOKUP(YEAR('Cashflow Waterfall'!AJ4),Inputs!$F$55:$L$55,Inputs!$F$59:$L$59)) -> 330 | AK12: =IF(AK7=0,0,LOOKUP(YEAR('Cashflow Waterfall'!AK4),Inputs!$F$55:$L$55,Inputs!$F$59:$L$59)) -> 330 | AL12: =IF(AL7=0,0,LOOKUP(YEAR('Cashflow Waterfall'!AL4),Inputs!$F$55:$L$55,Inputs!$F$59:$L$59)) -> 330 | AM12: =IF(AM7=0,0,LOOKUP(YEAR('Cashflow Waterfall'!AM4),Inputs!$F$55:$L$55,Inputs!$F$59:$L$59)) -> 330 | AN12: =IF(AN7=0,0,LOOKUP(YEAR('Cashflow Waterfall'!AN4),Inputs!$F$55:$L$55,Inputs!$F$59:$L$59)) -> 330 | AO12: =IF(AO7=0,0,LOOKUP(YEAR('Cashflow Waterfall'!AO4),Inputs!$F$55:$L$55,Inputs!$F$59:$L$59)) -> 330 | AP12: =IF(AP7=0,0,LOOKUP(YEAR('Cashflow Waterfall'!AP4),Inputs!$F$55:$L$55,Inputs!$F$59:$L$59)) -> 330 | AQ12: =IF(AQ7=0,0,LOOKUP(YEAR('Cashflow Waterfall'!AQ4),Inputs!$F$55:$L$55,Inputs!$F$59:$L$59)) -> 330 | AR12: =IF(AR7=0,0,LOOKUP(YEAR('Cashflow Waterfall'!AR4),Inputs!$F$55:$L$55,Inputs!$F$59:$L$59)) -> 330 | AS12: =IF(AS7=0,0,LOOKUP(YEAR('Cashflow Waterfall'!AS4),Inputs!$F$55:$L$55,Inputs!$F$59:$L$59)) -> 0 | AT12: =IF(AT7=0,0,LOOKUP(YEAR('Cashflow Waterfall'!AT4),Inputs!$F$55:$L$55,Inputs!$F$59:$L$59)) -> 0 | AU12: =IF(AU7=0,0,LOOKUP(YEAR('Cashflow Waterfall'!AU4),Inputs!$F$55:$L$55,Inputs!$F$59:$L$59)) -> 0 | AV12: =IF(AV7=0,0,LOOKUP(YEAR('Cashflow Waterfall'!AV4),Inputs!$F$55:$L$55,Inputs!$F$59:$L$59)) -> 0 | AW12: =IF(AW7=0,0,LOOKUP(YEAR('Cashflow Waterfall'!AW4),Inputs!$F$55:$L$55,Inputs!$F$59:$L$59)) -> 0 | AX12: =IF(AX7=0,0,LOOKUP(YEAR('Cashflow Waterfall'!AX4),Inputs!$F$55:$L$55,Inputs!$F$59:$L$59)) -> 0 | AY12: =IF(AY7=0,0,LOOKUP(YEAR('Cashflow Waterfall'!AY4),Inputs!$F$55:$L$55,Inputs!$F$59:$L$59)) -> 0 | AZ12: =IF(AZ7=0,0,LOOKUP(YEAR('Cashflow Waterfall'!AZ4),Inputs!$F$55:$L$55,Inputs!$F$59:$L$59)) -> 0 | BA12: =IF(BA7=0,0,LOOKUP(YEAR('Cashflow Waterfall'!BA4),Inputs!$F$55:$L$55,Inputs!$F$59:$L$59)) -> 0 | BB12: =IF(BB7=0,0,LOOKUP(YEAR('Cashflow Waterfall'!BB4),Inputs!$F$55:$L$55,Inputs!$F$59:$L$59)) -> 0 | BC12: =IF(BC7=0,0,LOOKUP(YEAR('Cashflow Waterfall'!BC4),Inputs!$F$55:$L$55,Inputs!$F$59:$L$59)) -> 0 | BD12: =IF(BD7=0,0,LOOKUP(YEAR('Cashflow Waterfall'!BD4),Inputs!$F$55:$L$55,Inputs!$F$59:$L$59)) -> 0 | BE12: =IF(BE7=0,0,LOOKUP(YEAR('Cashflow Waterfall'!BE4),Inputs!$F$55:$L$55,Inputs!$F$59:$L$59)) -> 0 | BF12: =IF(BF7=0,0,LOOKUP(YEAR('Cashflow Waterfall'!BF4),Inputs!$F$55:$L$55,Inputs!$F$59:$L$59)) -> 0 | BG12: =IF(BG7=0,0,LOOKUP(YEAR('Cashflow Waterfall'!BG4),Inputs!$F$55:$L$55,Inputs!$F$59:$L$59)) -> 0 | BH12: =IF(BH7=0,0,LOOKUP(YEAR('Cashflow Waterfall'!BH4),Inputs!$F$55:$L$55,Inputs!$F$59:$L$59)) -> 0 | BI12: =IF(BI7=0,0,LOOKUP(YEAR('Cashflow Waterfall'!BI4),Inputs!$F$55:$L$55,Inputs!$F$59:$L$59)) -> 0 | BJ12: =IF(BJ7=0,0,LOOKUP(YEAR('Cashflow Waterfall'!BJ4),Inputs!$F$55:$L$55,Inputs!$F$59:$L$59)) -> 0 | BK12: =IF(BK7=0,0,LOOKUP(YEAR('Cashflow Waterfall'!BK4),Inputs!$F$55:$L$55,Inputs!$F$59:$L$59)) -> 0 | BL12: =IF(BL7=0,0,LOOKUP(YEAR('Cashflow Waterfall'!BL4),Inputs!$F$55:$L$55,Inputs!$F$59:$L$59)) -> 0
B13: Forex | C13: USD/AUD | I13: =IF(I12=0,0,LOOKUP(YEAR(I4),Inputs!$E$207:$J$207,Inputs!$E$209:$J$209)) -> 0 | J13: =IF(J12=0,0,LOOKUP(YEAR(J4),Inputs!$E$207:$J$207,Inputs!$E$209:$J$209)) -> 0 | K13: =IF(K12=0,0,LOOKUP(YEAR(K4),Inputs!$E$207:$J$207,Inputs!$E$209:$J$209)) -> 0 | L13: =IF(L12=0,0,LOOKUP(YEAR(L4),Inputs!$E$207:$J$207,Inputs!$E$209:$J$209)) -> 0 | M13: =IF(M12=0,0,LOOKUP(YEAR(M4),Inputs!$E$207:$J$207,Inputs!$E$209:$J$209)) -> 0.72 | N13: =IF(N12=0,0,LOOKUP(YEAR(N4),Inputs!$E$207:$J$207,Inputs!$E$209:$J$209)) -> 0.72 | O13: =IF(O12=0,0,LOOKUP(YEAR(O4),Inputs!$E$207:$J$207,Inputs!$E$209:$J$209)) -> 0.72 | P13: =IF(P12=0,0,LOOKUP(YEAR(P4),Inputs!$E$207:$J$207,Inputs!$E$209:$J$209)) -> 0.72 | Q13: =IF(Q12=0,0,LOOKUP(YEAR(Q4),Inputs!$E$207:$J$207,Inputs!$E$209:$J$209)) -> 0.72 | R13: =IF(R12=0,0,LOOKUP(YEAR(R4),Inputs!$E$207:$J$207,Inputs!$E$209:$J$209)) -> 0.72 | S13: =IF(S12=0,0,LOOKUP(YEAR(S4),Inputs!$E$207:$J$207,Inputs!$E$209:$J$209)) -> 0.72 | T13: =IF(T12=0,0,LOOKUP(YEAR(T4),Inputs!$E$207:$J$207,Inputs!$E$209:$J$209)) -> 0.72 | U13: =IF(U12=0,0,LOOKUP(YEAR(U4),Inputs!$E$207:$J$207,Inputs!$E$209:$J$209)) -> 0.72 | V13: =IF(V12=0,0,LOOKUP(YEAR(V4),Inputs!$E$207:$J$207,Inputs!$E$209:$J$209)) -> 0.72 | W13: =IF(W12=0,0,LOOKUP(YEAR(W4),Inputs!$E$207:$J$207,Inputs!$E$209:$J$209)) -> 0.72 | X13: =IF(X12=0,0,LOOKUP(YEAR(X4),Inputs!$E$207:$J$207,Inputs!$E$209:$J$209)) -> 0.72 | Y13: =IF(Y12=0,0,LOOKUP(YEAR(Y4),Inputs!$E$207:$J$207,Inputs!$E$209:$J$209)) -> 0.72 | Z13: =IF(Z12=0,0,LOOKUP(YEAR(Z4),Inputs!$E$207:$J$207,Inputs!$E$209:$J$209)) -> 0.72 | AA13: =IF(AA12=0,0,LOOKUP(YEAR(AA4),Inputs!$E$207:$J$207,Inputs!$E$209:$J$209)) -> 0.72 | AB13: =IF(AB12=0,0,LOOKUP(YEAR(AB4),Inputs!$E$207:$J$207,Inputs!$E$209:$J$209)) -> 0.72 | AC13: =IF(AC12=0,0,LOOKUP(YEAR(AC4),Inputs!$E$207:$J$207,Inputs!$E$209:$J$209)) -> 0.72 | AD13: =IF(AD12=0,0,LOOKUP(YEAR(AD4),Inputs!$E$207:$J$207,Inputs!$E$209:$J$209)) -> 0.72 | AE13: =IF(AE12=0,0,LOOKUP(YEAR(AE4),Inputs!$E$207:$J$207,Inputs!$E$209:$J$209)) -> 0.72 | AF13: =IF(AF12=0,0,LOOKUP(YEAR(AF4),Inputs!$E$207:$J$207,Inputs!$E$209:$J$209)) -> 0.72 | AG13: =IF(AG12=0,0,LOOKUP(YEAR(AG4),Inputs!$E$207:$J$207,Inputs!$E$209:$J$209)) -> 0.72 | AH13: =IF(AH12=0,0,LOOKUP(YEAR(AH4),Inputs!$E$207:$J$207,Inputs!$E$209:$J$209)) -> 0.72 | AI13: =IF(AI12=0,0,LOOKUP(YEAR(AI4),Inputs!$E$207:$J$207,Inputs!$E$209:$J$209)) -> 0.72 | AJ13: =IF(AJ12=0,0,LOOKUP(YEAR(AJ4),Inputs!$E$207:$J$207,Inputs!$E$209:$J$209)) -> 0.72 | AK13: =IF(AK12=0,0,LOOKUP(YEAR(AK4),Inputs!$E$207:$J$207,Inputs!$E$209:$J$209)) -> 0.72 | AL13: =IF(AL12=0,0,LOOKUP(YEAR(AL4),Inputs!$E$207:$J$207,Inputs!$E$209:$J$209)) -> 0.72 | AM13: =IF(AM12=0,0,LOOKUP(YEAR(AM4),Inputs!$E$207:$J$207,Inputs!$E$209:$J$209)) -> 0.72 | AN13: =IF(AN12=0,0,LOOKUP(YEAR(AN4),Inputs!$E$207:$J$207,Inputs!$E$209:$J$209)) -> 0.72 | AO13: =IF(AO12=0,0,LOOKUP(YEAR(AO4),Inputs!$E$207:$J$207,Inputs!$E$209:$J$209)) -> 0.72 | AP13: =IF(AP12=0,0,LOOKUP(YEAR(AP4),Inputs!$E$207:$J$207,Inputs!$E$209:$J$209)) -> 0.72 | AQ13: =IF(AQ12=0,0,LOOKUP(YEAR(AQ4),Inputs!$E$207:$J$207,Inputs!$E$209:$J$209)) -> 0.72 | AR13: =IF(AR12=0,0,LOOKUP(YEAR(AR4),Inputs!$E$207:$J$207,Inputs!$E$209:$J$209)) -> 0.72 | AS13: =IF(AS12=0,0,LOOKUP(YEAR(AS4),Inputs!$E$207:$J$207,Inputs!$E$209:$J$209)) -> 0 | AT13: =IF(AT12=0,0,LOOKUP(YEAR(AT4),Inputs!$E$207:$J$207,Inputs!$E$209:$J$209)) -> 0 | AU13: =IF(AU12=0,0,LOOKUP(YEAR(AU4),Inputs!$E$207:$J$207,Inputs!$E$209:$J$209)) -> 0 | AV13: =IF(AV12=0,0,LOOKUP(YEAR(AV4),Inputs!$E$207:$J$207,Inputs!$E$209:$J$209)) -> 0 | AW13: =IF(AW12=0,0,LOOKUP(YEAR(AW4),Inputs!$E$207:$J$207,Inputs!$E$209:$J$209)) -> 0 | AX13: =IF(AX12=0,0,LOOKUP(YEAR(AX4),Inputs!$E$207:$J$207,Inputs!$E$209:$J$209)) -> 0 | AY13: =IF(AY12=0,0,LOOKUP(YEAR(AY4),Inputs!$E$207:$J$207,Inputs!$E$209:$J$209)) -> 0 | AZ13: =IF(AZ12=0,0,LOOKUP(YEAR(AZ4),Inputs!$E$207:$J$207,Inputs!$E$209:$J$209)) -> 0 | BA13: =IF(BA12=0,0,LOOKUP(YEAR(BA4),Inputs!$E$207:$J$207,Inputs!$E$209:$J$209)) -> 0 | BB13: =IF(BB12=0,0,LOOKUP(YEAR(BB4),Inputs!$E$207:$J$207,Inputs!$E$209:$J$209)) -> 0 | BC13: =IF(BC12=0,0,LOOKUP(YEAR(BC4),Inputs!$E$207:$J$207,Inputs!$E$209:$J$209)) -> 0 | BD13: =IF(BD12=0,0,LOOKUP(YEAR(BD4),Inputs!$E$207:$J$207,Inputs!$E$209:$J$209)) -> 0 | BE13: =IF(BE12=0,0,LOOKUP(YEAR(BE4),Inputs!$E$207:$J$207,Inputs!$E$209:$J$209)) -> 0 | BF13: =IF(BF12=0,0,LOOKUP(YEAR(BF4),Inputs!$E$207:$J$207,Inputs!$E$209:$J$209)) -> 0 | BG13: =IF(BG12=0,0,LOOKUP(YEAR(BG4),Inputs!$E$207:$J$207,Inputs!$E$209:$J$209)) -> 0 | BH13: =IF(BH12=0,0,LOOKUP(YEAR(BH4),Inputs!$E$207:$J$207,Inputs!$E$209:$J$209)) -> 0 | BI13: =IF(BI12=0,0,LOOKUP(YEAR(BI4),Inputs!$E$207:$J$207,Inputs!$E$209:$J$209)) -> 0 | BJ13: =IF(BJ12=0,0,LOOKUP(YEAR(BJ4),Inputs!$E$207:$J$207,Inputs!$E$209:$J$209)) -> 0 | BK13: =IF(BK12=0,0,LOOKUP(YEAR(BK4),Inputs!$E$207:$J$207,Inputs!$E$209:$J$209)) -> 0 | BL13: =IF(BL12=0,0,LOOKUP(YEAR(BL4),Inputs!$E$207:$J$207,Inputs!$E$209:$J$209)) -> 0
B14: Tungston Price (AUD | C14: AUD/mtu | I14: =IF(I12=0,0,I12/I13) -> 0 | J14: =IF(J12=0,0,J12/J13) -> 0 | K14: 0 | L14: 0 | M14: 458.3333333 | N14: 458.3333333 | O14: 458.3333333 | P14: 458.3333333 | Q14: 458.3333333 | R14: 458.3333333 | S14: 458.3333333 | T14: 458.3333333 | U14: 458.3333333 | V14: 458.3333333 | W14: 458.3333333 | X14: 458.3333333 | Y14: 458.3333333 | Z14: 458.3333333 | AA14: 458.3333333 | AB14: 458.3333333 | AC14: 458.3333333 | AD14: 458.3333333 | AE14: 458.3333333 | AF14: 458.3333333 | AG14: 458.3333333 | AH14: 458.3333333 | AI14: 458.3333333 | AJ14: 458.3333333 | AK14: 458.3333333 | AL14: 458.3333333 | AM14: 458.3333333 | AN14: 458.3333333 | AO14: 458.3333333 | AP14: 458.3333333 | AQ14: 458.3333333 | AR14: 458.3333333 | AS14: 0 | AT14: 0 | AU14: 0 | AV14: 0 | AW14: 0 | AX14: 0 | AY14: 0 | AZ14: 0 | BA14: 0 | BB14: 0 | BC14: 0 | BD14: 0 | BE14: 0 | BF14: 0 | BG14: 0 | BH14: 0 | BI14: 0 | BJ14: 0 | BK14: 0 | BL14: 0
B15: Tungston Concentrate | C15: mtu | H15: =SUM(I15:BL15) -> 2578725 | I15: ='Mining Schedule'!I38 -> 0 | J15: ='Mining Schedule'!J38 -> 0 | K15: ='Mining Schedule'!K38 -> 0 | L15: ='Mining Schedule'!L38 -> 0 | M15: ='Mining Schedule'!M38 -> 82125 | N15: ='Mining Schedule'!N38 -> 82125 | O15: ='Mining Schedule'!O38 -> 82125 | P15: ='Mining Schedule'!P38 -> 82125 | Q15: ='Mining Schedule'!Q38 -> 82125 | R15: ='Mining Schedule'!R38 -> 82125 | S15: ='Mining Schedule'!S38 -> 82125 | T15: ='Mining Schedule'!T38 -> 82125 | U15: ='Mining Schedule'!U38 -> 82125 | V15: ='Mining Schedule'!V38 -> 82125 | W15: ='Mining Schedule'!W38 -> 82125 | X15: ='Mining Schedule'!X38 -> 82125 | Y15: ='Mining Schedule'!Y38 -> 82125 | Z15: ='Mining Schedule'!Z38 -> 82125 | AA15: ='Mining Schedule'!AA38 -> 82125 | AB15: ='Mining Schedule'!AB38 -> 82125 | AC15: ='Mining Schedule'!AC38 -> 82125 | AD15: ='Mining Schedule'!AD38 -> 82125 | AE15: ='Mining Schedule'!AE38 -> 82125 | AF15: ='Mining Schedule'!AF38 -> 82125 | AG15: ='Mining Schedule'!AG38 -> 82125 | AH15: ='Mining Schedule'!AH38 -> 82125 | AI15: ='Mining Schedule'!AI38 -> 82125 | AJ15: ='Mining Schedule'!AJ38 -> 82125 | AK15: ='Mining Schedule'!AK38 -> 82125 | AL15: ='Mining Schedule'!AL38 -> 82125 | AM15: ='Mining Schedule'!AM38 -> 82125 | AN15: ='Mining Schedule'!AN38 -> 82125 | AO15: ='Mining Schedule'!AO38 -> 82125 | AP15: ='Mining Schedule'!AP38 -> 82125 | AQ15: ='Mining Schedule'!AQ38 -> 82125 | AR15: ='Mining Schedule'!AR38 -> 32850 | AS15: ='Mining Schedule'!AS38 -> 0 | AT15: ='Mining Schedule'!AT38 -> 0 | AU15: ='Mining Schedule'!AU38 -> 0 | AV15: ='Mining Schedule'!AV38 -> 0 | AW15: ='Mining Schedule'!AW38 -> 0 | AX15: ='Mining Schedule'!AX38 -> 0 | AY15: ='Mining Schedule'!AY38 -> 0 | AZ15: ='Mining Schedule'!AZ38 -> 0 | BA15: ='Mining Schedule'!BA38 -> 0 | BB15: ='Mining Schedule'!BB38 -> 0 | BC15: ='Mining Schedule'!BC38 -> 0 | BD15: ='Mining Schedule'!BD38 -> 0 | BE15: ='Mining Schedule'!BE38 -> 0 | BF15: ='Mining Schedule'!BF38 -> 0 | BG15: ='Mining Schedule'!BG38 -> 0 | BH15: ='Mining Schedule'!BH38 -> 0 | BI15: ='Mining Schedule'!BI38 -> 0 | BJ15: ='Mining Schedule'!BJ38 -> 0 | BK15: ='Mining Schedule'!BK38 -> 0 | BL15: ='Mining Schedule'!BL38 -> 0
B16: Gross Spot Revenue | C16: AUD M | H16: =SUM(I16:BL16) -> 1181.915625 | I16: =(I14*I15)/Million -> 0 | J16: 0 | K16: 0 | L16: 0 | M16: 37.640625 | N16: 37.640625 | O16: 37.640625 | P16: 37.640625 | Q16: 37.640625 | R16: 37.640625 | S16: 37.640625 | T16: 37.640625 | U16: 37.640625 | V16: 37.640625 | W16: 37.640625 | X16: 37.640625 | Y16: 37.640625 | Z16: 37.640625 | AA16: 37.640625 | AB16: 37.640625 | AC16: 37.640625 | AD16: 37.640625 | AE16: 37.640625 | AF16: 37.640625 | AG16: 37.640625 | AH16: 37.640625 | AI16: 37.640625 | AJ16: 37.640625 | AK16: 37.640625 | AL16: 37.640625 | AM16: 37.640625 | AN16: 37.640625 | AO16: =(AO14*AO15)/Million -> 37.640625 | AP16: 37.640625 | AQ16: 37.640625 | AR16: 15.05625 | AS16: 0 | AT16: 0 | AU16: 0 | AV16: 0 | AW16: 0 | AX16: 0 | AY16: 0 | AZ16: 0 | BA16: 0 | BB16: 0 | BC16: 0 | BD16: 0 | BE16: 0 | BF16: 0 | BG16: 0 | BH16: 0 | BI16: 0 | BJ16: 0 | BK16: 0 | BL16: 0
B17: Less: Discount of 23% | C17: % | D17: Link to Inputs | H17: 0.23 | I17: =I16*(1-$H$17) -> 0 | J17: =IF(J15=0,0,$H$17) -> 0 | K17: 0 | L17: 0 | M17: 0.23 | N17: 0.23 | O17: 0.23 | P17: 0.23 | Q17: 0.23 | R17: 0.23 | S17: 0.23 | T17: 0.23 | U17: 0.23 | V17: 0.23 | W17: 0.23 | X17: 0.23 | Y17: 0.23 | Z17: 0.23 | AA17: 0.23 | AB17: 0.23 | AC17: 0.23 | AD17: 0.23 | AE17: 0.23 | AF17: 0.23 | AG17: 0.23 | AH17: 0.23 | AI17: 0.23 | AJ17: 0.23 | AK17: 0.23 | AL17: 0.23 | AM17: 0.23 | AN17: 0.23 | AO17: 0.23 | AP17: 0.23 | AQ17: 0.23 | AR17: 0.23 | AS17: 0 | AT17: 0 | AU17: 0 | AV17: 0 | AW17: 0 | AX17: 0 | AY17: 0 | AZ17: 0 | BA17: 0 | BB17: 0 | BC17: 0 | BD17: 0 | BE17: 0 | BF17: 0 | BG17: 0 | BH17: 0 | BI17: 0 | BJ17: 0 | BK17: 0 | BL17: 0
B18: Total Revenue | C18: AUD M | H18: =SUM(I18:BL18) -> 910.0750313 | I18: =I16*(1-I17) -> 0 | J18: =J16*(1-J17) -> 0 | K18: 0 | L18: 0 | M18: 28.98328125 | N18: 28.98328125 | O18: 28.98328125 | P18: 28.98328125 | Q18: 28.98328125 | R18: 28.98328125 | S18: 28.98328125 | T18: 28.98328125 | U18: 28.98328125 | V18: 28.98328125 | W18: 28.98328125 | X18: 28.98328125 | Y18: 28.98328125 | Z18: 28.98328125 | AA18: 28.98328125 | AB18: 28.98328125 | AC18: 28.98328125 | AD18: 28.98328125 | AE18: 28.98328125 | AF18: 28.98328125 | AG18: 28.98328125 | AH18: 28.98328125 | AI18: 28.98328125 | AJ18: 28.98328125 | AK18: 28.98328125 | AL18: 28.98328125 | AM18: 28.98328125 | AN18: 28.98328125 | AO18: 28.98328125 | AP18: 28.98328125 | AQ18: 28.98328125 | AR18: 11.5933125 | AS18: 0 | AT18: 0 | AU18: 0 | AV18: 0 | AW18: 0 | AX18: 0 | AY18: 0 | AZ18: 0 | BA18: 0 | BB18: 0 | BC18: 0 | BD18: 0 | BE18: 0 | BF18: 0 | BG18: 0 | BH18: 0 | BI18: 0 | BJ18: 0 | BK18: 0 | BL18: 0
B20: Operating Costs
B21: Royalties
B22: HNM - Royalties (capped at $A3.9M)
B23: Royalty b/f | C23: AUD M | I23: =H25 -> 3.9 | J23: =I25 -> 3.9 | K23: =J25 -> 3.9 | L23: =K25 -> 3.9 | M23: 3.9 | N23: 3.320334375 | O23: 2.74066875 | P23: 2.161003125 | Q23: 1.5813375 | R23: 1.001671875 | S23: 0.42200625 | T23: 0 | U23: 0 | V23: 0 | W23: 0 | X23: 0 | Y23: 0 | Z23: 0 | AA23: 0 | AB23: 0 | AC23: 0 | AD23: 0 | AE23: 0 | AF23: 0 | AG23: 0 | AH23: 0 | AI23: 0 | AJ23: 0 | AK23: 0 | AL23: 0 | AM23: 0 | AN23: 0 | AO23: 0 | AP23: 0 | AQ23: 0 | AR23: 0 | AS23: 0 | AT23: 0 | AU23: 0 | AV23: 0 | AW23: 0 | AX23: 0 | AY23: 0 | AZ23: 0 | BA23: 0 | BB23: 0 | BC23: 0 | BD23: 0 | BE23: 0 | BF23: 0 | BG23: 0 | BH23: 0 | BI23: 0 | BJ23: 0 | BK23: 0 | BL23: 0
B24: Royalty Payable | C24: AUD M | D24: 0.02 | H24: 0 | I24: =-MIN(IF(SUM($H$24:H24)<$H$25,$D$24*I18,0),I23) -> 0 | J24: =-MIN(IF(SUM($H$24:I24)<$H$25,$D$24*J18,0),J23) -> 0 | K24: =-MIN(IF(SUM($H$24:J24)<$H$25,$D$24*K18,0),K23) -> 0 | L24: =-MIN(IF(SUM($H$24:K24)<$H$25,$D$24*L18,0),L23) -> 0 | M24: =-MIN(IF(SUM($H$24:L24)<$H$25,$D$24*M18,0),M23) -> -0.579665625 | N24: =-MIN(IF(SUM($H$24:M24)<$H$25,$D$24*N18,0),N23) -> -0.579665625 | O24: =-MIN(IF(SUM($H$24:N24)<$H$25,$D$24*O18,0),O23) -> -0.579665625 | P24: =-MIN(IF(SUM($H$24:O24)<$H$25,$D$24*P18,0),P23) -> -0.579665625 | Q24: =-MIN(IF(SUM($H$24:P24)<$H$25,$D$24*Q18,0),Q23) -> -0.579665625 | R24: =-MIN(IF(SUM($H$24:Q24)<$H$25,$D$24*R18,0),R23) -> -0.579665625 | S24: =-MIN(IF(SUM($H$24:R24)<$H$25,$D$24*S18,0),S23) -> -0.42200625 | T24: =-MIN(IF(SUM($H$24:S24)<$H$25,$D$24*T18,0),T23) -> 0 | U24: =-MIN(IF(SUM($H$24:T24)<$H$25,$D$24*U18,0),U23) -> 0 | V24: =-MIN(IF(SUM($H$24:U24)<$H$25,$D$24*V18,0),V23) -> 0 | W24: =-MIN(IF(SUM($H$24:V24)<$H$25,$D$24*W18,0),W23) -> 0 | X24: =-MIN(IF(SUM($H$24:W24)<$H$25,$D$24*X18,0),X23) -> 0 | Y24: =-MIN(IF(SUM($H$24:X24)<$H$25,$D$24*Y18,0),Y23) -> 0 | Z24: =-MIN(IF(SUM($H$24:Y24)<$H$25,$D$24*Z18,0),Z23) -> 0 | AA24: =-MIN(IF(SUM($H$24:Z24)<$H$25,$D$24*AA18,0),AA23) -> 0 | AB24: =-MIN(IF(SUM($H$24:AA24)<$H$25,$D$24*AB18,0),AB23) -> 0 | AC24: =-MIN(IF(SUM($H$24:AB24)<$H$25,$D$24*AC18,0),AC23) -> 0 | AD24: =-MIN(IF(SUM($H$24:AC24)<$H$25,$D$24*AD18,0),AD23) -> 0 | AE24: =-MIN(IF(SUM($H$24:AD24)<$H$25,$D$24*AE18,0),AE23) -> 0 | AF24: =-MIN(IF(SUM($H$24:AE24)<$H$25,$D$24*AF18,0),AF23) -> 0 | AG24: =-MIN(IF(SUM($H$24:AF24)<$H$25,$D$24*AG18,0),AG23) -> 0 | AH24: =-MIN(IF(SUM($H$24:AG24)<$H$25,$D$24*AH18,0),AH23) -> 0 | AI24: =-MIN(IF(SUM($H$24:AH24)<$H$25,$D$24*AI18,0),AI23) -> 0 | AJ24: =-MIN(IF(SUM($H$24:AI24)<$H$25,$D$24*AJ18,0),AJ23) -> 0 | AK24: =-MIN(IF(SUM($H$24:AJ24)<$H$25,$D$24*AK18,0),AK23) -> 0 | AL24: =-MIN(IF(SUM($H$24:AK24)<$H$25,$D$24*AL18,0),AL23) -> 0 | AM24: =-MIN(IF(SUM($H$24:AL24)<$H$25,$D$24*AM18,0),AM23) -> 0 | AN24: =-MIN(IF(SUM($H$24:AM24)<$H$25,$D$24*AN18,0),AN23) -> 0 | AO24: =-MIN(IF(SUM($H$24:AN24)<$H$25,$D$24*AO18,0),AO23) -> 0 | AP24: =-MIN(IF(SUM($H$24:AO24)<$H$25,$D$24*AP18,0),AP23) -> 0 | AQ24: =-MIN(IF(SUM($H$24:AP24)<$H$25,$D$24*AQ18,0),AQ23) -> 0 | AR24: =-MIN(IF(SUM($H$24:AQ24)<$H$25,$D$24*AR18,0),AR23) -> 0 | AS24: =-MIN(IF(SUM($H$24:AR24)<$H$25,$D$24*AS18,0),AS23) -> 0 | AT24: =-MIN(IF(SUM($H$24:AS24)<$H$25,$D$24*AT18,0),AT23) -> 0 | AU24: =-MIN(IF(SUM($H$24:AT24)<$H$25,$D$24*AU18,0),AU23) -> 0 | AV24: =-MIN(IF(SUM($H$24:AU24)<$H$25,$D$24*AV18,0),AV23) -> 0 | AW24: =-MIN(IF(SUM($H$24:AV24)<$H$25,$D$24*AW18,0),AW23) -> 0 | AX24: =-MIN(IF(SUM($H$24:AW24)<$H$25,$D$24*AX18,0),AX23) -> 0 | AY24: =-MIN(IF(SUM($H$24:AX24)<$H$25,$D$24*AY18,0),AY23) -> 0 | AZ24: =-MIN(IF(SUM($H$24:AY24)<$H$25,$D$24*AZ18,0),AZ23) -> 0 | BA24: =-MIN(IF(SUM($H$24:AZ24)<$H$25,$D$24*BA18,0),BA23) -> 0 | BB24: =-MIN(IF(SUM($H$24:BA24)<$H$25,$D$24*BB18,0),BB23) -> 0 | BC24: =-MIN(IF(SUM($H$24:BB24)<$H$25,$D$24*BC18,0),BC23) -> 0 | BD24: =-MIN(IF(SUM($H$24:BC24)<$H$25,$D$24*BD18,0),BD23) -> 0 | BE24: =-MIN(IF(SUM($H$24:BD24)<$H$25,$D$24*BE18,0),BE23) -> 0 | BF24: =-MIN(IF(SUM($H$24:BE24)<$H$25,$D$24*BF18,0),BF23) -> 0 | BG24: =-MIN(IF(SUM($H$24:BF24)<$H$25,$D$24*BG18,0),BG23) -> 0 | BH24: =-MIN(IF(SUM($H$24:BG24)<$H$25,$D$24*BH18,0),BH23) -> 0 | BI24: =-MIN(IF(SUM($H$24:BH24)<$H$25,$D$24*BI18,0),BI23) -> 0 | BJ24: =-MIN(IF(SUM($H$24:BI24)<$H$25,$D$24*BJ18,0),BJ23) -> 0 | BK24: =-MIN(IF(SUM($H$24:BJ24)<$H$25,$D$24*BK18,0),BK23) -> 0 | BL24: =-MIN(IF(SUM($H$24:BK24)<$H$25,$D$24*BL18,0),BL23) -> 0 | BM24: =-MIN(IF(SUM($J24:BL$121)<$F$120,$E$120*BM22,0),BM23) -> 0 | BN24: =-MIN(IF(SUM($J24:BM$121)<$F$120,$E$120*BN22,0),BN23) -> 0 | BO24: =-MIN(IF(SUM($J24:BN$121)<$F$120,$E$120*BO22,0),BO23) -> 0
B25: Royalty c/f | C25: AUD M | H25: =Inputs!F76 -> 3.9 | I25: =SUM(I23:I24) -> 3.9 | J25: =SUM(J23:J24) -> 3.9 | K25: =SUM(K23:K24) -> 3.9 | L25: 3.9 | M25: 3.320334375 | N25: 2.74066875 | O25: 2.161003125 | P25: 1.5813375 | Q25: 1.001671875 | R25: 0.42200625 | S25: 0 | T25: 0 | U25: 0 | V25: 0 | W25: 0 | X25: 0 | Y25: 0 | Z25: 0 | AA25: 0 | AB25: 0 | AC25: 0 | AD25: 0 | AE25: 0 | AF25: 0 | AG25: 0 | AH25: 0 | AI25: 0 | AJ25: 0 | AK25: 0 | AL25: 0 | AM25: 0 | AN25: 0 | AO25: 0 | AP25: 0 | AQ25: 0 | AR25: 0 | AS25: 0 | AT25: 0 | AU25: 0 | AV25: 0 | AW25: 0 | AX25: 0 | AY25: 0 | AZ25: 0 | BA25: 0 | BB25: 0 | BC25: 0 | BD25: 0 | BE25: 0 | BF25: 0 | BG25: 0 | BH25: 0 | BI25: 0 | BJ25: 0 | BK25: 0 | BL25: 0
B27: Third Party Royalties - Mine Purchase
B28: Royalty Payable | C28: AUD M | D28: =Inputs!$F$79 -> 0.015 | H28: =SUM(I28:BL28) -> 13.90112547 | I28: =IF(I4=$C$7,(Inputs!$F$80)+('Cashflow Waterfall'!I18*'Cashflow Waterfall'!$D$28),'Cashflow Waterfall'!I18*'Cashflow Waterfall'!$D$28) -> 0 | J28: =IF(J4=$C$7,(Inputs!$F$80)+('Cashflow Waterfall'!J18*'Cashflow Waterfall'!$D$28),'Cashflow Waterfall'!J18*'Cashflow Waterfall'!$D$28) -> 0 | K28: =IF(K4=$C$7,(Inputs!$F$80)+('Cashflow Waterfall'!K18*'Cashflow Waterfall'!$D$28),'Cashflow Waterfall'!K18*'Cashflow Waterfall'!$D$28) -> 0 | L28: =IF(L4=$C$7,(Inputs!$F$80)+('Cashflow Waterfall'!L18*'Cashflow Waterfall'!$D$28),'Cashflow Waterfall'!L18*'Cashflow Waterfall'!$D$28) -> 0 | M28: =IF(M4=$C$7,(Inputs!$F$80)+('Cashflow Waterfall'!M18*'Cashflow Waterfall'!$D$28),'Cashflow Waterfall'!M18*'Cashflow Waterfall'!$D$28) -> 0.6847492188 | N28: =IF(N4=$C$7,(Inputs!$F$80)+('Cashflow Waterfall'!N18*'Cashflow Waterfall'!$D$28),'Cashflow Waterfall'!N18*'Cashflow Waterfall'!$D$28) -> 0.4347492188 | O28: =IF(O4=$C$7,(Inputs!$F$80)+('Cashflow Waterfall'!O18*'Cashflow Waterfall'!$D$28),'Cashflow Waterfall'!O18*'Cashflow Waterfall'!$D$28) -> 0.4347492188 | P28: =IF(P4=$C$7,(Inputs!$F$80)+('Cashflow Waterfall'!P18*'Cashflow Waterfall'!$D$28),'Cashflow Waterfall'!P18*'Cashflow Waterfall'!$D$28) -> 0.4347492188 | Q28: =IF(Q4=$C$7,(Inputs!$F$80)+('Cashflow Waterfall'!Q18*'Cashflow Waterfall'!$D$28),'Cashflow Waterfall'!Q18*'Cashflow Waterfall'!$D$28) -> 0.4347492188 | R28: =IF(R4=$C$7,(Inputs!$F$80)+('Cashflow Waterfall'!R18*'Cashflow Waterfall'!$D$28),'Cashflow Waterfall'!R18*'Cashflow Waterfall'!$D$28) -> 0.4347492188 | S28: =IF(S4=$C$7,(Inputs!$F$80)+('Cashflow Waterfall'!S18*'Cashflow Waterfall'!$D$28),'Cashflow Waterfall'!S18*'Cashflow Waterfall'!$D$28) -> 0.4347492188 | T28: =IF(T4=$C$7,(Inputs!$F$80)+('Cashflow Waterfall'!T18*'Cashflow Waterfall'!$D$28),'Cashflow Waterfall'!T18*'Cashflow Waterfall'!$D$28) -> 0.4347492188 | U28: =IF(U4=$C$7,(Inputs!$F$80)+('Cashflow Waterfall'!U18*'Cashflow Waterfall'!$D$28),'Cashflow Waterfall'!U18*'Cashflow Waterfall'!$D$28) -> 0.4347492188 | V28: =IF(V4=$C$7,(Inputs!$F$80)+('Cashflow Waterfall'!V18*'Cashflow Waterfall'!$D$28),'Cashflow Waterfall'!V18*'Cashflow Waterfall'!$D$28) -> 0.4347492188 | W28: =IF(W4=$C$7,(Inputs!$F$80)+('Cashflow Waterfall'!W18*'Cashflow Waterfall'!$D$28),'Cashflow Waterfall'!W18*'Cashflow Waterfall'!$D$28) -> 0.4347492188 | X28: =IF(X4=$C$7,(Inputs!$F$80)+('Cashflow Waterfall'!X18*'Cashflow Waterfall'!$D$28),'Cashflow Waterfall'!X18*'Cashflow Waterfall'!$D$28) -> 0.4347492188 | Y28: =IF(Y4=$C$7,(Inputs!$F$80)+('Cashflow Waterfall'!Y18*'Cashflow Waterfall'!$D$28),'Cashflow Waterfall'!Y18*'Cashflow Waterfall'!$D$28) -> 0.4347492188 | Z28: =IF(Z4=$C$7,(Inputs!$F$80)+('Cashflow Waterfall'!Z18*'Cashflow Waterfall'!$D$28),'Cashflow Waterfall'!Z18*'Cashflow Waterfall'!$D$28) -> 0.4347492188 | AA28: =IF(AA4=$C$7,(Inputs!$F$80)+('Cashflow Waterfall'!AA18*'Cashflow Waterfall'!$D$28),'Cashflow Waterfall'!AA18*'Cashflow Waterfall'!$D$28) -> 0.4347492188 | AB28: =IF(AB4=$C$7,(Inputs!$F$80)+('Cashflow Waterfall'!AB18*'Cashflow Waterfall'!$D$28),'Cashflow Waterfall'!AB18*'Cashflow Waterfall'!$D$28) -> 0.4347492188 | AC28: =IF(AC4=$C$7,(Inputs!$F$80)+('Cashflow Waterfall'!AC18*'Cashflow Waterfall'!$D$28),'Cashflow Waterfall'!AC18*'Cashflow Waterfall'!$D$28) -> 0.4347492188 | AD28: =IF(AD4=$C$7,(Inputs!$F$80)+('Cashflow Waterfall'!AD18*'Cashflow Waterfall'!$D$28),'Cashflow Waterfall'!AD18*'Cashflow Waterfall'!$D$28) -> 0.4347492188 | AE28: =IF(AE4=$C$7,(Inputs!$F$80)+('Cashflow Waterfall'!AE18*'Cashflow Waterfall'!$D$28),'Cashflow Waterfall'!AE18*'Cashflow Waterfall'!$D$28) -> 0.4347492188 | AF28: =IF(AF4=$C$7,(Inputs!$F$80)+('Cashflow Waterfall'!AF18*'Cashflow Waterfall'!$D$28),'Cashflow Waterfall'!AF18*'Cashflow Waterfall'!$D$28) -> 0.4347492188 | AG28: =IF(AG4=$C$7,(Inputs!$F$80)+('Cashflow Waterfall'!AG18*'Cashflow Waterfall'!$D$28),'Cashflow Waterfall'!AG18*'Cashflow Waterfall'!$D$28) -> 0.4347492188 | AH28: =IF(AH4=$C$7,(Inputs!$F$80)+('Cashflow Waterfall'!AH18*'Cashflow Waterfall'!$D$28),'Cashflow Waterfall'!AH18*'Cashflow Waterfall'!$D$28) -> 0.4347492188 | AI28: =IF(AI4=$C$7,(Inputs!$F$80)+('Cashflow Waterfall'!AI18*'Cashflow Waterfall'!$D$28),'Cashflow Waterfall'!AI18*'Cashflow Waterfall'!$D$28) -> 0.4347492188 | AJ28: =IF(AJ4=$C$7,(Inputs!$F$80)+('Cashflow Waterfall'!AJ18*'Cashflow Waterfall'!$D$28),'Cashflow Waterfall'!AJ18*'Cashflow Waterfall'!$D$28) -> 0.4347492188 | AK28: =IF(AK4=$C$7,(Inputs!$F$80)+('Cashflow Waterfall'!AK18*'Cashflow Waterfall'!$D$28),'Cashflow Waterfall'!AK18*'Cashflow Waterfall'!$D$28) -> 0.4347492188 | AL28: =IF(AL4=$C$7,(Inputs!$F$80)+('Cashflow Waterfall'!AL18*'Cashflow Waterfall'!$D$28),'Cashflow Waterfall'!AL18*'Cashflow Waterfall'!$D$28) -> 0.4347492188 | AM28: =IF(AM4=$C$7,(Inputs!$F$80)+('Cashflow Waterfall'!AM18*'Cashflow Waterfall'!$D$28),'Cashflow Waterfall'!AM18*'Cashflow Waterfall'!$D$28) -> 0.4347492188 | AN28: =IF(AN4=$C$7,(Inputs!$F$80)+('Cashflow Waterfall'!AN18*'Cashflow Waterfall'!$D$28),'Cashflow Waterfall'!AN18*'Cashflow Waterfall'!$D$28) -> 0.4347492188 | AO28: =IF(AO4=$C$7,(Inputs!$F$80)+('Cashflow Waterfall'!AO18*'Cashflow Waterfall'!$D$28),'Cashflow Waterfall'!AO18*'Cashflow Waterfall'!$D$28) -> 0.4347492188 | AP28: =IF(AP4=$C$7,(Inputs!$F$80)+('Cashflow Waterfall'!AP18*'Cashflow Waterfall'!$D$28),'Cashflow Waterfall'!AP18*'Cashflow Waterfall'!$D$28) -> 0.4347492188 | AQ28: =IF(AQ4=$C$7,(Inputs!$F$80)+('Cashflow Waterfall'!AQ18*'Cashflow Waterfall'!$D$28),'Cashflow Waterfall'!AQ18*'Cashflow Waterfall'!$D$28) -> 0.4347492188 | AR28: =IF(AR4=$C$7,(Inputs!$F$80)+('Cashflow Waterfall'!AR18*'Cashflow Waterfall'!$D$28),'Cashflow Waterfall'!AR18*'Cashflow Waterfall'!$D$28) -> 0.1738996875 | AS28: =IF(AS4=$C$7,(Inputs!$F$80)+('Cashflow Waterfall'!AS18*'Cashflow Waterfall'!$D$28),'Cashflow Waterfall'!AS18*'Cashflow Waterfall'!$D$28) -> 0 | AT28: =IF(AT4=$C$7,(Inputs!$F$80)+('Cashflow Waterfall'!AT18*'Cashflow Waterfall'!$D$28),'Cashflow Waterfall'!AT18*'Cashflow Waterfall'!$D$28) -> 0 | AU28: =IF(AU4=$C$7,(Inputs!$F$80)+('Cashflow Waterfall'!AU18*'Cashflow Waterfall'!$D$28),'Cashflow Waterfall'!AU18*'Cashflow Waterfall'!$D$28) -> 0 | AV28: =IF(AV4=$C$7,(Inputs!$F$80)+('Cashflow Waterfall'!AV18*'Cashflow Waterfall'!$D$28),'Cashflow Waterfall'!AV18*'Cashflow Waterfall'!$D$28) -> 0 | AW28: =IF(AW4=$C$7,(Inputs!$F$80)+('Cashflow Waterfall'!AW18*'Cashflow Waterfall'!$D$28),'Cashflow Waterfall'!AW18*'Cashflow Waterfall'!$D$28) -> 0 | AX28: =IF(AX4=$C$7,(Inputs!$F$80)+('Cashflow Waterfall'!AX18*'Cashflow Waterfall'!$D$28),'Cashflow Waterfall'!AX18*'Cashflow Waterfall'!$D$28) -> 0 | AY28: =IF(AY4=$C$7,(Inputs!$F$80)+('Cashflow Waterfall'!AY18*'Cashflow Waterfall'!$D$28),'Cashflow Waterfall'!AY18*'Cashflow Waterfall'!$D$28) -> 0 | AZ28: =IF(AZ4=$C$7,(Inputs!$F$80)+('Cashflow Waterfall'!AZ18*'Cashflow Waterfall'!$D$28),'Cashflow Waterfall'!AZ18*'Cashflow Waterfall'!$D$28) -> 0 | BA28: =IF(BA4=$C$7,(Inputs!$F$80)+('Cashflow Waterfall'!BA18*'Cashflow Waterfall'!$D$28),'Cashflow Waterfall'!BA18*'Cashflow Waterfall'!$D$28) -> 0 | BB28: =IF(BB4=$C$7,(Inputs!$F$80)+('Cashflow Waterfall'!BB18*'Cashflow Waterfall'!$D$28),'Cashflow Waterfall'!BB18*'Cashflow Waterfall'!$D$28) -> 0 | BC28: =IF(BC4=$C$7,(Inputs!$F$80)+('Cashflow Waterfall'!BC18*'Cashflow Waterfall'!$D$28),'Cashflow Waterfall'!BC18*'Cashflow Waterfall'!$D$28) -> 0 | BD28: =IF(BD4=$C$7,(Inputs!$F$80)+('Cashflow Waterfall'!BD18*'Cashflow Waterfall'!$D$28),'Cashflow Waterfall'!BD18*'Cashflow Waterfall'!$D$28) -> 0 | BE28: =IF(BE4=$C$7,(Inputs!$F$80)+('Cashflow Waterfall'!BE18*'Cashflow Waterfall'!$D$28),'Cashflow Waterfall'!BE18*'Cashflow Waterfall'!$D$28) -> 0 | BF28: =IF(BF4=$C$7,(Inputs!$F$80)+('Cashflow Waterfall'!BF18*'Cashflow Waterfall'!$D$28),'Cashflow Waterfall'!BF18*'Cashflow Waterfall'!$D$28) -> 0 | BG28: =IF(BG4=$C$7,(Inputs!$F$80)+('Cashflow Waterfall'!BG18*'Cashflow Waterfall'!$D$28),'Cashflow Waterfall'!BG18*'Cashflow Waterfall'!$D$28) -> 0 | BH28: =IF(BH4=$C$7,(Inputs!$F$80)+('Cashflow Waterfall'!BH18*'Cashflow Waterfall'!$D$28),'Cashflow Waterfall'!BH18*'Cashflow Waterfall'!$D$28) -> 0 | BI28: =IF(BI4=$C$7,(Inputs!$F$80)+('Cashflow Waterfall'!BI18*'Cashflow Waterfall'!$D$28),'Cashflow Waterfall'!BI18*'Cashflow Waterfall'!$D$28) -> 0 | BJ28: =IF(BJ4=$C$7,(Inputs!$F$80)+('Cashflow Waterfall'!BJ18*'Cashflow Waterfall'!$D$28),'Cashflow Waterfall'!BJ18*'Cashflow Waterfall'!$D$28) -> 0 | BK28: =IF(BK4=$C$7,(Inputs!$F$80)+('Cashflow Waterfall'!BK18*'Cashflow Waterfall'!$D$28),'Cashflow Waterfall'!BK18*'Cashflow Waterfall'!$D$28) -> 0 | BL28: =IF(BL4=$C$7,(Inputs!$F$80)+('Cashflow Waterfall'!BL18*'Cashflow Waterfall'!$D$28),'Cashflow Waterfall'!BL18*'Cashflow Waterfall'!$D$28) -> 0
B30: Mineral Resources Tasmania - Royalty
B31: Royalty Payable | C31: AUD M | D31: =Inputs!$F$83 -> 0.0535 | H31: =SUM(I31:BL31) -> 48.68901417 | I31: =I18*$D$31 -> 0 | J31: 0 | K31: 0 | L31: 0 | M31: 1.550605547 | N31: 1.550605547 | O31: 1.550605547 | P31: 1.550605547 | Q31: 1.550605547 | R31: 1.550605547 | S31: 1.550605547 | T31: 1.550605547 | U31: 1.550605547 | V31: 1.550605547 | W31: 1.550605547 | X31: 1.550605547 | Y31: 1.550605547 | Z31: 1.550605547 | AA31: 1.550605547 | AB31: 1.550605547 | AC31: 1.550605547 | AD31: 1.550605547 | AE31: 1.550605547 | AF31: 1.550605547 | AG31: 1.550605547 | AH31: 1.550605547 | AI31: 1.550605547 | AJ31: 1.550605547 | AK31: 1.550605547 | AL31: 1.550605547 | AM31: 1.550605547 | AN31: 1.550605547 | AO31: =AO18*$D$31 -> 1.550605547 | AP31: 1.550605547 | AQ31: 1.550605547 | AR31: 0.6202422188 | AS31: 0 | AT31: 0 | AU31: 0 | AV31: 0 | AW31: 0 | AX31: 0 | AY31: 0 | AZ31: 0 | BA31: 0 | BB31: 0 | BC31: 0 | BD31: 0 | BE31: 0 | BF31: 0 | BG31: 0 | BH31: 0 | BI31: 0 | BJ31: 0 | BK31: 0 | BL31: 0
B33: Total Royalties Payable | C33: AUD M | H33: =SUM(I33:BL33) -> 66.49013964 | I33: =-I24+I28+I31 -> 0 | J33: =-J24+J28+J31 -> 0 | K33: 0 | L33: 0 | M33: 2.815020391 | N33: 2.565020391 | O33: 2.565020391 | P33: 2.565020391 | Q33: 2.565020391 | R33: 2.565020391 | S33: 2.407361016 | T33: 1.985354766 | U33: 1.985354766 | V33: 1.985354766 | W33: 1.985354766 | X33: 1.985354766 | Y33: 1.985354766 | Z33: 1.985354766 | AA33: 1.985354766 | AB33: 1.985354766 | AC33: 1.985354766 | AD33: 1.985354766 | AE33: 1.985354766 | AF33: 1.985354766 | AG33: 1.985354766 | AH33: 1.985354766 | AI33: 1.985354766 | AJ33: 1.985354766 | AK33: 1.985354766 | AL33: 1.985354766 | AM33: 1.985354766 | AN33: 1.985354766 | AO33: 1.985354766 | AP33: 1.985354766 | AQ33: 1.985354766 | AR33: 0.7941419063 | AS33: 0 | AT33: 0 | AU33: 0 | AV33: 0 | AW33: 0 | AX33: 0 | AY33: 0 | AZ33: 0 | BA33: 0 | BB33: 0 | BC33: 0 | BD33: 0 | BE33: 0 | BF33: 0 | BG33: 0 | BH33: 0 | BI33: 0 | BJ33: 0 | BK33: 0 | BL33: 0
B35: Onsite Mining
B36: Drill & blast (ore) | C36: AUD/mtu | D36: =Inputs!$F$68 -> 50 | H36: =SUM(I36:BL36) -> 128.93625 | I36: =($D36*('Mining Schedule'!I$38))/Million -> 0 | J36: =($D36*('Mining Schedule'!J$38))/Million -> 0 | K36: =($D36*('Mining Schedule'!K$38))/Million -> 0 | L36: =($D36*('Mining Schedule'!L$38))/Million -> 0 | M36: =($D36*('Mining Schedule'!M$38))/Million -> 4.10625 | N36: =($D36*('Mining Schedule'!N$38))/Million -> 4.10625 | O36: =($D36*('Mining Schedule'!O$38))/Million -> 4.10625 | P36: =($D36*('Mining Schedule'!P$38))/Million -> 4.10625 | Q36: =($D36*('Mining Schedule'!Q$38))/Million -> 4.10625 | R36: =($D36*('Mining Schedule'!R$38))/Million -> 4.10625 | S36: =($D36*('Mining Schedule'!S$38))/Million -> 4.10625 | T36: =($D36*('Mining Schedule'!T$38))/Million -> 4.10625 | U36: =($D36*('Mining Schedule'!U$38))/Million -> 4.10625 | V36: =($D36*('Mining Schedule'!V$38))/Million -> 4.10625 | W36: =($D36*('Mining Schedule'!W$38))/Million -> 4.10625 | X36: =($D36*('Mining Schedule'!X$38))/Million -> 4.10625 | Y36: =($D36*('Mining Schedule'!Y$38))/Million -> 4.10625 | Z36: =($D36*('Mining Schedule'!Z$38))/Million -> 4.10625 | AA36: =($D36*('Mining Schedule'!AA$38))/Million -> 4.10625 | AB36: =($D36*('Mining Schedule'!AB$38))/Million -> 4.10625 | AC36: =($D36*('Mining Schedule'!AC$38))/Million -> 4.10625 | AD36: =($D36*('Mining Schedule'!AD$38))/Million -> 4.10625 | AE36: =($D36*('Mining Schedule'!AE$38))/Million -> 4.10625 | AF36: =($D36*('Mining Schedule'!AF$38))/Million -> 4.10625 | AG36: =($D36*('Mining Schedule'!AG$38))/Million -> 4.10625 | AH36: =($D36*('Mining Schedule'!AH$38))/Million -> 4.10625 | AI36: =($D36*('Mining Schedule'!AI$38))/Million -> 4.10625 | AJ36: =($D36*('Mining Schedule'!AJ$38))/Million -> 4.10625 | AK36: =($D36*('Mining Schedule'!AK$38))/Million -> 4.10625 | AL36: =($D36*('Mining Schedule'!AL$38))/Million -> 4.10625 | AM36: =($D36*('Mining Schedule'!AM$38))/Million -> 4.10625 | AN36: =($D36*('Mining Schedule'!AN$38))/Million -> 4.10625 | AO36: =($D36*('Mining Schedule'!AO$38))/Million -> 4.10625 | AP36: =($D36*('Mining Schedule'!AP$38))/Million -> 4.10625 | AQ36: =($D36*('Mining Schedule'!AQ$38))/Million -> 4.10625 | AR36: =($D36*('Mining Schedule'!AR$38))/Million -> 1.6425 | AS36: =($D36*('Mining Schedule'!AS$38))/Million -> 0 | AT36: =($D36*('Mining Schedule'!AT$38))/Million -> 0 | AU36: =($D36*('Mining Schedule'!AU$38))/Million -> 0 | AV36: =($D36*('Mining Schedule'!AV$38))/Million -> 0 | AW36: =($D36*('Mining Schedule'!AW$38))/Million -> 0 | AX36: =($D36*('Mining Schedule'!AX$38))/Million -> 0 | AY36: =($D36*('Mining Schedule'!AY$38))/Million -> 0 | AZ36: =($D36*('Mining Schedule'!AZ$38))/Million -> 0 | BA36: =($D36*('Mining Schedule'!BA$38))/Million -> 0 | BB36: =($D36*('Mining Schedule'!BB$38))/Million -> 0 | BC36: =($D36*('Mining Schedule'!BC$38))/Million -> 0 | BD36: =($D36*('Mining Schedule'!BD$38))/Million -> 0 | BE36: =($D36*('Mining Schedule'!BE$38))/Million -> 0 | BF36: =($D36*('Mining Schedule'!BF$38))/Million -> 0 | BG36: =($D36*('Mining Schedule'!BG$38))/Million -> 0 | BH36: =($D36*('Mining Schedule'!BH$38))/Million -> 0 | BI36: =($D36*('Mining Schedule'!BI$38))/Million -> 0 | BJ36: =($D36*('Mining Schedule'!BJ$38))/Million -> 0 | BK36: =($D36*('Mining Schedule'!BK$38))/Million -> 0 | BL36: =($D36*('Mining Schedule'!BL$38))/Million -> 0
B37: Processing | C37: AUD/mtu | D37: =Inputs!$F$69 -> 74.99 | H37: =SUM(I37:BL37) -> 193.3785878 | I37: =($D37*('Mining Schedule'!I$38))/Million -> 0 | J37: =($D37*('Mining Schedule'!J$38))/Million -> 0 | K37: =($D37*('Mining Schedule'!K$38))/Million -> 0 | L37: =($D37*('Mining Schedule'!L$38))/Million -> 0 | M37: =($D37*('Mining Schedule'!M$38))/Million -> 6.15855375 | N37: =($D37*('Mining Schedule'!N$38))/Million -> 6.15855375 | O37: =($D37*('Mining Schedule'!O$38))/Million -> 6.15855375 | P37: =($D37*('Mining Schedule'!P$38))/Million -> 6.15855375 | Q37: =($D37*('Mining Schedule'!Q$38))/Million -> 6.15855375 | R37: =($D37*('Mining Schedule'!R$38))/Million -> 6.15855375 | S37: =($D37*('Mining Schedule'!S$38))/Million -> 6.15855375 | T37: =($D37*('Mining Schedule'!T$38))/Million -> 6.15855375 | U37: =($D37*('Mining Schedule'!U$38))/Million -> 6.15855375 | V37: =($D37*('Mining Schedule'!V$38))/Million -> 6.15855375 | W37: =($D37*('Mining Schedule'!W$38))/Million -> 6.15855375 | X37: =($D37*('Mining Schedule'!X$38))/Million -> 6.15855375 | Y37: =($D37*('Mining Schedule'!Y$38))/Million -> 6.15855375 | Z37: =($D37*('Mining Schedule'!Z$38))/Million -> 6.15855375 | AA37: =($D37*('Mining Schedule'!AA$38))/Million -> 6.15855375 | AB37: =($D37*('Mining Schedule'!AB$38))/Million -> 6.15855375 | AC37: =($D37*('Mining Schedule'!AC$38))/Million -> 6.15855375 | AD37: =($D37*('Mining Schedule'!AD$38))/Million -> 6.15855375 | AE37: =($D37*('Mining Schedule'!AE$38))/Million -> 6.15855375 | AF37: =($D37*('Mining Schedule'!AF$38))/Million -> 6.15855375 | AG37: =($D37*('Mining Schedule'!AG$38))/Million -> 6.15855375 | AH37: =($D37*('Mining Schedule'!AH$38))/Million -> 6.15855375 | AI37: =($D37*('Mining Schedule'!AI$38))/Million -> 6.15855375 | AJ37: =($D37*('Mining Schedule'!AJ$38))/Million -> 6.15855375 | AK37: =($D37*('Mining Schedule'!AK$38))/Million -> 6.15855375 | AL37: =($D37*('Mining Schedule'!AL$38))/Million -> 6.15855375 | AM37: =($D37*('Mining Schedule'!AM$38))/Million -> 6.15855375 | AN37: =($D37*('Mining Schedule'!AN$38))/Million -> 6.15855375 | AO37: =($D37*('Mining Schedule'!AO$38))/Million -> 6.15855375 | AP37: =($D37*('Mining Schedule'!AP$38))/Million -> 6.15855375 | AQ37: =($D37*('Mining Schedule'!AQ$38))/Million -> 6.15855375 | AR37: =($D37*('Mining Schedule'!AR$38))/Million -> 2.4634215 | AS37: =($D37*('Mining Schedule'!AS$38))/Million -> 0 | AT37: =($D37*('Mining Schedule'!AT$38))/Million -> 0 | AU37: =($D37*('Mining Schedule'!AU$38))/Million -> 0 | AV37: =($D37*('Mining Schedule'!AV$38))/Million -> 0 | AW37: =($D37*('Mining Schedule'!AW$38))/Million -> 0 | AX37: =($D37*('Mining Schedule'!AX$38))/Million -> 0 | AY37: =($D37*('Mining Schedule'!AY$38))/Million -> 0 | AZ37: =($D37*('Mining Schedule'!AZ$38))/Million -> 0 | BA37: =($D37*('Mining Schedule'!BA$38))/Million -> 0 | BB37: =($D37*('Mining Schedule'!BB$38))/Million -> 0 | BC37: =($D37*('Mining Schedule'!BC$38))/Million -> 0 | BD37: =($D37*('Mining Schedule'!BD$38))/Million -> 0 | BE37: =($D37*('Mining Schedule'!BE$38))/Million -> 0 | BF37: =($D37*('Mining Schedule'!BF$38))/Million -> 0 | BG37: =($D37*('Mining Schedule'!BG$38))/Million -> 0 | BH37: =($D37*('Mining Schedule'!BH$38))/Million -> 0 | BI37: =($D37*('Mining Schedule'!BI$38))/Million -> 0 | BJ37: =($D37*('Mining Schedule'!BJ$38))/Million -> 0 | BK37: =($D37*('Mining Schedule'!BK$38))/Million -> 0 | BL37: =($D37*('Mining Schedule'!BL$38))/Million -> 0
B38: Transport | C38: AUD/mtu | D38: =Inputs!$F$70 -> 4.23 | H38: =SUM(I38:BL38) -> 10.90800675 | I38: =($D38*('Mining Schedule'!I$38))/Million -> 0 | J38: =($D38*('Mining Schedule'!J$38))/Million -> 0 | K38: =($D38*('Mining Schedule'!K$38))/Million -> 0 | L38: =($D38*('Mining Schedule'!L$38))/Million -> 0 | M38: =($D38*('Mining Schedule'!M$38))/Million -> 0.34738875 | N38: =($D38*('Mining Schedule'!N$38))/Million -> 0.34738875 | O38: =($D38*('Mining Schedule'!O$38))/Million -> 0.34738875 | P38: =($D38*('Mining Schedule'!P$38))/Million -> 0.34738875 | Q38: =($D38*('Mining Schedule'!Q$38))/Million -> 0.34738875 | R38: =($D38*('Mining Schedule'!R$38))/Million -> 0.34738875 | S38: =($D38*('Mining Schedule'!S$38))/Million -> 0.34738875 | T38: =($D38*('Mining Schedule'!T$38))/Million -> 0.34738875 | U38: =($D38*('Mining Schedule'!U$38))/Million -> 0.34738875 | V38: =($D38*('Mining Schedule'!V$38))/Million -> 0.34738875 | W38: =($D38*('Mining Schedule'!W$38))/Million -> 0.34738875 | X38: =($D38*('Mining Schedule'!X$38))/Million -> 0.34738875 | Y38: =($D38*('Mining Schedule'!Y$38))/Million -> 0.34738875 | Z38: =($D38*('Mining Schedule'!Z$38))/Million -> 0.34738875 | AA38: =($D38*('Mining Schedule'!AA$38))/Million -> 0.34738875 | AB38: =($D38*('Mining Schedule'!AB$38))/Million -> 0.34738875 | AC38: =($D38*('Mining Schedule'!AC$38))/Million -> 0.34738875 | AD38: =($D38*('Mining Schedule'!AD$38))/Million -> 0.34738875 | AE38: =($D38*('Mining Schedule'!AE$38))/Million -> 0.34738875 | AF38: =($D38*('Mining Schedule'!AF$38))/Million -> 0.34738875 | AG38: =($D38*('Mining Schedule'!AG$38))/Million -> 0.34738875 | AH38: =($D38*('Mining Schedule'!AH$38))/Million -> 0.34738875 | AI38: =($D38*('Mining Schedule'!AI$38))/Million -> 0.34738875 | AJ38: =($D38*('Mining Schedule'!AJ$38))/Million -> 0.34738875 | AK38: =($D38*('Mining Schedule'!AK$38))/Million -> 0.34738875 | AL38: =($D38*('Mining Schedule'!AL$38))/Million -> 0.34738875 | AM38: =($D38*('Mining Schedule'!AM$38))/Million -> 0.34738875 | AN38: =($D38*('Mining Schedule'!AN$38))/Million -> 0.34738875 | AO38: =($D38*('Mining Schedule'!AO$38))/Million -> 0.34738875 | AP38: =($D38*('Mining Schedule'!AP$38))/Million -> 0.34738875 | AQ38: =($D38*('Mining Schedule'!AQ$38))/Million -> 0.34738875 | AR38: =($D38*('Mining Schedule'!AR$38))/Million -> 0.1389555 | AS38: =($D38*('Mining Schedule'!AS$38))/Million -> 0 | AT38: =($D38*('Mining Schedule'!AT$38))/Million -> 0 | AU38: =($D38*('Mining Schedule'!AU$38))/Million -> 0 | AV38: =($D38*('Mining Schedule'!AV$38))/Million -> 0 | AW38: =($D38*('Mining Schedule'!AW$38))/Million -> 0 | AX38: =($D38*('Mining Schedule'!AX$38))/Million -> 0 | AY38: =($D38*('Mining Schedule'!AY$38))/Million -> 0 | AZ38: =($D38*('Mining Schedule'!AZ$38))/Million -> 0 | BA38: =($D38*('Mining Schedule'!BA$38))/Million -> 0 | BB38: =($D38*('Mining Schedule'!BB$38))/Million -> 0 | BC38: =($D38*('Mining Schedule'!BC$38))/Million -> 0 | BD38: =($D38*('Mining Schedule'!BD$38))/Million -> 0 | BE38: =($D38*('Mining Schedule'!BE$38))/Million -> 0 | BF38: =($D38*('Mining Schedule'!BF$38))/Million -> 0 | BG38: =($D38*('Mining Schedule'!BG$38))/Million -> 0 | BH38: =($D38*('Mining Schedule'!BH$38))/Million -> 0 | BI38: =($D38*('Mining Schedule'!BI$38))/Million -> 0 | BJ38: =($D38*('Mining Schedule'!BJ$38))/Million -> 0 | BK38: =($D38*('Mining Schedule'!BK$38))/Million -> 0 | BL38: =($D38*('Mining Schedule'!BL$38))/Million -> 0
B39: Total Operating Mine Costs | H39: =SUM(I39:BL39) -> 333.2228445 | I39: =SUM(I36:I38) -> 0 | J39: 0 | K39: 0 | L39: 0 | M39: 10.6121925 | N39: 10.6121925 | O39: 10.6121925 | P39: 10.6121925 | Q39: 10.6121925 | R39: 10.6121925 | S39: 10.6121925 | T39: 10.6121925 | U39: 10.6121925 | V39: 10.6121925 | W39: 10.6121925 | X39: 10.6121925 | Y39: 10.6121925 | Z39: 10.6121925 | AA39: 10.6121925 | AB39: 10.6121925 | AC39: 10.6121925 | AD39: 10.6121925 | AE39: 10.6121925 | AF39: 10.6121925 | AG39: 10.6121925 | AH39: 10.6121925 | AI39: 10.6121925 | AJ39: 10.6121925 | AK39: 10.6121925 | AL39: 10.6121925 | AM39: 10.6121925 | AN39: 10.6121925 | AO39: =SUM(AO36:AO38) -> 10.6121925 | AP39: 10.6121925 | AQ39: 10.6121925 | AR39: 4.244877 | AS39: 0 | AT39: 0 | AU39: 0 | AV39: 0 | AW39: 0 | AX39: 0 | AY39: 0 | AZ39: 0 | BA39: 0 | BB39: 0 | BC39: 0 | BD39: 0 | BE39: 0 | BF39: 0 | BG39: 0 | BH39: 0 | BI39: 0 | BJ39: 0 | BK39: 0 | BL39: 0
B41: Capital Costs
B42: Development Capex | C42: AUD M | I42: =CapEx!J24 -> 15 | J42: =CapEx!K24 -> 15 | K42: =CapEx!L24 -> 15 | L42: =CapEx!M24 -> 15 | M42: =CapEx!N24 -> 0 | N42: =CapEx!O24 -> 0 | O42: =CapEx!P24 -> 0 | P42: =CapEx!Q24 -> 0 | Q42: =CapEx!R24 -> 0 | R42: =CapEx!S24 -> 0 | S42: =CapEx!T24 -> 0 | T42: =CapEx!U24 -> 0 | U42: =CapEx!V24 -> 0 | V42: =CapEx!W24 -> 0 | W42: =CapEx!X24 -> 0 | X42: =CapEx!Y24 -> 0 | Y42: =CapEx!Z24 -> 0 | Z42: =CapEx!AA24 -> 0 | AA42: =CapEx!AB24 -> 0 | AB42: =CapEx!AC24 -> 0 | AC42: =CapEx!AD24 -> 0 | AD42: =CapEx!AE24 -> 0 | AE42: =CapEx!AF24 -> 0 | AF42: =CapEx!AG24 -> 0 | AG42: =CapEx!AH24 -> 0 | AH42: =CapEx!AI24 -> 0 | AI42: =CapEx!AJ24 -> 0 | AJ42: =CapEx!AK24 -> 0 | AK42: =CapEx!AL24 -> 0 | AL42: =CapEx!AM24 -> 0 | AM42: =CapEx!AN24 -> 0 | AN42: =CapEx!AO24 -> 0 | AO42: =CapEx!AP24 -> 0 | AP42: =CapEx!AQ24 -> 0 | AQ42: =CapEx!AR24 -> 0 | AR42: =CapEx!AS24 -> 0 | AS42: =CapEx!AT24 -> 0 | AT42: =CapEx!AU24 -> 0 | AU42: =CapEx!AV24 -> 0 | AV42: =CapEx!AW24 -> 0 | AW42: =CapEx!AX24 -> 0 | AX42: =CapEx!AY24 -> 0 | AY42: =CapEx!AZ24 -> 0 | AZ42: =CapEx!BA24 -> 0 | BA42: =CapEx!BB24 -> 0 | BB42: =CapEx!BC24 -> 0 | BC42: =CapEx!BD24 -> 0 | BD42: =CapEx!BE24 -> 0 | BE42: =CapEx!BF24 -> 0 | BF42: =CapEx!BG24 -> 0 | BG42: =CapEx!BH24 -> 0 | BH42: =CapEx!BI24 -> 0 | BI42: =CapEx!BJ24 -> 0 | BJ42: =CapEx!BK24 -> 0 | BK42: =CapEx!BL24 -> 0 | BL42: =CapEx!BM24 -> 0
B43: Sustaining Capex
B44: Sustaining Capex b/f | C44: AUD M | I44: =H46 -> 10 | J44: =I46 -> 10 | K44: =J46 -> 10 | L44: =K46 -> 10 | M44: 10 | N44: 9.6875 | O44: 9.375 | P44: 9.0625 | Q44: 8.75 | R44: 8.4375 | S44: 8.125 | T44: 7.8125 | U44: 7.5 | V44: 7.1875 | W44: 6.875 | X44: 6.5625 | Y44: 6.25 | Z44: 5.9375 | AA44: 5.625 | AB44: 5.3125 | AC44: 5 | AD44: 4.6875 | AE44: 4.375 | AF44: 4.0625 | AG44: 3.75 | AH44: 3.4375 | AI44: 3.125 | AJ44: 2.8125 | AK44: 2.5 | AL44: 2.1875 | AM44: 1.875 | AN44: 1.5625 | AO44: 1.25 | AP44: 0.9375 | AQ44: 0.625 | AR44: 0.3125 | AS44: 0 | AT44: 0 | AU44: 0 | AV44: 0 | AW44: 0 | AX44: 0 | AY44: 0 | AZ44: 0 | BA44: 0 | BB44: 0 | BC44: 0 | BD44: 0 | BE44: 0 | BF44: 0 | BG44: 0 | BH44: 0 | BI44: 0 | BJ44: 0 | BK44: 0 | BL44: 0
B45: Periodic Sustaining Capex | C45: AUD M | H45: 0 | I45: =-MIN(IF(AND(I7=1,I5<$C$8,SUM($H$45:H45)<$H$46),Inputs!$F$94/Inputs!$F$95,0),I44) -> 0 | J45: =-MIN(IF(AND(J7=1,J5<$C$8,SUM($H$45:I45)<$H$46),Inputs!$F$94/Inputs!$F$95,0),J44) -> 0 | K45: =-MIN(IF(AND(K7=1,K5<$C$8,SUM($H$45:J45)<$H$46),Inputs!$F$94/Inputs!$F$95,0),K44) -> 0 | L45: =-MIN(IF(AND(L7=1,L5<$C$8,SUM($H$45:K45)<$H$46),Inputs!$F$94/Inputs!$F$95,0),L44) -> 0 | M45: =-MIN(IF(AND(M7=1,M5<$C$8,SUM($H$45:L45)<$H$46),Inputs!$F$94/Inputs!$F$95,0),M44) -> -0.3125 | N45: =-MIN(IF(AND(N7=1,N5<$C$8,SUM($H$45:M45)<$H$46),Inputs!$F$94/Inputs!$F$95,0),N44) -> -0.3125 | O45: =-MIN(IF(AND(O7=1,O5<$C$8,SUM($H$45:N45)<$H$46),Inputs!$F$94/Inputs!$F$95,0),O44) -> -0.3125 | P45: =-MIN(IF(AND(P7=1,P5<$C$8,SUM($H$45:O45)<$H$46),Inputs!$F$94/Inputs!$F$95,0),P44) -> -0.3125 | Q45: =-MIN(IF(AND(Q7=1,Q5<$C$8,SUM($H$45:P45)<$H$46),Inputs!$F$94/Inputs!$F$95,0),Q44) -> -0.3125 | R45: =-MIN(IF(AND(R7=1,R5<$C$8,SUM($H$45:Q45)<$H$46),Inputs!$F$94/Inputs!$F$95,0),R44) -> -0.3125 | S45: =-MIN(IF(AND(S7=1,S5<$C$8,SUM($H$45:R45)<$H$46),Inputs!$F$94/Inputs!$F$95,0),S44) -> -0.3125 | T45: =-MIN(IF(AND(T7=1,T5<$C$8,SUM($H$45:S45)<$H$46),Inputs!$F$94/Inputs!$F$95,0),T44) -> -0.3125 | U45: =-MIN(IF(AND(U7=1,U5<$C$8,SUM($H$45:T45)<$H$46),Inputs!$F$94/Inputs!$F$95,0),U44) -> -0.3125 | V45: =-MIN(IF(AND(V7=1,V5<$C$8,SUM($H$45:U45)<$H$46),Inputs!$F$94/Inputs!$F$95,0),V44) -> -0.3125 | W45: =-MIN(IF(AND(W7=1,W5<$C$8,SUM($H$45:V45)<$H$46),Inputs!$F$94/Inputs!$F$95,0),W44) -> -0.3125 | X45: =-MIN(IF(AND(X7=1,X5<$C$8,SUM($H$45:W45)<$H$46),Inputs!$F$94/Inputs!$F$95,0),X44) -> -0.3125 | Y45: =-MIN(IF(AND(Y7=1,Y5<$C$8,SUM($H$45:X45)<$H$46),Inputs!$F$94/Inputs!$F$95,0),Y44) -> -0.3125 | Z45: =-MIN(IF(AND(Z7=1,Z5<$C$8,SUM($H$45:Y45)<$H$46),Inputs!$F$94/Inputs!$F$95,0),Z44) -> -0.3125 | AA45: =-MIN(IF(AND(AA7=1,AA5<$C$8,SUM($H$45:Z45)<$H$46),Inputs!$F$94/Inputs!$F$95,0),AA44) -> -0.3125 | AB45: =-MIN(IF(AND(AB7=1,AB5<$C$8,SUM($H$45:AA45)<$H$46),Inputs!$F$94/Inputs!$F$95,0),AB44) -> -0.3125 | AC45: =-MIN(IF(AND(AC7=1,AC5<$C$8,SUM($H$45:AB45)<$H$46),Inputs!$F$94/Inputs!$F$95,0),AC44) -> -0.3125 | AD45: =-MIN(IF(AND(AD7=1,AD5<$C$8,SUM($H$45:AC45)<$H$46),Inputs!$F$94/Inputs!$F$95,0),AD44) -> -0.3125 | AE45: =-MIN(IF(AND(AE7=1,AE5<$C$8,SUM($H$45:AD45)<$H$46),Inputs!$F$94/Inputs!$F$95,0),AE44) -> -0.3125 | AF45: =-MIN(IF(AND(AF7=1,AF5<$C$8,SUM($H$45:AE45)<$H$46),Inputs!$F$94/Inputs!$F$95,0),AF44) -> -0.3125 | AG45: =-MIN(IF(AND(AG7=1,AG5<$C$8,SUM($H$45:AF45)<$H$46),Inputs!$F$94/Inputs!$F$95,0),AG44) -> -0.3125 | AH45: =-MIN(IF(AND(AH7=1,AH5<$C$8,SUM($H$45:AG45)<$H$46),Inputs!$F$94/Inputs!$F$95,0),AH44) -> -0.3125 | AI45: =-MIN(IF(AND(AI7=1,AI5<$C$8,SUM($H$45:AH45)<$H$46),Inputs!$F$94/Inputs!$F$95,0),AI44) -> -0.3125 | AJ45: =-MIN(IF(AND(AJ7=1,AJ5<$C$8,SUM($H$45:AI45)<$H$46),Inputs!$F$94/Inputs!$F$95,0),AJ44) -> -0.3125 | AK45: =-MIN(IF(AND(AK7=1,AK5<$C$8,SUM($H$45:AJ45)<$H$46),Inputs!$F$94/Inputs!$F$95,0),AK44) -> -0.3125 | AL45: =-MIN(IF(AND(AL7=1,AL5<$C$8,SUM($H$45:AK45)<$H$46),Inputs!$F$94/Inputs!$F$95,0),AL44) -> -0.3125 | AM45: =-MIN(IF(AND(AM7=1,AM5<$C$8,SUM($H$45:AL45)<$H$46),Inputs!$F$94/Inputs!$F$95,0),AM44) -> -0.3125 | AN45: =-MIN(IF(AND(AN7=1,AN5<$C$8,SUM($H$45:AM45)<$H$46),Inputs!$F$94/Inputs!$F$95,0),AN44) -> -0.3125 | AO45: =-MIN(IF(AND(AO7=1,AO5<$C$8,SUM($H$45:AN45)<$H$46),Inputs!$F$94/Inputs!$F$95,0),AO44) -> -0.3125 | AP45: =-MIN(IF(AND(AP7=1,AP5<$C$8,SUM($H$45:AO45)<$H$46),Inputs!$F$94/Inputs!$F$95,0),AP44) -> -0.3125 | AQ45: =-MIN(IF(AND(AQ7=1,AQ5<$C$8,SUM($H$45:AP45)<$H$46),Inputs!$F$94/Inputs!$F$95,0),AQ44) -> -0.3125 | AR45: =-MIN(IF(AND(AR7=1,AR5<$C$8,SUM($H$45:AQ45)<$H$46),Inputs!$F$94/Inputs!$F$95,0),AR44) -> -0.3125 | AS45: =-MIN(IF(AND(AS7=1,AS5<$C$8,SUM($H$45:AR45)<$H$46),Inputs!$F$94/Inputs!$F$95,0),AS44) -> 0 | AT45: =-MIN(IF(AND(AT7=1,AT5<$C$8,SUM($H$45:AS45)<$H$46),Inputs!$F$94/Inputs!$F$95,0),AT44) -> 0 | AU45: =-MIN(IF(AND(AU7=1,AU5<$C$8,SUM($H$45:AT45)<$H$46),Inputs!$F$94/Inputs!$F$95,0),AU44) -> 0 | AV45: =-MIN(IF(AND(AV7=1,AV5<$C$8,SUM($H$45:AU45)<$H$46),Inputs!$F$94/Inputs!$F$95,0),AV44) -> 0 | AW45: =-MIN(IF(AND(AW7=1,AW5<$C$8,SUM($H$45:AV45)<$H$46),Inputs!$F$94/Inputs!$F$95,0),AW44) -> 0 | AX45: =-MIN(IF(AND(AX7=1,AX5<$C$8,SUM($H$45:AW45)<$H$46),Inputs!$F$94/Inputs!$F$95,0),AX44) -> 0 | AY45: =-MIN(IF(AND(AY7=1,AY5<$C$8,SUM($H$45:AX45)<$H$46),Inputs!$F$94/Inputs!$F$95,0),AY44) -> 0 | AZ45: =-MIN(IF(AND(AZ7=1,AZ5<$C$8,SUM($H$45:AY45)<$H$46),Inputs!$F$94/Inputs!$F$95,0),AZ44) -> 0 | BA45: =-MIN(IF(AND(BA7=1,BA5<$C$8,SUM($H$45:AZ45)<$H$46),Inputs!$F$94/Inputs!$F$95,0),BA44) -> 0 | BB45: =-MIN(IF(AND(BB7=1,BB5<$C$8,SUM($H$45:BA45)<$H$46),Inputs!$F$94/Inputs!$F$95,0),BB44) -> 0 | BC45: =-MIN(IF(AND(BC7=1,BC5<$C$8,SUM($H$45:BB45)<$H$46),Inputs!$F$94/Inputs!$F$95,0),BC44) -> 0 | BD45: =-MIN(IF(AND(BD7=1,BD5<$C$8,SUM($H$45:BC45)<$H$46),Inputs!$F$94/Inputs!$F$95,0),BD44) -> 0 | BE45: =-MIN(IF(AND(BE7=1,BE5<$C$8,SUM($H$45:BD45)<$H$46),Inputs!$F$94/Inputs!$F$95,0),BE44) -> 0 | BF45: =-MIN(IF(AND(BF7=1,BF5<$C$8,SUM($H$45:BE45)<$H$46),Inputs!$F$94/Inputs!$F$95,0),BF44) -> 0 | BG45: =-MIN(IF(AND(BG7=1,BG5<$C$8,SUM($H$45:BF45)<$H$46),Inputs!$F$94/Inputs!$F$95,0),BG44) -> 0 | BH45: =-MIN(IF(AND(BH7=1,BH5<$C$8,SUM($H$45:BG45)<$H$46),Inputs!$F$94/Inputs!$F$95,0),BH44) -> 0 | BI45: =-MIN(IF(AND(BI7=1,BI5<$C$8,SUM($H$45:BH45)<$H$46),Inputs!$F$94/Inputs!$F$95,0),BI44) -> 0 | BJ45: =-MIN(IF(AND(BJ7=1,BJ5<$C$8,SUM($H$45:BI45)<$H$46),Inputs!$F$94/Inputs!$F$95,0),BJ44) -> 0 | BK45: =-MIN(IF(AND(BK7=1,BK5<$C$8,SUM($H$45:BJ45)<$H$46),Inputs!$F$94/Inputs!$F$95,0),BK44) -> 0 | BL45: =-MIN(IF(AND(BL7=1,BL5<$C$8,SUM($H$45:BK45)<$H$46),Inputs!$F$94/Inputs!$F$95,0),BL44) -> 0 | BM45: =-MIN(IF(SUM($J45:BL$121)<$F$120,$E$120*BM42,0),BM44) -> 0 | BN45: =-MIN(IF(SUM($J45:BM$121)<$F$120,$E$120*BN42,0),BN44) -> 0 | BO45: =-MIN(IF(SUM($J45:BN$121)<$F$120,$E$120*BO42,0),BO44) -> 0
B46: Sustaining Capex c/f | C46: AUD M | H46: =Inputs!F94 -> 10 | I46: =SUM(I44:I45) -> 10 | J46: 10 | K46: 10 | L46: 10 | M46: 9.6875 | N46: 9.375 | O46: 9.0625 | P46: 8.75 | Q46: 8.4375 | R46: 8.125 | S46: 7.8125 | T46: 7.5 | U46: 7.1875 | V46: 6.875 | W46: 6.5625 | X46: 6.25 | Y46: 5.9375 | Z46: 5.625 | AA46: 5.3125 | AB46: 5 | AC46: 4.6875 | AD46: 4.375 | AE46: 4.0625 | AF46: 3.75 | AG46: 3.4375 | AH46: 3.125 | AI46: 2.8125 | AJ46: 2.5 | AK46: 2.1875 | AL46: 1.875 | AM46: 1.5625 | AN46: 1.25 | AO46: =SUM(AO44:AO45) -> 0.9375 | AP46: 0.625 | AQ46: 0.3125 | AR46: 0 | AS46: 0 | AT46: 0 | AU46: 0 | AV46: 0 | AW46: 0 | AX46: 0 | AY46: 0 | AZ46: 0 | BA46: 0 | BB46: 0 | BC46: 0 | BD46: 0 | BE46: 0 | BF46: 0 | BG46: 0 | BH46: 0 | BI46: 0 | BJ46: 0 | BK46: 0 | BL46: 0
B47: Total Capital Costs | C47: AUD M | H47: =SUM(I47:BL47) -> 70 | I47: =I42+(-I45) -> 15 | J47: =J42+(-J45) -> 15 | K47: 15 | L47: 15 | M47: =M42+(-M45) -> 0.3125 | N47: 0.3125 | O47: 0.3125 | P47: 0.3125 | Q47: 0.3125 | R47: 0.3125 | S47: 0.3125 | T47: 0.3125 | U47: 0.3125 | V47: 0.3125 | W47: 0.3125 | X47: 0.3125 | Y47: 0.3125 | Z47: 0.3125 | AA47: 0.3125 | AB47: 0.3125 | AC47: 0.3125 | AD47: 0.3125 | AE47: 0.3125 | AF47: 0.3125 | AG47: 0.3125 | AH47: 0.3125 | AI47: 0.3125 | AJ47: 0.3125 | AK47: 0.3125 | AL47: 0.3125 | AM47: 0.3125 | AN47: 0.3125 | AO47: 0.3125 | AP47: 0.3125 | AQ47: 0.3125 | AR47: 0.3125 | AS47: 0 | AT47: 0 | AU47: 0 | AV47: 0 | AW47: 0 | AX47: 0 | AY47: 0 | AZ47: 0 | BA47: 0 | BB47: 0 | BC47: 0 | BD47: 0 | BE47: 0 | BF47: 0 | BG47: 0 | BH47: 0 | BI47: 0 | BJ47: 0 | BK47: 0 | BL47: 0
B49: OPEX, AISC & AIC
B50: Adjusted Operating Expenses
B51: On-Site Mining Operation Costs | C51: AUD M | H51: =SUM(I51:BL51) -> 333.2228445 | I51: =I39 -> 0 | J51: =J39 -> 0 | K51: 0 | L51: 0 | M51: 10.6121925 | N51: 10.6121925 | O51: 10.6121925 | P51: 10.6121925 | Q51: 10.6121925 | R51: 10.6121925 | S51: 10.6121925 | T51: 10.6121925 | U51: 10.6121925 | V51: 10.6121925 | W51: 10.6121925 | X51: 10.6121925 | Y51: 10.6121925 | Z51: 10.6121925 | AA51: 10.6121925 | AB51: 10.6121925 | AC51: 10.6121925 | AD51: 10.6121925 | AE51: 10.6121925 | AF51: 10.6121925 | AG51: 10.6121925 | AH51: 10.6121925 | AI51: 10.6121925 | AJ51: 10.6121925 | AK51: 10.6121925 | AL51: 10.6121925 | AM51: 10.6121925 | AN51: 10.6121925 | AO51: 10.6121925 | AP51: 10.6121925 | AQ51: 10.6121925 | AR51: 4.244877 | AS51: 0 | AT51: 0 | AU51: 0 | AV51: 0 | AW51: 0 | AX51: 0 | AY51: 0 | AZ51: 0 | BA51: 0 | BB51: 0 | BC51: 0 | BD51: 0 | BE51: 0 | BF51: 0 | BG51: 0 | BH51: 0 | BI51: 0 | BJ51: 0 | BK51: 0 | BL51: 0
B52: Royalties/Production Taxes | C52: AUD M | H52: =SUM(I52:BL52) -> 66.49013964 | I52: =I33 -> 0 | J52: =J33 -> 0 | K52: 0 | L52: 0 | M52: 2.815020391 | N52: 2.565020391 | O52: 2.565020391 | P52: 2.565020391 | Q52: 2.565020391 | R52: 2.565020391 | S52: 2.407361016 | T52: 1.985354766 | U52: 1.985354766 | V52: 1.985354766 | W52: 1.985354766 | X52: 1.985354766 | Y52: 1.985354766 | Z52: 1.985354766 | AA52: 1.985354766 | AB52: 1.985354766 | AC52: 1.985354766 | AD52: 1.985354766 | AE52: 1.985354766 | AF52: 1.985354766 | AG52: 1.985354766 | AH52: 1.985354766 | AI52: 1.985354766 | AJ52: 1.985354766 | AK52: 1.985354766 | AL52: 1.985354766 | AM52: 1.985354766 | AN52: 1.985354766 | AO52: 1.985354766 | AP52: 1.985354766 | AQ52: 1.985354766 | AR52: 0.7941419063 | AS52: 0 | AT52: 0 | AU52: 0 | AV52: 0 | AW52: 0 | AX52: 0 | AY52: 0 | AZ52: 0 | BA52: 0 | BB52: 0 | BC52: 0 | BD52: 0 | BE52: 0 | BF52: 0 | BG52: 0 | BH52: 0 | BI52: 0 | BJ52: 0 | BK52: 0 | BL52: 0
B53: Adjusted Operating Expenses | C53: AUD M | H53: =SUM(I53:BL53) -> 399.7129841 | I53: =SUM(I51:I52) -> 0 | J53: =SUM(J51:J52) -> 0 | K53: 0 | L53: 0 | M53: 13.42721289 | N53: 13.17721289 | O53: 13.17721289 | P53: 13.17721289 | Q53: 13.17721289 | R53: 13.17721289 | S53: 13.01955352 | T53: 12.59754727 | U53: 12.59754727 | V53: 12.59754727 | W53: 12.59754727 | X53: 12.59754727 | Y53: 12.59754727 | Z53: 12.59754727 | AA53: 12.59754727 | AB53: 12.59754727 | AC53: 12.59754727 | AD53: 12.59754727 | AE53: 12.59754727 | AF53: 12.59754727 | AG53: 12.59754727 | AH53: 12.59754727 | AI53: 12.59754727 | AJ53: 12.59754727 | AK53: 12.59754727 | AL53: 12.59754727 | AM53: 12.59754727 | AN53: 12.59754727 | AO53: 12.59754727 | AP53: 12.59754727 | AQ53: 12.59754727 | AR53: 5.039018906 | AS53: 0 | AT53: 0 | AU53: 0 | AV53: 0 | AW53: 0 | AX53: 0 | AY53: 0 | AZ53: 0 | BA53: 0 | BB53: 0 | BC53: 0 | BD53: 0 | BE53: 0 | BF53: 0 | BG53: 0 | BH53: 0 | BI53: 0 | BJ53: 0 | BK53: 0 | BL53: 0
B54: OPEX/mtu | C54: AUD/mtu | H54: =(H53*Million)/'Mining Schedule'!$H$38 -> 155.0041141
B56: All-In-Sustainble Costs
B57: Adjusted Operating Expenses | C57: AUD M | H57: =SUM(I57:BL57) -> 399.7129841 | I57: =I33+I39 -> 0 | J57: 0 | K57: 0 | L57: 0 | M57: 13.42721289 | N57: 13.17721289 | O57: 13.17721289 | P57: 13.17721289 | Q57: 13.17721289 | R57: 13.17721289 | S57: 13.01955352 | T57: 12.59754727 | U57: 12.59754727 | V57: 12.59754727 | W57: 12.59754727 | X57: 12.59754727 | Y57: 12.59754727 | Z57: 12.59754727 | AA57: 12.59754727 | AB57: 12.59754727 | AC57: 12.59754727 | AD57: 12.59754727 | AE57: 12.59754727 | AF57: 12.59754727 | AG57: 12.59754727 | AH57: 12.59754727 | AI57: 12.59754727 | AJ57: 12.59754727 | AK57: 12.59754727 | AL57: 12.59754727 | AM57: 12.59754727 | AN57: 12.59754727 | AO57: =AO33+AO39 -> 12.59754727 | AP57: 12.59754727 | AQ57: 12.59754727 | AR57: 5.039018906 | AS57: 0 | AT57: 0 | AU57: 0 | AV57: 0 | AW57: 0 | AX57: 0 | AY57: 0 | AZ57: 0 | BA57: 0 | BB57: 0 | BC57: 0 | BD57: 0 | BE57: 0 | BF57: 0 | BG57: 0 | BH57: 0 | BI57: 0 | BJ57: 0 | BK57: 0 | BL57: 0
B58: G&A | C58: AUD M | D58: =Inputs!$F$71 -> 4.91 | H58: =SUM(I58:BL58) -> 12.66153975 | I58: =($D58*('Mining Schedule'!I$38))/Million -> 0 | J58: =($D58*('Mining Schedule'!J$38))/Million -> 0 | K58: =($D58*('Mining Schedule'!K$38))/Million -> 0 | L58: =($D58*('Mining Schedule'!L$38))/Million -> 0 | M58: =($D58*('Mining Schedule'!M$38))/Million -> 0.40323375 | N58: =($D58*('Mining Schedule'!N$38))/Million -> 0.40323375 | O58: =($D58*('Mining Schedule'!O$38))/Million -> 0.40323375 | P58: =($D58*('Mining Schedule'!P$38))/Million -> 0.40323375 | Q58: =($D58*('Mining Schedule'!Q$38))/Million -> 0.40323375 | R58: =($D58*('Mining Schedule'!R$38))/Million -> 0.40323375 | S58: =($D58*('Mining Schedule'!S$38))/Million -> 0.40323375 | T58: =($D58*('Mining Schedule'!T$38))/Million -> 0.40323375 | U58: =($D58*('Mining Schedule'!U$38))/Million -> 0.40323375 | V58: =($D58*('Mining Schedule'!V$38))/Million -> 0.40323375 | W58: =($D58*('Mining Schedule'!W$38))/Million -> 0.40323375 | X58: =($D58*('Mining Schedule'!X$38))/Million -> 0.40323375 | Y58: =($D58*('Mining Schedule'!Y$38))/Million -> 0.40323375 | Z58: =($D58*('Mining Schedule'!Z$38))/Million -> 0.40323375 | AA58: =($D58*('Mining Schedule'!AA$38))/Million -> 0.40323375 | AB58: =($D58*('Mining Schedule'!AB$38))/Million -> 0.40323375 | AC58: =($D58*('Mining Schedule'!AC$38))/Million -> 0.40323375 | AD58: =($D58*('Mining Schedule'!AD$38))/Million -> 0.40323375 | AE58: =($D58*('Mining Schedule'!AE$38))/Million -> 0.40323375 | AF58: =($D58*('Mining Schedule'!AF$38))/Million -> 0.40323375 | AG58: =($D58*('Mining Schedule'!AG$38))/Million -> 0.40323375 | AH58: =($D58*('Mining Schedule'!AH$38))/Million -> 0.40323375 | AI58: =($D58*('Mining Schedule'!AI$38))/Million -> 0.40323375 | AJ58: =($D58*('Mining Schedule'!AJ$38))/Million -> 0.40323375 | AK58: =($D58*('Mining Schedule'!AK$38))/Million -> 0.40323375 | AL58: =($D58*('Mining Schedule'!AL$38))/Million -> 0.40323375 | AM58: =($D58*('Mining Schedule'!AM$38))/Million -> 0.40323375 | AN58: =($D58*('Mining Schedule'!AN$38))/Million -> 0.40323375 | AO58: =($D58*('Mining Schedule'!AO$38))/Million -> 0.40323375 | AP58: =($D58*('Mining Schedule'!AP$38))/Million -> 0.40323375 | AQ58: =($D58*('Mining Schedule'!AQ$38))/Million -> 0.40323375 | AR58: =($D58*('Mining Schedule'!AR$38))/Million -> 0.1612935 | AS58: =($D58*('Mining Schedule'!AS$38))/Million -> 0 | AT58: =($D58*('Mining Schedule'!AT$38))/Million -> 0 | AU58: =($D58*('Mining Schedule'!AU$38))/Million -> 0 | AV58: =($D58*('Mining Schedule'!AV$38))/Million -> 0 | AW58: =($D58*('Mining Schedule'!AW$38))/Million -> 0 | AX58: =($D58*('Mining Schedule'!AX$38))/Million -> 0 | AY58: =($D58*('Mining Schedule'!AY$38))/Million -> 0 | AZ58: =($D58*('Mining Schedule'!AZ$38))/Million -> 0 | BA58: =($D58*('Mining Schedule'!BA$38))/Million -> 0 | BB58: =($D58*('Mining Schedule'!BB$38))/Million -> 0 | BC58: =($D58*('Mining Schedule'!BC$38))/Million -> 0 | BD58: =($D58*('Mining Schedule'!BD$38))/Million -> 0 | BE58: =($D58*('Mining Schedule'!BE$38))/Million -> 0 | BF58: =($D58*('Mining Schedule'!BF$38))/Million -> 0 | BG58: =($D58*('Mining Schedule'!BG$38))/Million -> 0 | BH58: =($D58*('Mining Schedule'!BH$38))/Million -> 0 | BI58: =($D58*('Mining Schedule'!BI$38))/Million -> 0 | BJ58: =($D58*('Mining Schedule'!BJ$38))/Million -> 0 | BK58: =($D58*('Mining Schedule'!BK$38))/Million -> 0 | BL58: =($D58*('Mining Schedule'!BL$38))/Million -> 0
B59: Exploration (Sustaining) | C59: AUD M | H59: =SUM(I59:BL59) -> 0 | I59: 0 | J59: 0 | K59: 0 | L59: 0 | M59: 0 | N59: 0 | O59: 0 | P59: 0 | Q59: 0 | R59: 0 | S59: 0 | T59: 0 | U59: 0 | V59: 0 | W59: 0 | X59: 0 | Y59: 0 | Z59: 0 | AA59: 0 | AB59: 0 | AC59: 0 | AD59: 0 | AE59: 0 | AF59: 0 | AG59: 0 | AH59: 0 | AI59: 0 | AJ59: 0 | AK59: 0 | AL59: 0 | AM59: 0 | AN59: 0 | AO59: 0 | AP59: 0 | AQ59: 0 | AR59: 0 | AS59: 0 | AT59: 0 | AU59: 0 | AV59: 0 | AW59: 0 | AX59: 0 | AY59: 0 | AZ59: 0 | BA59: 0 | BB59: 0 | BC59: 0 | BD59: 0 | BE59: 0 | BF59: 0 | BG59: 0 | BH59: 0 | BI59: 0 | BJ59: 0 | BK59: 0 | BL59: 0
B60: Sustaining Capex | C60: AUD M | H60: =SUM(I60:BL60) -> 10 | I60: =-I45 -> 0 | J60: 0 | K60: 0 | L60: 0 | M60: 0.3125 | N60: 0.3125 | O60: 0.3125 | P60: 0.3125 | Q60: 0.3125 | R60: 0.3125 | S60: 0.3125 | T60: 0.3125 | U60: 0.3125 | V60: 0.3125 | W60: 0.3125 | X60: 0.3125 | Y60: 0.3125 | Z60: 0.3125 | AA60: 0.3125 | AB60: 0.3125 | AC60: 0.3125 | AD60: 0.3125 | AE60: 0.3125 | AF60: 0.3125 | AG60: 0.3125 | AH60: 0.3125 | AI60: 0.3125 | AJ60: 0.3125 | AK60: 0.3125 | AL60: 0.3125 | AM60: 0.3125 | AN60: 0.3125 | AO60: =-AO45 -> 0.3125 | AP60: 0.3125 | AQ60: 0.3125 | AR60: 0.3125 | AS60: 0 | AT60: 0 | AU60: 0 | AV60: 0 | AW60: 0 | AX60: 0 | AY60: 0 | AZ60: 0 | BA60: 0 | BB60: 0 | BC60: 0 | BD60: 0 | BE60: 0 | BF60: 0 | BG60: 0 | BH60: 0 | BI60: 0 | BJ60: 0 | BK60: 0 | BL60: 0
B61: All-In-Sustainble Costs | C61: AUD M | H61: =SUM(I61:BL61) -> 422.3745239 | I61: =SUM(I57:I60) -> 0 | J61: =SUM(J57:J60) -> 0 | K61: 0 | L61: 0 | M61: 14.14294664 | N61: 13.89294664 | O61: 13.89294664 | P61: 13.89294664 | Q61: 13.89294664 | R61: 13.89294664 | S61: 13.73528727 | T61: 13.31328102 | U61: 13.31328102 | V61: 13.31328102 | W61: 13.31328102 | X61: 13.31328102 | Y61: 13.31328102 | Z61: 13.31328102 | AA61: 13.31328102 | AB61: 13.31328102 | AC61: 13.31328102 | AD61: 13.31328102 | AE61: 13.31328102 | AF61: 13.31328102 | AG61: 13.31328102 | AH61: 13.31328102 | AI61: 13.31328102 | AJ61: 13.31328102 | AK61: 13.31328102 | AL61: 13.31328102 | AM61: 13.31328102 | AN61: 13.31328102 | AO61: 13.31328102 | AP61: 13.31328102 | AQ61: 13.31328102 | AR61: 5.512812406 | AS61: 0 | AT61: 0 | AU61: 0 | AV61: 0 | AW61: 0 | AX61: 0 | AY61: 0 | AZ61: 0 | BA61: 0 | BB61: 0 | BC61: 0 | BD61: 0 | BE61: 0 | BF61: 0 | BG61: 0 | BH61: 0 | BI61: 0 | BJ61: 0 | BK61: 0 | BL61: 0
B62: AISC/mtu | C62: AUD/mtu | H62: =(H61*Million)/'Mining Schedule'!$H$38 -> 163.7919995
B64: All-In-Costs
B65: All-In-Sustainble Costs | C65: AUD M | H65: =SUM(I65:BL65) -> 422.3745239 | I65: =I61 -> 0 | J65: =J61 -> 0 | K65: 0 | L65: 0 | M65: 14.14294664 | N65: 13.89294664 | O65: 13.89294664 | P65: 13.89294664 | Q65: 13.89294664 | R65: 13.89294664 | S65: 13.73528727 | T65: 13.31328102 | U65: 13.31328102 | V65: 13.31328102 | W65: 13.31328102 | X65: 13.31328102 | Y65: 13.31328102 | Z65: 13.31328102 | AA65: 13.31328102 | AB65: 13.31328102 | AC65: 13.31328102 | AD65: 13.31328102 | AE65: 13.31328102 | AF65: 13.31328102 | AG65: 13.31328102 | AH65: 13.31328102 | AI65: 13.31328102 | AJ65: 13.31328102 | AK65: 13.31328102 | AL65: 13.31328102 | AM65: 13.31328102 | AN65: 13.31328102 | AO65: 13.31328102 | AP65: 13.31328102 | AQ65: 13.31328102 | AR65: 5.512812406 | AS65: 0 | AT65: 0 | AU65: 0 | AV65: 0 | AW65: 0 | AX65: 0 | AY65: 0 | AZ65: 0 | BA65: 0 | BB65: 0 | BC65: 0 | BD65: 0 | BE65: 0 | BF65: 0 | BG65: 0 | BH65: 0 | BI65: 0 | BJ65: 0 | BK65: 0 | BL65: 0
B66: Growth Capex | C66: AUD M | H66: =SUM(I66:BL66) -> 60 | I66: =I42 -> 15 | J66: 15 | K66: 15 | L66: 15 | M66: 0 | N66: 0 | O66: 0 | P66: 0 | Q66: 0 | R66: 0 | S66: 0 | T66: 0 | U66: 0 | V66: 0 | W66: 0 | X66: 0 | Y66: 0 | Z66: 0 | AA66: 0 | AB66: 0 | AC66: 0 | AD66: 0 | AE66: 0 | AF66: 0 | AG66: 0 | AH66: 0 | AI66: 0 | AJ66: 0 | AK66: 0 | AL66: 0 | AM66: 0 | AN66: 0 | AO66: =AO42 -> 0 | AP66: 0 | AQ66: 0 | AR66: 0 | AS66: 0 | AT66: 0 | AU66: 0 | AV66: 0 | AW66: 0 | AX66: 0 | AY66: 0 | AZ66: 0 | BA66: 0 | BB66: 0 | BC66: 0 | BD66: 0 | BE66: 0 | BF66: 0 | BG66: 0 | BH66: 0 | BI66: 0 | BJ66: 0 | BK66: 0 | BL66: 0
B67: Exploration (Non-Sustaining) | C67: AUD M | H67: =SUM(I67:BL67) -> 0
B68: Total All-in-Costs | C68: AUD M | H68: =SUM(I68:BL68) -> 482.3745239 | I68: =SUM(I65:I67) -> 15 | J68: 15 | K68: 15 | L68: 15 | M68: 14.14294664 | N68: 13.89294664 | O68: 13.89294664 | P68: 13.89294664 | Q68: 13.89294664 | R68: 13.89294664 | S68: 13.73528727 | T68: 13.31328102 | U68: 13.31328102 | V68: 13.31328102 | W68: 13.31328102 | X68: 13.31328102 | Y68: 13.31328102 | Z68: 13.31328102 | AA68: 13.31328102 | AB68: 13.31328102 | AC68: 13.31328102 | AD68: 13.31328102 | AE68: 13.31328102 | AF68: 13.31328102 | AG68: 13.31328102 | AH68: 13.31328102 | AI68: 13.31328102 | AJ68: 13.31328102 | AK68: 13.31328102 | AL68: 13.31328102 | AM68: 13.31328102 | AN68: 13.31328102 | AO68: =SUM(AO65:AO67) -> 13.31328102 | AP68: 13.31328102 | AQ68: 13.31328102 | AR68: 5.512812406 | AS68: 0 | AT68: 0 | AU68: 0 | AV68: 0 | AW68: 0 | AX68: 0 | AY68: 0 | AZ68: 0 | BA68: 0 | BB68: 0 | BC68: 0 | BD68: 0 | BE68: 0 | BF68: 0 | BG68: 0 | BH68: 0 | BI68: 0 | BJ68: 0 | BK68: 0 | BL68: 0
B69: AIC/mtu | C69: AUD/mtu | H69: =(H68*Million)/'Mining Schedule'!$H$38 -> 187.0593118
B71: Working Capital
B73: Working Capital
B74: Accounts Receivable | C74: AUD M | H74: =SUM(I74:BL74) -> 0 | I74: =I18*(Inputs!$F$87/365) -> 0 | J74: =J18*(Inputs!$F$87/365) -> 0 | K74: =K18*(Inputs!$F$87/365) -> 0 | L74: =L18*(Inputs!$F$87/365) -> 0 | M74: =M18*(Inputs!$F$87/365) -> 0 | N74: =N18*(Inputs!$F$87/365) -> 0 | O74: =O18*(Inputs!$F$87/365) -> 0 | P74: =P18*(Inputs!$F$87/365) -> 0 | Q74: =Q18*(Inputs!$F$87/365) -> 0 | R74: =R18*(Inputs!$F$87/365) -> 0 | S74: =S18*(Inputs!$F$87/365) -> 0 | T74: =T18*(Inputs!$F$87/365) -> 0 | U74: =U18*(Inputs!$F$87/365) -> 0 | V74: =V18*(Inputs!$F$87/365) -> 0 | W74: =W18*(Inputs!$F$87/365) -> 0 | X74: =X18*(Inputs!$F$87/365) -> 0 | Y74: =Y18*(Inputs!$F$87/365) -> 0 | Z74: =Z18*(Inputs!$F$87/365) -> 0 | AA74: =AA18*(Inputs!$F$87/365) -> 0 | AB74: =AB18*(Inputs!$F$87/365) -> 0 | AC74: =AC18*(Inputs!$F$87/365) -> 0 | AD74: =AD18*(Inputs!$F$87/365) -> 0 | AE74: =AE18*(Inputs!$F$87/365) -> 0 | AF74: =AF18*(Inputs!$F$87/365) -> 0 | AG74: =AG18*(Inputs!$F$87/365) -> 0 | AH74: =AH18*(Inputs!$F$87/365) -> 0 | AI74: =AI18*(Inputs!$F$87/365) -> 0 | AJ74: =AJ18*(Inputs!$F$87/365) -> 0 | AK74: =AK18*(Inputs!$F$87/365) -> 0 | AL74: =AL18*(Inputs!$F$87/365) -> 0 | AM74: =AM18*(Inputs!$F$87/365) -> 0 | AN74: =AN18*(Inputs!$F$87/365) -> 0 | AO74: =AO18*(Inputs!$F$87/365) -> 0 | AP74: =AP18*(Inputs!$F$87/365) -> 0 | AQ74: =AQ18*(Inputs!$F$87/365) -> 0 | AR74: =AR18*(Inputs!$F$87/365) -> 0 | AS74: =AS18*(Inputs!$F$87/365) -> 0 | AT74: =AT18*(Inputs!$F$87/365) -> 0 | AU74: =AU18*(Inputs!$F$87/365) -> 0 | AV74: =AV18*(Inputs!$F$87/365) -> 0 | AW74: =AW18*(Inputs!$F$87/365) -> 0 | AX74: =AX18*(Inputs!$F$87/365) -> 0 | AY74: =AY18*(Inputs!$F$87/365) -> 0 | AZ74: =AZ18*(Inputs!$F$87/365) -> 0 | BA74: =BA18*(Inputs!$F$87/365) -> 0 | BB74: =BB18*(Inputs!$F$87/365) -> 0 | BC74: =BC18*(Inputs!$F$87/365) -> 0 | BD74: =BD18*(Inputs!$F$87/365) -> 0 | BE74: =BE18*(Inputs!$F$87/365) -> 0 | BF74: =BF18*(Inputs!$F$87/365) -> 0 | BG74: =BG18*(Inputs!$F$87/365) -> 0 | BH74: =BH18*(Inputs!$F$87/365) -> 0 | BI74: =BI18*(Inputs!$F$87/365) -> 0 | BJ74: =BJ18*(Inputs!$F$87/365) -> 0 | BK74: =BK18*(Inputs!$F$87/365) -> 0 | BL74: =BL18*(Inputs!$F$87/365) -> 0
B75: Stockpiles (Inventory) | C75: AUD M | D75: No Stockpiles | H75: =SUM(I75:BL75) -> 0
B76: Accounts Payable | C76: AUD M | H76: =SUM(I76:BL76) -> 0 | I76: =-I68*(Inputs!$F$88/365) -> 0 | J76: =-J68*(Inputs!$F$88/365) -> 0 | K76: =-K68*(Inputs!$F$88/365) -> 0 | L76: =-L68*(Inputs!$F$88/365) -> 0 | M76: =-M68*(Inputs!$F$88/365) -> 0 | N76: =-N68*(Inputs!$F$88/365) -> 0 | O76: =-O68*(Inputs!$F$88/365) -> 0 | P76: =-P68*(Inputs!$F$88/365) -> 0 | Q76: =-Q68*(Inputs!$F$88/365) -> 0 | R76: =-R68*(Inputs!$F$88/365) -> 0 | S76: =-S68*(Inputs!$F$88/365) -> 0 | T76: =-T68*(Inputs!$F$88/365) -> 0 | U76: =-U68*(Inputs!$F$88/365) -> 0 | V76: =-V68*(Inputs!$F$88/365) -> 0 | W76: =-W68*(Inputs!$F$88/365) -> 0 | X76: =-X68*(Inputs!$F$88/365) -> 0 | Y76: =-Y68*(Inputs!$F$88/365) -> 0 | Z76: =-Z68*(Inputs!$F$88/365) -> 0 | AA76: =-AA68*(Inputs!$F$88/365) -> 0 | AB76: =-AB68*(Inputs!$F$88/365) -> 0 | AC76: =-AC68*(Inputs!$F$88/365) -> 0 | AD76: =-AD68*(Inputs!$F$88/365) -> 0 | AE76: =-AE68*(Inputs!$F$88/365) -> 0 | AF76: =-AF68*(Inputs!$F$88/365) -> 0 | AG76: =-AG68*(Inputs!$F$88/365) -> 0 | AH76: =-AH68*(Inputs!$F$88/365) -> 0 | AI76: =-AI68*(Inputs!$F$88/365) -> 0 | AJ76: =-AJ68*(Inputs!$F$88/365) -> 0 | AK76: =-AK68*(Inputs!$F$88/365) -> 0 | AL76: =-AL68*(Inputs!$F$88/365) -> 0 | AM76: =-AM68*(Inputs!$F$88/365) -> 0 | AN76: =-AN68*(Inputs!$F$88/365) -> 0 | AO76: =-AO68*(Inputs!$F$88/365) -> 0 | AP76: =-AP68*(Inputs!$F$88/365) -> 0 | AQ76: =-AQ68*(Inputs!$F$88/365) -> 0 | AR76: =-AR68*(Inputs!$F$88/365) -> 0 | AS76: =-AS68*(Inputs!$F$88/365) -> 0 | AT76: =-AT68*(Inputs!$F$88/365) -> 0 | AU76: =-AU68*(Inputs!$F$88/365) -> 0 | AV76: =-AV68*(Inputs!$F$88/365) -> 0 | AW76: =-AW68*(Inputs!$F$88/365) -> 0 | AX76: =-AX68*(Inputs!$F$88/365) -> 0 | AY76: =-AY68*(Inputs!$F$88/365) -> 0 | AZ76: =-AZ68*(Inputs!$F$88/365) -> 0 | BA76: =-BA68*(Inputs!$F$88/365) -> 0 | BB76: =-BB68*(Inputs!$F$88/365) -> 0 | BC76: =-BC68*(Inputs!$F$88/365) -> 0 | BD76: =-BD68*(Inputs!$F$88/365) -> 0 | BE76: =-BE68*(Inputs!$F$88/365) -> 0 | BF76: =-BF68*(Inputs!$F$88/365) -> 0 | BG76: =-BG68*(Inputs!$F$88/365) -> 0 | BH76: =-BH68*(Inputs!$F$88/365) -> 0 | BI76: =-BI68*(Inputs!$F$88/365) -> 0 | BJ76: =-BJ68*(Inputs!$F$88/365) -> 0 | BK76: =-BK68*(Inputs!$F$88/365) -> 0 | BL76: =-BL68*(Inputs!$F$88/365) -> 0
B77: Non-Cash Working Capital | C77: AUD M | I77: =I74+I76-I75 -> 0 | J77: =J74+J76-J75 -> 0 | K77: 0 | L77: 0 | M77: 0 | N77: 0 | O77: 0 | P77: 0 | Q77: 0 | R77: 0 | S77: 0 | T77: 0 | U77: 0 | V77: 0 | W77: 0 | X77: 0 | Y77: 0 | Z77: 0 | AA77: 0 | AB77: 0 | AC77: 0 | AD77: 0 | AE77: 0 | AF77: 0 | AG77: 0 | AH77: 0 | AI77: 0 | AJ77: 0 | AK77: 0 | AL77: 0 | AM77: 0 | AN77: 0 | AO77: 0 | AP77: 0 | AQ77: 0 | AR77: 0 | AS77: 0 | AT77: 0 | AU77: 0 | AV77: 0 | AW77: 0 | AX77: 0 | AY77: 0 | AZ77: 0 | BA77: 0 | BB77: 0 | BC77: 0 | BD77: 0 | BE77: 0 | BF77: 0 | BG77: 0 | BH77: 0 | BI77: 0 | BJ77: 0 | BK77: 0 | BL77: 0
B79: Change in Net Working Capital | C79: AUD M | I79: =IF(I77=0,0,I77-H77) -> 0 | J79: =IF(J77=0,0,J77-I77) -> 0 | K79: 0 | L79: 0 | M79: 0 | N79: 0 | O79: 0 | P79: 0 | Q79: 0 | R79: 0 | S79: 0 | T79: 0 | U79: 0 | V79: 0 | W79: 0 | X79: 0 | Y79: 0 | Z79: 0 | AA79: 0 | AB79: 0 | AC79: 0 | AD79: 0 | AE79: 0 | AF79: 0 | AG79: 0 | AH79: 0 | AI79: 0 | AJ79: 0 | AK79: 0 | AL79: 0 | AM79: 0 | AN79: 0 | AO79: 0 | AP79: 0 | AQ79: 0 | AR79: 0 | AS79: 0 | AT79: 0 | AU79: 0 | AV79: 0 | AW79: 0 | AX79: 0 | AY79: 0 | AZ79: 0 | BA79: 0 | BB79: 0 | BC79: 0 | BD79: 0 | BE79: 0 | BF79: 0 | BG79: 0 | BH79: 0 | BI79: 0 | BJ79: 0 | BK79: 0 | BL79: 0
B81: Restoration Expenses
B82: Restoration reserve account
B83: Balance b/f | C83: AUD M | D83: ** No Restoration Reserves at time | I83: =H86 -> 0 | J83: =I86 -> 0 | K83: 0 | L83: 0 | M83: 0 | N83: 0 | O83: 0 | P83: 0 | Q83: 0 | R83: 0 | S83: 0 | T83: 0 | U83: 0 | V83: 0 | W83: 0 | X83: 0 | Y83: 0 | Z83: 0 | AA83: 0 | AB83: 0 | AC83: 0 | AD83: 0 | AE83: 0 | AF83: 0 | AG83: 0 | AH83: 0 | AI83: 0 | AJ83: 0 | AK83: 0 | AL83: 0 | AM83: 0 | AN83: 0 | AO83: 0 | AP83: 0 | AQ83: 0 | AR83: 0 | AS83: 0 | AT83: 0 | AU83: 0 | AV83: 0 | AW83: 0 | AX83: 0 | AY83: 0 | AZ83: 0 | BA83: 0 | BB83: =BA86 -> 0 | BC83: 0 | BD83: 0 | BE83: 0 | BF83: 0 | BG83: 0 | BH83: 0 | BI83: 0 | BJ83: 0 | BK83: 0 | BL83: 0
B84: Fund allowances | C84: AUD M | H84: =SUM(I84:BL84) -> 0 | I84: =$E84*I80 -> 0 | J84: =$E84*J80 -> 0 | K84: 0 | L84: 0 | M84: 0 | N84: 0 | O84: 0 | P84: 0 | Q84: 0 | R84: 0 | S84: 0 | T84: 0 | U84: 0 | V84: 0 | W84: 0 | X84: 0 | Y84: 0 | Z84: 0 | AA84: 0 | AB84: 0 | AC84: 0 | AD84: 0 | AE84: 0 | AF84: 0 | AG84: 0 | AH84: 0 | AI84: 0 | AJ84: 0 | AK84: 0 | AL84: 0 | AM84: 0 | AN84: 0 | AO84: 0 | AP84: 0 | AQ84: 0 | AR84: 0 | AS84: 0 | AT84: 0 | AU84: 0 | AV84: 0 | AW84: 0 | AX84: 0 | AY84: 0 | AZ84: 0 | BA84: 0 | BB84: 0 | BC84: 0 | BD84: 0 | BE84: 0 | BF84: 0 | BG84: 0 | BH84: 0 | BI84: 0 | BJ84: 0 | BK84: 0 | BL84: 0
B85: Restoration expenses | C85: AUD M | H85: =SUM(I85:BL85) -> 0 | I85: =-I78*$F78 -> 0 | J85: =-J78*$F78 -> 0 | K85: 0 | L85: 0 | M85: 0 | N85: 0 | O85: 0 | P85: 0 | Q85: 0 | R85: 0 | S85: 0 | T85: 0 | U85: 0 | V85: 0 | W85: 0 | X85: 0 | Y85: 0 | Z85: 0 | AA85: 0 | AB85: 0 | AC85: 0 | AD85: 0 | AE85: 0 | AF85: 0 | AG85: 0 | AH85: 0 | AI85: 0 | AJ85: 0 | AK85: 0 | AL85: 0 | AM85: 0 | AN85: 0 | AO85: 0 | AP85: 0 | AQ85: 0 | AR85: 0 | AS85: 0 | AT85: 0 | AU85: 0 | AV85: 0 | AW85: 0 | AX85: 0 | AY85: 0 | AZ85: 0 | BA85: 0 | BB85: 0 | BC85: 0 | BD85: 0 | BE85: 0 | BF85: 0 | BG85: 0 | BH85: 0 | BI85: 0 | BJ85: 0 | BK85: 0 | BL85: 0
B86: Balance c/f | C86: AUD M | I86: =SUM(I83:I85) -> 0 | J86: =SUM(J83:J85) -> 0 | K86: 0 | L86: 0 | M86: 0 | N86: 0 | O86: 0 | P86: 0 | Q86: 0 | R86: 0 | S86: 0 | T86: 0 | U86: 0 | V86: 0 | W86: 0 | X86: 0 | Y86: 0 | Z86: 0 | AA86: 0 | AB86: 0 | AC86: 0 | AD86: 0 | AE86: 0 | AF86: 0 | AG86: 0 | AH86: 0 | AI86: 0 | AJ86: 0 | AK86: 0 | AL86: 0 | AM86: 0 | AN86: 0 | AO86: 0 | AP86: 0 | AQ86: 0 | AR86: 0 | AS86: 0 | AT86: 0 | AU86: 0 | AV86: 0 | AW86: 0 | AX86: 0 | AY86: 0 | AZ86: 0 | BA86: 0 | BB86: 0 | BC86: 0 | BD86: =SUM(BD83:BD85) -> 0 | BE86: 0 | BF86: 0 | BG86: 0 | BH86: 0 | BI86: 0 | BJ86: 0 | BK86: 0 | BL86: 0

Sheet Copy (hidden)
A1: Copy
A2: =Name_Project -> King Island Valuation
C4: Period Start
C5: Period End
C6: Development
C7: Production
C8: Restoration
C10: Counters
C11: Development Quarter
C12: Porduction Quarter
C13: Calendar Year
C14: Days in period
C15: Period number
C17: Inflation
C18: Inflation Rate
C19: Inflation Rate
C20: Indexation

Sheet Valuation
A1: Returns
A2: =Name_Project -> King Island Valuation | E2: =Master_check -> 0
C4: Period Start | J4: =Timing!J4 -> 2019-01-01 | K4: =Timing!K4 -> 2019-04-01 | L4: =Timing!L4 -> 2019-07-01 | M4: =Timing!M4 -> 2019-10-01 | N4: =Timing!N4 -> 2020-01-01 | O4: =Timing!O4 -> 2020-04-01 | P4: =Timing!P4 -> 2020-07-01 | Q4: =Timing!Q4 -> 2020-10-01 | R4: =Timing!R4 -> 2021-01-01 | S4: =Timing!S4 -> 2021-04-01 | T4: =Timing!T4 -> 2021-07-01 | U4: =Timing!U4 -> 2021-10-01 | V4: =Timing!V4 -> 2022-01-01 | W4: =Timing!W4 -> 2022-04-01 | X4: =Timing!X4 -> 2022-07-01 | Y4: =Timing!Y4 -> 2022-10-01 | Z4: =Timing!Z4 -> 2023-01-01 | AA4: =Timing!AA4 -> 2023-04-01 | AB4: =Timing!AB4 -> 2023-07-01 | AC4: =Timing!AC4 -> 2023-10-01 | AD4: =Timing!AD4 -> 2024-01-01 | AE4: =Timing!AE4 -> 2024-04-01 | AF4: =Timing!AF4 -> 2024-07-01 | AG4: =Timing!AG4 -> 2024-10-01 | AH4: =Timing!AH4 -> 2025-01-01 | AI4: =Timing!AI4 -> 2025-04-01 | AJ4: =Timing!AJ4 -> 2025-07-01 | AK4: =Timing!AK4 -> 2025-10-01 | AL4: =Timing!AL4 -> 2026-01-01 | AM4: =Timing!AM4 -> 2026-04-01 | AN4: =Timing!AN4 -> 2026-07-01 | AO4: =Timing!AO4 -> 2026-10-01 | AP4: =Timing!AP4 -> 2027-01-01 | AQ4: =Timing!AQ4 -> 2027-04-01 | AR4: =Timing!AR4 -> 2027-07-01 | AS4: =Timing!AS4 -> 2027-10-01 | AT4: =Timing!AT4 -> 2028-01-01 | AU4: =Timing!AU4 -> 2028-04-01 | AV4: =Timing!AV4 -> 2028-07-01 | AW4: =Timing!AW4 -> 2028-10-01 | AX4: =Timing!AX4 -> 2029-01-01 | AY4: =Timing!AY4 -> 2029-04-01 | AZ4: =Timing!AZ4 -> 2029-07-01 | BA4: =Timing!BA4 -> 2029-10-01 | BB4: =Timing!BB4 -> 2030-01-01 | BC4: =Timing!BC4 -> 2030-04-01 | BD4: =Timing!BD4 -> 2030-07-01 | BE4: =Timing!BE4 -> 2030-10-01 | BF4: =Timing!BF4 -> 2031-01-01 | BG4: =Timing!BG4 -> 2031-04-01 | BH4: =Timing!BH4 -> 2031-07-01 | BI4: =Timing!BI4 -> 2031-10-01 | BJ4: =Timing!BJ4 -> 2032-01-01 | BK4: =Timing!BK4 -> 2032-04-01 | BL4: =Timing!BL4 -> 2032-07-01 | BM4: =Timing!BM4 -> 2032-10-01
C5: Period End | I5: =Timing!I5 -> 2018-12-31 | J5: =Timing!J5 -> 2019-03-31 | K5: =Timing!K5 -> 2019-06-30 | L5: =Timing!L5 -> 2019-09-30 | M5: =Timing!M5 -> 2019-12-31 | N5: =Timing!N5 -> 2020-03-31 | O5: =Timing!O5 -> 2020-06-30 | P5: =Timing!P5 -> 2020-09-30 | Q5: =Timing!Q5 -> 2020-12-31 | R5: =Timing!R5 -> 2021-03-31 | S5: =Timing!S5 -> 2021-06-30 | T5: =Timing!T5 -> 2021-09-30 | U5: =Timing!U5 -> 2021-12-31 | V5: =Timing!V5 -> 2022-03-31 | W5: =Timing!W5 -> 2022-06-30 | X5: =Timing!X5 -> 2022-09-30 | Y5: =Timing!Y5 -> 2022-12-31 | Z5: =Timing!Z5 -> 2023-03-31 | AA5: =Timing!AA5 -> 2023-06-30 | AB5: =Timing!AB5 -> 2023-09-30 | AC5: =Timing!AC5 -> 2023-12-31 | AD5: =Timing!AD5 -> 2024-03-31 | AE5: =Timing!AE5 -> 2024-06-30 | AF5: =Timing!AF5 -> 2024-09-30 | AG5: =Timing!AG5 -> 2024-12-31 | AH5: =Timing!AH5 -> 2025-03-31 | AI5: =Timing!AI5 -> 2025-06-30 | AJ5: =Timing!AJ5 -> 2025-09-30 | AK5: =Timing!AK5 -> 2025-12-31 | AL5: =Timing!AL5 -> 2026-03-31 | AM5: =Timing!AM5 -> 2026-06-30 | AN5: =Timing!AN5 -> 2026-09-30 | AO5: =Timing!AO5 -> 2026-12-31 | AP5: =Timing!AP5 -> 2027-03-31 | AQ5: =Timing!AQ5 -> 2027-06-30 | AR5: =Timing!AR5 -> 2027-09-30 | AS5: =Timing!AS5 -> 2027-12-31 | AT5: =Timing!AT5 -> 2028-03-31 | AU5: =Timing!AU5 -> 2028-06-30 | AV5: =Timing!AV5 -> 2028-09-30 | AW5: =Timing!AW5 -> 2028-12-31 | AX5: =Timing!AX5 -> 2029-03-31 | AY5: =Timing!AY5 -> 2029-06-30 | AZ5: =Timing!AZ5 -> 2029-09-30 | BA5: =Timing!BA5 -> 2029-12-31 | BB5: =Timing!BB5 -> 2030-03-31 | BC5: =Timing!BC5 -> 2030-06-30 | BD5: =Timing!BD5 -> 2030-09-30 | BE5: =Timing!BE5 -> 2030-12-31 | BF5: =Timing!BF5 -> 2031-03-31 | BG5: =Timing!BG5 -> 2031-06-30 | BH5: =Timing!BH5 -> 2031-09-30 | BI5: =Timing!BI5 -> 2031-12-31 | BJ5: =Timing!BJ5 -> 2032-03-31 | BK5: =Timing!BK5 -> 2032-06-30 | BL5: =Timing!BL5 -> 2032-09-30 | BM5: =Timing!BM5 -> 2032-12-31
C6: Development | D6: =Timing!D6 -> 2019-01-01 | E6: =Timing!E6 -> 2019-12-31 | J6: =Timing!J6 -> 1 | K6: =Timing!K6 -> 1 | L6: =Timing!L6 -> 1 | M6: =Timing!M6 -> 1 | N6: =Timing!N6 -> 0 | O6: =Timing!O6 -> 0 | P6: =Timing!P6 -> 0 | Q6: =Timing!Q6 -> 0 | R6: =Timing!R6 -> 0 | S6: =Timing!S6 -> 0 | T6: =Timing!T6 -> 0 | U6: =Timing!U6 -> 0 | V6: =Timing!V6 -> 0 | W6: =Timing!W6 -> 0 | X6: =Timing!X6 -> 0 | Y6: =Timing!Y6 -> 0 | Z6: =Timing!Z6 -> 0 | AA6: =Timing!AA6 -> 0 | AB6: =Timing!AB6 -> 0 | AC6: =Timing!AC6 -> 0 | AD6: =Timing!AD6 -> 0 | AE6: =Timing!AE6 -> 0 | AF6: =Timing!AF6 -> 0 | AG6: =Timing!AG6 -> 0 | AH6: =Timing!AH6 -> 0 | AI6: =Timing!AI6 -> 0 | AJ6: =Timing!AJ6 -> 0 | AK6: =Timing!AK6 -> 0 | AL6: =Timing!AL6 -> 0 | AM6: =Timing!AM6 -> 0 | AN6: =Timing!AN6 -> 0 | AO6: =Timing!AO6 -> 0 | AP6: =Timing!AP6 -> 0 | AQ6: =Timing!AQ6 -> 0 | AR6: =Timing!AR6 -> 0 | AS6: =Timing!AS6 -> 0 | AT6: =Timing!AT6 -> 0 | AU6: =Timing!AU6 -> 0 | AV6: =Timing!AV6 -> 0 | AW6: =Timing!AW6 -> 0 | AX6: =Timing!AX6 -> 0 | AY6: =Timing!AY6 -> 0 | AZ6: =Timing!AZ6 -> 0 | BA6: =Timing!BA6 -> 0 | BB6: =Timing!BB6 -> 0 | BC6: =Timing!BC6 -> 0 | BD6: =Timing!BD6 -> 0 | BE6: =Timing!BE6 -> 0 | BF6: =Timing!BF6 -> 0 | BG6: =Timing!BG6 -> 0 | BH6: =Timing!BH6 -> 0 | BI6: =Timing!BI6 -> 0 | BJ6: =Timing!BJ6 -> 0 | BK6: =Timing!BK6 -> 0 | BL6: =Timing!BL6 -> 0 | BM6: =Timing!BM6 -> 0
C7: Production | D7: =Timing!D7 -> 2020-01-01 | E7: =Timing!E7 -> 2027-12-31 | J7: =Timing!J7 -> 0 | K7: =Timing!K7 -> 0 | L7: =Timing!L7 -> 0 | M7: =Timing!M7 -> 0 | N7: =Timing!N7 -> 1 | O7: =Timing!O7 -> 1 | P7: =Timing!P7 -> 1 | Q7: =Timing!Q7 -> 1 | R7: =Timing!R7 -> 1 | S7: =Timing!S7 -> 1 | T7: =Timing!T7 -> 1 | U7: =Timing!U7 -> 1 | V7: =Timing!V7 -> 1 | W7: =Timing!W7 -> 1 | X7: =Timing!X7 -> 1 | Y7: =Timing!Y7 -> 1 | Z7: =Timing!Z7 -> 1 | AA7: =Timing!AA7 -> 1 | AB7: =Timing!AB7 -> 1 | AC7: =Timing!AC7 -> 1 | AD7: =Timing!AD7 -> 1 | AE7: =Timing!AE7 -> 1 | AF7: =Timing!AF7 -> 1 | AG7: =Timing!AG7 -> 1 | AH7: =Timing!AH7 -> 1 | AI7: =Timing!AI7 -> 1 | AJ7: =Timing!AJ7 -> 1 | AK7: =Timing!AK7 -> 1 | AL7: =Timing!AL7 -> 1 | AM7: =Timing!AM7 -> 1 | AN7: =Timing!AN7 -> 1 | AO7: =Timing!AO7 -> 1 | AP7: =Timing!AP7 -> 1 | AQ7: =Timing!AQ7 -> 1 | AR7: =Timing!AR7 -> 1 | AS7: =Timing!AS7 -> 1 | AT7: =Timing!AT7 -> 0 | AU7: =Timing!AU7 -> 0 | AV7: =Timing!AV7 -> 0 | AW7: =Timing!AW7 -> 0 | AX7: =Timing!AX7 -> 0 | AY7: =Timing!AY7 -> 0 | AZ7: =Timing!AZ7 -> 0 | BA7: =Timing!BA7 -> 0 | BB7: =Timing!BB7 -> 0 | BC7: =Timing!BC7 -> 0 | BD7: =Timing!BD7 -> 0 | BE7: =Timing!BE7 -> 0 | BF7: =Timing!BF7 -> 0 | BG7: =Timing!BG7 -> 0 | BH7: =Timing!BH7 -> 0 | BI7: =Timing!BI7 -> 0 | BJ7: =Timing!BJ7 -> 0 | BK7: =Timing!BK7 -> 0 | BL7: =Timing!BL7 -> 0 | BM7: =Timing!BM7 -> 0
C8: Restoration | D8: =Inputs!I7 -> 2028-01-01 | E8: =Inputs!I9 -> 2027-12-31 | J8: =IF(AND(J$4>=$D8,J$5<=$E8),1,0) -> 0 | K8: =IF(AND(K$4>=$D8,K$5<=$E8),1,0) -> 0 | L8: 0 | M8: 0 | N8: 0 | O8: 0 | P8: 0 | Q8: 0 | R8: 0 | S8: 0 | T8: 0 | U8: 0 | V8: 0 | W8: 0 | X8: 0 | Y8: 0 | Z8: 0 | AA8: =IF(AND(AA$4>=$D8,AA$5<=$E8),1,0) -> 0 | AB8: 0 | AC8: 0 | AD8: 0 | AE8: 0 | AF8: 0 | AG8: 0 | AH8: 0 | AI8: 0 | AJ8: 0 | AK8: 0 | AL8: 0 | AM8: 0 | AN8: 0 | AO8: 0 | AP8: 0 | AQ8: =IF(AND(AQ$4>=$D8,AQ$5<=$E8),1,0) -> 0 | AR8: 0 | AS8: 0 | AT8: 0 | AU8: 0 | AV8: 0 | AW8: 0 | AX8: 0 | AY8: 0 | AZ8: 0 | BA8: 0 | BB8: 0 | BC8: 0 | BD8: 0 | BE8: 0 | BF8: 0 | BG8: =IF(AND(BG$4>=$D8,BG$5<=$E8),1,0) -> 0 | BH8: 0 | BI8: 0 | BJ8: 0 | BK8: 0 | BL8: 0 | BM8: 0
C10: Timing counters
C12: Days in period | D12: Num# | J12: =Timing!J16 -> 90 | K12: =Timing!K16 -> 91 | L12: =Timing!L16 -> 92 | M12: =Timing!M16 -> 92 | N12: =Timing!N16 -> 91 | O12: =Timing!O16 -> 91 | P12: =Timing!P16 -> 92 | Q12: =Timing!Q16 -> 92 | R12: =Timing!R16 -> 90 | S12: =Timing!S16 -> 91 | T12: =Timing!T16 -> 92 | U12: =Timing!U16 -> 92 | V12: =Timing!V16 -> 90 | W12: =Timing!W16 -> 91 | X12: =Timing!X16 -> 92 | Y12: =Timing!Y16 -> 92 | Z12: =Timing!Z16 -> 90 | AA12: =Timing!AA16 -> 91 | AB12: =Timing!AB16 -> 92 | AC12: =Timing!AC16 -> 92 | AD12: =Timing!AD16 -> 91 | AE12: =Timing!AE16 -> 91 | AF12: =Timing!AF16 -> 92 | AG12: =Timing!AG16 -> 92 | AH12: =Timing!AH16 -> 90 | AI12: =Timing!AI16 -> 91 | AJ12: =Timing!AJ16 -> 92 | AK12: =Timing!AK16 -> 92 | AL12: =Timing!AL16 -> 90 | AM12: =Timing!AM16 -> 91 | AN12: =Timing!AN16 -> 92 | AO12: =Timing!AO16 -> 92 | AP12: =Timing!AP16 -> 90 | AQ12: =Timing!AQ16 -> 91 | AR12: =Timing!AR16 -> 92 | AS12: =Timing!AS16 -> 92 | AT12: =Timing!AT16 -> 91 | AU12: =Timing!AU16 -> 91 | AV12: =Timing!AV16 -> 92 | AW12: =Timing!AW16 -> 92 | AX12: =Timing!AX16 -> 90 | AY12: =Timing!AY16 -> 91 | AZ12: =Timing!AZ16 -> 92 | BA12: =Timing!BA16 -> 92 | BB12: =Timing!BB16 -> 90 | BC12: =Timing!BC16 -> 91 | BD12: =Timing!BD16 -> 92 | BE12: =Timing!BE16 -> 92 | BF12: =Timing!BF16 -> 90 | BG12: =Timing!BG16 -> 91 | BH12: =Timing!BH16 -> 92 | BI12: =Timing!BI16 -> 92 | BJ12: =Timing!BJ16 -> 91 | BK12: =Timing!BK16 -> 91 | BL12: =Timing!BL16 -> 92 | BM12: =Timing!BM16 -> 92
C13: Period number | D13: Num# | J13: =Timing!J17 -> 1 | K13: =Timing!K17 -> 2 | L13: =Timing!L17 -> 3 | M13: =Timing!M17 -> 4 | N13: =Timing!N17 -> 5 | O13: =Timing!O17 -> 6 | P13: =Timing!P17 -> 7 | Q13: =Timing!Q17 -> 8 | R13: =Timing!R17 -> 9 | S13: =Timing!S17 -> 10 | T13: =Timing!T17 -> 11 | U13: =Timing!U17 -> 12 | V13: =Timing!V17 -> 13 | W13: =Timing!W17 -> 14 | X13: =Timing!X17 -> 15 | Y13: =Timing!Y17 -> 16 | Z13: =Timing!Z17 -> 17 | AA13: =Timing!AA17 -> 18 | AB13: =Timing!AB17 -> 19 | AC13: =Timing!AC17 -> 20 | AD13: =Timing!AD17 -> 21 | AE13: =Timing!AE17 -> 22 | AF13: =Timing!AF17 -> 23 | AG13: =Timing!AG17 -> 24 | AH13: =Timing!AH17 -> 25 | AI13: =Timing!AI17 -> 26 | AJ13: =Timing!AJ17 -> 27 | AK13: =Timing!AK17 -> 28 | AL13: =Timing!AL17 -> 29 | AM13: =Timing!AM17 -> 30 | AN13: =Timing!AN17 -> 31 | AO13: =Timing!AO17 -> 32 | AP13: =Timing!AP17 -> 33 | AQ13: =Timing!AQ17 -> 34 | AR13: =Timing!AR17 -> 35 | AS13: =Timing!AS17 -> 36 | AT13: =Timing!AT17 -> 37 | AU13: =Timing!AU17 -> 38 | AV13: =Timing!AV17 -> 39 | AW13: =Timing!AW17 -> 40 | AX13: =Timing!AX17 -> 41 | AY13: =Timing!AY17 -> 42 | AZ13: =Timing!AZ17 -> 43 | BA13: =Timing!BA17 -> 44 | BB13: =Timing!BB17 -> 45 | BC13: =Timing!BC17 -> 46 | BD13: =Timing!BD17 -> 47 | BE13: =Timing!BE17 -> 48 | BF13: =Timing!BF17 -> 49 | BG13: =Timing!BG17 -> 50 | BH13: =Timing!BH17 -> 51 | BI13: =Timing!BI17 -> 52 | BJ13: =Timing!BJ17 -> 53 | BK13: =Timing!BK17 -> 54 | BL13: =Timing!BL17 -> 55 | BM13: =Timing!BM17 -> 56
C14: Operational period number | D14: Num# | J14: =Timing!J13 -> 0 | K14: =Timing!K13 -> 0 | L14: =Timing!L13 -> 0 | M14: =Timing!M13 -> 0 | N14: =Timing!N13 -> 1 | O14: =Timing!O13 -> 2 | P14: =Timing!P13 -> 3 | Q14: =Timing!Q13 -> 4 | R14: =Timing!R13 -> 5 | S14: =Timing!S13 -> 6 | T14: =Timing!T13 -> 7 | U14: =Timing!U13 -> 8 | V14: =Timing!V13 -> 9 | W14: =Timing!W13 -> 10 | X14: =Timing!X13 -> 11 | Y14: =Timing!Y13 -> 12 | Z14: =Timing!Z13 -> 13 | AA14: =Timing!AA13 -> 14 | AB14: =Timing!AB13 -> 15 | AC14: =Timing!AC13 -> 16 | AD14: =Timing!AD13 -> 17 | AE14: =Timing!AE13 -> 18 | AF14: =Timing!AF13 -> 19 | AG14: =Timing!AG13 -> 20 | AH14: =Timing!AH13 -> 21 | AI14: =Timing!AI13 -> 22 | AJ14: =Timing!AJ13 -> 23 | AK14: =Timing!AK13 -> 24 | AL14: =Timing!AL13 -> 25 | AM14: =Timing!AM13 -> 26 | AN14: =Timing!AN13 -> 27 | AO14: =Timing!AO13 -> 28 | AP14: =Timing!AP13 -> 29 | AQ14: =Timing!AQ13 -> 30 | AR14: =Timing!AR13 -> 31 | AS14: =Timing!AS13 -> 32 | AT14: =Timing!AT13 -> 0 | AU14: =Timing!AU13 -> 0 | AV14: =Timing!AV13 -> 0 | AW14: =Timing!AW13 -> 0 | AX14: =Timing!AX13 -> 0 | AY14: =Timing!AY13 -> 0 | AZ14: =Timing!AZ13 -> 0 | BA14: =Timing!BA13 -> 0 | BB14: =Timing!BB13 -> 0 | BC14: =Timing!BC13 -> 0 | BD14: =Timing!BD13 -> 0 | BE14: =Timing!BE13 -> 0 | BF14: =Timing!BF13 -> 0 | BG14: =Timing!BG13 -> 0 | BH14: =Timing!BH13 -> 0 | BI14: =Timing!BI13 -> 0 | BJ14: =Timing!BJ13 -> 0 | BK14: =Timing!BK13 -> 0 | BL14: =Timing!BL13 -> 0 | BM14: =Timing!BM13 -> 0
C16: Valuation
C17: Free cashflow to firm
C18: EBITDA | D18: AUD M | I18: =SUM(J18:BM18) -> 510.3620471 | J18: =IFS!J66 -> 0 | K18: =IFS!K66 -> 0 | L18: =IFS!L66 -> 0 | M18: =IFS!M66 -> 0 | N18: =IFS!N66 -> 15.55606836 | O18: =IFS!O66 -> 15.80606836 | P18: =IFS!P66 -> 15.80606836 | Q18: =IFS!Q66 -> 15.80606836 | R18: =IFS!R66 -> 15.80606836 | S18: =IFS!S66 -> 15.80606836 | T18: =IFS!T66 -> 15.96372773 | U18: =IFS!U66 -> 16.38573398 | V18: =IFS!V66 -> 16.38573398 | W18: =IFS!W66 -> 16.38573398 | X18: =IFS!X66 -> 16.38573398 | Y18: =IFS!Y66 -> 16.38573398 | Z18: =IFS!Z66 -> 16.38573398 | AA18: =IFS!AA66 -> 16.38573398 | AB18: =IFS!AB66 -> 16.38573398 | AC18: =IFS!AC66 -> 16.38573398 | AD18: =IFS!AD66 -> 16.38573398 | AE18: =IFS!AE66 -> 16.38573398 | AF18: =IFS!AF66 -> 16.38573398 | AG18: =IFS!AG66 -> 16.38573398 | AH18: =IFS!AH66 -> 16.38573398 | AI18: =IFS!AI66 -> 16.38573398 | AJ18: =IFS!AJ66 -> 16.38573398 | AK18: =IFS!AK66 -> 16.38573398 | AL18: =IFS!AL66 -> 16.38573398 | AM18: =IFS!AM66 -> 16.38573398 | AN18: =IFS!AN66 -> 16.38573398 | AO18: =IFS!AO66 -> 16.38573398 | AP18: =IFS!AP66 -> 16.38573398 | AQ18: =IFS!AQ66 -> 16.38573398 | AR18: =IFS!AR66 -> 16.38573398 | AS18: =IFS!AS66 -> 6.554293594 | AT18: =IFS!AT66 -> 0 | AU18: =IFS!AU66 -> 0 | AV18: =IFS!AV66 -> 0 | AW18: =IFS!AW66 -> 0 | AX18: =IFS!AX66 -> 0 | AY18: =IFS!AY66 -> 0 | AZ18: =IFS!AZ66 -> 0 | BA18: =IFS!BA66 -> 0 | BB18: =IFS!BB66 -> 0 | BC18: =IFS!BC66 -> 0 | BD18: =IFS!BD66 -> 0 | BE18: =IFS!BE66 -> 0 | BF18: =IFS!BF66 -> 0 | BG18: =IFS!BG66 -> 0 | BH18: =IFS!BH66 -> 0 | BI18: =IFS!BI66 -> 0 | BJ18: =IFS!BJ66 -> 0 | BK18: =IFS!BK66 -> 0 | BL18: =IFS!BL66 -> 0 | BM18: =IFS!BM66 -> 0
C19: Stockpile adjustments | D19: AUD M | I19: =SUM(J19:BM19) -> 0 | J19: =-IFS!J64 -> 0 | K19: =-IFS!K64 -> 0 | L19: =-IFS!L64 -> 0 | M19: =-IFS!M64 -> 0 | N19: =-IFS!N64 -> 0 | O19: =-IFS!O64 -> 0 | P19: =-IFS!P64 -> 0 | Q19: =-IFS!Q64 -> 0 | R19: =-IFS!R64 -> 0 | S19: =-IFS!S64 -> 0 | T19: =-IFS!T64 -> 0 | U19: =-IFS!U64 -> 0 | V19: =-IFS!V64 -> 0 | W19: =-IFS!W64 -> 0 | X19: =-IFS!X64 -> 0 | Y19: =-IFS!Y64 -> 0 | Z19: =-IFS!Z64 -> 0 | AA19: =-IFS!AA64 -> 0 | AB19: =-IFS!AB64 -> 0 | AC19: =-IFS!AC64 -> 0 | AD19: =-IFS!AD64 -> 0 | AE19: =-IFS!AE64 -> 0 | AF19: =-IFS!AF64 -> 0 | AG19: =-IFS!AG64 -> 0 | AH19: =-IFS!AH64 -> 0 | AI19: =-IFS!AI64 -> 0 | AJ19: =-IFS!AJ64 -> 0 | AK19: =-IFS!AK64 -> 0 | AL19: =-IFS!AL64 -> 0 | AM19: =-IFS!AM64 -> 0 | AN19: =-IFS!AN64 -> 0 | AO19: =-IFS!AO64 -> 0 | AP19: =-IFS!AP64 -> 0 | AQ19: =-IFS!AQ64 -> 0 | AR19: =-IFS!AR64 -> 0 | AS19: =-IFS!AS64 -> 0 | AT19: =-IFS!AT64 -> 0 | AU19: =-IFS!AU64 -> 0 | AV19: =-IFS!AV64 -> 0 | AW19: =-IFS!AW64 -> 0 | AX19: =-IFS!AX64 -> 0 | AY19: =-IFS!AY64 -> 0 | AZ19: =-IFS!AZ64 -> 0 | BA19: =-IFS!BA64 -> 0 | BB19: =-IFS!BB64 -> 0 | BC19: =-IFS!BC64 -> 0 | BD19: =-IFS!BD64 -> 0 | BE19: =-IFS!BE64 -> 0 | BF19: =-IFS!BF64 -> 0 | BG19: =-IFS!BG64 -> 0 | BH19: =-IFS!BH64 -> 0 | BI19: =-IFS!BI64 -> 0 | BJ19: =-IFS!BJ64 -> 0 | BK19: =-IFS!BK64 -> 0 | BL19: =-IFS!BL64 -> 0 | BM19: =-IFS!BM64 -> 0
C20: Other working capital adjustments | D20: AUD M | I20: 0 | J20: =IFS!J25 -> 0 | K20: =IFS!K25 -> 0 | L20: =IFS!L25 -> 0 | M20: =IFS!M25 -> 0 | N20: =IFS!N25 -> 0 | O20: =IFS!O25 -> 0 | P20: =IFS!P25 -> 0 | Q20: =IFS!Q25 -> 0 | R20: =IFS!R25 -> 0 | S20: =IFS!S25 -> 0 | T20: =IFS!T25 -> 0 | U20: =IFS!U25 -> 0 | V20: =IFS!V25 -> 0 | W20: =IFS!W25 -> 0 | X20: =IFS!X25 -> 0 | Y20: =IFS!Y25 -> 0 | Z20: =IFS!Z25 -> 0 | AA20: =IFS!AA25 -> 0 | AB20: =IFS!AB25 -> 0 | AC20: =IFS!AC25 -> 0 | AD20: =IFS!AD25 -> 0 | AE20: =IFS!AE25 -> 0 | AF20: =IFS!AF25 -> 0 | AG20: =IFS!AG25 -> 0 | AH20: =IFS!AH25 -> 0 | AI20: =IFS!AI25 -> 0 | AJ20: =IFS!AJ25 -> 0 | AK20: =IFS!AK25 -> 0 | AL20: =IFS!AL25 -> 0 | AM20: =IFS!AM25 -> 0 | AN20: =IFS!AN25 -> 0 | AO20: =IFS!AO25 -> 0 | AP20: =IFS!AP25 -> 0 | AQ20: =IFS!AQ25 -> 0 | AR20: =IFS!AR25 -> 0 | AS20: =IFS!AS25 -> 0 | AT20: =IFS!AT25 -> 0 | AU20: =IFS!AU25 -> 0 | AV20: =IFS!AV25 -> 0 | AW20: =IFS!AW25 -> 0 | AX20: =IFS!AX25 -> 0 | AY20: =IFS!AY25 -> 0 | AZ20: =IFS!AZ25 -> 0 | BA20: =IFS!BA25 -> 0 | BB20: =IFS!BB25 -> 0 | BC20: =IFS!BC25 -> 0 | BD20: =IFS!BD25 -> 0 | BE20: =IFS!BE25 -> 0 | BF20: =IFS!BF25 -> 0 | BG20: =IFS!BG25 -> 0 | BH20: =IFS!BH25 -> 0 | BI20: =IFS!BI25 -> 0 | BJ20: =IFS!BJ25 -> 0 | BK20: =IFS!BK25 -> 0 | BL20: =IFS!BL25 -> 0 | BM20: =IFS!BM25 -> 0
C21: Less: Capex | D21: AUD M | I21: -60 | J21: =IFS!J31 -> -15 | K21: =IFS!K31 -> -15 | L21: =IFS!L31 -> -15 | M21: =IFS!M31 -> -15 | N21: =IFS!N31 -> 0 | O21: =IFS!O31 -> 0 | P21: =IFS!P31 -> 0 | Q21: =IFS!Q31 -> 0 | R21: =IFS!R31 -> 0 | S21: =IFS!S31 -> 0 | T21: =IFS!T31 -> 0 | U21: =IFS!U31 -> 0 | V21: =IFS!V31 -> 0 | W21: =IFS!W31 -> 0 | X21: =IFS!X31 -> 0 | Y21: =IFS!Y31 -> 0 | Z21: =IFS!Z31 -> 0 | AA21: =IFS!AA31 -> 0 | AB21: =IFS!AB31 -> 0 | AC21: =IFS!AC31 -> 0 | AD21: =IFS!AD31 -> 0 | AE21: =IFS!AE31 -> 0 | AF21: =IFS!AF31 -> 0 | AG21: =IFS!AG31 -> 0 | AH21: =IFS!AH31 -> 0 | AI21: =IFS!AI31 -> 0 | AJ21: =IFS!AJ31 -> 0 | AK21: =IFS!AK31 -> 0 | AL21: =IFS!AL31 -> 0 | AM21: =IFS!AM31 -> 0 | AN21: =IFS!AN31 -> 0 | AO21: =IFS!AO31 -> 0 | AP21: =IFS!AP31 -> 0 | AQ21: =IFS!AQ31 -> 0 | AR21: =IFS!AR31 -> 0 | AS21: =IFS!AS31 -> 0 | AT21: =IFS!AT31 -> 0 | AU21: =IFS!AU31 -> 0 | AV21: =IFS!AV31 -> 0 | AW21: =IFS!AW31 -> 0 | AX21: =IFS!AX31 -> 0 | AY21: =IFS!AY31 -> 0 | AZ21: =IFS!AZ31 -> 0 | BA21: =IFS!BA31 -> 0 | BB21: =IFS!BB31 -> 0 | BC21: =IFS!BC31 -> 0 | BD21: =IFS!BD31 -> 0 | BE21: =IFS!BE31 -> 0 | BF21: =IFS!BF31 -> 0 | BG21: =IFS!BG31 -> 0 | BH21: =IFS!BH31 -> 0 | BI21: =IFS!BI31 -> 0 | BJ21: =IFS!BJ31 -> 0 | BK21: =IFS!BK31 -> 0 | BL21: =IFS!BL31 -> 0 | BM21: =IFS!BM31 -> 0
C22: Less: Tax (Ungeared) | D22: AUD M | I22: -128.0976624 | J22: =-'T&A'!J62 -> 0 | K22: =-'T&A'!K62 -> 0 | L22: =-'T&A'!L62 -> 0 | M22: =-'T&A'!M62 -> 0 | N22: =-'T&A'!N62 -> -0.07963473138 | O22: =-'T&A'!O62 -> -4.16250255 | P22: =-'T&A'!P62 -> -4.159313774 | Q22: =-'T&A'!Q62 -> -4.156012718 | R22: =-'T&A'!R62 -> -4.152591185 | S22: =-'T&A'!S62 -> -4.149040049 | T22: =-'T&A'!T62 -> -4.192646916 | U22: =-'T&A'!U62 -> -4.315406578 | V22: =-'T&A'!V62 -> -4.311400168 | W22: =-'T&A'!W62 -> -4.3072149 | X22: =-'T&A'!X62 -> -4.302834059 | Y22: =-'T&A'!Y62 -> -4.298238471 | Z22: =-'T&A'!Z62 -> -4.293405997 | AA22: =-'T&A'!AA62 -> -4.288310888 | AB22: =-'T&A'!AB62 -> -4.282922957 | AC22: =-'T&A'!AC62 -> -4.277206493 | AD22: =-'T&A'!AD62 -> -4.271118831 | AE22: =-'T&A'!AE62 -> -4.264608414 | AF22: =-'T&A'!AF62 -> -4.257612146 | AG22: =-'T&A'!AG62 -> -4.250051662 | AH22: =-'T&A'!AH62 -> -4.241827978 | AI22: =-'T&A'!AI62 -> -4.232813555 | AJ22: =-'T&A'!AJ62 -> -4.22284015 | AK22: =-'T&A'!AK62 -> -4.211679436 | AL22: =-'T&A'!AL62 -> -4.199010517 | AM22: =-'T&A'!AM62 -> -4.18436208 | AN22: =-'T&A'!AN62 -> -4.167000969 | AO22: =-'T&A'!AO62 -> -4.14569415 | AP22: =-'T&A'!AP62 -> -4.118120621 | AQ22: =-'T&A'!AQ62 -> -4.079058121 | AR22: =-'T&A'!AR62 -> -4.012093835 | AS22: =-'T&A'!AS62 -> -1.511087534 | AT22: =-'T&A'!AT62 -> 0 | AU22: =-'T&A'!AU62 -> 0 | AV22: =-'T&A'!AV62 -> 0 | AW22: =-'T&A'!AW62 -> 0 | AX22: =-'T&A'!AX62 -> 0 | AY22: =-'T&A'!AY62 -> 0 | AZ22: =-'T&A'!AZ62 -> 0 | BA22: =-'T&A'!BA62 -> 0 | BB22: =-'T&A'!BB62 -> 0 | BC22: =-'T&A'!BC62 -> 0 | BD22: =-'T&A'!BD62 -> 0 | BE22: =-'T&A'!BE62 -> 0 | BF22: =-'T&A'!BF62 -> 0 | BG22: =-'T&A'!BG62 -> 0 | BH22: =-'T&A'!BH62 -> 0 | BI22: =-'T&A'!BI62 -> 0 | BJ22: =-'T&A'!BJ62 -> 0 | BK22: =-'T&A'!BK62 -> 0 | BL22: =-'T&A'!BL62 -> 0 | BM22: =-'T&A'!BM62 -> 0
C23: Abandonment costs | D23: AUD M | I23: 0 | J23: =IFS!J43 -> 0 | K23: =IFS!K43 -> 0 | L23: =IFS!L43 -> 0 | M23: =IFS!M43 -> 0 | N23: =IFS!N43 -> 0 | O23: =IFS!O43 -> 0 | P23: =IFS!P43 -> 0 | Q23: =IFS!Q43 -> 0 | R23: =IFS!R43 -> 0 | S23: =IFS!S43 -> 0 | T23: =IFS!T43 -> 0 | U23: =IFS!U43 -> 0 | V23: =IFS!V43 -> 0 | W23: =IFS!W43 -> 0 | X23: =IFS!X43 -> 0 | Y23: =IFS!Y43 -> 0 | Z23: =IFS!Z43 -> 0 | AA23: =IFS!AA43 -> 0 | AB23: =IFS!AB43 -> 0 | AC23: =IFS!AC43 -> 0 | AD23: =IFS!AD43 -> 0 | AE23: =IFS!AE43 -> 0 | AF23: =IFS!AF43 -> 0 | AG23: =IFS!AG43 -> 0 | AH23: =IFS!AH43 -> 0 | AI23: =IFS!AI43 -> 0 | AJ23: =IFS!AJ43 -> 0 | AK23: =IFS!AK43 -> 0 | AL23: =IFS!AL43 -> 0 | AM23: =IFS!AM43 -> 0 | AN23: =IFS!AN43 -> 0 | AO23: =IFS!AO43 -> 0 | AP23: =IFS!AP43 -> 0 | AQ23: =IFS!AQ43 -> 0 | AR23: =IFS!AR43 -> 0 | AS23: =IFS!AS43 -> 0 | AT23: =IFS!AT43 -> 0 | AU23: =IFS!AU43 -> 0 | AV23: =IFS!AV43 -> 0 | AW23: =IFS!AW43 -> 0 | AX23: =IFS!AX43 -> 0 | AY23: =IFS!AY43 -> 0 | AZ23: =IFS!AZ43 -> 0 | BA23: =IFS!BA43 -> 0 | BB23: =IFS!BB43 -> 0 | BC23: =IFS!BC43 -> 0 | BD23: =IFS!BD43 -> 0 | BE23: =IFS!BE43 -> 0 | BF23: =IFS!BF43 -> 0 | BG23: =IFS!BG43 -> 0 | BH23: =IFS!BH43 -> 0 | BI23: =IFS!BI43 -> 0 | BJ23: =IFS!BJ43 -> 0 | BK23: =IFS!BK43 -> 0 | BL23: =IFS!BL43 -> 0 | BM23: =IFS!BM43 -> 0
C24: Free cashflow to firm | D24: AUD M | I24: 322.2643847 | J24: =SUM(J18:J23) -> -15 | K24: =SUM(K18:K23) -> -15 | L24: -15 | M24: -15 | N24: 15.47643363 | O24: 11.64356581 | P24: 11.64675459 | Q24: 11.65005564 | R24: 11.65347717 | S24: 11.65702831 | T24: 11.77108082 | U24: 12.07032741 | V24: 12.07433382 | W24: 12.07851908 | X24: 12.08289993 | Y24: 12.08749551 | Z24: 12.09232799 | AA24: 12.0974231 | AB24: 12.10281103 | AC24: 12.10852749 | AD24: 12.11461515 | AE24: 12.12112557 | AF24: 12.12812184 | AG24: 12.13568232 | AH24: 12.14390601 | AI24: 12.15292043 | AJ24: 12.16289383 | AK24: 12.17405455 | AL24: 12.18672347 | AM24: 12.2013719 | AN24: 12.21873302 | AO24: 12.24003983 | AP24: 12.26761336 | AQ24: 12.30667586 | AR24: 12.37364015 | AS24: 5.04320606 | AT24: 0 | AU24: 0 | AV24: 0 | AW24: 0 | AX24: 0 | AY24: 0 | AZ24: 0 | BA24: 0 | BB24: 0 | BC24: 0 | BD24: 0 | BE24: 0 | BF24: 0 | BG24: 0 | BH24: 0 | BI24: 0 | BJ24: 0 | BK24: 0 | BL24: 0 | BM24: 0
C26: Enterprise Valuation
C27: Cashflows
C28: FCFF | D28: AUD M | I28: =SUM(J28:BM28) -> 322.2643847 | J28: =J24 -> -15 | K28: =K24 -> -15 | L28: -15 | M28: -15 | N28: 15.47643363 | O28: 11.64356581 | P28: 11.64675459 | Q28: 11.65005564 | R28: 11.65347717 | S28: 11.65702831 | T28: 11.77108082 | U28: 12.07032741 | V28: 12.07433382 | W28: 12.07851908 | X28: 12.08289993 | Y28: 12.08749551 | Z28: 12.09232799 | AA28: 12.0974231 | AB28: 12.10281103 | AC28: 12.10852749 | AD28: 12.11461515 | AE28: 12.12112557 | AF28: 12.12812184 | AG28: 12.13568232 | AH28: 12.14390601 | AI28: 12.15292043 | AJ28: 12.16289383 | AK28: 12.17405455 | AL28: 12.18672347 | AM28: 12.2013719 | AN28: 12.21873302 | AO28: 12.24003983 | AP28: 12.26761336 | AQ28: 12.30667586 | AR28: 12.37364015 | AS28: 5.04320606 | AT28: 0 | AU28: 0 | AV28: 0 | AW28: 0 | AX28: 0 | AY28: 0 | AZ28: 0 | BA28: 0 | BB28: 0 | BC28: 0 | BD28: 0 | BE28: 0 | BF28: 0 | BG28: 0 | BH28: 0 | BI28: 0 | BJ28: 0 | BK28: 0 | BL28: 0 | BM28: 0
C29: Total | D29: AUD M | I29: =SUM(J29:BM29) -> 322.2643847 | J29: =SUM(J28) -> -15 | K29: =SUM(K28) -> -15 | L29: -15 | M29: -15 | N29: 15.47643363 | O29: 11.64356581 | P29: 11.64675459 | Q29: 11.65005564 | R29: 11.65347717 | S29: 11.65702831 | T29: 11.77108082 | U29: 12.07032741 | V29: 12.07433382 | W29: 12.07851908 | X29: 12.08289993 | Y29: 12.08749551 | Z29: 12.09232799 | AA29: 12.0974231 | AB29: 12.10281103 | AC29: 12.10852749 | AD29: 12.11461515 | AE29: 12.12112557 | AF29: 12.12812184 | AG29: 12.13568232 | AH29: 12.14390601 | AI29: 12.15292043 | AJ29: 12.16289383 | AK29: 12.17405455 | AL29: 12.18672347 | AM29: 12.2013719 | AN29: 12.21873302 | AO29: 12.24003983 | AP29: 12.26761336 | AQ29: 12.30667586 | AR29: 12.37364015 | AS29: 5.04320606 | AT29: 0 | AU29: 0 | AV29: 0 | AW29: 0 | AX29: 0 | AY29: 0 | AZ29: 0 | BA29: 0 | BB29: 0 | BC29: 0 | BD29: 0 | BE29: 0 | BF29: 0 | BG29: 0 | BH29: 0 | BI29: 0 | BJ29: 0 | BK29: 0 | BL29: 0 | BM29: 0
C31: DCF analysis - end of period cashflows
C32: First principles
C33: Cumulative days | D33: #Num | E33: WACC, % | J33: =J5-$I5 -> 90 | K33: 181 | L33: 273 | M33: 365 | N33: 456 | O33: 547 | P33: 639 | Q33: 731 | R33: 821 | S33: 912 | T33: 1004 | U33: 1096 | V33: 1186 | W33: 1277 | X33: 1369 | Y33: 1461 | Z33: 1551 | AA33: 1642 | AB33: 1734 | AC33: 1826 | AD33: 1917 | AE33: 2008 | AF33: 2100 | AG33: 2192 | AH33: 2282 | AI33: 2373 | AJ33: 2465 | AK33: 2557 | AL33: 2647 | AM33: 2738 | AN33: 2830 | AO33: 2922 | AP33: =AP5-$I5 -> 3012 | AQ33: 3103 | AR33: 3195 | AS33: 3287 | AT33: 3378 | AU33: 3469 | AV33: 3561 | AW33: 3653 | AX33: 3743 | AY33: 3834 | AZ33: 3926 | BA33: 4018 | BB33: 4108 | BC33: 4199 | BD33: 4291 | BE33: 4383 | BF33: 4473 | BG33: 4564 | BH33: 4656 | BI33: 4748 | BJ33: 4839 | BK33: 4930 | BL33: 5022 | BM33: 5114
C34: Discount factor | D34: #Num | E34: =Inputs!F201 -> 0.0975 | J34: =(1+$E34)^(-J33/Days_Year) -> 0.9773210197 | K34: 0.9549129467 | L34: 0.9327808605 | M34: 0.9111617312 | N34: 0.8902705622 | O34: 0.8698583872 | P34: 0.8496976166 | Q34: 0.8300041137 | R34: 0.8111804667 | S34: 0.792581674 | T34: 0.7742119514 | U34: 0.7562679851 | V34: 0.7391165984 | W34: 0.7221700902 | X34: 0.7054323019 | Y34: 0.6890824466 | Z34: 0.6734547593 | AA34: 0.6580137496 | AB34: 0.6427629175 | AC34: 0.627865555 | AD34: 0.6134698171 | AE34: 0.5994041456 | AF34: 0.5855117125 | AG34: 0.5719412653 | AH34: 0.5589702206 | AI34: 0.546154119 | AJ34: 0.5334958656 | AK34: 0.5211309935 | AL34: 0.5093122739 | AM34: 0.4976347326 | AN34: 0.4861010165 | AO34: 0.4748346182 | AP34: =(1+$E34)^(-AP33/Days_Year) -> 0.4640658532 | AQ34: 0.4534257245 | AR34: 0.4429166437 | AS34: 0.4326511327 | AT34: 0.4227312825 | AU34: 0.4130388752 | AV34: 0.4034658434 | AW34: 0.3941146864 | AX34: 0.3851765672 | AY34: 0.3763452165 | AZ34: 0.3676226363 | BA34: 0.35910222 | BB34: 0.3509581478 | BC34: 0.342911359 | BD34: 0.3349636777 | BE34: 0.3272002004 | BF34: 0.3197796335 | BG34: 0.3124477075 | BH34: 0.3052060845 | BI34: 0.2981323011 | BJ34: 0.2912967064 | BK34: 0.2846178386 | BL34: 0.2780212304 | BM34: 0.2715775123
C35: Discounted cashflows | D35: AUD M | I35: =SUM(J35:BM35) -> 187.7131023 | J35: =J29*J34 -> -14.6598153 | K35: -14.3236942 | L35: -13.99171291 | M35: -13.66742597 | N35: 13.77821327 | O35: 10.12825338 | P35: 9.896219612 | Q35: 9.669594107 | R35: 9.453073053 | S35: 9.239147012 | T35: 9.11331145 | U35: 9.128402187 | V35: 8.924340538 | W35: 8.722745216 | X35: 8.523667908 | Y35: 8.329280982 | Z35: 8.143635835 | AA35: 7.960270732 | AB35: 7.779238126 | AC35: 7.602527333 | AD35: 7.431950743 | AE35: 7.265452916 | AF35: 7.101157387 | AG35: 6.940897503 | AH35: 6.78808182 | AI35: 6.637367551 | AJ35: 6.488853574 | AK35: 6.344277141 | AL35: 6.206847841 | AM35: 6.071826445 | AN35: 5.939538539 | AO35: 5.811994641 | AP35: =AP29*AP34 -> 5.692980463 | AQ35: 5.580163419 | AR35: 5.480491166 | AS35: 2.181948814 | AT35: 0 | AU35: 0 | AV35: 0 | AW35: 0 | AX35: 0 | AY35: 0 | AZ35: 0 | BA35: 0 | BB35: 0 | BC35: 0 | BD35: 0 | BE35: 0 | BF35: 0 | BG35: 0 | BH35: 0 | BI35: 0 | BJ35: 0 | BK35: 0 | BL35: 0 | BM35: 0
C37: XNPV method
C38: Cashflow for XNPV (undiscounted) | D38: AUD M | I38: =SUM(J38:BM38) -> 322.2643847 | J38: =J29 -> -15 | K38: -15 | L38: -15 | M38: -15 | N38: 15.47643363 | O38: 11.64356581 | P38: 11.64675459 | Q38: 11.65005564 | R38: 11.65347717 | S38: 11.65702831 | T38: 11.77108082 | U38: 12.07032741 | V38: 12.07433382 | W38: 12.07851908 | X38: 12.08289993 | Y38: 12.08749551 | Z38: 12.09232799 | AA38: 12.0974231 | AB38: 12.10281103 | AC38: 12.10852749 | AD38: 12.11461515 | AE38: 12.12112557 | AF38: 12.12812184 | AG38: 12.13568232 | AH38: 12.14390601 | AI38: 12.15292043 | AJ38: 12.16289383 | AK38: 12.17405455 | AL38: 12.18672347 | AM38: 12.2013719 | AN38: 12.21873302 | AO38: 12.24003983 | AP38: =AP29 -> 12.26761336 | AQ38: 12.30667586 | AR38: 12.37364015 | AS38: 5.04320606 | AT38: 0 | AU38: 0 | AV38: 0 | AW38: 0 | AX38: 0 | AY38: 0 | AZ38: 0 | BA38: 0 | BB38: 0 | BC38: 0 | BD38: 0 | BE38: 0 | BF38: 0 | BG38: 0 | BH38: 0 | BI38: 0 | BJ38: 0 | BK38: 0 | BL38: 0 | BM38: 0
C39: Valuation (enterprise value) | D39: AUD M | E39: =Inputs!F201 -> 0.0975 | I39: =XNPV($E34,I38:$BM38,I5:$BM5)-I38 -> 187.7131023 | J39: =XNPV($E39,J38:$BM38,J5:$BM5)-J38 -> 207.0690321 | K39: =XNPV($E39,K38:$BM38,K5:$BM5)-K38 -> 226.9281326 | L39: =XNPV($E39,L38:$BM38,L5:$BM5)-L38 -> 247.3124552 | M39: =XNPV($E39,M38:$BM38,M5:$BM5)-M38 -> 268.1804364 | N39: =XNPV($E39,N38:$BM38,N5:$BM5)-N38 -> 258.997149 | O39: =XNPV($E39,O38:$BM38,O5:$BM5)-O38 -> 253.4312335 | P39: =XNPV($E39,P38:$BM38,P5:$BM5)-P38 -> 247.7976404 | Q39: =XNPV($E39,Q38:$BM38,Q5:$BM5)-Q38 -> 242.027078 | R39: =XNPV($E39,R38:$BM38,R5:$BM5)-R38 -> 235.9899001 | S39: =XNPV($E39,S38:$BM38,S5:$BM5)-S38 -> 229.870632 | T39: =XNPV($E39,T38:$BM38,T5:$BM5)-T38 -> 223.5536903 | U39: =XNPV($E39,U38:$BM38,U5:$BM5)-U38 -> 216.7876201 | V39: =XNPV($E39,V38:$BM38,V5:$BM5)-V38 -> 209.7438976 | W39: =XNPV($E39,W38:$BM38,W5:$BM5)-W38 -> 202.5872476 | X39: =XNPV($E39,X38:$BM38,X5:$BM5)-X38 -> 195.3111342 | Y39: =XNPV($E39,Y38:$BM38,Y5:$BM5)-Y38 -> 187.8577848 | Z39: =XNPV($E39,Z38:$BM38,Z5:$BM5)-Z38 -> 180.124744 | AA39: =XNPV($E39,AA38:$BM38,AA5:$BM5)-AA38 -> 172.2541444 | AB39: =XNPV($E39,AB38:$BM38,AB5:$BM5)-AB38 -> 164.2384065 | AC39: =XNPV($E39,AC38:$BM38,AC5:$BM5)-AC38 -> 156.0267627 | AD39: =XNPV($E39,AD38:$BM38,AD5:$BM5)-AD38 -> 147.5734856 | AE39: =XNPV($E39,AE38:$BM38,AE5:$BM5)-AE38 -> 138.9153327 | AF39: =XNPV($E39,AF38:$BM38,AF5:$BM5)-AF38 -> 130.0832542 | AG39: =XNPV($E39,AG38:$BM38,AG5:$BM5)-AG38 -> 121.0340565 | AH39: =XNPV($E39,AH38:$BM38,AH5:$BM5)-AH38 -> 111.6987762 | AI39: =XNPV($E39,AI38:$BM38,AI5:$BM5)-AI38 -> 102.1669893 | AJ39: =XNPV($E39,AJ38:$BM38,AJ5:$BM5)-AJ38 -> 92.42821107 | AK39: =XNPV($E39,AK38:$BM38,AK5:$BM5)-AK38 -> 82.44720016 | AL39: =XNPV($E39,AL38:$BM38,AL5:$BM5)-AL38 -> 72.17368473 | AM39: =XNPV($E39,AM38:$BM38,AM5:$BM5)-AM38 -> 61.66594699 | AN39: =XNPV($E39,AN38:$BM38,AN5:$BM5)-AN38 -> 50.91036156 | AO39: =XNPV($E39,AO38:$BM38,AO5:$BM5)-AO38 -> 39.87827158 | AP39: =XNPV($E39,AP38:$BM38,AP5:$BM5)-AP38 -> 28.53604355 | AQ39: =XNPV($E39,AQ38:$BM38,AQ5:$BM5)-AQ38 -> 16.89899705 | AR39: =XNPV($E39,AR38:$BM38,AR5:$BM5)-AR38 -> 4.926319309 | AS39: =XNPV($E39,AS38:$BM38,AS5:$BM5)-AS38 -> 0 | AT39: =XNPV($E39,AT38:$BM38,AT5:$BM5)-AT38 -> 0 | AU39: =XNPV($E39,AU38:$BM38,AU5:$BM5)-AU38 -> 0 | AV39: =XNPV($E39,AV38:$BM38,AV5:$BM5)-AV38 -> 0 | AW39: =XNPV($E39,AW38:$BM38,AW5:$BM5)-AW38 -> 0 | AX39: =XNPV($E39,AX38:$BM38,AX5:$BM5)-AX38 -> 0 | AY39: =XNPV($E39,AY38:$BM38,AY5:$BM5)-AY38 -> 0 | AZ39: =XNPV($E39,AZ38:$BM38,AZ5:$BM5)-AZ38 -> 0 | BA39: =XNPV($E39,BA38:$BM38,BA5:$BM5)-BA38 -> 0 | BB39: =XNPV($E39,BB38:$BM38,BB5:$BM5)-BB38 -> 0 | BC39: =XNPV($E39,BC38:$BM38,BC5:$BM5)-BC38 -> 0 | BD39: =XNPV($E39,BD38:$BM38,BD5:$BM5)-BD38 -> 0 | BE39: =XNPV($E39,BE38:$BM38,BE5:$BM5)-BE38 -> 0 | BF39: =XNPV($E39,BF38:$BM38,BF5:$BM5)-BF38 -> 0 | BG39: =XNPV($E39,BG38:$BM38,BG5:$BM5)-BG38 -> 0 | BH39: =XNPV($E39,BH38:$BM38,BH5:$BM5)-BH38 -> 0 | BI39: =XNPV($E39,BI38:$BM38,BI5:$BM5)-BI38 -> 0 | BJ39: =XNPV($E39,BJ38:$BM38,BJ5:$BM5)-BJ38 -> 0 | BK39: =XNPV($E39,BK38:$BM38,BK5:$BM5)-BK38 -> 0 | BL39: =XNPV($E39,BL38:$BM38,BL5:$BM5)-BL38 -> 0 | BM39: =XNPV($E39,BM38:$BM38,BM5:$BM5)-BM38 -> 0
C40: IRR | D40: % | E40: =IRR(J38:BM38) -> 0.1607877233
C42: Implied multiples
C43: Enterprise value | D43: AUD M
C45: LTM EBITDA | D45: AUD M
C46: EV / LTM EBITDA | D46: x
C48: NTM EBITDA | D48: AUD M
C49: EV / NTM EBITDA | D49: x
C51: Resources | D51: Tonnes
C52: EV / Resources | D52: x
C54: Implied equity valuation
C55: Debt | D55: AUD M | I55: 0
C56: Excess cash (restoration reserve) | D56: AUD M | I56: 0
C57: Equity | D57: AUD M | I57: =I39-I55+I56 -> 187.7131023
C58: Shares Outstanding | D58: M | E58: 260 | I58: =I57/E58 -> 0.7219734705
C60: Multiples Valuation | D60: Have not included Multiples Valuation at this time
C61: Terminal period flag | D61: [1,0] | E61: =Inputs!E166 -> 00:00:00 | J61: =IF(J5=$E61,1,0) -> 0 | K61: 0 | L61: 0 | M61: 0 | N61: 0 | O61: 0 | P61: 0 | Q61: 0 | R61: 0 | S61: 0 | T61: 0 | U61: 0 | V61: 0 | W61: 0 | X61: 0 | Y61: 0 | Z61: 0 | AA61: 0 | AB61: 0 | AC61: 0 | AD61: 0 | AE61: 0 | AF61: 0 | AG61: 0 | AH61: 0 | AI61: 0 | AJ61: 0 | AK61: 0 | AL61: 0 | AM61: 0 | AN61: 0 | AO61: 0 | AP61: =IF(AP5=$E61,1,0) -> 0 | AQ61: 0 | AR61: 0 | AS61: 0 | AT61: 0 | AU61: 0 | AV61: 0 | AW61: 0 | AX61: 0 | AY61: 0 | AZ61: 0 | BA61: 0 | BB61: 0 | BC61: 0 | BD61: 0 | BE61: 0 | BF61: 0 | BG61: 0 | BH61: 0 | BI61: 0 | BJ61: 0 | BK61: 0 | BL61: 0 | BM61: 0
C63: Multiples method
C64: Enterprise value | E64: Basis year
C65: EBITDA | D65: AUD M | E65: =Qtrs_Yr -> 4 | I65: =SUM(J65:BM65) -> 510.3620471 | J65: =J18 -> 0 | K65: 0 | L65: 0 | M65: 0 | N65: =N18 -> 15.55606836 | O65: 15.80606836 | P65: 15.80606836 | Q65: 15.80606836 | R65: 15.80606836 | S65: 15.80606836 | T65: 15.96372773 | U65: 16.38573398 | V65: 16.38573398 | W65: 16.38573398 | X65: 16.38573398 | Y65: 16.38573398 | Z65: 16.38573398 | AA65: 16.38573398 | AB65: 16.38573398 | AC65: 16.38573398 | AD65: 16.38573398 | AE65: 16.38573398 | AF65: 16.38573398 | AG65: 16.38573398 | AH65: 16.38573398 | AI65: 16.38573398 | AJ65: 16.38573398 | AK65: 16.38573398 | AL65: 16.38573398 | AM65: 16.38573398 | AN65: 16.38573398 | AO65: 16.38573398 | AP65: =AP18 -> 16.38573398 | AQ65: 16.38573398 | AR65: 16.38573398 | AS65: 6.554293594 | AT65: 0 | AU65: 0 | AV65: 0 | AW65: 0 | AX65: 0 | AY65: 0 | AZ65: 0 | BA65: 0 | BB65: 0 | BC65: 0 | BD65: 0 | BE65: 0 | BF65: 0 | BG65: 0 | BH65: 0 | BI65: 0 | BJ65: 0 | BK65: 0 | BL65: 0 | BM65: 0
C66: LTM EBITDA | D66: AUD M | J66: =J61*SUM(OFFSET(J65,0,0,1,-$E65)) -> 0 | K66: 0 | L66: 0 | M66: 0 | N66: 0 | O66: 0 | P66: 0 | Q66: 0 | R66: 0 | S66: 0 | T66: 0 | U66: 0 | V66: 0 | W66: 0 | X66: 0 | Y66: 0 | Z66: 0 | AA66: 0 | AB66: 0 | AC66: 0 | AD66: 0 | AE66: 0 | AF66: 0 | AG66: 0 | AH66: 0 | AI66: 0 | AJ66: 0 | AK66: 0 | AL66: 0 | AM66: 0 | AN66: 0 | AO66: 0 | AP66: =AP61*SUM(OFFSET(AP65,0,0,1,-$E65)) -> 0 | AQ66: 0 | AR66: 0 | AS66: 0 | AT66: 0 | AU66: 0 | AV66: 0 | AW66: 0 | AX66: 0 | AY66: 0 | AZ66: 0 | BA66: 0 | BB66: 0 | BC66: 0 | BD66: 0 | BE66: 0 | BF66: 0 | BG66: 0 | BH66: 0 | BI66: 0 | BJ66: 0 | BK66: 0 | BL66: 0 | BM66: 0
C67: Normalisation adjustments | D67: AUD M | E67: =Inputs!E172 -> 0 | I67: =SUM(J67:BM67) -> 0 | J67: =$E67*J61 -> 0 | K67: 0 | L67: 0 | M67: 0 | N67: 0 | O67: 0 | P67: 0 | Q67: 0 | R67: 0 | S67: 0 | T67: 0 | U67: 0 | V67: 0 | W67: 0 | X67: 0 | Y67: 0 | Z67: 0 | AA67: 0 | AB67: 0 | AC67: 0 | AD67: 0 | AE67: 0 | AF67: 0 | AG67: 0 | AH67: 0 | AI67: 0 | AJ67: 0 | AK67: 0 | AL67: 0 | AM67: 0 | AN67: 0 | AO67: 0 | AP67: =$E67*AP61 -> 0 | AQ67: 0 | AR67: 0 | AS67: 0 | AT67: 0 | AU67: 0 | AV67: 0 | AW67: 0 | AX67: 0 | AY67: 0 | AZ67: 0 | BA67: 0 | BB67: 0 | BC67: 0 | BD67: 0 | BE67: 0 | BF67: 0 | BG67: 0 | BH67: 0 | BI67: 0 | BJ67: 0 | BK67: 0 | BL67: 0 | BM67: 0
C68: LTM normalised EBITDA | D68: AUD M | E68: EV/EBITDA | J68: =J66+J67 -> 0 | K68: =K66+K67 -> 0 | L68: 0 | M68: 0 | N68: 0 | O68: 0 | P68: 0 | Q68: 0 | R68: 0 | S68: 0 | T68: 0 | U68: 0 | V68: 0 | W68: 0 | X68: 0 | Y68: 0 | Z68: 0 | AA68: 0 | AB68: 0 | AC68: 0 | AD68: 0 | AE68: 0 | AF68: 0 | AG68: 0 | AH68: 0 | AI68: 0 | AJ68: 0 | AK68: 0 | AL68: 0 | AM68: 0 | AN68: 0 | AO68: 0 | AP68: 0 | AQ68: 0 | AR68: 0 | AS68: 0 | AT68: 0 | AU68: 0 | AV68: 0 | AW68: 0 | AX68: 0 | AY68: 0 | AZ68: 0 | BA68: 0 | BB68: 0 | BC68: 0 | BD68: 0 | BE68: 0 | BF68: 0 | BG68: 0 | BH68: 0 | BI68: 0 | BJ68: 0 | BK68: 0 | BL68: 0 | BM68: 0
C69: Terminal value | D69: AUD M | E69: =Inputs!E169 -> 0 | I69: =SUM(J69:BM69) -> 0 | J69: =J68*$E69 -> 0 | K69: =K68*$E69 -> 0 | L69: 0 | M69: 0 | N69: 0 | O69: 0 | P69: 0 | Q69: 0 | R69: 0 | S69: 0 | T69: 0 | U69: 0 | V69: 0 | W69: 0 | X69: 0 | Y69: 0 | Z69: 0 | AA69: 0 | AB69: 0 | AC69: 0 | AD69: 0 | AE69: 0 | AF69: 0 | AG69: 0 | AH69: 0 | AI69: 0 | AJ69: 0 | AK69: 0 | AL69: 0 | AM69: 0 | AN69: 0 | AO69: 0 | AP69: 0 | AQ69: 0 | AR69: 0 | AS69: 0 | AT69: 0 | AU69: 0 | AV69: 0 | AW69: 0 | AX69: 0 | AY69: 0 | AZ69: 0 | BA69: 0 | BB69: 0 | BC69: 0 | BD69: 0 | BE69: 0 | BF69: 0 | BG69: 0 | BH69: 0 | BI69: 0 | BJ69: 0 | BK69: 0 | BL69: 0 | BM69: 0

Sheet IFS
A1: Integrated Financial Statements: Quarterly
A2: =Name_Project -> King Island Valuation | E2: =Master_check -> 0
C4: Period Start | J4: =Timing!J4 -> 2019-01-01 | K4: =Timing!K4 -> 2019-04-01 | L4: =Timing!L4 -> 2019-07-01 | M4: =Timing!M4 -> 2019-10-01 | N4: =Timing!N4 -> 2020-01-01 | O4: =Timing!O4 -> 2020-04-01 | P4: =Timing!P4 -> 2020-07-01 | Q4: =Timing!Q4 -> 2020-10-01 | R4: =Timing!R4 -> 2021-01-01 | S4: =Timing!S4 -> 2021-04-01 | T4: =Timing!T4 -> 2021-07-01 | U4: =Timing!U4 -> 2021-10-01 | V4: =Timing!V4 -> 2022-01-01 | W4: =Timing!W4 -> 2022-04-01 | X4: =Timing!X4 -> 2022-07-01 | Y4: =Timing!Y4 -> 2022-10-01 | Z4: =Timing!Z4 -> 2023-01-01 | AA4: =Timing!AA4 -> 2023-04-01 | AB4: =Timing!AB4 -> 2023-07-01 | AC4: =Timing!AC4 -> 2023-10-01 | AD4: =Timing!AD4 -> 2024-01-01 | AE4: =Timing!AE4 -> 2024-04-01 | AF4: =Timing!AF4 -> 2024-07-01 | AG4: =Timing!AG4 -> 2024-10-01 | AH4: =Timing!AH4 -> 2025-01-01 | AI4: =Timing!AI4 -> 2025-04-01 | AJ4: =Timing!AJ4 -> 2025-07-01 | AK4: =Timing!AK4 -> 2025-10-01 | AL4: =Timing!AL4 -> 2026-01-01 | AM4: =Timing!AM4 -> 2026-04-01 | AN4: =Timing!AN4 -> 2026-07-01 | AO4: =Timing!AO4 -> 2026-10-01 | AP4: =Timing!AP4 -> 2027-01-01 | AQ4: =Timing!AQ4 -> 2027-04-01 | AR4: =Timing!AR4 -> 2027-07-01 | AS4: =Timing!AS4 -> 2027-10-01 | AT4: =Timing!AT4 -> 2028-01-01 | AU4: =Timing!AU4 -> 2028-04-01 | AV4: =Timing!AV4 -> 2028-07-01 | AW4: =Timing!AW4 -> 2028-10-01 | AX4: =Timing!AX4 -> 2029-01-01 | AY4: =Timing!AY4 -> 2029-04-01 | AZ4: =Timing!AZ4 -> 2029-07-01 | BA4: =Timing!BA4 -> 2029-10-01 | BB4: =Timing!BB4 -> 2030-01-01 | BC4: =Timing!BC4 -> 2030-04-01 | BD4: =Timing!BD4 -> 2030-07-01 | BE4: =Timing!BE4 -> 2030-10-01 | BF4: =Timing!BF4 -> 2031-01-01 | BG4: =Timing!BG4 -> 2031-04-01 | BH4: =Timing!BH4 -> 2031-07-01 | BI4: =Timing!BI4 -> 2031-10-01 | BJ4: =Timing!BJ4 -> 2032-01-01 | BK4: =Timing!BK4 -> 2032-04-01 | BL4: =Timing!BL4 -> 2032-07-01 | BM4: =Timing!BM4 -> 2032-10-01
C5: Period End | I5: =Timing!I5 -> 2018-12-31 | J5: =Timing!J5 -> 2019-03-31 | K5: =Timing!K5 -> 2019-06-30 | L5: =Timing!L5 -> 2019-09-30 | M5: =Timing!M5 -> 2019-12-31 | N5: =Timing!N5 -> 2020-03-31 | O5: =Timing!O5 -> 2020-06-30 | P5: =Timing!P5 -> 2020-09-30 | Q5: =Timing!Q5 -> 2020-12-31 | R5: =Timing!R5 -> 2021-03-31 | S5: =Timing!S5 -> 2021-06-30 | T5: =Timing!T5 -> 2021-09-30 | U5: =Timing!U5 -> 2021-12-31 | V5: =Timing!V5 -> 2022-03-31 | W5: =Timing!W5 -> 2022-06-30 | X5: =Timing!X5 -> 2022-09-30 | Y5: =Timing!Y5 -> 2022-12-31 | Z5: =Timing!Z5 -> 2023-03-31 | AA5: =Timing!AA5 -> 2023-06-30 | AB5: =Timing!AB5 -> 2023-09-30 | AC5: =Timing!AC5 -> 2023-12-31 | AD5: =Timing!AD5 -> 2024-03-31 | AE5: =Timing!AE5 -> 2024-06-30 | AF5: =Timing!AF5 -> 2024-09-30 | AG5: =Timing!AG5 -> 2024-12-31 | AH5: =Timing!AH5 -> 2025-03-31 | AI5: =Timing!AI5 -> 2025-06-30 | AJ5: =Timing!AJ5 -> 2025-09-30 | AK5: =Timing!AK5 -> 2025-12-31 | AL5: =Timing!AL5 -> 2026-03-31 | AM5: =Timing!AM5 -> 2026-06-30 | AN5: =Timing!AN5 -> 2026-09-30 | AO5: =Timing!AO5 -> 2026-12-31 | AP5: =Timing!AP5 -> 2027-03-31 | AQ5: =Timing!AQ5 -> 2027-06-30 | AR5: =Timing!AR5 -> 2027-09-30 | AS5: =Timing!AS5 -> 2027-12-31 | AT5: =Timing!AT5 -> 2028-03-31 | AU5: =Timing!AU5 -> 2028-06-30 | AV5: =Timing!AV5 -> 2028-09-30 | AW5: =Timing!AW5 -> 2028-12-31 | AX5: =Timing!AX5 -> 2029-03-31 | AY5: =Timing!AY5 -> 2029-06-30 | AZ5: =Timing!AZ5 -> 2029-09-30 | BA5: =Timing!BA5 -> 2029-12-31 | BB5: =Timing!BB5 -> 2030-03-31 | BC5: =Timing!BC5 -> 2030-06-30 | BD5: =Timing!BD5 -> 2030-09-30 | BE5: =Timing!BE5 -> 2030-12-31 | BF5: =Timing!BF5 -> 2031-03-31 | BG5: =Timing!BG5 -> 2031-06-30 | BH5: =Timing!BH5 -> 2031-09-30 | BI5: =Timing!BI5 -> 2031-12-31 | BJ5: =Timing!BJ5 -> 2032-03-31 | BK5: =Timing!BK5 -> 2032-06-30 | BL5: =Timing!BL5 -> 2032-09-30 | BM5: =Timing!BM5 -> 2032-12-31
C6: Development | D6: =Timing!D6 -> 2019-01-01 | E6: =Timing!E6 -> 2019-12-31 | J6: =Timing!J6 -> 1 | K6: =Timing!K6 -> 1 | L6: =Timing!L6 -> 1 | M6: =Timing!M6 -> 1 | N6: =Timing!N6 -> 0 | O6: =Timing!O6 -> 0 | P6: =Timing!P6 -> 0 | Q6: =Timing!Q6 -> 0 | R6: =Timing!R6 -> 0 | S6: =Timing!S6 -> 0 | T6: =Timing!T6 -> 0 | U6: =Timing!U6 -> 0 | V6: =Timing!V6 -> 0 | W6: =Timing!W6 -> 0 | X6: =Timing!X6 -> 0 | Y6: =Timing!Y6 -> 0 | Z6: =Timing!Z6 -> 0 | AA6: =Timing!AA6 -> 0 | AB6: =Timing!AB6 -> 0 | AC6: =Timing!AC6 -> 0 | AD6: =Timing!AD6 -> 0 | AE6: =Timing!AE6 -> 0 | AF6: =Timing!AF6 -> 0 | AG6: =Timing!AG6 -> 0 | AH6: =Timing!AH6 -> 0 | AI6: =Timing!AI6 -> 0 | AJ6: =Timing!AJ6 -> 0 | AK6: =Timing!AK6 -> 0 | AL6: =Timing!AL6 -> 0 | AM6: =Timing!AM6 -> 0 | AN6: =Timing!AN6 -> 0 | AO6: =Timing!AO6 -> 0 | AP6: =Timing!AP6 -> 0 | AQ6: =Timing!AQ6 -> 0 | AR6: =Timing!AR6 -> 0 | AS6: =Timing!AS6 -> 0 | AT6: =Timing!AT6 -> 0 | AU6: =Timing!AU6 -> 0 | AV6: =Timing!AV6 -> 0 | AW6: =Timing!AW6 -> 0 | AX6: =Timing!AX6 -> 0 | AY6: =Timing!AY6 -> 0 | AZ6: =Timing!AZ6 -> 0 | BA6: =Timing!BA6 -> 0 | BB6: =Timing!BB6 -> 0 | BC6: =Timing!BC6 -> 0 | BD6: =Timing!BD6 -> 0 | BE6: =Timing!BE6 -> 0 | BF6: =Timing!BF6 -> 0 | BG6: =Timing!BG6 -> 0 | BH6: =Timing!BH6 -> 0 | BI6: =Timing!BI6 -> 0 | BJ6: =Timing!BJ6 -> 0 | BK6: =Timing!BK6 -> 0 | BL6: =Timing!BL6 -> 0 | BM6: =Timing!BM6 -> 0
C7: Production | D7: =Timing!D7 -> 2020-01-01 | E7: =Timing!E7 -> 2027-12-31 | J7: =Timing!J7 -> 0 | K7: =Timing!K7 -> 0 | L7: =Timing!L7 -> 0 | M7: =Timing!M7 -> 0 | N7: =Timing!N7 -> 1 | O7: =Timing!O7 -> 1 | P7: =Timing!P7 -> 1 | Q7: =Timing!Q7 -> 1 | R7: =Timing!R7 -> 1 | S7: =Timing!S7 -> 1 | T7: =Timing!T7 -> 1 | U7: =Timing!U7 -> 1 | V7: =Timing!V7 -> 1 | W7: =Timing!W7 -> 1 | X7: =Timing!X7 -> 1 | Y7: =Timing!Y7 -> 1 | Z7: =Timing!Z7 -> 1 | AA7: =Timing!AA7 -> 1 | AB7: =Timing!AB7 -> 1 | AC7: =Timing!AC7 -> 1 | AD7: =Timing!AD7 -> 1 | AE7: =Timing!AE7 -> 1 | AF7: =Timing!AF7 -> 1 | AG7: =Timing!AG7 -> 1 | AH7: =Timing!AH7 -> 1 | AI7: =Timing!AI7 -> 1 | AJ7: =Timing!AJ7 -> 1 | AK7: =Timing!AK7 -> 1 | AL7: =Timing!AL7 -> 1 | AM7: =Timing!AM7 -> 1 | AN7: =Timing!AN7 -> 1 | AO7: =Timing!AO7 -> 1 | AP7: =Timing!AP7 -> 1 | AQ7: =Timing!AQ7 -> 1 | AR7: =Timing!AR7 -> 1 | AS7: =Timing!AS7 -> 1 | AT7: =Timing!AT7 -> 0 | AU7: =Timing!AU7 -> 0 | AV7: =Timing!AV7 -> 0 | AW7: =Timing!AW7 -> 0 | AX7: =Timing!AX7 -> 0 | AY7: =Timing!AY7 -> 0 | AZ7: =Timing!AZ7 -> 0 | BA7: =Timing!BA7 -> 0 | BB7: =Timing!BB7 -> 0 | BC7: =Timing!BC7 -> 0 | BD7: =Timing!BD7 -> 0 | BE7: =Timing!BE7 -> 0 | BF7: =Timing!BF7 -> 0 | BG7: =Timing!BG7 -> 0 | BH7: =Timing!BH7 -> 0 | BI7: =Timing!BI7 -> 0 | BJ7: =Timing!BJ7 -> 0 | BK7: =Timing!BK7 -> 0 | BL7: =Timing!BL7 -> 0 | BM7: =Timing!BM7 -> 0
C8: Restoration | D8: =Inputs!I7 -> 2028-01-01 | E8: =Inputs!I9 -> 2027-12-31 | J8: =IF(AND(J$4>=$D8,J$5<=$E8),1,0) -> 0 | K8: =IF(AND(K$4>=$D8,K$5<=$E8),1,0) -> 0 | L8: 0 | M8: 0 | N8: 0 | O8: 0 | P8: 0 | Q8: 0 | R8: 0 | S8: 0 | T8: 0 | U8: 0 | V8: 0 | W8: 0 | X8: 0 | Y8: 0 | Z8: 0 | AA8: =IF(AND(AA$4>=$D8,AA$5<=$E8),1,0) -> 0 | AB8: 0 | AC8: 0 | AD8: 0 | AE8: 0 | AF8: 0 | AG8: 0 | AH8: 0 | AI8: 0 | AJ8: 0 | AK8: 0 | AL8: 0 | AM8: 0 | AN8: 0 | AO8: 0 | AP8: 0 | AQ8: =IF(AND(AQ$4>=$D8,AQ$5<=$E8),1,0) -> 0 | AR8: 0 | AS8: 0 | AT8: 0 | AU8: 0 | AV8: 0 | AW8: 0 | AX8: 0 | AY8: 0 | AZ8: 0 | BA8: 0 | BB8: 0 | BC8: 0 | BD8: 0 | BE8: 0 | BF8: 0 | BG8: =IF(AND(BG$4>=$D8,BG$5<=$E8),1,0) -> 0 | BH8: 0 | BI8: 0 | BJ8: 0 | BK8: 0 | BL8: 0 | BM8: 0
